Workbook

Sheet Control Panel
A1: GO TO
A2: Utah | D2: FILING INFORMATION | N2: Model Checks
A3: 1.1 | N3: (Must Be 0)
A4: 1.2 | F4: UTAH | N4: ='Model Checks'!D7 -> 0.3022633791
A5: 1.3 pg 1 | E5: Current Case No. | F5: 22-057-16 | N5: (If this is not 0, or very close, go to
A6: 1.3 pg 2 | E6: Filing Date | F6: 2022-09-30 | N6: the "Model Checks"
E7: Test-Year Ending | F7: 2023-10-31 | N7: Tab and find the
A8: 1.4 pg 1 | E8: Proposed Effective Date | F8: 2022-11-01 | N8: problem.)
A9: 1.4 pg 2 | E9: Prior Case No. | F9: 22-057-08
A10: 1.4 pg 3 | N10: Go To
A11: 1.5 | D11: Total Increase (Decrease) | F11: ='Utah Summary-by class'!Q27 -> 128167378.6 | H11: =F11-G11 -> 128167378.6 | N11: Model Checks'
A12: 1.6 pg 1
A13: 1.6 pg 2
A14: 1.6 pg 3 | D14: Typical Customer's Bill | N14: Old Ut Data color
A15: 1.7 pg 1
A16: 1.7 pg 2 | E16: Previous | F16: ='Ut 1.6 p1'!F30 -> 759.58 | N16: New Data color
A17: 1.8 | E17: Proposed | F17: ='Ut 1.6 p1'!H30 -> 837.74
A18: 1.9 | E18: Difference | F18: ='Ut 1.6 p1'!J30 -> 78.16 | H18: =F18-G18 -> 78.16
A19: Monthly Inputs | E19: % Difference | F19: ='Ut 1.6 p1'!J32 -> 10.29 | H19: =F19-G19 -> 10.29
A20: Other Inputs
A21: Expenses
A22: Rate Base
D29: DEU Exhibit Headings
D31: UTAH
F32: Dominion Energy Utah
F33: ="Docket No. "&F5 -> Docket No. 22-057-16
D39: Test-Year (enter as text)
E40: from | F40: 2022-11-01
E41: to | F41: 2023-10-31

Sheet Monthly Inputs
A1: MONTHLY INPUTS
G2: TEST-YEAR COLUMNS | S2: 12-Month
E3: Sep22 | F3: Oct22 | G3: Nov22 | H3: Dec22 | I3: Jan23 | J3: Feb23 | K3: Mar23 | L3: Apr23 | M3: May23 | N3: Jun23 | O3: Jul23 | P3: Aug23 | Q3: Sep23 | R3: Oct23 | S3: =R3 -> Oct23
E4: 9 | F4: 10 | G4: 11 | H4: 12 | I4: 1 | J4: 2 | K4: 3 | L4: 4 | M4: 5 | N4: 6 | O4: 7 | P4: 8 | Q4: 9 | R4: 10
A5: QGC Company Produced Gas In MDth | I5: Updated: | J5: 2022-08-31
A6: WEXPRO I
B7: Company Production In Dth | E7: 3246630.992 | F7: 3311505.589 | G7: 3769367.893 | H7: 3743168.145 | I7: 3637668.792 | J7: 3208435.457 | K7: 3483614.068 | L7: 3312333.997 | M7: 3364720.318 | N7: 3203188.194 | O7: 3348338.543 | P7: 3489884.148 | Q7: 3315189.947 | R7: 3357249.339 | S7: =SUM(G7:R7) -> 41233158.84
B8: Birch Cr Gathering | E8: 0 | F8: 0 | G8: 0 | H8: 0 | I8: 0 | J8: 0 | K8: 0 | L8: 0 | M8: 0 | N8: 0 | O8: 0 | P8: 0 | Q8: 0 | R8: =R7/$S$7*$S$8 -> 0 | S8: ='Other Inputs'!$D$180 -> 0
B9: Gathering | E9: =E7/$S$7*$S$9 -> 686193.4331 | F9: 699905.0383 | G9: =G7/$S$7*$S$9 -> 796676.771 | H9: 791139.3091 | I9: 768841.437 | J9: 678120.5953 | K9: 736281.1182 | L9: 700080.1269 | M9: 711152.2659 | N9: 677011.5572 | O9: 707689.8871 | P9: 737606.3342 | Q9: 700683.7479 | R9: 709573.2332 | S9: =+'Ex 1.1 Data'!E1 -> 8714856.383
A12: WEXPRO II
B13: Company Production In Dth | E13: 1097892 | F13: 1110111 | G13: 1782012.617 | H13: 1696284.865 | I13: 1604873.31 | J13: 1405522.77 | K13: 1482584.896 | L13: 1396381.179 | M13: 1395650.069 | N13: 1318926.861 | O13: 1323770.523 | P13: 1294059.026 | Q13: 1250191.988 | R13: 1260935.002 | S13: =SUM(G13:R13) -> 17211193.11
B14: Samson Gathering | E14: 571816.3948 | F14: 578180.4311 | G14: =G13/$S$13*$S$14 -> 894238.4323 | H14: 851219.0679 | I14: 805347.4925 | J14: 705310.651 | K14: 743981.4854 | L14: 700723.2745 | M14: 700356.3937 | N14: 661855.6332 | O14: 664286.2493 | P14: 649376.6113 | Q14: 627363.5287 | R14: 632754.521 | S14: =+'Ex 1.1 Data'!L1 -> 8636813.341
D21: 1000
B23: Injections in Dth
C24: Chalk Creek | E24: 40000 | F24: 135000 | G24: 90000 | H24: 53593 | I24: 0 | J24: 44310 | K24: 0 | L24: 0 | M24: 0 | N24: 0 | O24: 0 | P24: 0 | Q24: 40000 | R24: 132000 | S24: =SUM(G24:R24) -> 359903
C25: Clay Basin | E25: 1865632 | F25: 1576854 | G25: 154422 | H25: 0 | I25: 0 | J25: 0 | K25: 805140 | L25: 136477 | M25: 2418001 | N25: 1980000 | O25: 2045999 | P25: 2051859 | Q25: 1985670 | R25: 1576854 | S25: 13154422
C26: Coalville | E26: 42000 | F26: 280800 | G26: 97904 | H26: 0 | I26: 0 | J26: 170000 | K26: 317500 | L26: 0 | M26: 0 | N26: 0 | O26: 0 | P26: 0 | Q26: 42000 | R26: 280800 | S26: 908204
C27: Leroy | E27: 47500 | F27: 45000 | G27: 300000 | H27: 45573 | I27: 0 | J27: 146800 | K27: 0 | L27: 0 | M27: 0 | N27: 0 | O27: 0 | P27: 0 | Q27: 47500 | R27: 45000 | S27: 584873
C28: Spire | E28: 0 | F28: 0 | G28: 0 | H28: 0 | I28: 0 | J28: 0 | K28: 0 | L28: 0 | M28: 0 | N28: 0 | O28: 0 | P28: 0 | Q28: 0 | R28: 0 | S28: 0
C29: Total Injections | E29: 1995132 | F29: 2037654 | G29: =SUM(G24:G28) -> 642326 | H29: 99166 | I29: 0 | J29: 361110 | K29: 1122640 | L29: 136477 | M29: 2418001 | N29: 1980000 | O29: 2045999 | P29: 2051859 | Q29: 2115170 | R29: 2034654 | S29: 15007402
B31: Withdrawals In Dth
C32: Chalk Creek | E32: 0 | F32: 0 | G32: 0 | H32: 0 | I32: 124560 | J32: 128625 | K32: 112125 | L32: 0 | M32: 0 | N32: 0 | O32: 0 | P32: 0 | Q32: 0 | R32: 0 | S32: =SUM(G32:R32) -> 365310
C33: Clay Basin | E33: 0 | F33: 0 | G33: 0 | H33: 3410050 | I33: 3410050 | J33: 3080045 | K33: 0 | L33: 0 | M33: 0 | N33: 0 | O33: 0 | P33: 0 | Q33: 0 | R33: 0 | S33: 9900145
C34: Coalville | E34: 0 | F34: 0 | G34: 0 | H34: 0 | I34: 410186 | J34: 437500 | K34: 0 | L34: 0 | M34: 0 | N34: 0 | O34: 0 | P34: 0 | Q34: 0 | R34: 0 | S34: 847686
C35: Leroy | E35: 0 | F35: 0 | G35: 0 | H35: 0 | I35: 470298 | J35: 120000 | K35: 0 | L35: 0 | M35: 0 | N35: 0 | O35: 0 | P35: 0 | Q35: 0 | R35: 0 | S35: 590298
C36: Spire | E36: 0 | F36: 0 | G36: 0 | H36: 0 | I36: 0 | J36: 0 | K36: 0 | L36: 0 | M36: 0 | N36: 0 | O36: 0 | P36: 0 | Q36: 0 | R36: 0 | S36: 0
C37: Total Withdrawals | E37: 0 | F37: 0 | G37: =SUM(G32:G36) -> 0 | H37: 3410050 | I37: 4415094 | J37: 3766170 | K37: 112125 | L37: 0 | M37: 0 | N37: 0 | O37: 0 | P37: 0 | Q37: 0 | R37: 0 | S37: 11703439
A39: LNG
B40: Injections in Dth | E40: =9000*10 -> 90000 | F40: =9000*31 -> 279000 | G40: =9000*30 -> 270000 | H40: =9000*31 -> 279000 | I40: =9000*31 -> 279000 | J40: =9000*4 -> 36000 | K40: 0 | L40: 0 | M40: 0 | N40: 0 | O40: 0 | P40: =K41 -> 184950 | Q40: 0 | R40: 0 | S40: =SUM(G40:R40) -> 1048950
B41: Withdrawals In Dth | E41: 0 | F41: 0 | G41: 0 | H41: 0 | I41: 0 | J41: 0 | K41: =SUM(E40:J40)*0.15 -> 184950 | L41: 0 | M41: 0 | N41: 0 | O41: 0 | P41: 0 | Q41: 0 | R41: 0 | S41: 184950
B43: Lost & Unaccounted for on MWP
A46: Injection and Withdrawal Used, Lost and Unaccounted For
D47: Gas Use
D48: %
B49: Injections in Dth
C50: Chalk Creek | D50: ='Other Inputs'!E152 -> 0.0065 | E50: =E24*-$D50 -> -260 | F50: -877.5 | G50: -585 | H50: -348.3545 | I50: 0 | J50: -288.015 | K50: 0 | L50: 0 | M50: 0 | N50: 0 | O50: 0 | P50: 0 | Q50: -260 | R50: -858 | S50: =SUM(G50:R50) -> -2339.3695
C51: Clay Basin | D51: ='Other Inputs'!E161 -> 0.0133 | E51: =E25*-$D51 -> -24812.9056 | F51: -20972.1582 | G51: -2053.8126 | H51: 0 | I51: 0 | J51: 0 | K51: -10708.362 | L51: -1815.1441 | M51: -32159.4133 | N51: -26334 | O51: -27211.7867 | P51: -27289.7247 | Q51: -26409.411 | R51: -20972.1582 | S51: =SUM(G51:R51) -> -174953.8126
C52: Coalville | D52: ='Other Inputs'!E164 -> 0.0111 | E52: =E26*-$D52 -> -466.2 | F52: -3116.88 | G52: -1086.7344 | H52: 0 | I52: 0 | J52: -1887 | K52: -3524.25 | L52: 0 | M52: 0 | N52: 0 | O52: 0 | P52: 0 | Q52: -466.2 | R52: -3116.88 | S52: =SUM(G52:R52) -> -10081.0644
C53: Leroy | D53: ='Other Inputs'!E158 -> 0.0273 | E53: =E27*-$D53 -> -1296.75 | F53: -1228.5 | G53: -8190 | H53: -1244.1429 | I53: 0 | J53: -4007.64 | K53: 0 | L53: 0 | M53: 0 | N53: 0 | O53: 0 | P53: 0 | Q53: -1296.75 | R53: -1228.5 | S53: =SUM(G53:R53) -> -15967.0329
C54: Ryckman | D54: ='Other Inputs'!E155 -> 0 | E54: =E28*-$D54 -> 0 | F54: 0 | G54: 0 | H54: 0 | I54: 0 | J54: 0 | K54: 0 | L54: 0 | M54: 0 | N54: 0 | O54: 0 | P54: 0 | Q54: 0 | R54: 0 | S54: =SUM(G54:R54) -> 0
C56: Total Injections | E56: =SUM(E50:E54) -> -26835.8556 | F56: -26195.0382 | G56: -11915.547 | H56: -1592.4974 | I56: 0 | J56: -6182.655 | K56: -14232.612 | L56: -1815.1441 | M56: -32159.4133 | N56: -26334 | O56: -27211.7867 | P56: -27289.7247 | Q56: -28432.361 | R56: -26175.5382 | S56: =SUM(S50:S54) -> -203341.2794
B58: Withdrawals In Dth
C59: Chalk Creek | D59: ='Other Inputs'!E153 -> 0.0188 | E59: =E32*-$D59 -> 0 | F59: 0 | G59: 0 | H59: 0 | I59: -2341.728 | J59: -2418.15 | K59: -2107.95 | L59: 0 | M59: 0 | N59: 0 | O59: 0 | P59: 0 | Q59: 0 | R59: 0 | S59: =SUM(G59:R59) -> -6867.828
C60: Clay Basin | D60: ='Other Inputs'!E162 -> 0.002129 | E60: =E33*-$D60 -> 0 | F60: 0 | G60: 0 | H60: -7259.99645 | I60: -7259.99645 | J60: -6557.415805 | K60: 0 | L60: 0 | M60: 0 | N60: 0 | O60: 0 | P60: 0 | Q60: 0 | R60: 0 | S60: =SUM(G60:R60) -> -21077.4087
C61: Coalville | D61: ='Other Inputs'!E165 -> 0.015 | E61: =E34*-$D61 -> 0 | F61: 0 | G61: 0 | H61: 0 | I61: -6152.79 | J61: -6562.5 | K61: 0 | L61: 0 | M61: 0 | N61: 0 | O61: 0 | P61: 0 | Q61: 0 | R61: 0 | S61: =SUM(G61:R61) -> -12715.29
C62: Leroy | D62: ='Other Inputs'!E159 -> 0.0137 | E62: =E35*-$D62 -> 0 | F62: 0 | G62: 0 | H62: 0 | I62: -6443.0826 | J62: -1644 | K62: 0 | L62: 0 | M62: 0 | N62: 0 | O62: 0 | P62: 0 | Q62: 0 | R62: 0 | S62: =SUM(G62:R62) -> -8087.0826
C63: Ryckman | D63: ='Other Inputs'!E156 -> 0 | E63: =E36*-$D63 -> 0 | F63: 0 | G63: 0 | H63: 0 | I63: 0 | J63: 0 | K63: 0 | L63: 0 | M63: 0 | N63: 0 | O63: 0 | P63: 0 | Q63: 0 | R63: 0 | S63: =SUM(G63:R63) -> 0
C65: Total Withdrawals | E65: =SUM(E59:E63) -> 0 | F65: =SUM(F59:F63) -> 0 | G65: =SUM(G59:G63) -> 0 | H65: -7259.99645 | I65: -22197.59705 | J65: -17182.0658 | K65: -2107.95 | L65: 0 | M65: 0 | N65: 0 | O65: 0 | P65: 0 | Q65: 0 | R65: 0 | S65: =SUM(S59:S63) -> -48747.6093
B67: MWP Transportation Loss
C68: Chalk Creek | D68: ='Other Inputs'!$E$279 -> 0.0105 | E68: =E32*-$D68 -> 0 | F68: 0 | G68: 0 | H68: 0 | I68: -1307.88 | J68: -1350.5625 | K68: -1177.3125 | L68: 0 | M68: 0 | N68: 0 | O68: 0 | P68: 0 | Q68: 0 | R68: 0 | S68: =SUM(G68:R68) -> -3835.755
C69: Clay Basin | D69: ='Other Inputs'!$E$279 -> 0.0105 | E69: =E33*-$D69 -> 0 | F69: 0 | G69: 0 | H69: -35805.525 | I69: -35805.525 | J69: -32340.4725 | K69: 0 | L69: 0 | M69: 0 | N69: 0 | O69: 0 | P69: 0 | Q69: 0 | R69: 0 | S69: =SUM(G69:R69) -> -103951.5225
C70: Coalville | D70: ='Other Inputs'!$E$279 -> 0.0105 | E70: =E34*-$D70 -> 0 | F70: 0 | G70: 0 | H70: 0 | I70: -4306.953 | J70: -4593.75 | K70: 0 | L70: 0 | M70: 0 | N70: 0 | O70: 0 | P70: 0 | Q70: 0 | R70: 0 | S70: =SUM(G70:R70) -> -8900.703
C71: Leroy | D71: ='Other Inputs'!$E$279 -> 0.0105 | E71: =E35*-$D71 -> 0 | F71: 0 | G71: 0 | H71: 0 | I71: -4938.129 | J71: -1260 | K71: 0 | L71: 0 | M71: 0 | N71: 0 | O71: 0 | P71: 0 | Q71: 0 | R71: 0 | S71: =SUM(G71:R71) -> -6198.129
C72: Ryckman | D72: ='Other Inputs'!$E$279 -> 0.0105 | E72: =E36*-$D72 -> 0 | F72: 0 | G72: 0 | H72: 0 | I72: 0 | J72: 0 | K72: 0 | L72: 0 | M72: 0 | N72: 0 | O72: 0 | P72: 0 | Q72: 0 | R72: 0 | S72: =SUM(G72:R72) -> 0
C74: Total Withdrawals | E74: =SUM(E68:E72) -> 0 | F74: =SUM(F68:F72) -> 0 | G74: =SUM(G68:G72) -> 0 | H74: -35805.525 | I74: -46358.487 | J74: -39544.785 | K74: -1177.3125 | L74: 0 | M74: 0 | N74: 0 | O74: 0 | P74: 0 | Q74: 0 | R74: 0 | S74: -122886.1095
B77: Total Injections & Withdrawals | E77: =E56+E65 -> -26835.8556 | F77: =F56+F65 -> -26195.0382 | G77: =G56+G65 -> -11915.547 | H77: =H56+H65 -> -8852.49385 | I77: -22197.59705 | J77: -23364.7208 | K77: -16340.562 | L77: -1815.1441 | M77: -32159.4133 | N77: -26334 | O77: -27211.7867 | P77: -27289.7247 | Q77: -28432.361 | R77: -26175.5382 | S77: =S56+S65 -> -252088.8887
R79: Fuel Factor | S79: =-S77/(S37+S29) -> 0.009437699423
S81: 12-Month
E82: =E3 -> Sep22 | F82: Oct22 | G82: Nov22 | H82: Dec22 | I82: Jan23 | J82: Feb23 | K82: Mar23 | L82: Apr23 | M82: May23 | N82: Jun23 | O82: Jul23 | P82: Aug23 | Q82: Sep23 | R82: Oct23 | S82: Total
I84: Updated: | J84: 2022-09-14 | K84: EXH 1.2
A85: Natural Gas Spot Price Forecast - Average of GI, IHS & Platts | G85: (Forecast --->)
B86: Kern River Opal, Wyoming | E86: 7.68 | F86: 7.56 | G86: 8.36 | H86: 9.56 | I86: 9.96 | J86: 8.96 | K86: 6.75 | L86: 4.86 | M86: 4.36 | N86: 4.43 | O86: 4.68 | P86: 4.71 | Q86: 4.39 | R86: 4.3
B89: Spot Purchases from IRP | G89: 6971.241 | H89: 619.755 | I89: 530.286 | J89: 1271.426 | K89: 8732.721 | L89: 4825.15 | M89: 3597.915 | N89: 917.119 | O89: 308.463 | P89: 167.9039 | Q89: 920.846 | R89: 4894.842 | S89: =SUM(G89:R89) -> 33757.6679
C90: In DTH | G90: =G89*1000 -> 6971241 | H90: =H89*1000 -> 619755 | I90: 530286 | J90: 1271426 | K90: 8732721 | L90: =L89*1000 -> 4825150 | M90: =M89*1000 -> 3597915 | N90: 917119 | O90: =O89*1000 -> 308463 | P90: 167903.9 | Q90: 920846 | R90: 4894842 | S90: =SUM(G90:R90) -> 33757667.9
C91: In $ | G91: =G90*G86 -> 58279574.76 | H91: =H90*H86 -> 5924857.8 | I91: =I90*I86 -> 5281648.56 | J91: =J90*J86 -> 11391976.96 | K91: =K90*K86 -> 58945866.75 | L91: =L90*L86 -> 23450229 | M91: 15686909.4 | N91: 4062837.17 | O91: 1443606.84 | P91: 790827.369 | Q91: =Q90*Q86 -> 4042513.94 | R91: 21047820.6 | S91: =SUM(G91:R91) -> 210348669.1
A94: CONTRACT PURCHASES | I94: Updated: | J94: 2022-09-08
B95: RESET FORMULAS TO WORKSHEET
B96: Peaking Purchases (DTH) | G96: 1000000 | H96: 4000000 | I96: 5000000 | J96: 3000000 | K96: 0 | L96: 0 | M96: 0 | N96: 0 | O96: 0 | P96: 0 | Q96: 0 | R96: 0 | S96: =SUM(G96:R96) -> 13000000
B97: Peaking Purchases ($) | G97: 9208929.664 | H97: 42095767.59 | I97: 54811396.54 | J97: 29599307.34 | K97: 0 | L97: 0 | M97: 0 | N97: 0 | O97: 0 | P97: 0 | Q97: 0 | R97: 0 | S97: =SUM(G97:R97) -> 135715401.1
B99: Term Purchases (DTH) | G99: 270000 | H99: 4464000 | I99: 4464000 | J99: 4032000 | K99: 279000 | L99: 0 | M99: 0 | N99: 0 | O99: 0 | P99: 0 | Q99: 0 | R99: 0 | S99: =SUM(G99:R99) -> 13509000
B100: Term Purchases ($) | G100: 2321000.337 | H100: 43258605.03 | I100: 45096462.56 | J100: 36582287.88 | K100: 1935943.235 | L100: 0 | M100: 0 | N100: 0 | O100: 0 | P100: 0 | Q100: 0 | R100: 0 | S100: =SUM(G100:R100) -> 129194299
B101: Stabilization Costs (Winter Months - Oct to Mar) | G101: 0 | H101: 0 | I101: 0 | J101: 0 | K101: 0 | L101: 0 | M101: 0 | N101: 0 | O101: 0 | P101: 0 | Q101: 0 | R101: 0 | S101: =SUM(G101:R101) -> 0
B103: Fixed Price Term Purchases (DTH) | G103: 0 | H103: 2015000 | I103: 2015000 | J103: 1820000 | K103: 0 | L103: 0 | M103: 0 | N103: 0 | O103: 0 | P103: 0 | Q103: 0 | R103: 0 | S103: =SUM(G103:R103) -> 5850000
B104: Fixed Price Term Purchases ($) | G104: 0 | H104: 16012275 | I104: 16500525 | J104: 14525700 | K104: 0 | L104: 0 | M104: 0 | N104: 0 | O104: 0 | P104: 0 | Q104: 0 | R104: 0 | S104: =SUM(G104:R104) -> 47038500
B107: Total Purchases (DTH) | E107: 0 | F107: 0 | G107: =G96+G99+G103 -> 1270000 | H107: =H96+H99+H103 -> 10479000 | I107: 11479000 | J107: 8852000 | K107: 279000 | L107: 0 | M107: 0 | N107: 0 | O107: 0 | P107: 0 | Q107: 0 | R107: 0 | S107: =SUM(G107:R107) -> 32359000
B108: Total Purchases ($) | E108: 0 | F108: 0 | G108: =G97+G100+G104 -> 11529930 | H108: =H97+H100+H104 -> 101366647.6 | I108: 116408384.1 | J108: 80707295.23 | K108: 1935943.235 | L108: 0 | M108: 0 | N108: 0 | O108: 0 | P108: 0 | Q108: 0 | R108: 0 | S108: =SUM(G108:R108) -> 311948200.2
A111: Typical Customer Monthly Usage in Dth
B112: Utah | G112: =VLOOKUP(MONTH(G3),$F$126:$G$137,2,FALSE) -> 6.3 | H112: =VLOOKUP(MONTH(H3),$F$126:$G$137,2,FALSE) -> 11.5 | I112: 14.9 | J112: 12.5 | K112: 10.1 | L112: 8.3 | M112: 4.4 | N112: 3.1 | O112: 2 | P112: 1.8 | Q112: 2 | R112: 3.1 | S112: =SUM(G112:R112) -> 80
B113: Wyoming | G113: =VLOOKUP(MONTH(G3),$F$126:$H$137,3,FALSE) -> 8 | H113: =VLOOKUP(MONTH(H3),$F$126:$H$137,3,FALSE) -> 12.3 | I113: 14.7 | J113: 14.1 | K113: 11.8 | L113: 9.4 | M113: 5.8 | N113: 3.7 | O113: 2.3 | P113: 1.7 | Q113: 2.1 | R113: 4.1 | S113: =SUM(G113:R113) -> 90
A115: INPUTS FROM WEXPRO | G115: =+G3 -> Nov22 | H115: =+H3 -> Dec22 | I115: Jan23 | J115: Feb23 | K115: Mar23 | L115: Apr23 | M115: May23 | N115: Jun23 | O115: Jul23 | P115: Aug23 | Q115: Sep23 | R115: Oct23 | S115: 12-Month
S116: Total
A117: Wexpro I Operator Fee (Wexpro forecast) | E117: Updated: | F117: 2022-09-14 | G117: 12595562.84 | H117: 12840971.38 | I117: 14516376.04 | J117: 14953245.83 | K117: 14797786.15 | L117: 13986358.55 | M117: 13388008.31 | N117: 33333477.84 | O117: 12378422.63 | P117: 12151871.78 | Q117: 12442912.5 | R117: 12729968.54 | S117: =SUM(G117:R117) -> 180114962.4
A119: Wexpro II Operator Fee (Wexpro forecast) | E119: Updated: | F119: 2022-09-14 | G119: 5378086.58 | H119: 5393669.764 | I119: 5480513.947 | J119: 4928069.752 | K119: 4715614.086 | L119: 4269108.003 | M119: 4171749.098 | N119: 4058889.321 | O119: 4079181.298 | P119: 4015353.761 | Q119: 3911515.944 | R119: 3903317.257 | S119: =SUM(G119:R119) -> 54305068.81
F125: Typical UPC | G125: UT | H125: WY | J125: Typical UPC | K125: UT
F126: 1 | G126: 14.9 | H126: 14.7 | J126: 1 | K126: 13
F127: 2 | G127: 12.5 | H127: 14.1 | J127: 2 | K127: 10.9
F128: 3 | G128: 10.1 | H128: 11.8 | J128: 3 | K128: 8.8
F129: 4 | G129: 8.3 | H129: 9.4 | J129: 4 | K129: 7.3
F130: 5 | G130: 4.4 | H130: 5.8 | J130: 5 | K130: 3.8
F131: 6 | G131: 3.1 | H131: 3.7 | J131: 6 | K131: 2.7
F132: 7 | G132: 2 | H132: 2.3 | J132: 7 | K132: 1.8
F133: 8 | G133: 1.8 | H133: 1.7 | J133: 8 | K133: 1.6
F134: 9 | G134: 2 | H134: 2.1 | J134: 9 | K134: 1.8
F135: 10 | G135: 3.1 | H135: 4.1 | J135: 10 | K135: 2.7
F136: 11 | G136: 6.3 | H136: 8 | J136: 11 | K136: 5.5
F137: 12 | G137: 11.5 | H137: 12.3 | J137: 12 | K137: 10.1
F138: Total | G138: =SUM(G126:G137) -> 80 | H138: =SUM(H126:H137) -> 90 | J138: Total | K138: =SUM(K126:K137) -> 70

Sheet Other Inputs
H1: Used In
A2: INPUT SECTION | H2: Ut
A3: INPUTS FROM MOUNTAIN WEST PIPELINE TARIFF AND CONTRACTS
B5: Storage Commodity Rates | E5: Rate | F5: Effective
B6: Peaking Injections | E6: 0.03872 | F6: 2022-04-01 | H6: 1.3.2
B7: Peaking Withdrawals | E7: 0.03872 | F7: =$F$6 -> 2022-04-01 | H7: 1.3.2
B8: Spire Injections | E8: 0 | F8: =$F$6 -> 2022-04-01
B9: Spire Withdrawals | E9: 0 | F9: =$F$6 -> 2022-04-01
B10: Clay Basin Injections | E10: 0.01049 | F10: =$F$6 -> 2022-04-01 | H10: 1.3.2
B11: Clay Basin Withdrawals | E11: 0.01781 | F11: =$F$6 -> 2022-04-01 | H11: 1.3.2
B13: Storage Field Reservation Charges
B14: Peaking Storage Fields Demand (Leroy, Chalk Creek, Coalville) | E14: 2.87375 | F14: =$F$6 -> 2022-04-01 | H14: 1.3.2
B15: Spire | E15: 0 | F15: =$F$6 -> 2022-04-01
B16: Clay Basin Demand | E16: 2.85338 | F16: =$F$6 -> 2022-04-01 | H16: 1.3.2
B17: Clay Basin Capacity | E17: 0.02378 | F17: =$F$6 -> 2022-04-01 | H17: 1.3.2
B19: Peak Hour Service
B20: Kern River | D20: 28752 | E20: 3 | F20: =+F21*E21/E20 -> 18.0596
B21: mid Nov - mid Feb | E21: =16+31+31+14 -> 92 | F21: =0.5833+0.0044+0.0012 -> 0.5889
B23: MOUNTAIN WEST Pipeline | D23: =(170000+54000)/24*8 -> 74666.66667 | E23: 3 | F23: =(1250772+397304)/(D23*E23) -> 7.357482143
B24: mid Nov - mid Feb | E24: =16+31+31+14 -> 92 | F24: =+F23/E24*E23 -> 0.239917896
B27: FIRM TRANSPORTATION | D27: Contract Dth | E27: Months | F27: Maximum Rate | G27: Effective
B28: T-1 Transportation - Yearly (MT241) | D28: =798902 -> 798902 | E28: 12 | F28: 5.28804 | G28: 2022-04-01 | H28: 1.3p1
B29: T-1 Transportation - Yearly (Mainline 104) | D29: 30000 | E29: 12 | F29: 5.28804 | G29: =$G$28 -> 2022-04-01
B30: T-1 Transportation - Yearly (Tieline 112) | D30: 12000 | E30: 12 | F30: 5.28804 | G30: =$G$28 -> 2022-04-01 | H30: 1.3p1
B31: T-1 Transportation - Nov-Mar | D31: 75000 | E31: 5 | F31: 6.80887 | G31: =$G$28 -> 2022-04-01
B32: T-1 Transportation - Yearly (Hyrum) | D32: 100000 | E32: 12 | F32: 5.28804 | G32: =$G$28 -> 2022-04-01
B33: Total Yearly T-1 Transportation | D33: =SUM(D28:D32) -> 1015902 | E33: 12
B35: No-Notice Transportation (BASE TARIFF RATE) | D35: 203542 | E35: 12 | F35: 0.86753 | G35: =$G$28 -> 2022-04-01 | H35: 1.3p1
A37: Mountain West Overthrust Pipeline, LLC
B38: Jan- Dec #6546 | D38: 8542 | E38: 12 | F38: 1.62 | G38: 2022-04-01
B39: Systemwide Usage Charge | F39: 0.00167 | G39: =+G38 -> 2022-04-01
B41: TRANSPORTATION COMMODITY
B42: PIPELINE USAGE CHARGE TO VOLUMETRIC RELEASES
B43: MWP Commodity
B44: MWP Firm Transportation Usage Charge (Max & Min) (BASE TARIFF RATE) | F44: 0.00267 | G44: 2022-04-01 | H44: 1.3p1
B45: MWP (ANNUAL CHARGE ADJUSTMENT) | F45: 0.0015 | G45: 2022-10-01 | H45: 1.3p1
E47: Current | F47: Proposed
B48: INTER TRANS (T-2 PIPELINE BASE TARIFF) MAX | D48: Base Tariff | E48: 0.17652 | F48: 0.17652 | G48: 2022-04-01
D49: Annual Charge | E49: 0.0012 | F49: 0.0015 | G49: 2022-10-01
D50: Total | E50: =SUM(E48:E49) -> 0.17772 | F50: =SUM(F48:F49) -> 0.17802
B53: Utah | E53: =ROUND((E50)/(1-$E276),5) -> 0.17872 | F53: =ROUND((F50)/(1-E276),5) -> 0.17902 | H53: 1.6.3
B54: Wyoming | F54: =ROUND((F50)/(1-E277),5) -> 0.18073
A56: INPUTS FROM KERN RIVER PIPELINE TARIFF AND CONTRACTS
B57: Kern River 2003 Expansion | D57: Contract Dth | E57: Months | F57: Maximum Rate | G57: Effective
F58: =0.2018-0.0222 -> 0.1796 | G58: 2021-01-01
B59: Jan - Dec #20029 | D59: 33000 | E59: 12 | F59: =(F58*(365-153))/E59 -> 3.172933333 | H59: 1.3.1
B60: November - March #20029 | D60: 50000 | E60: 5 | F60: =F59 -> 3.172933333 | H60: Jan
B61: Jan - Dec #1829 | D61: 1885 | E61: 12 | F61: =F62*E62/E61 -> 5.487166667
B62: Days in Tariff Rate | E62: 365 | F62: =0.2027-0.0223 -> 0.1804 | G62: =G58 -> 2021-01-01
B64: Citadel Energy Marketing
B65: Dec - Feb #20017 | D65: 56925 | E65: 3 | F65: =+E66*F66/E65 -> 8.7 | H65: 1.3.1
B66: Days in Tariff Rate | E66: =31+31+28 -> 90 | F66: 0.29
B67: Nov & Mar #20017 | D67: 6000 | E67: 2 | F67: =+F68*E68/E67 -> 8.845 | H67: Jan
B68: Days in Tariff Rate | E68: =30+31 -> 61 | F68: 0.29
B69: Nov - Mar #20024 | D69: 27000 | E69: 5 | F69: =+F70*E70/E69 -> 8.758 | H69: Jan
B70: Days in Tariff Rate | E70: =30+31+31+28+31 -> 151 | F70: 0.29
B72: Kern River 2003 Expansion | E72: Days in TEST PERIOD
B73: Jan - Dec | C73: 0.7090080956 | D73: =D59+D61 -> 34885 | E73: 365 | F73: 0.0044 | G73: 2022-04-01 | H73: 1.3p1
B74: November - March | C74: =C73 -> 0.7090080956 | D74: =D60 -> 50000 | E74: =30+31+31+28+31 -> 151 | F74: 0.0044 | G74: 2022-04-01 | H74: 1.3p1
B76: Kern River Original System Period Two Rates #20017
B77: Dec - Feb #20017 | C77: =+C73 -> 0.7090080956 | D77: 56925 | E77: =31+31+28 -> 90 | F77: 0.0044 | G77: =+G74 -> 2022-04-01 | H77: 1.3.1
B78: Nov & Mar #20017 | C78: =+C73 -> 0.7090080956 | D78: 6000 | E78: 61 | F78: 0.0044 | G78: =+G74 -> 2022-04-01 | H78: 1.3.2
B79: Kern River 2002 Expansion Period Two Rates #20024
B80: Nov - Mar #20024 | C80: =+C73 -> 0.7090080956 | D80: 27000 | E80: =30+31+31+28+31 -> 151 | F80: 0.0044 | G80: =+G74 -> 2022-04-01 | H80: Jan
A83: INPUTS FROM Dominion Energy GAS TARIFF
A86: Current SNG Rates
B87: UTAH | E87: Current SNG Base | F87: Current SNG Amort. | G87: Current SNG Total | J87: Effective
B88: GS | D88: Winter | E88: 0.91267 | F88: 0.03321 | G88: =E88+F88 -> 0.94588 | J88: 2022-10-01
D89: Summer | E89: 0.38263 | F89: 0.01392 | G89: =E89+F89 -> 0.39655 | J89: 2022-10-01
B91: FS | D91: Winter | E91: 0.9021 | F91: 0.03283 | G91: =E91+F91 -> 0.93493 | J91: 2022-10-01
D92: Summer | E92: 0.7531 | F92: 0.02741 | G92: =E92+F92 -> 0.78051 | J92: 2022-10-01
B94: NGV | E94: 0.68177 | F94: 0.02481 | G94: =E94+F94 -> 0.70658 | J94: 2022-10-01
B96: (This includes bad debt adjustment) IS | E96: 0.17905 | G96: =E96+F96 -> 0.17905 | J96: 2022-10-01
A98: Current Rates
B99: Utah GS | J99: Effective
B100: Block 1 | D100: Summer | E100: =F100-G100 -> -0.02669 | F100: 8.76584 | G100: 8.79253 | J100: 2022-10-01
B101: Block 2 | D101: Summer | F101: 7.48565 | G101: 7.49585 | J101: 2022-10-01
B102: Block 1 | D102: Winter | G102: 10.09872 | J102: 2022-10-01
B103: Block 2 | D103: Winter | G103: 8.80205 | J103: 2022-10-01
B104: #1 BSF | G104: 6.75 | J104: 2022-10-01
B106: Wyoming GS
B107: Block 1 | G107: 9.27089 | J107: 2022-07-01
B108: Block 2 | G108: 9.02312 | J108: =+J107 -> 2022-07-01
B109: BSF | G109: 12 | J109: =+J107 -> 2022-07-01
A111: INPUTS FROM PREVIOUS PASSTHROUGH CASE
B112: PRIOR PERIOD COMPANY PRODUCTION AVERAGE GAS COST
E113: PROPOSED | F113: PRIOR CASE | G113: Most Recent
B114: VOLUMES DTH | E114: =+'Monthly Inputs'!S7+'Monthly Inputs'!S13 -> 58444351.95 | F114: 56062874.97 | G114: EXH 1.2p1
B115: AMOUNT | E115: =+D203+D226 -> 292835638 | F115: 254726753.9 | G115: EXH 1.2p1
B116: AVG COST | E116: =+E115/E114 -> 5.010503638 | F116: =ROUND(+F115/F114,5) -> 4.54359
B118: Utah Cost of Gas by Component
B119: Unit Cost Of Gas (GS/FS) | F119: 5.43597
B120: 191 Account Amortization (Line 8) | F120: 0.5702
B121: Tax Reform Surcredit 4 | F121: 0
B122: Total Unit Cost In Rates (Line 9) | F122: =SUM(F119:F121) -> 6.00617
B124: Wyoming Cost of Gas by Component
B125: Unit Cost Of Gas (Line 9) | F125: 6.14717
B126: 191 Account Amortization (Line 10) | F126: 0.50196
B127: Total Unit Cost In Rates (Line 11) | F127: =SUM(F125:F126) -> 6.64913
B129: Unit Cost Of Gas (IS/NGV) | F129: 5.42485
B130: UT NGV RIN Credit | F130: -0.33195
A133: INPUTS FROM 191 ACCOUNT MONTH END BALANCE ACTUAL OR FORECAST | E133: Utah
E134: 2022 | F134: 2022-08-31
H135: 1.6.2
D136: current yr /mo(text)
B137: August 2022 191 account (Actual/Forecast) | D137: 2022 | E137: 69039513 | H137: 1.6.1
B138: Supplier Non-Gas Cost Under (Over) Collected through August 2022 (act/fcst) | D138: August | E138: 8051989 | H138: 1.6.2
B139: Commodity Cost Under (Over) Collected during YEAR (Act/Fcst) | E139: =E137-E138 -> 60987524
B141: SPRING SNG Amortization Balance March 2022 | D141: -10777254 | E141: -14000000 | F141: =+D141-E141 -> 3222746
B142: Previous SPRING SNG Amortization March 2021 | D142: -8627117 | E142: -14000000 | F142: =+D142-E142 -> 5372883
A144: INPUTS FROM IRP
B145: #1 Peak Day Demand Forecast | E145: 2022 | F145: Source
B146: Utah | E146: =E148-E147 -> 1205682 | F146: 2022 IRP
B147: Wyoming | E147: 39340
B148: System Total Peak Day Demand Forecast | E148: 1245022 | F148: 2022-2023 Heating Season | H148: 1.5
A151: STORAGE FIELD INPUTS | E151: Storage
B152: Chalk Creek Injections Factor | E152: 0.0065
B153: Chalk Creek Withdrawals Factor | E153: 0.0188
B155: Spire Injections Factor | E155: 0
B156: Spire Withdrawals Factor | E156: 0
B158: Leroy Injections Factor | E158: 0.0273
B159: Leroy Withdrawals Factor | E159: 0.0137
B161: Clay Basin Injections Factor | E161: 0.0133
B162: Clay Basin Withdrawals Factor | E162: 0.002129
B164: Coalville Injections Factor | E164: 0.0111
B165: Coalville Withdrawals Factor | E165: 0.015
B167: LNG Injections Factor | E167: 0
B168: LNG Withdrawals Factor | E168: 0
B170: MWP Storage Field Reservation Charges | E170: Monthly Dth
B171: Peaking Storage Fields Maximum Daily Withdrawal Qty (Leroy, Chalk Creek, Coalville) | E171: 184625
B172: Spire Maximum Storage Qty | E172: 0 | F172: contract ended March 2021
B173: Clay Basin Minimum Required Deliverability | E173: 111827
B174: Clay Basin Capacity | E174: 13419000
A176: OTHER INPUTS | D176: Revenue
B177: OTHER GATHERING
B181: Total Forecasted Birch Creek | D181: 271065.33 | E181: 2022-08-31
B183: Other gathering | D183: 1071219.471 | E183: =E181 -> 2022-08-31 | H183: JanB
B184: Total Gathering | D184: =SUM(D181:D183) -> 1342284.801 | H184: 1.3.1
B186: Other Transportation | D186: 2651219.403 | E186: =E181 -> 2022-08-31 | H186: 1.3.1
B188: Forecast Future Contracts Premium over spot price | E188: 0.02
D190: Commodity | E190: Demand
D191: Charge | E191: Charge | F191: Effective
B192: Gathering Rates -System wide Gathering agreement #163 (SWGA) | D192: 1925206.066 | E192: 2887809.099 | F192: 2022-01-01
B195: Gathering Rate Wexpro II | D195: 224616.4362
A198: OTHER INPUTS | D198: Volume (Dth) | E198: Revenue
A199: WEXPRO I
B200: Dominion Energy Gas Production 1/ | D200: Current
B201: Test-Year Royalties | D201: ='Royalty Detail'!I1421 -> 42059579.63 | H201: 1.4.1
B202: Operator Service Fee | D202: ='Monthly Inputs'!S117 -> 180114962.4 | H202: 1.4.1
B203: Total Dominion Energy Gas Production Costs | D203: =SUM(D201:D202) -> 222174542
B205: Total Dominion Energy Gas Production Dth | D205: ='Royalty Detail'!F1426 -> 41233158.84
F206: Hot | G206: Hot
B207: Other Revenue Credits | D207: 1 | E207: 2 | F207: 2 | G207: 2 | I207: 1
D208: Historical | E208: Forecast | F208: =HLOOKUP(F$207,$D$207:$E$216,$I208) -> Forecast | G208: =HLOOKUP(G$207,$D$207:$E$216,$I208) -> Forecast | I208: 2
D209: 12 Mo Ending | E209: 12 Mo Ending | F209: Utah | G209: Wyoming | I209: 3
B210: 483 Sales for Resale | E210: 2608104.323 | F210: =HLOOKUP(F$207,$D$207:$E$216,$I210) -> 2608104.323 | G210: =HLOOKUP(G$207,$D$207:$E$216,$I210) -> 2608104.323 | I210: 4
B211: 490 Incidental Plant Prod Sales | E211: 7054646.295 | F211: =HLOOKUP(F$207,$D$207:$E$216,$I211) -> 7054646.295 | G211: 7054646.295 | I211: 5
B212: 492 Incidental Gasoline_Oil Sales | E212: 800670.2243 | F212: 800670.2243 | G212: 800670.2243 | I212: 6
B213: 4951 Overriding Royalty Revenue from Celsius | E213: 13230202.85 | F213: 13230202.85 | G213: 13230202.85 | I213: 7
B214: 4952 Oil Revenue Received from Wexpro | E214: 2393370.967 | F214: 2393370.967 | G214: 2393370.967 | I214: 8
B215: 3rd Party & Liquids Credits from MLPX Acquisition | E215: 4401796.663 | F215: =HLOOKUP(F$207,$D$207:$E$216,$I215) -> 4401796.663 | G215: 4401796.663 | I215: 9
B216: 758001 Gas Well Royalties - Other | E216: -113163.6978 | F216: -113163.6978 | G216: -113163.6978 | I216: 10
B217: EDIT Amortization | E217: 4770564 | F217: =HLOOKUP(F$207,$D$207:$E$217,$I217) -> 4770564 | G217: =HLOOKUP(G$207,$D$207:$E$217,$I217) -> 4770564 | I217: 11
B220: Total Other Revenue Credits | D220: =SUM(D210:D216) -> 0 | E220: =SUM(E210:E217) -> 35146191.62 | F220: =SUM(F210:F217) -> 35146191.62 | G220: =SUM(G210:G217) -> 35146191.62
A222: WEXPRO II
B223: Dominion Energy Gas Production 1/ | D223: Current
B224: Test-Year Royalties | D224: ='Royalty Detail'!I1695 -> 16356027.22 | H224: 1.4.1
B225: Operator Service Fee | D225: ='Monthly Inputs'!S119 -> 54305068.81 | H225: 1.4.1
B226: Total Dominion Energy Gas Production Costs | D226: =SUM(D224:D225) -> 70661096.03
B228: Total Dominion Energy Gas Production Dth | D228: ='Royalty Detail'!F1700 -> 17211193.11
F229: Hot | G229: Hot
B230: Other Revenue Credits | D230: 1 | E230: 2 | F230: 2 | G230: 2 | I230: 1
D231: Historical | E231: Forecast | F231: =HLOOKUP(F$207,$D$207:$E$216,$I231) -> Forecast | G231: =HLOOKUP(G$207,$D$207:$E$216,$I231) -> Forecast | I231: 2
D232: 12 Mo Ending | E232: 12 Mo Ending | F232: Utah | G232: Wyoming | I232: 3
B233: 483 Sales for Resale | E233: 0 | F233: =HLOOKUP(F$230,$D$230:$E$238,$I233) -> 0 | G233: 0 | I233: 4
B234: 490 Incidental Plant Prod Sales | E234: 1987413.025 | F234: 1987413.025 | G234: 1987413.025 | I234: 5
B235: 492 Incidental Gasoline_Oil Sales | E235: 1562109.906 | F235: 1562109.906 | G235: 1562109.906 | I235: 6
B236: 4951 Overriding Royalty Revenue from Celsius | E236: 0 | F236: 0 | G236: 0 | I236: 7
B237: 4952 Oil Revenue Received from Wexpro | E237: 881707.2207 | F237: 881707.2207 | G237: 881707.2207 | I237: 8
B238: 758001 Gas Well Royalties - Other | E238: -231586.5924 | F238: -231586.5924 | G238: -231586.5924 | I238: 9
B239: EDIT Amortization | E239: 96228 | F239: =HLOOKUP(F$230,$D$230:$E$239,$I239) -> 96228 | G239: =HLOOKUP(G$230,$D$230:$E$239,$I239) -> 96228 | I239: 10
B242: Total Other Revenue Credits | D242: =SUM(D233:D238) -> 0 | E242: =SUM(E233:E240) -> 4295871.56 | F242: =SUM(F233:F240) -> 4295871.56 | G242: =SUM(G233:G240) -> 4295871.56
E244: Proceeds | F244: Dths | G244: Price
B245: Sales of Wexpro Gas | E245: 0 | F245: 0 | G245: 0
A247: SUMMARY INPUTS FROM REVRUN, RATE BASE, EXPENSES, ETC.
B249: Supplier Non-Gas Costs Recovered at Current Rates 3/ | E249: ='RevRun Fcst'!T$199 -> 91500998.35 | H249: 1.6.2
B250: MT Supplier Non-Gas | E250: ='RevRun Fcst'!T142 -> 0
B251: Net Supplier Non-Gas | E251: =E249-E250 -> 91500998.35
B252: UT Current Int Sales SNG Rate - not including Bad Debt adj. | E252: ='RevRun Fcst'!T102+'RevRun Fcst'!T93 -> 271004 | F252: 0.17869
E254: ='Rate Base'!$Q$4 -> 2022-08-31
B255: Account 164-1 - Gas Stored Underground | D255: Dth | E255: Ending Balance | F255: $ per Dth
D256: ='Rate Base'!P22 -> -6538004 | E256: ='Rate Base'!P11 -> 25992902.78 | F256: =+E256/D256 -> -3.975663334 | H256: 1.4.2
A258: UT CET and DSM AMORTIZATION FILING INPUTS
E259: Base DNG | F259: Current DNG
B260: GS Rates (Base rates are before CET, DSM, & EA Amortizations) | D260: Summer Blk 1 | E260: 1.94617 | F260: 2.38981
D261: Summer Blk 2 | E261: 0.74377 | F261: 1.09313
D262: Winter Blk 1 | E262: 2.64801 | F262: 3.14667
D263: Winter Blk 2 | E263: 1.44561 | F263: 1.85
A267: MISCELLANEOUS INPUTS
B268: Test-Year | D268: ='Control Panel'!F40 -> 2022-11-01 | E268: ='Control Panel'!F41 -> 2023-10-31
... 40 more rows

Sheet CET & DSM WY (hidden)
A1: Rate Caclulation for the CET and DSM Amortizations WY
L3: Solver Cells
A4: CET Amortization % Calculation | L4: % Change | M4: Difference
B5: Balance | C5: Date | D5: GS Dth | F5: Amortization per Dth | L5: =J20/D20 ->  | M5: =G20-B11 ->  | O5: -> Difference should be at 0 (Use Goal Seek to Get Difference to Equal 0.
A6: DSM Balance | B6: ='Other Inputs'!#REF! ->  | C6: ='Other Inputs'!#REF! ->  | D6: =B20 ->  | F6: =B6/D6 -> 
O8: Typical Bill Rates
A9: CET Amortization Calculation
B10: Balance | C10: Date | D10: DNG Rev | F10: New DNG | I10: % Change | O10: Current | P10: Proposed
A11: CET Balance | B11: ='Other Inputs'!#REF! ->  | C11: ='Other Inputs'!#REF! ->  | D11: =D20 ->  | F11: =D11+B11 ->  | I11: =L5 ->  | O11: Effective | R11: SNG & | S11: CET, DSM
O12: ='Other Inputs'!$J$107 -> 2022-07-01 | P12: CET Only | Q12: DSM Only | R12: Commodity | S12: Commodity
O13: BSF | P13: BSF | Q13: BSF | R13: BSF | S13: BSF
B14: Revenue Calculation | F14: CET Amortization | I14: Total DNG | L14: REVRUN Calculation | O14: ='Other Inputs'!$G$109 -> 12 | P14: ='Other Inputs'!$G$109 -> 12 | Q14: ='Other Inputs'!$G$109 -> 12 | R14: ='Other Inputs'!$G$109 -> 12 | S14: =#REF! -> 
A15: WY GS | B15: Dth | C15: Base DNG | D15: DNG Revenue | F15: CET Rate | G15: Revenue | I15: DNG Rate | J15: Revenue | L15: CET Rate | M15: CET Amort
A16: Block 1 | B16: ='Other Inputs'!#REF! ->  | C16: ='Other Inputs'!#REF! ->  | D16: =B16*C16 ->  | F16: =ROUND((G16/B16),5) ->  | G16: =D16*$L$5 ->  | I16: =C16+F16 ->  | J16: =I16*B16 ->  | L16: =ROUND(F16,5) ->  | M16: =B16*L16 ->  | O16: ='Other Inputs'!$G$100 -> 8.79253 | P16: =J24 ->  | Q16: =J31 ->  | R16: =J36 ->  | S16: =J41 -> 
A17: Block 2 | B17: ='Other Inputs'!#REF! ->  | C17: ='Other Inputs'!#REF! ->  | D17: =B17*C17 ->  | F17: =ROUND((G17/B17),5) ->  | G17: =D17*$L$5 ->  | I17: =C17+F17 ->  | J17: =I17*B17 ->  | L17: =ROUND(F17,5) ->  | M17: =B17*L17 -> 
O18: ='Other Inputs'!$G$107 -> 9.27089 | P18: =J24 ->  | Q18: =J31 ->  | R18: =J36 ->  | S18: =J41 -> 
A20: GS-1 Block Rev | B20: =SUM(B16:B19) ->  | D20: =SUM(D16:D19) ->  | G20: =SUM(G16:G19) ->  | J20: =B11 ->  | M20: =SUM(M16:M19) -> 
A22: Total Rate Calculation With CET Amortization Only | J22: ='Control Panel'!J8 -> 00:00:00 | L22: ='Other Inputs'!$J$107 -> 2022-07-01
A23: WY GS | B23: Total DNG | C23: CET | D23: DSM | F23: Total DNG | G23: Core Commodity Cost | J23: Total Rate | L23: Total Rate
A24: Block 1 | B24: =$C$16 ->  | C24: =$F$16 ->  | D24: 0.06792 | F24: =SUM(B24:D24) ->  | G24: 4.96884 | J24: =SUM(F24:G24) ->  | L24: ='Other Inputs'!G107 -> 9.27089 | M24: =J24-L24 -> 
A25: Block 2 | B25: =$C$17 ->  | C25: =$F$17 ->  | D25: =$D$24 -> 0.06792 | F25: =SUM(B25:D25) ->  | G25: =G24 -> 4.96884 | J25: =SUM(F25:G25) ->  | L25: ='Other Inputs'!$G$108 -> 9.02312 | M25: =J25-L25 -> 
A29: Total Rate Calculation With DSM Amortization Only | J29: =J22 -> 00:00:00 | L29: ='Other Inputs'!$J$107 -> 2022-07-01
A30: WY GS | B30: Base DNG | C30: CET | D30: DSM | F30: Total DNG | G30: Core Commodity Cost | J30: Total Rate | L30: Total Rate
A31: Block 1 | B31: =$C$16 ->  | C31: 0.04505 | D31: =$F$6 ->  | F31: =ROUND(SUM(B31:D31),5) ->  | G31: =G24 -> 4.96884 | J31: =SUM(F31:I31) ->  | L31: ='Other Inputs'!$G$100 -> 8.79253 | M31: =J31-L31 -> 
A32: Block 2 | B32: =$C$17 ->  | C32: 0.02848 | D32: =$F$6 ->  | F32: =ROUND(SUM(B32:D32),5) ->  | G32: =G25 -> 4.96884 | J32: =SUM(F32:I32) ->  | L32: ='Other Inputs'!$G$108 -> 9.02312 | M32: =J32-L32 -> 
A34: Total Rate Calculation With Core Commodity Cost Changes Only | J34: =J22 -> 00:00:00 | L34: ='Other Inputs'!$J$107 -> 2022-07-01
A35: WY GS | B35: Base DNG | C35: CET | D35: DSM | F35: Total DNG | G35: Core Commodity Cost | J35: Total Rate | L35: Total Rate
A36: Block 1 | B36: =$C$16 ->  | C36: =C31 -> 0.04505 | D36: =D24 -> 0.06792 | F36: =SUM(B36:D36) ->  | G36: =#REF! ->  | J36: =SUM(F36:I36) ->  | L36: ='Other Inputs'!$G$100 -> 8.79253 | M36: =J36-L36 -> 
A37: Block 2 | B37: =$C$17 ->  | C37: =C32 -> 0.02848 | D37: =D25 -> 0.06792 | F37: =SUM(B37:D37) ->  | G37: =#REF! ->  | J37: =SUM(F37:I37) ->  | L37: ='Other Inputs'!$G$108 -> 9.02312 | M37: =J37-L37 -> 
A39: Total Rate Calculation | J39: =J29 -> 00:00:00 | L39: ='Other Inputs'!$J$107 -> 2022-07-01
A40: WY GS | B40: Base DNG | C40: CET | D40: DSM | F40: Total DNG | G40: Core Commodity Cost | J40: Total Rate | L40: Total Rate
A41: Block 1 | B41: =$C$16 ->  | C41: =$F$16 ->  | D41: =$F$6 ->  | F41: =SUM(B41:D41) ->  | G41: =#REF! ->  | J41: =SUM(F41:I41) ->  | L41: ='Other Inputs'!$G$100 -> 8.79253 | M41: =J41-L41 -> 
A42: Block 2 | B42: =$C$17 ->  | C42: =$F$17 ->  | D42: =$F$6 ->  | F42: =SUM(B42:D42) ->  | G42: =#REF! ->  | J42: =SUM(F42:I42) ->  | L42: ='Other Inputs'!$G$108 -> 9.02312 | M42: =J42-L42 -> 
A44: Typical Customer Difference - CET Amortization Only
B45: Typical
A46: GS | B46: Dth | C46: =O12 -> 2022-07-01 | D46: =J39 -> 00:00:00 | F46: Change | G46: % Change
A47: January | B47: 14.7 | C47: =ROUND($O$14+(B47*$O$18),2) -> 148.28 | D47: =ROUND($P$14+(B47*$P$18),2) ->  | F47: =D47-C47 -> 
A48: February | B48: 14.1 | C48: =ROUND($O$14+(B48*$O$18),2) -> 142.72 | D48: =ROUND($P$14+(B48*$P$18),2) ->  | F48: =D48-C48 -> 
A49: March | B49: 11.8 | C49: =ROUND($O$14+(B49*$O$18),2) -> 121.4 | D49: =ROUND($P$14+(B49*$P$18),2) -> 
A50: April | B50: 9.4 | C50: =ROUND($O$14+(B50*$O$16),2) -> 94.65 | D50: =ROUND($P$14+(B50*$P$16),2) -> 
A51: May | B51: 5.8 | C51: 63 | D51: =ROUND($P$14+(B51*$P$16),2) -> 
A52: June | B52: 3.7 | C52: 44.53
A53: July | B53: 2.3 | C53: 32.22
A54: August | B54: 1.7 | C54: 26.95
A55: September | B55: 2.1 | C55: 30.46
A56: October | B56: 4.1 | C56: 48.05
A57: November | B57: 8 | C57: =ROUND($O$14+(B57*$O$18),2) -> 86.17 | D57: =ROUND($P$14+(B57*$P$18),2) -> 
A58: December | B58: 12.3 | C58: =ROUND($O$14+(B58*$O$18),2) -> 126.03 | D58: =ROUND($P$14+(B58*$P$18),2) -> 
B59: =SUM(B47:B58) -> 90 | C59: =SUM(C47:C58) -> 964.46 | D59: =SUM(D47:D58) ->  | F59: =SUM(F47:F58) ->  | G59: =F59/C59 -> 
A62: Typical Customer Difference - DSM Amortization Only
B63: Typical
A64: GS | B64: Dth | C64: =C46 -> 2022-07-01 | D64: =D46 -> 00:00:00 | F64: Change | G64: % Change
A65: January | B65: 14.7 | C65: =ROUND($O$14+(B65*$O$18),2) -> 148.28 | D65: =ROUND($Q$14+(B65*$Q$18),2) ->  | F65: =D65-C65 -> 
A66: February | B66: 14.1 | C66: =ROUND($O$14+(B66*$O$18),2) -> 142.72 | D66: =ROUND($Q$14+(B66*$Q$18),2) ->  | F66: =D66-C66 -> 
A67: March | B67: 11.8 | C67: =ROUND($O$14+(B67*$O$18),2) -> 121.4 | D67: =ROUND($Q$14+(B67*$Q$18),2) -> 
A68: April | B68: 9.4 | C68: =ROUND($O$14+(B68*$O$16),2) -> 94.65 | D68: =ROUND($Q$14+(B68*$Q$16),2) -> 
A69: May | B69: 5.8 | C69: 63
A70: June | B70: 3.7 | C70: 44.53
A71: July | B71: 2.3 | C71: 32.22
A72: August | B72: 1.7 | C72: 26.95
A73: September | B73: 2.1 | C73: 30.46
A74: October | B74: 4.1 | C74: 48.05
A75: November | B75: 8 | C75: =ROUND($O$14+(B75*$O$18),2) -> 86.17 | D75: =ROUND($Q$14+(B75*$Q$18),2) -> 
A76: December | B76: 12.3 | C76: =ROUND($O$14+(B76*$O$18),2) -> 126.03 | D76: =ROUND($Q$14+(B76*$Q$18),2) -> 
B77: =SUM(B65:B76) -> 90 | C77: =SUM(C65:C76) -> 964.46 | D77: =SUM(D65:D76) ->  | F77: =SUM(F65:F76) ->  | G77: =F77/C77 -> 
A80: Typical Customer Difference - SNG and Commodity Changes Only
B81: Typical
A82: GS | B82: Dth | C82: =C64 -> 2022-07-01 | D82: =D64 -> 00:00:00 | F82: Change | G82: % Change
A83: January | B83: 14.7 | C83: =ROUND($O$14+(B83*$O$18),2) -> 148.28 | D83: =ROUND($R$14+(B83*$R$18),2) ->  | F83: =D83-C83 -> 
A84: February | B84: 14.1 | C84: =ROUND($O$14+(B84*$O$18),2) -> 142.72 | D84: =ROUND($R$14+(B84*$R$18),2) ->  | F84: =D84-C84 -> 
A85: March | B85: 11.8 | C85: =ROUND($O$14+(B85*$O$18),2) -> 121.4 | D85: =ROUND($R$14+(B85*$R$18),2) -> 
A86: April | B86: 9.4 | C86: =ROUND($O$14+(B86*$O$16),2) -> 94.65 | D86: =ROUND($R$14+(B86*$R$16),2) -> 
A87: May | B87: 5.8 | C87: 63
A88: June | B88: 3.7 | C88: 44.53
A89: July | B89: 2.3 | C89: 32.22
A90: August | B90: 1.7 | C90: 26.95
A91: September | B91: 2.1 | C91: 30.46
A92: October | B92: 4.1 | C92: 48.05
A93: November | B93: 8 | C93: =ROUND($O$14+(B93*$O$18),2) -> 86.17 | D93: =ROUND($R$14+(B93*$R$18),2) -> 
A94: December | B94: 12.3 | C94: =ROUND($O$14+(B94*$O$18),2) -> 126.03 | D94: =ROUND($R$14+(B94*$R$18),2) -> 
B95: =SUM(B83:B94) -> 90 | C95: =SUM(C83:C94) -> 964.46 | D95: =SUM(D83:D94) ->  | F95: =SUM(F83:F94) ->  | G95: =F95/C95 -> 
A98: Typical Customer Difference - CET & DSM Amort, SNG and Commodity Changes
B99: Typical
A100: GS | B100: Dth | C100: =C46 -> 2022-07-01 | D100: =D46 -> 00:00:00 | F100: Change | G100: % Change
A101: January | B101: 14.7 | C101: =ROUND($O$14+(B101*$O$18),2) -> 148.28 | D101: =ROUND($S$14+(B101*$S$18),2) ->  | F101: =D101-C101 -> 
A102: February | B102: 14.1 | C102: =ROUND($O$14+(B102*$O$18),2) -> 142.72 | D102: =ROUND($S$14+(B102*$S$18),2) ->  | F102: =D102-C102 -> 
A103: March | B103: 11.8 | C103: =ROUND($O$14+(B103*$O$18),2) -> 121.4 | D103: =ROUND($S$14+(B103*$S$18),2) -> 
A104: April | B104: 9.4 | C104: =ROUND($O$14+(B104*$O$16),2) -> 94.65 | D104: =ROUND($S$14+(B104*$S$16),2) -> 
A105: May | B105: 5.8 | C105: 63
A106: June | B106: 3.7 | C106: 44.53
A107: July | B107: 2.3 | C107: 32.22
A108: August | B108: 1.7 | C108: 26.95
A109: September | B109: 2.1 | C109: 30.46
A110: October | B110: 4.1 | C110: 48.05
A111: November | B111: 8 | C111: =ROUND($O$14+(B111*$O$18),2) -> 86.17 | D111: =ROUND($S$14+(B111*$S$18),2) -> 
A112: December | B112: 12.3 | C112: =ROUND($O$14+(B112*$O$18),2) -> 126.03 | D112: =ROUND($S$14+(B112*$S$18),2) -> 
B113: =SUM(B101:B112) -> 90 | C113: =SUM(C101:C112) -> 964.46 | D113: =SUM(D101:D112) ->  | F113: =SUM(F101:F112) ->  | G113: =F113/C113 -> 

Sheet WY Tariff Sheets (hidden)
T2: Rates Per Dth Used Each Month
B3: 2.02 General Service Rate Schedule (GS) | K3: 2.02 General Service Rate Schedule (GS) | Q3: 2.03 Firm Sales Service Rate Schedule (FS) | T3: Dth = decatherm = 10 therms = 1,000,000 BTU | Z3: 4.02 INTERRUPTIBLE SALES RATE SERVICE SCHEDULE (IS) | BF3: 2.04 NATURAL GAS VEHICLE RATE (NGV)
L4: Rates Per Dth Used Each Month | R4: Summer Rates: Apr. 1 - Oct. 31
C5: Rates Per Dth Used Each Month | L5: Dth = decatherm = 10 therms = 1,000,000 BTU | R5: First | T5: Next | V5: All Over | Z5: IS VOLUMETRIC RATES | AA5: Rates Per Dth Used Each Month | BF5: NGV Volumetric Rate
C6: Dth = decatherm = 10 therms = 1,000,000 BTU | L6: First 45 Dth | M6: All Over 45 Dth | R6: 80 | T6: 730 | V6: 810 | AA6: Dth = decatherm = 10 therms = 1,000,000 BTU | BJ6: Rates Per Dth Used Each Month
C7: First 45 Dth | D7: All Over 45 Dth | K7: Non-Gas Cost | L7: ='CET & DSM WY'!B31 ->  | M7: ='CET & DSM WY'!B32 ->  | Q7: Non Gas Cost | R7: =#REF! ->  | T7: =#REF! ->  | V7: =#REF! ->  | AA7: First | AB7: Next | AC7: All Over | BJ7: Dth = decatherm = 10 therms = 1,000,000 BTU
B8: Non-Gas Cost | C8: ='CET & DSM WY'!B24 ->  | D8: ='CET & DSM WY'!B25 ->  | K8: Conservation Enabling Adjustment | L8: =ROUND('CET & DSM WY'!C31,5) -> 0.04505 | M8: ='CET & DSM WY'!C32 -> 0.02848 | Q8: Core Service Commodity Cost | R8: =#REF! ->  | T8: =#REF! ->  | V8: =#REF! ->  | AA8: 48600 | AB8: 72900 | AC8: 121500
B9: Conservation Enabling Adjustment | C9: ='CET & DSM WY'!C24 ->  | D9: ='CET & DSM WY'!C25 ->  | K9: Energy Efficiency Services | L9: ='CET & DSM WY'!D31 ->  | M9: ='CET & DSM WY'!D32 ->  | Z9: Distribution Non-Gas Rate | AA9: =#REF! ->  | AB9: =#REF! ->  | AC9: =#REF! ->  | BF9: Non-Gas Cost | BG9: =#REF! -> 
B10: Energy Efficiency Services | C10: ='CET & DSM WY'!D24 -> 0.06792 | D10: ='CET & DSM WY'!D25 -> 0.06792 | K10: Core Service Commodity Cost | L10: ='CET & DSM WY'!G31 -> 4.96884 | M10: =ROUND('CET & DSM WY'!G32,5) -> 4.96884 | Q10: Total Rate | R10: =SUM(R7:R8) ->  | T10: =SUM(T7:T8) ->  | V10: =SUM(V7:V8) ->  | Z10: Upstream Pipeline Cost | AA10: =#REF! ->  | AB10: =#REF! ->  | AC10: =#REF! ->  | BF10: Core Commodity Cost | BG10: =#REF! -> 
B11: Core Service Commodity Cost | C11: ='CET & DSM WY'!G24 -> 4.96884 | D11: ='CET & DSM WY'!G25 -> 4.96884 | Z11: Commodity Rate | BF11: Total Rate | BG11: =SUM(BG9:BJ10) -> 
K12: Total Rate | L12: =SUM(L7:L10) ->  | M12: =SUM(M7:M10) ->  | Q12: Minimum Monthly Distribution Non-Gas Charge | W12: =#REF! -> 
B13: Total Rate | C13: =SUM(C8:C11) ->  | D13: =SUM(D8:D11) -> 
M15: BSF Category 1 | N15: =E16 -> 12
D16: BSF Category 1 | E16: ='CET & DSM WY'!O14 -> 12 | M16: BSF Category 2 | N16: =E17 -> 44 | U16: BSF Category 1 | W16: ='Other Inputs'!G109 -> 12
D17: BSF Category 2 | E17: 44 | M17: BSF Category 3 | N17: =E18 -> 86 | U17: BSF Category 2 | W17: =#REF! -> 
D18: BSF Category 3 | E18: 86 | M18: BSF Category 4 | N18: =E19 -> 555 | U18: BSF Category 3 | W18: =#REF! ->  | Z18: Total Rate | AA18: $ | AB18: $ | AC18: $
D19: BSF Category 4 | E19: 555 | U19: BSF Category 4 | W19: =#REF! -> 
Z20: Minimum Monthly Distribution Non-Gas Charge
BF23: =B38 -> Issued by R. W. Jibson, President | BI23: Advice No | BJ23: Section Revision No.
AB24: BSF Category 1 | AC24: ='Other Inputs'!G109 -> 12
AB25: BSF Category 2 | AC25: =#REF! -> 
AB26: BSF Category 3 | AC26: =#REF! -> 
AB27: BSF Category 4 | AC27: =#REF! -> 
K37: Issued by R. W. Jibson, President | M37: Section Revision No. | N37: Effective Date
B38: Issued by R. W. Jibson, President | D38: Section Revision No. | E38: Effective Date | Q38: =B38 -> Issued by R. W. Jibson, President | T38: Advice No | U38: Section Revision No. | W38: Effective Date
B42: New CET ONLY | K42: New DSM ONLY | Q42: New Pass Through Values
Z47: =B38 -> Issued by R. W. Jibson, President | AC47: Advice No
Z50: New Pass Through Values

Sheet Calculations
A1: GAS BALANCE FOR 12 MONTHS ENDING: _________________
D3: SALES VOLUMES IN DEKATHERMS (12 Months of Forecast) | Q3: UPDATED 5/4 | R3: OLD
D4: Forecast | E4: Forecast | F4: Forecast | G4: Forecast | H4: Forecast | I4: Forecast | J4: Forecast | K4: Forecast | L4: Forecast | M4: Forecast | N4: Forecast | O4: Forecast | P4: 12-Month
A5: RATE CLASS | D5: =+'Monthly Inputs'!G3 -> Nov22 | E5: =+'Monthly Inputs'!H3 -> Dec22 | F5: =+'Monthly Inputs'!I3 -> Jan23 | G5: =+'Monthly Inputs'!J3 -> Feb23 | H5: =+'Monthly Inputs'!K3 -> Mar23 | I5: =+'Monthly Inputs'!L3 -> Apr23 | J5: =+'Monthly Inputs'!M3 -> May23 | K5: =+'Monthly Inputs'!N3 -> Jun23 | L5: =+'Monthly Inputs'!O3 -> Jul23 | M5: =+'Monthly Inputs'!P3 -> Aug23 | N5: =+'Monthly Inputs'!Q3 -> Sep23 | O5: =+'Monthly Inputs'!R3 -> Oct23 | P5: Total | Q5: 1 | R5: 1
A6: UTAH | D6: =MONTH(D5) -> 11 | E6: =MONTH(E5) -> 12 | F6: 1 | G6: 2 | H6: 3 | I6: 4 | J6: 5 | K6: 6 | L6: 7 | M6: 8 | N6: 9 | O6: 10 | Q6: 2 | R6: 2
B7: GSR | D7: ='RevRun Fcst'!H21 -> 12038817 | E7: ='RevRun Fcst'!I21 -> 18385007 | F7: ='RevRun Fcst'!J21 -> 20125804 | G7: ='RevRun Fcst'!K21 -> 16779900 | H7: ='RevRun Fcst'!L21 -> 13126330 | I7: ='RevRun Fcst'!M21 -> 8762875 | J7: ='RevRun Fcst'!N21 -> 5171493 | K7: ='RevRun Fcst'!O21 -> 2856954 | L7: ='RevRun Fcst'!P21 -> 2397393 | M7: ='RevRun Fcst'!Q21 -> 2354697 | N7: ='RevRun Fcst'!R21 -> 2771794 | O7: ='RevRun Fcst'!S21 -> 6913088 | P7: =SUM(D7:O7) -> 111684152 | Q7: 3 | R7: 3
B8: GSC | D8: ='RevRun Fcst'!H30 -> 0 | E8: ='RevRun Fcst'!I30 -> 0 | F8: ='RevRun Fcst'!J30 -> 0 | G8: ='RevRun Fcst'!K30 -> 0 | H8: ='RevRun Fcst'!L30 -> 0 | I8: ='RevRun Fcst'!M30 -> 0 | J8: ='RevRun Fcst'!N30 -> 0 | K8: ='RevRun Fcst'!O30 -> 0 | L8: ='RevRun Fcst'!P30 -> 0 | M8: ='RevRun Fcst'!Q30 -> 0 | N8: ='RevRun Fcst'!R30 -> 0 | O8: ='RevRun Fcst'!S30 -> 0 | P8: 0 | Q8: 4 | R8: 4
B9: GSS | D9: ='RevRun Fcst'!H39 -> 0 | E9: ='RevRun Fcst'!I39 -> 0 | F9: ='RevRun Fcst'!J39 -> 0 | G9: ='RevRun Fcst'!K39 -> 0 | H9: ='RevRun Fcst'!L39 -> 0 | I9: ='RevRun Fcst'!M39 -> 0 | J9: ='RevRun Fcst'!N39 -> 0 | K9: ='RevRun Fcst'!O39 -> 0 | L9: ='RevRun Fcst'!P39 -> 0 | M9: ='RevRun Fcst'!Q39 -> 0 | N9: ='RevRun Fcst'!R39 -> 0 | O9: ='RevRun Fcst'!S39 -> 0 | P9: 0 | Q9: 5 | R9: 5
B10: F-1 | D10: ='RevRun Fcst'!H48 -> 188318 | E10: ='RevRun Fcst'!I48 -> 271602 | F10: ='RevRun Fcst'!J48 -> 297143 | G10: ='RevRun Fcst'!K48 -> 269996 | H10: ='RevRun Fcst'!L48 -> 253627 | I10: ='RevRun Fcst'!M48 -> 204814 | J10: ='RevRun Fcst'!N48 -> 180388 | K10: ='RevRun Fcst'!O48 -> 175850 | L10: ='RevRun Fcst'!P48 -> 150769 | M10: ='RevRun Fcst'!Q48 -> 156060 | N10: ='RevRun Fcst'!R48 -> 177762 | O10: ='RevRun Fcst'!S48 -> 262863 | P10: 2589192 | Q10: 6 | R10: 6
B11: F-4 | D11: ='RevRun Fcst'!H75 -> 0 | E11: ='RevRun Fcst'!I75 -> 0 | F11: ='RevRun Fcst'!J75 -> 0 | G11: ='RevRun Fcst'!K75 -> 0 | H11: ='RevRun Fcst'!L75 -> 0 | I11: ='RevRun Fcst'!M75 -> 0 | J11: ='RevRun Fcst'!N75 -> 0 | K11: ='RevRun Fcst'!O75 -> 0 | L11: ='RevRun Fcst'!P75 -> 0 | M11: ='RevRun Fcst'!Q75 -> 0 | N11: ='RevRun Fcst'!R75 -> 0 | O11: ='RevRun Fcst'!S75 -> 0 | P11: 0 | Q11: 7 | R11: 7
B12: NGV | D12: ='RevRun Fcst'!H66 -> 26627 | E12: ='RevRun Fcst'!I66 -> 24642 | F12: ='RevRun Fcst'!J66 -> 24125 | G12: ='RevRun Fcst'!K66 -> 24867 | H12: ='RevRun Fcst'!L66 -> 23950 | I12: ='RevRun Fcst'!M66 -> 23507 | J12: ='RevRun Fcst'!N66 -> 21548 | K12: ='RevRun Fcst'!O66 -> 23923 | L12: ='RevRun Fcst'!P66 -> 24829 | M12: ='RevRun Fcst'!Q66 -> 23396 | N12: ='RevRun Fcst'!R66 -> 24640 | O12: ='RevRun Fcst'!S66 -> 23718 | P12: 289772 | Q12: 8 | R12: 8
A13: Total Firm Sales | D13: =SUM(D7:D12) -> 12253762 | E13: 18681251 | F13: =SUM(F7:F12) -> 20447072 | G13: 17074763 | H13: 13403907 | I13: 8991196 | J13: 5373429 | K13: 3056727 | L13: 2572991 | M13: 2534153 | N13: 2974196 | O13: 7199669 | P13: =SUM(P7:P12) -> 114563116 | Q13: 9 | R13: 9
Q14: 10 | R14: 10
B15: I-4 | D15: ='RevRun Fcst'!H102 -> 25895 | E15: ='RevRun Fcst'!I102 -> 31237 | F15: ='RevRun Fcst'!J102 -> 39472 | G15: ='RevRun Fcst'!K102 -> 31914 | H15: ='RevRun Fcst'!L102 -> 29116 | I15: ='RevRun Fcst'!M102 -> 26773 | J15: ='RevRun Fcst'!N102 -> 18238 | K15: ='RevRun Fcst'!O102 -> 14642 | L15: ='RevRun Fcst'!P102 -> 11405 | M15: ='RevRun Fcst'!Q102 -> 10303 | N15: ='RevRun Fcst'!R102 -> 12640 | O15: ='RevRun Fcst'!S102 -> 19369 | P15: =SUM(D15:O15) -> 271004 | Q15: 11 | R15: 11
B16: IS-4 | D16: ='RevRun Fcst'!H93 -> 0 | E16: ='RevRun Fcst'!I93 -> 0 | F16: ='RevRun Fcst'!J93 -> 0 | G16: ='RevRun Fcst'!K93 -> 0 | H16: ='RevRun Fcst'!L93 -> 0 | I16: ='RevRun Fcst'!M93 -> 0 | J16: ='RevRun Fcst'!N93 -> 0 | K16: ='RevRun Fcst'!O93 -> 0 | L16: ='RevRun Fcst'!P93 -> 0 | M16: ='RevRun Fcst'!Q93 -> 0 | N16: ='RevRun Fcst'!R93 -> 0 | O16: ='RevRun Fcst'!S93 -> 0 | P16: =SUM(D16:O16) -> 0 | Q16: 12 | R16: 12
A17: Total Interruptible Sales | D17: =SUM(D15:D16) -> 25895 | E17: 31237 | F17: 39472 | G17: 31914 | H17: 29116 | I17: 26773 | J17: 18238 | K17: 14642 | L17: 11405 | M17: 10303 | N17: 12640 | O17: 19369 | P17: 271004 | Q17: 13 | R17: 13
Q18: 14 | R18: 14
Q19: 15 | R19: 15
A20: Total Utah Sales | D20: =+D13+D17 -> 12279657 | E20: =+E13+E17 -> 18712488 | F20: =+F13+F17 -> 20486544 | G20: =+G13+G17 -> 17106677 | H20: 13433023 | I20: 9017969 | J20: 5391667 | K20: 3071369 | L20: 2584396 | M20: 2544456 | N20: 2986836 | O20: 7219038 | P20: =+P13+P17 -> 114834120 | Q20: 16 | R20: 16
Q21: 17 | R21: 17
A22: Total Utah Transportation | D22: ='RevRun Fcst'!H204 -> 8532414 | E22: ='RevRun Fcst'!I204 -> 10068956 | F22: ='RevRun Fcst'!J204 -> 9384089 | G22: ='RevRun Fcst'!K204 -> 8598804 | H22: ='RevRun Fcst'!L204 -> 8511456 | I22: ='RevRun Fcst'!M204 -> 7015924 | J22: ='RevRun Fcst'!N204 -> 7199952 | K22: ='RevRun Fcst'!O204 -> 7814784 | L22: ='RevRun Fcst'!P204 -> 8805653 | M22: ='RevRun Fcst'!Q204 -> 9110174 | N22: ='RevRun Fcst'!R204 -> 7890899 | O22: ='RevRun Fcst'!S204 -> 8187520 | P22: =SUM(D22:O22) -> 101120625 | Q22: 18 | R22: 18
Q23: 19 | R23: 19
Q24: 20 | R24: 20
A25: Total Utah Sales & Trans | D25: =+D20+D22 -> 20812071 | E25: 28781444 | F25: 29870633 | G25: 25705481 | H25: 21944479 | I25: 16033893 | J25: 12591619 | K25: 10886153 | L25: 11390049 | M25: 11654630 | N25: 10877735 | O25: 15406558 | P25: =+P20+P22 -> 215954745 | Q25: 21 | R25: 21
Q26: 22 | R26: 22
A27: WYOMING | Q27: 23 | R27: 23
A28: GS-1 | D28: ='RevRun Fcst'!H244 -> 387060 | E28: ='RevRun Fcst'!I244 -> 553847 | F28: ='RevRun Fcst'!J244 -> 562961 | G28: ='RevRun Fcst'!K244 -> 495771 | H28: ='RevRun Fcst'!L244 -> 410382 | I28: ='RevRun Fcst'!M244 -> 299580 | J28: ='RevRun Fcst'!N244 -> 195670 | K28: ='RevRun Fcst'!O244 -> 88806 | L28: ='RevRun Fcst'!P244 -> 52314 | M28: ='RevRun Fcst'!Q244 -> 54684 | N28: ='RevRun Fcst'!R244 -> 79604 | O28: ='RevRun Fcst'!S244 -> 203811 | P28: =SUM(D28:O28) -> 3384490 | Q28: 24 | R28: 24
A29: GS-W | D29: ='RevRun Fcst'!H271 -> 0 | E29: ='RevRun Fcst'!I271 -> 0 | F29: ='RevRun Fcst'!J271 -> 0 | G29: ='RevRun Fcst'!K271 -> 0 | H29: ='RevRun Fcst'!L271 -> 0 | I29: ='RevRun Fcst'!M271 -> 0 | J29: ='RevRun Fcst'!N271 -> 0 | K29: ='RevRun Fcst'!O271 -> 0 | L29: ='RevRun Fcst'!P271 -> 0 | M29: ='RevRun Fcst'!Q271 -> 0 | N29: ='RevRun Fcst'!R271 -> 0 | O29: ='RevRun Fcst'!S271 -> 0 | P29: =SUM(D29:O29) -> 0 | Q29: 25 | R29: 25
A30: F-1 | D30: ='RevRun Fcst'!H253 -> 18806 | E30: ='RevRun Fcst'!I253 -> 22218 | F30: ='RevRun Fcst'!J253 -> 20574 | G30: ='RevRun Fcst'!K253 -> 21487 | H30: ='RevRun Fcst'!L253 -> 20289 | I30: ='RevRun Fcst'!M253 -> 14865 | J30: ='RevRun Fcst'!N253 -> 12040 | K30: ='RevRun Fcst'!O253 -> 9543 | L30: ='RevRun Fcst'!P253 -> 10858 | M30: ='RevRun Fcst'!Q253 -> 8356 | N30: ='RevRun Fcst'!R253 -> 13544 | O30: ='RevRun Fcst'!S253 -> 13393 | P30: =SUM(D30:O30) -> 185973 | Q30: 26 | R30: 26
A31: NGV | D31: ='RevRun Fcst'!H262 -> 306 | E31: ='RevRun Fcst'!I262 -> 184 | F31: ='RevRun Fcst'!J262 -> 227 | G31: ='RevRun Fcst'!K262 -> 277 | H31: ='RevRun Fcst'!L262 -> 378 | I31: ='RevRun Fcst'!M262 -> 252 | J31: ='RevRun Fcst'!N262 -> 279 | K31: ='RevRun Fcst'!O262 -> 348 | L31: ='RevRun Fcst'!P262 -> 339 | M31: ='RevRun Fcst'!Q262 -> 315 | N31: ='RevRun Fcst'!R262 -> 343 | O31: ='RevRun Fcst'!S262 -> 276 | P31: =SUM(D31:O31) -> 3524 | Q31: 27 | R31: 27
A32: Total Firm Sales | D32: =SUM(D28:D31) -> 406172 | E32: 576249 | F32: 583762 | G32: 517535 | H32: 431049 | I32: 314697 | J32: 207989 | K32: 98697 | L32: 63511 | M32: 63355 | N32: 93491 | O32: 217480 | P32: 3573987 | Q32: 28 | R32: 28
Q33: 29 | R33: 29
A34: I-2 | D34: ='RevRun Fcst'!H280 -> 14280 | E34: ='RevRun Fcst'!I280 -> 15948 | F34: ='RevRun Fcst'!J280 -> 18665 | G34: ='RevRun Fcst'!K280 -> 16854 | H34: ='RevRun Fcst'!L280 -> 17545 | I34: ='RevRun Fcst'!M280 -> 14974 | J34: ='RevRun Fcst'!N280 -> 11409 | K34: ='RevRun Fcst'!O280 -> 6977 | L34: ='RevRun Fcst'!P280 -> 5358 | M34: ='RevRun Fcst'!Q280 -> 6837 | N34: ='RevRun Fcst'!R280 -> 4736 | O34: ='RevRun Fcst'!S280 -> 10667 | P34: =SUM(D34:O34) -> 144250 | Q34: 30 | R34: 30
A35: I-4 | D35: ='RevRun Fcst'!H289 -> 0 | E35: ='RevRun Fcst'!I289 -> 0 | F35: ='RevRun Fcst'!J289 -> 0 | G35: ='RevRun Fcst'!K289 -> 0 | H35: ='RevRun Fcst'!L289 -> 0 | I35: ='RevRun Fcst'!M289 -> 0 | J35: ='RevRun Fcst'!N289 -> 0 | K35: ='RevRun Fcst'!O289 -> 0 | L35: ='RevRun Fcst'!P289 -> 0 | M35: ='RevRun Fcst'!Q289 -> 0 | N35: ='RevRun Fcst'!R289 -> 0 | O35: ='RevRun Fcst'!S289 -> 0 | P35: =SUM(D35:O35) -> 0 | Q35: 31 | R35: 31
A36: Total Interruptible Sales | D36: =SUM(D34:D35) -> 14280 | E36: 15948 | F36: 18665 | G36: 16854 | H36: 17545 | I36: 14974 | J36: 11409 | K36: 6977 | L36: 5358 | M36: 6837 | N36: 4736 | O36: 10667 | P36: 144250 | Q36: 32 | R36: 32
Q37: 33 | R37: 33
Q38: 34 | R38: 34
A39: Total Wyoming Sales | D39: =+D32+D36 -> 420452 | E39: =+E32+E36 -> 592197 | F39: 602427 | G39: 534389 | H39: 448594 | I39: 329671 | J39: 219398 | K39: 105674 | L39: 68869 | M39: 70192 | N39: 98227 | O39: 228147 | P39: 3718237 | Q39: 35 | R39: 35
Q40: 36 | R40: 36
A41: Total Wyoming Transportation | D41: ='RevRun Fcst'!H328 -> 30774 | E41: ='RevRun Fcst'!I328 -> 46191 | F41: ='RevRun Fcst'!J328 -> 54415 | G41: ='RevRun Fcst'!K328 -> 37419 | H41: ='RevRun Fcst'!L328 -> 40215 | I41: ='RevRun Fcst'!M328 -> 32395 | J41: ='RevRun Fcst'!N328 -> 27360 | K41: ='RevRun Fcst'!O328 -> 32659 | L41: ='RevRun Fcst'!P328 -> 17590 | M41: ='RevRun Fcst'!Q328 -> 40616 | N41: ='RevRun Fcst'!R328 -> 44240 | O41: ='RevRun Fcst'!S328 -> 23757 | P41: =SUM(D41:O41) -> 427631 | Q41: 37 | R41: 37
Q42: 38 | R42: 38
Q43: 39 | R43: 39
A44: Total Wyoming Sales & Trans | D44: =+D39+D41 -> 451226 | E44: 638388 | F44: 656842 | G44: 571808 | H44: 488809 | I44: 362066 | J44: 246758 | K44: 138333 | L44: 86459 | M44: 110808 | N44: 142467 | O44: 251904 | P44: 4145868 | Q44: 40 | R44: 40
Q45: 41 | R45: 41
Q46: 42 | R46: 42
A47: Total System Sales and Trans | D47: =+D25+D44 -> 21263297 | E47: 29419832 | F47: 30527475 | G47: 26277289 | H47: 22433288 | I47: 16395959 | J47: 12838377 | K47: 11024486 | L47: 11476508 | M47: 11765438 | N47: 11020202 | O47: =+O25+O44 -> 15658462 | P47: 220100613 | Q47: 43 | R47: 43
Q48: 44 | R48: 44
A49: Usage by Season | Q49: 45 | R49: 45
C50: Month | D50: =MONTH(D5) -> 11 | E50: 12 | F50: 1 | G50: 2 | H50: 3 | I50: 4 | J50: 5 | K50: 6 | L50: 7 | M50: 8 | N50: 9 | O50: 10 | Q50: 46 | R50: 46
A51: GS | C51: Season (0=Winter, 1=Summer) | D51: =IF(D$50<4,0,IF(D$50>10,0,1)) -> 0 | E51: =IF(E$50<4,0,IF(E$50>10,0,1)) -> 0 | F51: 0 | G51: 0 | H51: 0 | I51: 1 | J51: 1 | K51: 1 | L51: 1 | M51: 1 | N51: 1 | O51: 1 | P51: Total | Q51: 47 | R51: 47
B52: Winter | D52: =IF(D51=0,D7+D8,0) -> 12038817 | E52: =IF(E51=0,E7+E8,0) -> 18385007 | F52: 20125804 | G52: 16779900 | H52: 13126330 | I52: 0 | J52: 0 | K52: 0 | L52: 0 | M52: 0 | N52: 0 | O52: 0 | P52: =SUM(D52:O52) -> 80455858 | Q52: 48 | R52: 48
B53: Summer | D53: =IF(D51=1,D7+D8,0) -> 0 | E53: 0 | F53: 0 | G53: 0 | H53: 0 | I53: 8762875 | J53: 5171493 | K53: 2856954 | L53: 2397393 | M53: 2354697 | N53: 2771794 | O53: 6913088 | P53: =SUM(D53:O53) -> 31228294 | Q53: 49 | R53: 49
A54: GSS | Q54: 50 | R54: 50
B55: Winter | D55: =IF(D51=0,D9,0) -> 0 | E55: 0 | F55: 0 | G55: 0 | H55: 0 | I55: 0 | J55: 0 | K55: 0 | L55: 0 | M55: 0 | N55: 0 | O55: 0 | P55: =SUM(D55:O55) -> 0 | Q55: 51 | R55: 51
B56: Summer | D56: =IF(D51=1,D9,0) -> 0 | E56: 0 | F56: 0 | G56: 0 | H56: 0 | I56: 0 | J56: 0 | K56: 0 | L56: 0 | M56: 0 | N56: 0 | O56: 0 | P56: =SUM(D56:O56) -> 0 | Q56: 52 | R56: 52
A57: F-S | Q57: 53 | R57: 53
B58: Winter | D58: =IF(D51=0,D10,0) -> 188318 | E58: 271602 | F58: 297143 | G58: 269996 | H58: 253627 | I58: 0 | J58: 0 | K58: 0 | L58: 0 | M58: 0 | N58: 0 | O58: 0 | P58: =SUM(D58:O58) -> 1280686 | Q58: 54 | R58: 54
B59: Summer | D59: =IF(D51=1,D10,0) -> 0 | E59: 0 | F59: 0 | G59: 0 | H59: 0 | I59: 204814 | J59: 180388 | K59: 175850 | L59: 150769 | M59: 156060 | N59: 177762 | O59: 262863 | P59: =SUM(D59:O59) -> 1308506 | Q59: 55 | R59: 55
Q60: 56 | R60: 56
Q61: 57 | R61: 57
B62: Rates: R050201.R1 | C62: WYOMING NON-CORE DNG REVENUES FROM DEMAND FORECAST AND CURRENTLY EFFECTIVE I-SALES GAS COST RATES | Q62: 58 | R62: 58
D63: Forecast | E63: Forecast | F63: Forecast | G63: Forecast | H63: Forecast | I63: Forecast | J63: Forecast | K63: Forecast | L63: Forecast | M63: Forecast | N63: Forecast | O63: Forecast | P63: 12-Month | Q63: 59 | R63: 59
D64: =D5 -> Nov22 | E64: =E5 -> Dec22 | F64: =F5 -> Jan23 | G64: Feb23 | H64: Mar23 | I64: Apr23 | J64: May23 | K64: Jun23 | L64: Jul23 | M64: Aug23 | N64: Sep23 | O64: Oct23 | P64: Total | Q64: 60 | R64: 60
A65: I-2 & 1-4 (Non-Gas Revenue) (Yearly) | D65: ='RevRun Fcst'!H273+'RevRun Fcst'!H282 -> 5506.0196 | E65: ='RevRun Fcst'!I273+'RevRun Fcst'!I282 -> 5958.99836 | F65: ='RevRun Fcst'!J273+'RevRun Fcst'!J282 -> 6696.85405 | G65: ='RevRun Fcst'!K273+'RevRun Fcst'!K282 -> 6205.04078 | H65: ='RevRun Fcst'!L273+'RevRun Fcst'!L282 -> 6392.69565 | I65: ='RevRun Fcst'!M273+'RevRun Fcst'!M282 -> 5694.48918 | J65: ='RevRun Fcst'!N273+'RevRun Fcst'!N282 -> 4726.34213 | K65: ='RevRun Fcst'!O273+'RevRun Fcst'!O282 -> 3522.74389 | L65: ='RevRun Fcst'!P273+'RevRun Fcst'!P282 -> 3083.07206 | M65: ='RevRun Fcst'!Q273+'RevRun Fcst'!Q282 -> 3484.72409 | N65: ='RevRun Fcst'!R273+'RevRun Fcst'!R282 -> 2914.15552 | O65: ='RevRun Fcst'!S273+'RevRun Fcst'!S282 -> 4524.83719 | P65: =SUM(D65:O65) -> 58709.9725 | Q65: 61 | R65: 61
A66: IC (Total Revenue) (Yearly) | D66: =ROUND(D41*$P66/$P41,0) -> 6919 | E66: 10386 | F66: 12235 | G66: 8413 | H66: 9042 | I66: 7284 | J66: 6152 | K66: 7343 | L66: 3955 | M66: 9132 | N66: 9947 | O66: =P66-SUM(D66:N66) -> 5340.92356 | P66: ='RevRun Fcst'!T300+'RevRun Fcst'!T314 -> 96148.92356 | Q66: 62 | R66: 62
Q67: 63 | R67: 63
A68: I-2 Gas Cost (Rate Effective ) | D68: 0 | E68: =+D68 -> 0 | F68: 0 | G68: 0 | H68: 0 | I68: 0 | J68: 0 | K68: 0 | L68: 0 | M68: 0 | N68: 0 | O68: 0 | Q68: 64 | R68: 64
A69: I-4 Gas Cost (Rate Effective ) | D69: 0 | E69: 0 | F69: 0 | G69: 0 | H69: 0 | I69: 0 | J69: 0 | K69: 0 | L69: 0 | M69: 0 | N69: 0 | O69: 0 | Q69: 65 | R69: 65
Q70: 66 | R70: 66
Q71: 67 | R71: 67
D72: ALLOCATION BASES | Q72: 68 | R72: 68
D73: DEMAND | G73: OTHER COST | Q73: 69 | R73: 69
A74: Utah Peak Day Demand | D74: =+D76-D75 -> 1205682 | E74: =D74/D76 -> 0.9684021648 | G74: Utah Sales | H74: =+P20 -> 114834120 | I74: =H74/H76 -> 0.96863633 | Q74: 70 | R74: 70
A75: Wyoming Peak Day Demand | D75: ='Other Inputs'!E147 -> 39340 | E75: =1-E74 -> 0.03159783522 | G75: Wyoming Sales | H75: =+P39 -> 3718237 | I75: =1-I74 -> 0.03136366998 | Q75: 71 | R75: 71
A76: Peak Day Demand | D76: ='Other Inputs'!E148 -> 1245022 | E76: =ROUND(D76/D$76,4) -> 1 | G76: Total Sales | H76: =+H74+H75 -> 118552357 | I76: =ROUND(H76/H$76,4) -> 1 | Q76: 72 | R76: 72
Q77: 73 | R77: 73
Q78: 74 | R78: 74
D79: Financial Report Information (Latest 12 Months of Actual Expenses and 13 Months of Rate Base) | Q79: 75 | R79: 75
D80: Actual | E80: Actual | F80: Actual | G80: Actual | H80: Actual | I80: Actual | J80: Actual | K80: Actual | L80: Actual | M80: Actual | N80: Actual | O80: Actual | Q80: 76 | R80: 76
A81: Accounts | D81: =+Expenses!D3 -> 2021-09-30 | E81: =+Expenses!E3 -> 2021-10-31 | F81: =+Expenses!F3 -> 2021-11-03 | G81: =+Expenses!G3 -> 2021-12-31 | H81: =+Expenses!H3 -> 2022-01-31 | I81: =+Expenses!I3 -> 2022-02-28 | J81: =+Expenses!J3 -> 2022-03-31 | K81: =+Expenses!K3 -> 2022-04-30 | L81: =+Expenses!L3 -> 2022-05-31 | M81: =+Expenses!M3 -> 2022-06-30 | N81: =+Expenses!N3 -> 2022-07-31 | O81: =+Expenses!O3 -> 2022-08-31 | P81: =Expenses!P3 -> 2022-08-31 | Q81: 77 | R81: 77
A82: EXPENSES | Q82: 78 | R82: 78
B83: Gas Use In Dth (Acct 810 & 812) | D83: 0 | E83: 0 | F83: 0 | G83: 0 | H83: 0 | I83: 0 | J83: 0 | K83: 0 | L83: 0 | M83: 0 | N83: 0 | O83: 0 | P83: 0 | Q83: 79 | R83: 79
Q84: 80 | R84: 80
B85: Other Revenue (Yearly) | Q85: 81 | R85: 81
B86: Sales for Resale (account 483) | D86: =Expenses!D13 -> 97129.99 | E86: =Expenses!E13 -> 97138.4 | F86: =Expenses!F13 -> 106128.66 | G86: =Expenses!G13 -> 544755.05 | H86: =Expenses!H13 -> 116873.49 | I86: =Expenses!I13 -> 98906.89 | J86: =Expenses!J13 -> 106860.96 | K86: =Expenses!K13 -> 52524.95 | L86: =Expenses!L13 -> 141242.98 | M86: =Expenses!M13 -> 721039.87 | N86: =Expenses!N13 -> 151205 | O86: =Expenses!O13 -> 285419.14 | P86: =Expenses!P13 -> 2519225.38 | Q86: 82 | R86: 82
B87: Incidental Plant Prod Sales (Acct 490) | D87: =Expenses!D14 -> 902433.39 | E87: =Expenses!E14 -> 2189382.93 | F87: =Expenses!F14 -> 1288337.66 | G87: =Expenses!G14 -> 155.94 | H87: =Expenses!H14 -> 814587.34 | I87: =Expenses!I14 -> 1062620.16 | J87: =Expenses!J14 -> 1019900.86 | K87: =Expenses!K14 -> 972357.06 | L87: =Expenses!L14 -> 2794975.53 | M87: =Expenses!M14 -> 1033024.4 | N87: =Expenses!N14 -> 1190418.8 | O87: =Expenses!O14 -> 1063673.75 | P87: =Expenses!P14 -> 14331867.82 | Q87: 83 | R87: 83
B88: Gas Processed by Others (account 491) | D88: =Expenses!D22 -> 0 | E88: =Expenses!E22 -> 0 | F88: =Expenses!F22 -> 0 | G88: =Expenses!G22 -> 0 | H88: =Expenses!H22 -> 0 | I88: =Expenses!I22 -> 0 | J88: =Expenses!J22 -> 0 | K88: =Expenses!K22 -> 0 | L88: =Expenses!L22 -> 0 | M88: =Expenses!M22 -> 0 | N88: =Expenses!N22 -> 0 | O88: =Expenses!O22 -> 0 | P88: =Expenses!P22 -> 0 | Q88: 84 | R88: 84
B89: Gasoline - Oil Sales (account 492) | D89: =Expenses!D15 -> 158052.51 | E89: =Expenses!E15 -> 152048.32 | F89: =Expenses!F15 -> 192977.82 | G89: =Expenses!G15 -> 175220.78 | H89: =Expenses!H15 -> 187201.33 | I89: =Expenses!I15 -> 224977.55 | J89: =Expenses!J15 -> 253213.06 | K89: =Expenses!K15 -> 235424.09 | L89: =Expenses!L15 -> 290819.35 | M89: =Expenses!M15 -> 310169.89 | N89: =Expenses!N15 -> 268774.89 | O89: =Expenses!O15 -> 359147.18 | P89: =Expenses!P15 -> 2808026.77 | Q89: 85 | R89: 85
B90: Gasoline - Oil Cost (account 758.001) | D90: =-Expenses!D18 -> 0 | E90: =-Expenses!E18 -> 0 | F90: =-Expenses!F18 -> 0 | G90: =-Expenses!G18 -> 0 | H90: =-Expenses!H18 -> 0 | I90: =-Expenses!I18 -> 0 | J90: =-Expenses!J18 -> 0 | K90: =-Expenses!K18 -> 0 | L90: =-Expenses!L18 -> 0 | M90: =-Expenses!M18 -> 0 | N90: =-Expenses!N18 -> 0 | O90: =-Expenses!O18 -> 0 | P90: =-Expenses!P18 -> 0 | Q90: 86 | R90: 86
Q91: 87 | R91: 87
Q92: 88 | R92: 88
B93: Overriding Royalty (account 495-1) | D93: =Expenses!D16 -> 147551.81 | E93: =Expenses!E16 -> 1014606.72 | F93: =Expenses!F16 -> 791533.65 | G93: =Expenses!G16 -> 798933.79 | H93: =Expenses!H16 -> 853244.84 | I93: =Expenses!I16 -> 1377641.49 | J93: =Expenses!J16 -> 961928.39 | K93: =Expenses!K16 -> 1061501.46 | L93: =Expenses!L16 -> 2213730.6 | M93: =Expenses!M16 -> 226621.98 | N93: =Expenses!N16 -> 1472583.64 | O93: =Expenses!O16 -> 1042921.87 | P93: =Expenses!P16 -> 11962800.24 | Q93: 89 | R93: 89
B94: Wexpro Revenue Sharing (account 495-2) | D94: =Expenses!D17 -> 16848 | E94: =Expenses!E17 -> 115027 | F94: =Expenses!F17 -> 63363 | G94: =Expenses!G17 -> 15550 | H94: =Expenses!H17 -> 158907 | I94: =Expenses!I17 -> 210181 | J94: =Expenses!J17 -> 461376 | K94: =Expenses!K17 -> 319049 | L94: =Expenses!L17 -> 364115 | M94: =Expenses!M17 -> 485473 | N94: =Expenses!N17 -> 438166 | O94: =Expenses!O17 -> 216827 | P94: =Expenses!P17 -> 2864882 | Q94: 90 | R94: 90
P95: Page 2 of 6 | Q95: 91 | R95: 91
C96: Actual | D96: Actual | E96: Actual | F96: Actual | G96: Actual | H96: Actual | I96: Actual | J96: Actual | K96: Actual | L96: Actual | M96: Actual | N96: Actual | O96: Actual | P96: 13-Month | Q96: 92 | R96: 92
A97: Accounts | C97: ='Rate Base'!D4 -> 2021-08-31 | D97: ='Rate Base'!E4 -> 2021-09-30 | E97: ='Rate Base'!F4 -> 2021-10-31 | F97: ='Rate Base'!G4 -> 2021-11-30 | G97: ='Rate Base'!H4 -> 2021-12-31 | H97: ='Rate Base'!I4 -> 2021-01-31 | I97: ='Rate Base'!J4 -> 2021-02-28 | J97: ='Rate Base'!K4 -> 2021-03-31 | K97: ='Rate Base'!L4 -> 2021-04-30 | L97: ='Rate Base'!M4 -> 2022-05-31 | M97: ='Rate Base'!N4 -> 2022-06-30 | N97: ='Rate Base'!O4 -> 2022-07-31 | O97: ='Rate Base'!P4 -> 2022-08-31 | P97: Average | Q97: 93 | R97: 93
A98: RATE BASE - PRODUCTION | Q98: 94 | R98: 94
B99: Acct 164 (Working Gas) - Production | C99: ='Rate Base'!D11 -> 35307557.59 | D99: ='Rate Base'!E11 -> 37462513.81 | E99: ='Rate Base'!F11 -> 49638760.36 | F99: ='Rate Base'!G11 -> 48688525.37 | G99: ='Rate Base'!H11 -> 44932895.7 | H99: ='Rate Base'!I11 -> 32520297.1 | I99: ='Rate Base'!J11 -> 24327140.39 | J99: ='Rate Base'!K11 -> 13377221.65 | K99: ='Rate Base'!L11 -> 4611532.51 | L99: ='Rate Base'!M11 -> 4273987.86 | M99: ='Rate Base'!N11 -> 9042867.91 | N99: ='Rate Base'!O11 -> 16864248.25 | O99: ='Rate Base'!P11 -> 25992902.78 | P99: =(((+C99+O99)/2)+SUM(D99:N99))/12 -> 26365851.76 | Q99: 95 | R99: 95
B100: Acct 164 (Working Gas LNG) - Production | C100: ='Rate Base'!D12 -> 0 | D100: ='Rate Base'!E12 -> 456302.3845 | E100: ='Rate Base'!F12 -> 2170482.176 | F100: ='Rate Base'!G12 -> 4040202.491 | G100: ='Rate Base'!H12 -> 6275079.85 | H100: ='Rate Base'!I12 -> 8635621.719 | I100: ='Rate Base'!J12 -> 8912782.773 | J100: ='Rate Base'!K12 -> 7575865.357 | K100: ='Rate Base'!L12 -> 7575865.357 | L100: ='Rate Base'!M12 -> 7575865.357 | M100: ='Rate Base'!N12 -> 7575865.357 | N100: ='Rate Base'!O12 -> 7575865.357 | O100: ='Rate Base'!P12 -> 8432685.664 | P100: 6048845.084 | Q100: 96
B101: Acct 101 - Production | C101: ='Rate Base'!D5 -> 79968136 | D101: ='Rate Base'!E5 -> 79968136 | E101: ='Rate Base'!F5 -> 79968136 | F101: ='Rate Base'!G5 -> 79968136 | G101: ='Rate Base'!H5 -> 79968136 | H101: ='Rate Base'!I5 -> 79968136 | I101: ='Rate Base'!J5 -> 79968136 | J101: ='Rate Base'!K5 -> 79968136 | K101: ='Rate Base'!L5 -> 79968136 | L101: ='Rate Base'!M5 -> 79968136 | M101: ='Rate Base'!N5 -> 79968136 | N101: ='Rate Base'!O5 -> 79968136 | O101: ='Rate Base'!P5 -> 79968136 | P101: 79968136 | Q101: 97 | R101: 96
B102: Acct 108 - Production | C102: ='Rate Base'!D7 -> -71641946 | D102: ='Rate Base'!E7 -> -71711214 | E102: ='Rate Base'!F7 -> -71780483 | F102: ='Rate Base'!G7 -> -71849768 | G102: ='Rate Base'!H7 -> -71919083 | H102: ='Rate Base'!I7 -> -71988400 | I102: ='Rate Base'!J7 -> -71988400 | J102: ='Rate Base'!K7 -> -72112568 | K102: ='Rate Base'!L7 -> -72112568 | L102: ='Rate Base'!M7 -> -72165240 | M102: ='Rate Base'!N7 -> -72219000 | N102: ='Rate Base'!O7 -> -72277347 | O102: ='Rate Base'!P7 -> -72335916 | P102: -72009416.83 | Q102: 98 | R102: 97
B103: Acct 111 - Production | C103: ='Rate Base'!D9 -> -6150277 | D103: ='Rate Base'!E9 -> -6150277 | E103: ='Rate Base'!F9 -> -6150277 | F103: ='Rate Base'!G9 -> -6150277 | G103: ='Rate Base'!H9 -> -6150277 | H103: ='Rate Base'!I9 -> -6150277 | I103: ='Rate Base'!J9 -> -6150277 | J103: ='Rate Base'!K9 -> -6150277 | K103: ='Rate Base'!L9 -> -6150277 | L103: ='Rate Base'!M9 -> -6150277 | M103: ='Rate Base'!N9 -> -6150277 | N103: ='Rate Base'!O9 -> -6150277 | O103: ='Rate Base'!P9 -> -6150277 | P103: -6150277 | Q103: 99 | R103: 98
B104: Acct 2550 - Production | C104: ='Rate Base'!D14 -> 0 | D104: ='Rate Base'!E14 -> 0 | E104: ='Rate Base'!F14 -> 0 | F104: ='Rate Base'!G14 -> 0 | G104: ='Rate Base'!H14 -> 0 | H104: ='Rate Base'!I14 -> 0 | I104: ='Rate Base'!J14 -> 0 | J104: ='Rate Base'!K14 -> 0 | K104: ='Rate Base'!L14 -> 0 | L104: ='Rate Base'!M14 -> 0 | M104: ='Rate Base'!N14 -> 0 | N104: ='Rate Base'!O14 -> 0 | O104: ='Rate Base'!P14 -> 0 | P104: 0 | Q104: 100 | R104: 99
B105: Acct 2820 - Production | C105: ='Rate Base'!D16 -> -24954142 | D105: ='Rate Base'!E16 -> -24655106 | E105: ='Rate Base'!F16 -> -25179711 | F105: ='Rate Base'!G16 -> -32181231 | G105: ='Rate Base'!H16 -> -32697505 | H105: ='Rate Base'!I16 -> -33930378 | I105: ='Rate Base'!J16 -> -33930378 | J105: ='Rate Base'!K16 -> -35244000 | K105: ='Rate Base'!L16 -> -35244000 | L105: ='Rate Base'!M16 -> -34557247 | M105: ='Rate Base'!N16 -> -35092242 | N105: ='Rate Base'!O16 -> -35715252 | O105: ='Rate Base'!P16 -> -36065261 | P105: -32411395.96 | Q105: 101 | R105: 100
B106: Acct 2821 - Production | C106: ='Rate Base'!D18 -> -700755 | D106: ='Rate Base'!E18 -> -700755 | E106: ='Rate Base'!F18 -> -700755 | F106: ='Rate Base'!G18 -> -700755 | G106: ='Rate Base'!H18 -> -700755 | H106: ='Rate Base'!I18 -> -700755 | I106: ='Rate Base'!J18 -> -700755 | J106: ='Rate Base'!K18 -> -700755 | K106: ='Rate Base'!L18 -> -700755 | L106: ='Rate Base'!M18 -> -700755 | M106: ='Rate Base'!N18 -> -700755 | N106: ='Rate Base'!O18 -> -700755 | O106: ='Rate Base'!P18 -> -700755 | P106: -700755 | Q106: 102 | R106: 101
Q107: 103 | R107: 102
D108: Production | H108: Acct 101 | I108: Acct 108 | J108: Acct 111 | K108: Acct 2550 | L108: Acct 2820 | M108: Acct 2821 | N108: Total | Q108: 104 | R108: 103
B109: Depreciation - Acct 403 | D109: =Expenses!P8 -> 763236 | F109: Thirteen month average | H109: =P101 -> 79968136 | I109: =P102 -> -72009416.83 | J109: =P103 -> -6150277 | K109: =P104 -> 0 | L109: =P105 -> -32411395.96 | M109: =P106 -> -700755 | N109: =SUM(H109:M109) -> -31303708.79 | Q109: 105 | R109: 104
B110: Amortization & Depletion - Acct 404 | D110: =Expenses!P10 -> 0 | F110: =CONCATENATE("Wexpro Red. @ ",-'Other Inputs'!E270*100," %") -> Wexpro Red. @ 6.3 % | H110: =H109*'Other Inputs'!$E$270 -> -5037992.568 | I110: =I109*'Other Inputs'!$E$270 -> 4536593.26 | J110: =J109*'Other Inputs'!$E$270 -> 387467.451 | N110: =SUM(H110:M110) -> -113931.8565 | Q110: 106 | R110: 105
B111: Utah Pre-Tax Return on Production Assets | D111: =+N112 -> -2796170.018 | M111: =SUM(N109:N110) -> -31417640.65 | Q111: 107 | R111: 106
B112: Utah Production Cost | D112: =SUM(D109:D111) -> -2032934.018 | M112: ="Utah Pre-Tax Rate of Return on Production Assets ("&'Other Inputs'!E273&")" -> Utah Pre-Tax Rate of Return on Production Assets (0.089) | N112: =M111*'Other Inputs'!E273 -> -2796170.018 | Q112: 108 | R112: 107
M113: ="Wyoming Pre-Tax Rate of Return on Production Assets ("&'Other Inputs'!E272&")" -> Wyoming Pre-Tax Rate of Return on Production Assets (0.088) | N113: =M111*'Other Inputs'!E272 -> -2764752.377 | Q113: 109 | R113: 108
Q114: 110 | R114: 109
A115: TACTICAL PLAN INFORMATION (IRP) | P115: 12-Month | Q115: 111 | R115: 110
D116: =D5 -> Nov22 | E116: =E5 -> Dec22 | F116: Jan23 | G116: Feb23 | H116: Mar23 | I116: Apr23 | J116: May23 | K116: Jun23 | L116: Jul23 | M116: Aug23 | N116: Sep23 | O116: Oct23 | P116: Total | Q116: 112 | R116: 111
A117: COMPANY PRODUCTION | Q117: 113 | R117: 112
B118: Prior Company | Q118: 114 | R118: 113
B119: D24 Wells | Q119: 115 | R119: 114
B120: Brady & Powel | Q120: 116 | R120: 115
B121: Total Company Production Wexpro I & II | D121: ='Monthly Inputs'!G7+'Monthly Inputs'!G13 -> 5551380.51 | E121: ='Monthly Inputs'!H7+'Monthly Inputs'!H13 -> 5439453.01 | F121: ='Monthly Inputs'!I7+'Monthly Inputs'!I13 -> 5242542.102 | G121: ='Monthly Inputs'!J7+'Monthly Inputs'!J13 -> 4613958.227 | H121: ='Monthly Inputs'!K7+'Monthly Inputs'!K13 -> 4966198.965 | I121: ='Monthly Inputs'!L7+'Monthly Inputs'!L13 -> 4708715.175 | J121: ='Monthly Inputs'!M7+'Monthly Inputs'!M13 -> 4760370.387 | K121: ='Monthly Inputs'!N7+'Monthly Inputs'!N13 -> 4522115.055 | L121: ='Monthly Inputs'!O7+'Monthly Inputs'!O13 -> 4672109.066 | M121: ='Monthly Inputs'!P7+'Monthly Inputs'!P13 -> 4783943.173 | N121: ='Monthly Inputs'!Q7+'Monthly Inputs'!Q13 -> 4565381.935 | O121: ='Monthly Inputs'!R7+'Monthly Inputs'!R13 -> 4618184.342 | P121: =SUM(D121:O121) -> 58444351.95 | Q121: 117 | R121: 116
Q122: 118 | R122: 117
A123: STORAGE INJECTIONS | Q123: 119 | R123: 118
B124: Chalk Creek | D124: ='Monthly Inputs'!G24 -> 90000 | E124: ='Monthly Inputs'!H24 -> 53593 | F124: ='Monthly Inputs'!I24 -> 0 | G124: ='Monthly Inputs'!J24 -> 44310 | H124: ='Monthly Inputs'!K24 -> 0 | I124: ='Monthly Inputs'!L24 -> 0 | J124: ='Monthly Inputs'!M24 -> 0 | K124: ='Monthly Inputs'!N24 -> 0 | L124: ='Monthly Inputs'!O24 -> 0 | M124: ='Monthly Inputs'!P24 -> 0 | N124: ='Monthly Inputs'!Q24 -> 40000 | O124: ='Monthly Inputs'!R24 -> 132000 | P124: =SUM(D124:O124) -> 359903 | Q124: 120 | R124: 119
B125: Coalville | D125: ='Monthly Inputs'!G26 -> 97904 | E125: ='Monthly Inputs'!H26 -> 0 | F125: ='Monthly Inputs'!I26 -> 0 | G125: ='Monthly Inputs'!J26 -> 170000 | H125: ='Monthly Inputs'!K26 -> 317500 | I125: ='Monthly Inputs'!L26 -> 0 | J125: ='Monthly Inputs'!M26 -> 0 | K125: ='Monthly Inputs'!N26 -> 0 | L125: ='Monthly Inputs'!O26 -> 0 | M125: ='Monthly Inputs'!P26 -> 0 | N125: ='Monthly Inputs'!Q26 -> 42000 | O125: ='Monthly Inputs'!R26 -> 280800 | P125: =SUM(D125:O125) -> 908204 | Q125: 121 | R125: 120
B126: Leroy | D126: ='Monthly Inputs'!G27 -> 300000 | E126: ='Monthly Inputs'!H27 -> 45573 | F126: ='Monthly Inputs'!I27 -> 0 | G126: ='Monthly Inputs'!J27 -> 146800 | H126: ='Monthly Inputs'!K27 -> 0 | I126: ='Monthly Inputs'!L27 -> 0 | J126: ='Monthly Inputs'!M27 -> 0 | K126: ='Monthly Inputs'!N27 -> 0 | L126: ='Monthly Inputs'!O27 -> 0 | M126: ='Monthly Inputs'!P27 -> 0 | N126: ='Monthly Inputs'!Q27 -> 47500 | O126: ='Monthly Inputs'!R27 -> 45000 | P126: =SUM(D126:O126) -> 584873 | Q126: 122 | R126: 121
B127: Ryckman | D127: ='Monthly Inputs'!G28 -> 0 | E127: ='Monthly Inputs'!H28 -> 0 | F127: ='Monthly Inputs'!I28 -> 0 | G127: ='Monthly Inputs'!J28 -> 0 | H127: ='Monthly Inputs'!K28 -> 0 | I127: ='Monthly Inputs'!L28 -> 0 | J127: ='Monthly Inputs'!M28 -> 0 | K127: ='Monthly Inputs'!N28 -> 0 | L127: ='Monthly Inputs'!O28 -> 0 | M127: ='Monthly Inputs'!P28 -> 0 | N127: ='Monthly Inputs'!Q28 -> 0 | O127: ='Monthly Inputs'!R28 -> 0 | P127: =SUM(D127:O127) -> 0 | Q127: 123 | R127: 122
B128: Total Peaking Storage | D128: =SUM(D124:D127) -> 487904 | E128: =SUM(E124:E127) -> 99166 | F128: 0 | G128: 361110 | H128: 317500 | I128: 0 | J128: 0 | K128: 0 | L128: 0 | M128: 0 | N128: 129500 | O128: 457800 | P128: 1852980 | Q128: 124 | R128: 123
B129: Clay Basin | D129: ='Monthly Inputs'!G25 -> 154422 | E129: ='Monthly Inputs'!H25 -> 0 | F129: ='Monthly Inputs'!I25 -> 0 | G129: ='Monthly Inputs'!J25 -> 0 | H129: ='Monthly Inputs'!K25 -> 805140 | I129: ='Monthly Inputs'!L25 -> 136477 | J129: ='Monthly Inputs'!M25 -> 2418001 | K129: ='Monthly Inputs'!N25 -> 1980000 | L129: ='Monthly Inputs'!O25 -> 2045999 | M129: ='Monthly Inputs'!P25 -> 2051859 | N129: ='Monthly Inputs'!Q25 -> 1985670 | O129: ='Monthly Inputs'!R25 -> 1576854 | P129: =SUM(D129:O129) -> 13154422 | Q129: 125 | R129: 124
B130: Total Storage Injections | D130: =SUM(D128:D129) -> 642326 | E130: 99166 | F130: 0 | G130: 361110 | H130: 1122640 | I130: 136477 | J130: 2418001 | K130: 1980000 | L130: 2045999 | M130: 2051859 | N130: 2115170 | O130: 2034654 | P130: 15007402 | Q130: 126 | R130: 125
A131: STORAGE WITHDRAWLS | Q131: 127 | R131: 126
B132: Chalk Creek | D132: ='Monthly Inputs'!G32 -> 0 | E132: ='Monthly Inputs'!H32 -> 0 | F132: ='Monthly Inputs'!I32 -> 124560 | G132: ='Monthly Inputs'!J32 -> 128625 | H132: ='Monthly Inputs'!K32 -> 112125 | I132: ='Monthly Inputs'!L32 -> 0 | J132: ='Monthly Inputs'!M32 -> 0 | K132: ='Monthly Inputs'!N32 -> 0 | L132: ='Monthly Inputs'!O32 -> 0 | M132: ='Monthly Inputs'!P32 -> 0 | N132: ='Monthly Inputs'!Q32 -> 0 | O132: ='Monthly Inputs'!R32 -> 0 | P132: =SUM(D132:O132) -> 365310 | Q132: 128 | R132: 127
B133: Coalville | D133: ='Monthly Inputs'!G34 -> 0 | E133: ='Monthly Inputs'!H34 -> 0 | F133: ='Monthly Inputs'!I34 -> 410186 | G133: ='Monthly Inputs'!J34 -> 437500 | H133: ='Monthly Inputs'!K34 -> 0 | I133: ='Monthly Inputs'!L34 -> 0 | J133: ='Monthly Inputs'!M34 -> 0 | K133: ='Monthly Inputs'!N34 -> 0 | L133: ='Monthly Inputs'!O34 -> 0 | M133: ='Monthly Inputs'!P34 -> 0 | N133: ='Monthly Inputs'!Q34 -> 0 | O133: ='Monthly Inputs'!R34 -> 0 | P133: =SUM(D133:O133) -> 847686 | Q133: 129 | R133: 128
B134: Leroy | D134: ='Monthly Inputs'!G35 -> 0 | E134: ='Monthly Inputs'!H35 -> 0 | F134: ='Monthly Inputs'!I35 -> 470298 | G134: ='Monthly Inputs'!J35 -> 120000 | H134: ='Monthly Inputs'!K35 -> 0 | I134: ='Monthly Inputs'!L35 -> 0 | J134: ='Monthly Inputs'!M35 -> 0 | K134: ='Monthly Inputs'!N35 -> 0 | L134: ='Monthly Inputs'!O35 -> 0 | M134: ='Monthly Inputs'!P35 -> 0 | N134: ='Monthly Inputs'!Q35 -> 0 | O134: ='Monthly Inputs'!R35 -> 0 | P134: =SUM(D134:O134) -> 590298 | Q134: 130 | R134: 129
B135: Ryckman | D135: ='Monthly Inputs'!G36 -> 0 | E135: ='Monthly Inputs'!H36 -> 0 | F135: ='Monthly Inputs'!I36 -> 0 | G135: ='Monthly Inputs'!J36 -> 0 | H135: ='Monthly Inputs'!K36 -> 0 | I135: ='Monthly Inputs'!L36 -> 0 | J135: ='Monthly Inputs'!M36 -> 0 | K135: ='Monthly Inputs'!N36 -> 0 | L135: ='Monthly Inputs'!O36 -> 0 | M135: ='Monthly Inputs'!P36 -> 0 | N135: ='Monthly Inputs'!Q36 -> 0 | O135: ='Monthly Inputs'!R36 -> 0 | P135: =SUM(D135:O135) -> 0 | Q135: 131 | R135: 130
B136: Total Peaking Storage | D136: =SUM(D132:D135) -> 0 | E136: =SUM(E132:E135) -> 0 | F136: 1005044 | G136: 686125 | H136: 112125 | I136: 0 | J136: 0 | K136: 0 | L136: 0 | M136: 0 | N136: 0 | O136: 0 | P136: 1803294 | Q136: 132 | R136: 131
B137: Clay Basin | D137: ='Monthly Inputs'!G33 -> 0 | E137: ='Monthly Inputs'!H33 -> 3410050 | F137: ='Monthly Inputs'!I33 -> 3410050 | G137: ='Monthly Inputs'!J33 -> 3080045 | H137: ='Monthly Inputs'!K33 -> 0 | I137: ='Monthly Inputs'!L33 -> 0 | J137: ='Monthly Inputs'!M33 -> 0 | K137: ='Monthly Inputs'!N33 -> 0 | L137: ='Monthly Inputs'!O33 -> 0 | M137: ='Monthly Inputs'!P33 -> 0 | N137: ='Monthly Inputs'!Q33 -> 0 | O137: ='Monthly Inputs'!R33 -> 0 | P137: =SUM(D137:O137) -> 9900145 | Q137: 133 | R137: 132
Q138: 134
B139: Total Storage Withdrawls | D139: =SUM(D136:D137) -> 0 | E139: 3410050 | F139: 4415094 | G139: 3766170 | H139: 112125 | I139: 0 | J139: 0 | K139: 0 | L139: 0 | M139: 0 | N139: 0 | O139: 0 | P139: 11703439 | Q139: 135 | R139: 133
Q140: 136
A141: LNG | Q141: 137
B142: Injections | D142: =+'Monthly Inputs'!G40 -> 270000 | E142: =+'Monthly Inputs'!H40 -> 279000 | F142: =+'Monthly Inputs'!I40 -> 279000 | G142: =+'Monthly Inputs'!J40 -> 36000 | H142: =+'Monthly Inputs'!K40 -> 0 | I142: =+'Monthly Inputs'!L40 -> 0 | J142: =+'Monthly Inputs'!M40 -> 0 | K142: =+'Monthly Inputs'!N40 -> 0 | L142: =+'Monthly Inputs'!O40 -> 0 | M142: =+'Monthly Inputs'!P40 -> 184950 | N142: =+'Monthly Inputs'!Q40 -> 0 | O142: =+'Monthly Inputs'!R40 -> 0 | P142: =+'Monthly Inputs'!S40 -> 1048950 | Q142: 138
B143: Withdrawals | D143: =+'Monthly Inputs'!G41 -> 0 | E143: =+'Monthly Inputs'!H41 -> 0 | F143: =+'Monthly Inputs'!I41 -> 0 | G143: =+'Monthly Inputs'!J41 -> 0 | H143: =+'Monthly Inputs'!K41 -> 184950 | I143: =+'Monthly Inputs'!L41 -> 0 | J143: =+'Monthly Inputs'!M41 -> 0 | K143: =+'Monthly Inputs'!N41 -> 0 | L143: =+'Monthly Inputs'!O41 -> 0 | M143: =+'Monthly Inputs'!P41 -> 0 | N143: =+'Monthly Inputs'!Q41 -> 0 | O143: =+'Monthly Inputs'!R41 -> 0 | P143: =+'Monthly Inputs'!S41 -> 184950 | Q143: 139
Q144: 140 | R144: 134
Q145: 141 | R145: 135
A146: Gas Supply and Demand | D146: =D4 -> Forecast | E146: Forecast | F146: Forecast | G146: Forecast | H146: Forecast | I146: Forecast | J146: Forecast | K146: Forecast | L146: Forecast | M146: Forecast | N146: Forecast | O146: Forecast | P146: 12-Month | Q146: 142 | R146: 136
A147: Demand | D147: =D5 -> Nov22 | E147: Dec22 | F147: Jan23 | G147: Feb23 | H147: Mar23 | I147: Apr23 | J147: May23 | K147: Jun23 | L147: Jul23 | M147: Aug23 | N147: Sep23 | O147: Oct23 | P147: Total | Q147: 143 | R147: 137
Q148: 144 | R148: 138
A149: Utah Sales | D149: =+D20 -> 12279657 | E149: 18712488 | F149: 20486544 | G149: 17106677 | H149: 13433023 | I149: 9017969 | J149: 5391667 | K149: 3071369 | L149: 2584396 | M149: 2544456 | N149: 2986836 | O149: 7219038 | P149: =SUM(D149:O149) -> 114834120 | Q149: 145 | R149: 139
A150: Wyoming Sales | D150: =+D39 -> 420452 | E150: 592197 | F150: 602427 | G150: 534389 | H150: 448594 | I150: 329671 | J150: 219398 | K150: 105674 | L150: 68869 | M150: 70192 | N150: 98227 | O150: 228147 | P150: =SUM(D150:O150) -> 3718237 | Q150: 146 | R150: 140
A151: Total Sales | D151: =+D149+D150 -> 12700109 | E151: 19304685 | F151: 21088971 | G151: 17641066 | H151: 13881617 | I151: 9347640 | J151: 5611065 | K151: 3177043 | L151: 2653265 | M151: 2614648 | N151: 3085063 | O151: 7447185 | P151: 118552357 | Q151: 147 | R151: 141
Q152: 148 | R152: 142
A153: Distribution Use (Offices) | D153: =ROUND(D83,0) -> 0 | E153: 0 | F153: 0 | G153: 0 | H153: 0 | I153: 0 | J153: 0 | K153: 0 | L153: 0 | M153: 0 | N153: 0 | O153: 0 | P153: =SUM(D153:O153) -> 0 | Q153: 149 | R153: 143
A154: Distribution Lost and Unaccounted for | D154: =+D156-D151-D153 -> 71393 | E154: =+E156-E151-E153 -> 108520 | F154: 118550 | G154: 99168 | H154: 78034 | I154: 52547 | J154: 31542 | K154: 17860 | L154: 14915 | M154: 14698 | N154: 17342 | O154: =+O156-O151-O153 -> 41864 | P154: =SUM(D154:O154) -> 666433 | Q154: 150 | R154: 144
Q155: 151 | R155: 145
A156: Total City Gate | D156: =ROUND((D151+D153)/(1-'Other Inputs'!$E$276),0) -> 12771502 | E156: =ROUND((E151+E153)/(1-'Other Inputs'!$E$276),0) -> 19413205 | F156: =ROUND((F151+F153)/(1-'Other Inputs'!$E$276),0) -> 21207521 | G156: =ROUND((G151+G153)/(1-'Other Inputs'!$E$276),0) -> 17740234 | H156: =ROUND((H151+H153)/(1-'Other Inputs'!$E$276),0) -> 13959651 | I156: =ROUND((I151+I153)/(1-'Other Inputs'!$E$276),0) -> 9400187 | J156: =ROUND((J151+J153)/(1-'Other Inputs'!$E$276),0) -> 5642607 | K156: =ROUND((K151+K153)/(1-'Other Inputs'!$E$276),0) -> 3194903 | L156: =ROUND((L151+L153)/(1-'Other Inputs'!$E$276),0) -> 2668180 | M156: =ROUND((M151+M153)/(1-'Other Inputs'!$E$276),0) -> 2629346 | N156: =ROUND((N151+N153)/(1-'Other Inputs'!$E$276),0) -> 3102405 | O156: =ROUND((O151+O153)/(1-'Other Inputs'!$E$276),0) -> 7489049 | P156: =SUM(D156:O156) -> 119218790 | Q156: 152 | R156: 146
Q157: 153 | R157: 147
A158: Peaking Injection | D158: =+D128 -> 487904 | E158: 99166 | F158: 0 | G158: 361110 | H158: 317500 | I158: 0 | J158: 0 | K158: 0 | L158: 0 | M158: 0 | N158: 129500 | O158: 457800 | P158: =SUM(D158:O158) -> 1852980 | Q158: 154 | R158: 148
A159: Clay Basin Injection | D159: =+D129 -> 154422 | E159: 0 | F159: 0 | G159: 0 | H159: 805140 | I159: 136477 | J159: 2418001 | K159: 1980000 | L159: 2045999 | M159: 2051859 | N159: 1985670 | O159: 1576854 | P159: =SUM(D159:O159) -> 13154422 | Q159: 155 | R159: 149
A160: Storage Lost & Unaccounted For | D160: =-'Monthly Inputs'!G56 -> 11915.547 | E160: =-'Monthly Inputs'!H56 -> 1592.4974 | F160: =-'Monthly Inputs'!I56 -> 0 | G160: =-'Monthly Inputs'!J56 -> 6182.655 | H160: =-'Monthly Inputs'!K56 -> 14232.612 | I160: =-'Monthly Inputs'!L56 -> 1815.1441 | J160: =-'Monthly Inputs'!M56 -> 32159.4133 | K160: =-'Monthly Inputs'!N56 -> 26334 | L160: =-'Monthly Inputs'!O56 -> 27211.7867 | M160: =-'Monthly Inputs'!P56 -> 27289.7247 | N160: =-'Monthly Inputs'!Q56 -> 28432.361 | O160: =-'Monthly Inputs'!R56 -> 26175.5382 | P160: =SUM(D160:O160) -> 203341.2794 | Q160: 156 | R160: 150
A161: Total Demand | D161: =SUM(D156:D160) -> 13425743.55 | E161: =SUM(E156:E160) -> 19513963.5 | F161: 21207521 | G161: 18107526.66 | H161: =SUM(H156:H160) -> 15096523.61 | I161: 9538479.144 | J161: 8092767.413 | K161: 5201237 | L161: 4741390.787 | M161: 4708494.725 | N161: 5246007.361 | O161: =SUM(O156:O160) -> 9549878.538 | P161: =SUM(D161:O161) -> 134429533.3 | Q161: 157 | R161: 151
Q162: 158 | R162: 152
D163: Forecast | E163: Forecast | F163: Forecast | G163: Forecast | H163: Forecast | I163: Forecast | J163: Forecast | K163: Forecast | L163: Forecast | M163: Forecast | N163: Forecast | O163: Forecast | P163: 12-Month | Q163: 159 | R163: 153
A164: Supply | D164: =D5 -> Nov22 | E164: Dec22 | F164: Jan23 | G164: Feb23 | H164: Mar23 | I164: Apr23 | J164: May23 | K164: Jun23 | L164: Jul23 | M164: Aug23 | N164: Sep23 | O164: Oct23 | P164: Total | Q164: 160 | R164: 154
A165: Company Production | D165: =+D121 -> 5551380.51 | E165: 5439453.01 | F165: 5242542.102 | G165: 4613958.227 | H165: 4966198.965 | I165: 4708715.175 | J165: 4760370.387 | K165: 4522115.055 | L165: 4672109.066 | M165: 4783943.173 | N165: 4565381.935 | O165: 4618184.342 | P165: =SUM(D165:O165) -> 58444351.95 | Q165: 161 | R165: 155
A166: Co Prod Lost & Unaccounted For | D166: =ROUND(D165*(-'Other Inputs'!$E$278-'Other Inputs'!$E$279),0) -> -280345 | E166: =ROUND(E165*(-'Other Inputs'!$E$278-'Other Inputs'!$E$279),0) -> -274692 | F166: =ROUND(F165*(-'Other Inputs'!$E$278-'Other Inputs'!$E$279),0) -> -264748 | G166: =ROUND(G165*(-'Other Inputs'!$E$278-'Other Inputs'!$E$279),0) -> -233005 | H166: =ROUND(H165*(-'Other Inputs'!$E$278-'Other Inputs'!$E$279),0) -> -250793 | I166: =ROUND(I165*(-'Other Inputs'!$E$278-'Other Inputs'!$E$279),0) -> -237790 | J166: =ROUND(J165*(-'Other Inputs'!$E$278-'Other Inputs'!$E$279),0) -> -240399 | K166: =ROUND(K165*(-'Other Inputs'!$E$278-'Other Inputs'!$E$279),0) -> -228367 | L166: =ROUND(L165*(-'Other Inputs'!$E$278-'Other Inputs'!$E$279),0) -> -235942 | M166: =ROUND(M165*(-'Other Inputs'!$E$278-'Other Inputs'!$E$279),0) -> -241589 | N166: =ROUND(N165*(-'Other Inputs'!$E$278-'Other Inputs'!$E$279),0) -> -230552 | O166: =ROUND(O165*(-'Other Inputs'!$E$278-'Other Inputs'!$E$279),0) -> -233218 | P166: =SUM(D166:O166) -> -2951440 | Q166: 162 | R166: 156
A167: Company Production @ City Gate | D167: =SUM(D165:D166) -> 5271035.51 | E167: =SUM(E165:E166) -> 5164761.01 | F167: 4977794.102 | G167: 4380953.227 | H167: 4715405.965 | I167: 4470925.175 | J167: 4519971.387 | K167: 4293748.055 | L167: 4436167.066 | M167: 4542354.173 | N167: 4334829.935 | O167: 4384966.342 | P167: =SUM(D167:O167) -> 55492911.95 | Q167: 163 | R167: 157
Q168: 164 | R168: 158
A169: Peaking Withdrawal | D169: =+D136 -> 0 | E169: 0 | F169: 1005044 | G169: 686125 | H169: 112125 | I169: 0 | J169: 0 | K169: 0 | L169: 0 | M169: 0 | N169: 0 | O169: 0 | P169: =SUM(D169:O169) -> 1803294 | Q169: 165 | R169: 159
A170: Clay Basin Withdrawal | D170: =+D137 -> 0 | E170: 3410050 | F170: 3410050 | G170: 3080045 | H170: 0 | I170: 0 | J170: 0 | K170: 0 | L170: 0 | M170: 0 | N170: 0 | O170: 0 | P170: =SUM(D170:O170) -> 9900145 | Q170: 166 | R170: 160
A171: LNG Withdrawal | D171: =+D143 -> 0 | E171: =+E143 -> 0 | F171: 0 | G171: 0 | H171: 184950 | I171: 0 | J171: 0 | K171: 0 | L171: 0 | M171: 0 | N171: 0 | O171: 0 | P171: =SUM(D171:O171) -> 184950 | Q171: 167
A172: MWP Transportation Loss on Storage | D172: ='Monthly Inputs'!G74+'Monthly Inputs'!G65 -> 0 | E172: ='Monthly Inputs'!H74+'Monthly Inputs'!H65 -> -43065.52145 | F172: ='Monthly Inputs'!I74+'Monthly Inputs'!I65 -> -68556.08405 | G172: ='Monthly Inputs'!J74+'Monthly Inputs'!J65 -> -56726.85081 | H172: ='Monthly Inputs'!K74+'Monthly Inputs'!K65 -> -3285.2625 | I172: ='Monthly Inputs'!L74+'Monthly Inputs'!L65 -> 0 | J172: ='Monthly Inputs'!M74+'Monthly Inputs'!M65 -> 0 | K172: ='Monthly Inputs'!N74+'Monthly Inputs'!N65 -> 0 | L172: ='Monthly Inputs'!O74+'Monthly Inputs'!O65 -> 0 | M172: ='Monthly Inputs'!P74+'Monthly Inputs'!P65 -> 0 | N172: ='Monthly Inputs'!Q74+'Monthly Inputs'!Q65 -> 0 | O172: ='Monthly Inputs'!R74+'Monthly Inputs'!R65 -> 0 | P172: =SUM(D172:O172) -> -171633.7188 | Q172: 168 | R172: 161
A173: Storage Lost & Unaccounted For | D173: ='Monthly Inputs'!G56 -> -11915.547 | E173: ='Monthly Inputs'!H56 -> -1592.4974 | F173: ='Monthly Inputs'!I56 -> 0 | G173: ='Monthly Inputs'!J56 -> -6182.655 | H173: ='Monthly Inputs'!K56 -> -14232.612 | I173: ='Monthly Inputs'!L56 -> -1815.1441 | J173: ='Monthly Inputs'!M56 -> -32159.4133 | K173: ='Monthly Inputs'!N56 -> -26334 | L173: ='Monthly Inputs'!O56 -> -27211.7867 | M173: ='Monthly Inputs'!P56 -> -27289.7247 | N173: ='Monthly Inputs'!Q56 -> -28432.361 | O173: ='Monthly Inputs'!R56 -> -26175.5382 | P173: =SUM(D173:O173) -> -203341.2794 | Q173: 169 | R173: 162
A174: Storage Supply @ City Gate | D174: =SUM(D169:D173) -> -11915.547 | E174: =SUM(E169:E173) -> 3365391.981 | F174: 4346537.916 | G174: 3703260.494 | H174: 279557.1255 | I174: -1815.1441 | J174: -32159.4133 | K174: -26334 | L174: -27211.7867 | M174: -27289.7247 | N174: -28432.361 | O174: -26175.5382 | P174: 11513414 | Q174: 170 | R174: 163
Q175: 171 | R175: 164
A176: Gas Purchased @ City Gate | D176: =D161-D167-D174-D160 -> 8154708.037 | E176: =E161-E167-E174-E160 -> 10982218.01 | F176: 11883188.98 | G176: 10017130.28 | H176: 10087327.91 | I176: 5067553.969 | J176: 3572796.026 | K176: 907488.9448 | L176: =L161-L167-L174-L160 -> 305223.7203 | M176: 166140.5515 | N176: 911177.4258 | O176: 5164912.197 | P176: =SUM(D176:O176) -> 67219866.05 | Q176: 172 | R176: 165
A177: Gas Reimbursement | D177: =+D178-D176 -> 86532.96266 | E177: =+E178-E176 -> 116536.9908 | F177: 126097.0179 | G177: 106295.7211 | H177: 107041.0902 | I177: 53774.03117 | J177: 37911.97374 | K177: 9630.055183 | L177: =+L178-L176 -> 3239.279667 | M177: 1763.448465 | N177: 9668.574228 | O177: 54806.80335 | P177: =SUM(D177:O177) -> 713297.9485 | Q177: 173 | R177: 166
A178: Gas Purchased - Dth ( /.98) | D178: =ROUND(D176/(1-'Other Inputs'!$E$279),0) -> 8241241 | E178: =ROUND(E176/(1-'Other Inputs'!$E$279),0) -> 11098755 | F178: =ROUND(F176/(1-'Other Inputs'!$E$279),0) -> 12009286 | G178: =ROUND(G176/(1-'Other Inputs'!$E$279),0) -> 10123426 | H178: =ROUND(H176/(1-'Other Inputs'!$E$279),0) -> 10194369 | I178: =ROUND(I176/(1-'Other Inputs'!$E$279),0) -> 5121328 | J178: =ROUND(J176/(1-'Other Inputs'!$E$279),0) -> 3610708 | K178: =ROUND(K176/(1-'Other Inputs'!$E$279),0) -> 917119 | L178: =ROUND(L176/(1-'Other Inputs'!$E$279),0) -> 308463 | M178: =ROUND(M176/(1-'Other Inputs'!$E$279),0) -> 167904 | N178: =ROUND(N176/(1-'Other Inputs'!$E$279),0) -> 920846 | O178: =ROUND(O176/(1-'Other Inputs'!$E$279),0) -> 5219719 | P178: =SUM(D178:O178) -> 67933164 | Q178: 174 | R178: 167
Q179: 175
Q180: 176
Q181: 177
Q182: 178 | R182: 168
A183: Transported Volumes - total | D183: =+D167+D176+D139+D172 -> 13425743.55 | E183: =+E167+E176+E139+E172 -> 19513963.5 | F183: =+F167+F176+F139+F172 -> 21207521 | G183: 18107526.66 | H183: =+H167+H176+H139+H172 -> 14911573.61 | I183: 9538479.144 | J183: 8092767.413 | K183: 5201237 | L183: 4741390.787 | M183: 4708494.725 | N183: 5246007.361 | O183: 9549878.538 | P183: =+P167+P176+P139+P172 -> 134244583.3 | Q183: 179 | R183: 169
A184: Kern transported volumes | D184: =HLOOKUP(MONTH(D5),kernrivertrans,6,FALSE) -> 2507442.581 | E184: 3710317.355 | F184: 3710317.355 | G184: 3351254.385 | H184: 2591024 | I184: 742012.4225 | J184: 766746.1699 | K184: 742012.4225 | L184: 766746.1699 | M184: 766746.1699 | N184: 742012.4225 | O184: 766746.1699 | Q184: 180 | R184: 170
A185: Storage Fuel % | C185: =(P160-P173)/(P169+P170+P158+P159) -> 0.01522537455 | Q185: 181 | R185: 171
Q186: 182 | R186: 172
A187: Company Production as % of Total Supply / Demand | D187: =D165/(D178+D165) -> 0.4024891501 | E187: 0.3289022007 | F187: =F165/(F178+F165) -> 0.3038832796 | G187: 0.3130785054 | H187: =H165/(H178+H165) -> 0.3275734113 | I187: 0.4790126647 | J187: 0.5686687147 | K187: 0.8313882082 | L187: 0.938066753 | M187: 0.9660926531 | N187: 0.8321531641 | O187: =O165/(O178+O165) -> 0.4694277003 | P187: =P165/(P178+P165) -> 0.4624584643 | Q187: 183 | R187: 173
Q188: 184 | R188: 174
A189: Peak Hour Service | D189: =IF(OR(D6=11,D6=12,D6=1,D6=2),'Other Inputs'!D$20*16*'Other Inputs'!$F$21,0)+IF(OR(D6=11,D6=12,D6=1,D6=2),'Other Inputs'!$D$23*16*'Other Inputs'!$F$24,0) -> 557534.7578 | E189: =IF(OR(E6=11,E6=12,E6=1,E6=2),'Other Inputs'!E$20*16*'Other Inputs'!$F$21,0)+IF(OR(E6=11,E6=12,E6=1,E6=2),'Other Inputs'!$D$23*16*'Other Inputs'!$F$24,0) -> 286650.1802 | F189: =IF(OR(F6=11,F6=12,F6=1,F6=2),'Other Inputs'!F$20*31*'Other Inputs'!$F$21,0)+IF(OR(F6=11,F6=12,F6=1,F6=2),'Other Inputs'!$D$23*31*'Other Inputs'!$F$24,0) -> 555659.6508 | G189: =IF(OR(G6=11,G6=12,G6=1,G6=2),'Other Inputs'!$D$20*16*'Other Inputs'!$F$21,0)+IF(OR(G6=11,G6=12,G6=1,G6=2),'Other Inputs'!$D$23*16*'Other Inputs'!$F$24,0) -> 557534.7578 | H189: =IF(OR(H6=11,H6=12,H6=1,H6=2),'Other Inputs'!$D$20*31*'Other Inputs'!$F$21,0)+IF(OR(H6=11,H6=12,H6=1,H6=2),'Other Inputs'!$D$23*31*'Other Inputs'!$F$24,0) -> 0 | I189: =IF(OR(I6=11,I6=12,I6=1,I6=2),'Other Inputs'!$D$20*31*'Other Inputs'!$F$21,0)+IF(OR(I6=11,I6=12,I6=1,I6=2),'Other Inputs'!$D$23*31*'Other Inputs'!$F$24,0) -> 0 | J189: =IF(OR(J6=11,J6=12,J6=1,J6=2),'Other Inputs'!$D$20*14*'Other Inputs'!$F$21,0)+IF(OR(J6=11,J6=12,J6=1,J6=2),'Other Inputs'!$D$23*14*'Other Inputs'!$F$24,0) -> 0 | K189: =IF(OR(K6=11,K6=12,K6=1,K6=2),'Other Inputs'!K$20*16*'Other Inputs'!$F$21,0)+IF(OR(K6=11,K6=12,K6=1,K6=2),'Other Inputs'!$D$23*16*'Other Inputs'!$F$24,0) -> 0 | L189: =IF(OR(L6=11,L6=12,L6=1,L6=2),'Other Inputs'!L$20*16*'Other Inputs'!$F$21,0)+IF(OR(L6=11,L6=12,L6=1,L6=2),'Other Inputs'!$D$23*16*'Other Inputs'!$F$24,0) -> 0 | M189: =IF(OR(M6=11,M6=12,M6=1,M6=2),'Other Inputs'!M$20*16*'Other Inputs'!$F$21,0)+IF(OR(M6=11,M6=12,M6=1,M6=2),'Other Inputs'!$D$23*16*'Other Inputs'!$F$24,0) -> 0 | N189: =IF(OR(N6=11,N6=12,N6=1,N6=2),'Other Inputs'!N$20*16*'Other Inputs'!$F$21,0)+IF(OR(N6=11,N6=12,N6=1,N6=2),'Other Inputs'!$D$23*16*'Other Inputs'!$F$24,0) -> 0 | O189: =IF(OR(O6=11,O6=12,O6=1,O6=2),'Other Inputs'!O$20*16*'Other Inputs'!$F$21,0)+IF(OR(O6=11,O6=12,O6=1,O6=2),'Other Inputs'!$D$23*16*'Other Inputs'!$F$24,0) -> 0 | P189: =SUM(D189:O189) -> 1957379.347 | Q189: 185 | R189: 175
Q190: 186 | R190: 176
A191: PURCHASES BREAKDOWN | Q191: 187 | R191: 177
A192: Spot Market Purchases | D192: ='Monthly Inputs'!G90 -> 6971241 | E192: ='Monthly Inputs'!H90 -> 619755 | F192: ='Monthly Inputs'!I90 -> 530286 | G192: ='Monthly Inputs'!J90 -> 1271426 | H192: ='Monthly Inputs'!K90 -> 8732721 | I192: ='Monthly Inputs'!L90 -> 4825150 | J192: ='Monthly Inputs'!M90 -> 3597915 | K192: ='Monthly Inputs'!N90 -> 917119 | L192: ='Monthly Inputs'!O90 -> 308463 | M192: ='Monthly Inputs'!P90 -> 167903.9 | N192: ='Monthly Inputs'!Q90 -> 920846 | O192: ='Monthly Inputs'!R90 -> 4894842 | P192: =SUM(D192:O192) -> 33757667.9 | Q192: 188 | R192: 178
A193: Spot Market Purchases Cost | D193: ='Monthly Inputs'!G91 -> 58279574.76 | E193: ='Monthly Inputs'!H91 -> 5924857.8 | F193: ='Monthly Inputs'!I91 -> 5281648.56 | G193: ='Monthly Inputs'!J91 -> 11391976.96 | H193: ='Monthly Inputs'!K91 -> 58945866.75 | I193: ='Monthly Inputs'!L91 -> 23450229 | J193: ='Monthly Inputs'!M91 -> 15686909.4 | K193: ='Monthly Inputs'!N91 -> 4062837.17 | L193: ='Monthly Inputs'!O91 -> 1443606.84 | M193: ='Monthly Inputs'!P91 -> 790827.369 | N193: ='Monthly Inputs'!Q91 -> 4042513.94 | O193: ='Monthly Inputs'!R91 -> 21047820.6 | P193: =SUM(D193:O193) -> 210348669.1 | Q193: 189 | R193: 179
Q194: 190 | R194: 180
A195: Contract Purchases (Dth) | D195: ='Monthly Inputs'!G99+'Monthly Inputs'!G103 -> 270000 | E195: ='Monthly Inputs'!H99+'Monthly Inputs'!H103 -> 6479000 | F195: ='Monthly Inputs'!I99+'Monthly Inputs'!I103 -> 6479000 | G195: ='Monthly Inputs'!J99+'Monthly Inputs'!J103 -> 5852000 | H195: ='Monthly Inputs'!K99+'Monthly Inputs'!K103 -> 279000 | I195: ='Monthly Inputs'!L99+'Monthly Inputs'!L103 -> 0 | J195: ='Monthly Inputs'!M99+'Monthly Inputs'!M103 -> 0 | K195: ='Monthly Inputs'!N99+'Monthly Inputs'!N103 -> 0 | L195: ='Monthly Inputs'!O99+'Monthly Inputs'!O103 -> 0 | M195: ='Monthly Inputs'!P99+'Monthly Inputs'!P103 -> 0 | N195: ='Monthly Inputs'!Q99+'Monthly Inputs'!Q103 -> 0 | O195: ='Monthly Inputs'!R99+'Monthly Inputs'!R103 -> 0 | P195: =SUM(D195:O195) -> 19359000 | Q195: 191 | R195: 181
A196: Contract Purchases Cost Including Stabalization Costs | D196: ='Monthly Inputs'!G100+'Monthly Inputs'!G101+'Monthly Inputs'!G104 -> 2321000.337 | E196: ='Monthly Inputs'!H100+'Monthly Inputs'!H101+'Monthly Inputs'!H104 -> 59270880.03 | F196: ='Monthly Inputs'!I100+'Monthly Inputs'!I101+'Monthly Inputs'!I104 -> 61596987.56 | G196: ='Monthly Inputs'!J100+'Monthly Inputs'!J101+'Monthly Inputs'!J104 -> 51107987.88 | H196: ='Monthly Inputs'!K100+'Monthly Inputs'!K101+'Monthly Inputs'!K104 -> 1935943.235 | I196: ='Monthly Inputs'!L100+'Monthly Inputs'!L101+'Monthly Inputs'!L104 -> 0 | J196: ='Monthly Inputs'!M100+'Monthly Inputs'!M101+'Monthly Inputs'!M104 -> 0 | K196: ='Monthly Inputs'!N100+'Monthly Inputs'!N101+'Monthly Inputs'!N104 -> 0 | L196: ='Monthly Inputs'!O100+'Monthly Inputs'!O101+'Monthly Inputs'!O104 -> 0 | M196: ='Monthly Inputs'!P100+'Monthly Inputs'!P101+'Monthly Inputs'!P104 -> 0 | N196: ='Monthly Inputs'!Q100+'Monthly Inputs'!Q101+'Monthly Inputs'!Q104 -> 0 | O196: ='Monthly Inputs'!R100+'Monthly Inputs'!R101+'Monthly Inputs'!R104 -> 0 | P196: =SUM(D196:O196) -> 176232799 | Q196: 192 | R196: 182
Q197: 193 | R197: 183
A198: Peak Purchases (Dth) | D198: ='Monthly Inputs'!G96 -> 1000000 | E198: ='Monthly Inputs'!H96 -> 4000000 | F198: ='Monthly Inputs'!I96 -> 5000000 | G198: ='Monthly Inputs'!J96 -> 3000000 | H198: ='Monthly Inputs'!K96 -> 0 | I198: ='Monthly Inputs'!L96 -> 0 | J198: ='Monthly Inputs'!M96 -> 0 | K198: ='Monthly Inputs'!N96 -> 0 | L198: ='Monthly Inputs'!O96 -> 0 | M198: ='Monthly Inputs'!P96 -> 0 | N198: ='Monthly Inputs'!Q96 -> 0 | O198: ='Monthly Inputs'!R96 -> 0 | P198: =SUM(D198:O198) -> 13000000 | Q198: 194 | R198: 184
A199: Peak Purchases Cost | D199: ='Monthly Inputs'!G97 -> 9208929.664 | E199: ='Monthly Inputs'!H97 -> 42095767.59 | F199: ='Monthly Inputs'!I97 -> 54811396.54 | G199: ='Monthly Inputs'!J97 -> 29599307.34 | H199: ='Monthly Inputs'!K97 -> 0 | I199: ='Monthly Inputs'!L97 -> 0 | J199: ='Monthly Inputs'!M97 -> 0 | K199: ='Monthly Inputs'!N97 -> 0 | L199: ='Monthly Inputs'!O97 -> 0 | M199: ='Monthly Inputs'!P97 -> 0 | N199: ='Monthly Inputs'!Q97 -> 0 | O199: ='Monthly Inputs'!R97 -> 0 | P199: =SUM(D199:O199) -> 135715401.1 | Q199: 195 | R199: 185
Q200: 196 | R200: 186
A201: Future Purchases | D201: =+D178-D192-D195-D198 -> 0 | E201: 0 | F201: 0 | G201: 0 | H201: 1182648 | I201: 296178 | J201: 12793 | K201: 1.164153218e-10 | L201: 0 | M201: 0.09999999998 | N201: 0 | O201: 324877 | P201: =SUM(D201:O201) -> 1816496.1 | Q201: 197 | R201: 187
... 65 more rows

Sheet CET & DSM (hidden)
A1: Rate Caclulation for the CET and DSM Amortizations
P3: Solver Cells
A4: CET Amortization % Calculation | P4: % Change | Q4: Difference
B5: Balance | C5: Date | D5: GS Dth | H5: Amortization per Dth | P5: =J20/D20 ->  | Q5: =J20-B11 ->  | S5: -> Difference should be at 0 (Use Goal Seek to Get Difference to Equal 0.
A6: DSM Balance | B6: ='Other Inputs'!#REF! ->  | C6: ='Other Inputs'!#REF! ->  | D6: =B20 ->  | H6: =ROUND(B6/D6,5) -> 
S8: Typical Bill Rates
A9: CET Amortization Calculation
B10: Balance | C10: Date | D10: DNG Rev | H10: New DNG | L10: % Change | S10: Current | T10: Proposed
A11: CET Balance | B11: ='Other Inputs'!#REF! ->  | C11: ='Other Inputs'!#REF! ->  | D11: =D20 ->  | H11: =D11+B11 ->  | L11: =P5 ->  | S11: Effective | V11: SNG & | W11: CET, DSM
S12: ='Other Inputs'!$J$100 -> 2022-10-01 | T12: CET Only | U12: DSM Only | V12: Commodity | W12: Commodity
S13: BSF | T13: BSF | U13: BSF | V13: BSF | W13: BSF
B14: Revenue Calculation | H14: CET Amortization | L14: Total DNG | P14: REVRUN Calculation | S14: ='Other Inputs'!$G$104 -> 6.75 | T14: ='Other Inputs'!$G$104 -> 6.75 | U14: ='Other Inputs'!$G$104 -> 6.75 | V14: ='Other Inputs'!$G$104 -> 6.75 | W14: ='Ut 1.6 Source'!$C$18 -> 6.75
A15: Utah GS | B15: Dth | C15: Base DNG | D15: DNG Revenue | H15: CET Rate | J15: Revenue | L15: DNG Rate | N15: Revenue | P15: CET Rate | Q15: CET Amort
A16: Block 1 Summer | B16: ='Other Inputs'!#REF! ->  | C16: ='Other Inputs'!E260 -> 1.94617 | D16: =B16*C16 ->  | H16: =ROUND((J16/B16),5) ->  | J16: =D16*$P$5 ->  | L16: =C16+H16 ->  | N16: =L16*B16 ->  | P16: =ROUND(H16,5) ->  | Q16: =B16*P16 ->  | S16: ='Other Inputs'!$G$100 -> 8.79253 | T16: =N24 ->  | U16: =N31 ->  | V16: =N38 ->  | W16: =N45 -> 
A17: Block 2 Summer | B17: ='Other Inputs'!#REF! ->  | C17: ='Other Inputs'!E261 -> 0.74377 | D17: =B17*C17 ->  | H17: =ROUND((J17/B17),5) ->  | J17: =D17*$P$5 ->  | L17: =C17+H17 ->  | N17: =L17*B17 ->  | P17: =ROUND(H17,5) ->  | Q17: =B17*P17 -> 
A18: Block 1 Winter | B18: ='Other Inputs'!#REF! ->  | C18: ='Other Inputs'!E262 -> 2.64801 | D18: =B18*C18 ->  | H18: =ROUND((J18/B18),5) ->  | J18: =D18*$P$5 ->  | L18: =C18+H18 ->  | N18: =L18*B18 ->  | P18: =ROUND(H18,5) ->  | Q18: =B18*P18 ->  | S18: ='Other Inputs'!$G$102 -> 10.09872 | T18: =N26 ->  | U18: =N33 ->  | V18: =N40 ->  | W18: =N47 -> 
A19: Block 2 Winter | B19: ='Other Inputs'!#REF! ->  | C19: ='Other Inputs'!E263 -> 1.44561 | D19: =B19*C19 ->  | H19: =ROUND((J19/B19),5) ->  | J19: =D19*$P$5 ->  | L19: =C19+H19 ->  | N19: =L19*B19 ->  | P19: =ROUND(H19,5) ->  | Q19: =B19*P19 -> 
A20: GS-1 Block Rev | B20: =SUM(B16:B19) ->  | D20: =SUM(D16:D19) ->  | J20: =B11 ->  | N20: =SUM(N16:N19) ->  | Q20: =SUM(Q16:Q19) -> 
A22: Total Rate Calculation With CET Amortization Only | N22: ='Control Panel'!F8 -> 2022-11-01 | P22: ='Other Inputs'!$J$100 -> 2022-10-01
A23: Utah GS | B23: Base DNG | C23: CET | D23: DSM | E23: Energy Assist | F23: Infrastructure | H23: Total DNG | I23: Base SNG | J23: SNG Amort | L23: Base Gas Cost | M23: 191 Amort | N23: Total Rate | P23: Total Rate
A24: Block 1 Summer | B24: =$C$16 -> 1.94617 | C24: =$H$16 ->  | D24: 0.44104 | E24: 0.01519 | F24: 0.02908 | H24: =SUM(B24:F24) ->  | I24: 0.55715 | J24: 0.01244 | L24: 4.21339 | M24: 0.14067 | N24: =SUM(H24:M24) ->  | P24: ='Other Inputs'!$G$100 -> 8.79253 | Q24: =N24-P24 -> 
A25: Block 2 Summer | B25: =$C$17 -> 0.74377 | C25: =$H$17 ->  | D25: =$D$24 -> 0.44104 | E25: =$E$24 -> 0.01519 | F25: 0.0108 | H25: =SUM(B25:F25) ->  | I25: =I24 -> 0.55715 | J25: =J24 -> 0.01244 | L25: =L24 -> 4.21339 | M25: =$M$24 -> 0.14067 | N25: =SUM(H25:M25) ->  | P25: ='Other Inputs'!$G$101 -> 7.49585 | Q25: =N25-P25 -> 
A26: Block 1 Winter | B26: =$C$18 -> 2.64801 | C26: =$H$18 ->  | D26: =$D$24 -> 0.44104 | E26: =$E$24 -> 0.01519 | F26: 0.03453 | H26: =SUM(B26:F26) ->  | I26: 1.18665 | J26: 0.02651 | L26: =L24 -> 4.21339 | M26: =$M$24 -> 0.14067 | N26: =SUM(H26:M26) ->  | P26: ='Other Inputs'!$G$102 -> 10.09872 | Q26: =N26-P26 -> 
A27: Block 2 Winter | B27: =$C$19 -> 1.44561 | C27: =$H$19 ->  | D27: =$D$24 -> 0.44104 | E27: =$E$24 -> 0.01519 | F27: 0.01434 | H27: =SUM(B27:F27) ->  | I27: =I26 -> 1.18665 | J27: =J26 -> 0.02651 | L27: =L24 -> 4.21339 | M27: =$M$24 -> 0.14067 | N27: =SUM(H27:M27) ->  | P27: ='Other Inputs'!$G$103 -> 8.80205 | Q27: =N27-P27 -> 
A29: Total Rate Calculation With DSM Amortization Only | N29: =N22 -> 2022-11-01 | P29: ='Other Inputs'!$J$100 -> 2022-10-01
A30: Utah GS | B30: Base DNG | C30: CET | D30: DSM | E30: Energy Assist | F30: Infrastructure | H30: Total DNG | I30: Base SNG | J30: SNG Amort | L30: Commodity | M30: 191 Amort | N30: Total Rate | P30: Total Rate
A31: Block 1 Summer | B31: =$C$16 -> 1.94617 | C31: -0.0599 | D31: =$H$6 ->  | E31: =$E$24 -> 0.01519 | F31: =F24 -> 0.02908 | H31: =SUM(B31:F31) ->  | I31: =$I$24 -> 0.55715 | J31: =J24 -> 0.01244 | L31: =$L$24 -> 4.21339 | M31: =$M$24 -> 0.14067 | N31: =SUM(H31:M31) ->  | P31: ='Other Inputs'!$G$100 -> 8.79253 | Q31: =N31-P31 -> 
A32: Block 2 Summer | B32: =$C$17 -> 0.74377 | C32: -0.02224 | D32: =$H$6 ->  | E32: =$E$24 -> 0.01519 | F32: =F25 -> 0.0108 | H32: =SUM(B32:F32) ->  | I32: =$I$24 -> 0.55715 | J32: =J25 -> 0.01244 | L32: =$L$24 -> 4.21339 | M32: =$M$24 -> 0.14067 | N32: =SUM(H32:M32) ->  | P32: ='Other Inputs'!$G$101 -> 7.49585 | Q32: =N32-P32 -> 
A33: Block 1 Winter | B33: =$C$18 -> 2.64801 | C33: -0.07112 | D33: =$H$6 ->  | E33: =$E$24 -> 0.01519 | F33: =F26 -> 0.03453 | H33: =SUM(B33:F33) ->  | I33: =$I$26 -> 1.18665 | J33: =J26 -> 0.02651 | L33: =$L$24 -> 4.21339 | M33: =$M$24 -> 0.14067 | N33: =SUM(H33:M33) ->  | P33: ='Other Inputs'!$G$102 -> 10.09872 | Q33: =N33-P33 -> 
A34: Block 2 Winter | B34: =$C$19 -> 1.44561 | C34: -0.02953 | D34: =$H$6 ->  | E34: =$E$24 -> 0.01519 | F34: =F27 -> 0.01434 | H34: =SUM(B34:F34) ->  | I34: =$I$26 -> 1.18665 | J34: =J27 -> 0.02651 | L34: =$L$24 -> 4.21339 | M34: =$M$24 -> 0.14067 | N34: =SUM(H34:M34) ->  | P34: ='Other Inputs'!$G$103 -> 8.80205 | Q34: =N34-P34 -> 
A36: Total Rate Calculation With SNG and Commodity Changes Only | N36: =N22 -> 2022-11-01 | P36: ='Other Inputs'!$J$100 -> 2022-10-01
A37: Utah GS | B37: Base DNG | C37: CET | D37: DSM | E37: Energy Assist | F37: Infrastructure | H37: Total DNG | I37: Base SNG | J37: SNG | L37: Commodity | M37: 191 Amort | N37: Total Rate | P37: Total Rate
A38: Block 1 Summer | B38: =$C$16 -> 1.94617 | C38: =C31 -> -0.0599 | D38: =D24 -> 0.44104 | E38: =$E$24 -> 0.01519 | F38: =F24 -> 0.02908 | H38: =SUM(B38:F38) -> 2.37158 | I38: =#REF! ->  | J38: =#REF! ->  | L38: ='Ut 1.5 p1'!$F$30 -> 6.58934 | M38: ='Ut 1.5 p1'!$F$31 -> 0.53231 | N38: =SUM(H38:M38) ->  | P38: ='Other Inputs'!$G$100 -> 8.79253 | Q38: =N38-P38 -> 
A39: Block 2 Summer | B39: =$C$17 -> 0.74377 | C39: =C32 -> -0.02224 | D39: =D25 -> 0.44104 | E39: =$E$24 -> 0.01519 | F39: =F25 -> 0.0108 | H39: =SUM(B39:F39) -> 1.18856 | I39: =#REF! ->  | J39: =#REF! ->  | L39: ='Ut 1.5 p1'!$F$30 -> 6.58934 | M39: ='Ut 1.5 p1'!$F$31 -> 0.53231 | N39: =SUM(H39:M39) ->  | P39: ='Other Inputs'!$G$101 -> 7.49585 | Q39: =N39-P39 -> 
A40: Block 1 Winter | B40: =$C$18 -> 2.64801 | C40: =C33 -> -0.07112 | D40: =D26 -> 0.44104 | E40: =$E$24 -> 0.01519 | F40: =F26 -> 0.03453 | H40: =SUM(B40:F40) -> 3.06765 | I40: =#REF! ->  | J40: =#REF! ->  | L40: ='Ut 1.5 p1'!$F$30 -> 6.58934 | M40: ='Ut 1.5 p1'!$F$31 -> 0.53231 | N40: =SUM(H40:M40) ->  | P40: ='Other Inputs'!$G$102 -> 10.09872 | Q40: =N40-P40 -> 
A41: Block 2 Winter | B41: =$C$19 -> 1.44561 | C41: =C34 -> -0.02953 | D41: =D27 -> 0.44104 | E41: =$E$24 -> 0.01519 | F41: =F27 -> 0.01434 | H41: =SUM(B41:F41) -> 1.88665 | I41: =#REF! ->  | J41: =#REF! ->  | L41: ='Ut 1.5 p1'!$F$30 -> 6.58934 | M41: ='Ut 1.5 p1'!$F$31 -> 0.53231 | N41: =SUM(H41:M41) ->  | P41: ='Other Inputs'!$G$103 -> 8.80205 | Q41: =N41-P41 -> 
A43: Total Rate Calculation | N43: =N29 -> 2022-11-01 | P43: ='Other Inputs'!$J$100 -> 2022-10-01
A44: Utah GS | B44: Base DNG | C44: CET | D44: DSM | E44: Energy Assist | F44: Infrastructure | H44: Total DNG | I44: Base SNG | J44: SNG | L44: Commodity | N44: Total Rate | P44: Total Rate
A45: Block 1 Summer | B45: =$C$16 -> 1.94617 | C45: =$H$16 ->  | D45: =$H$6 ->  | E45: =$E$24 -> 0.01519 | F45: =F38 -> 0.02908 | H45: =SUM(B45:F45) ->  | I45: =I38 ->  | J45: =#REF! ->  | L45: ='Ut 1.5 p1'!$F$32 -> 7.12165 | N45: =SUM(H45:L45) ->  | P45: ='Other Inputs'!$G$100 -> 8.79253 | Q45: =N45-P45 -> 
A46: Block 2 Summer | B46: =$C$17 -> 0.74377 | C46: =$H$17 ->  | D46: =$H$6 ->  | E46: =$E$24 -> 0.01519 | F46: =F39 -> 0.0108 | H46: =SUM(B46:F46) ->  | I46: =I39 ->  | J46: =#REF! ->  | L46: =$L$45 -> 7.12165 | N46: =SUM(H46:L46) ->  | P46: ='Other Inputs'!$G$101 -> 7.49585 | Q46: =N46-P46 -> 
A47: Block 1 Winter | B47: =$C$18 -> 2.64801 | C47: =$H$18 ->  | D47: =$H$6 ->  | E47: =$E$24 -> 0.01519 | F47: =F40 -> 0.03453 | H47: =SUM(B47:F47) ->  | I47: =I40 ->  | J47: =#REF! ->  | L47: =$L$45 -> 7.12165 | N47: =SUM(H47:L47) ->  | P47: ='Other Inputs'!$G$102 -> 10.09872 | Q47: =N47-P47 -> 
A48: Block 2 Winter | B48: =$C$19 -> 1.44561 | C48: =$H$19 ->  | D48: =$H$6 ->  | E48: =$E$24 -> 0.01519 | F48: =F41 -> 0.01434 | H48: =SUM(B48:F48) ->  | I48: =I41 ->  | J48: =#REF! ->  | L48: =$L$45 -> 7.12165 | N48: =SUM(H48:L48) ->  | P48: ='Other Inputs'!$G$103 -> 8.80205 | Q48: =N48-P48 -> 
A50: Typical Customer Difference - CET Amortization Only
B51: Typical
A52: GS | B52: Dth | C52: =S12 -> 2022-10-01 | D52: =N43 -> 2022-11-01 | H52: Change | J52: % Change
A53: January | B53: 14.9 | C53: =ROUND($S$14+(B53*$S$18),2) -> 157.22 | D53: =ROUND($T$14+(B53*$T$18),2) ->  | H53: =D53-C53 -> 
A54: February | B54: 12.5 | C54: =ROUND($S$14+(B54*$S$18),2) -> 132.98 | D54: =ROUND($T$14+(B54*$T$18),2) -> 
A55: March | B55: 10.1 | C55: =ROUND($S$14+(B55*$S$18),2) -> 108.75 | D55: =ROUND($T$14+(B55*$T$18),2) -> 
A56: April | B56: 8.3 | C56: =ROUND($S$14+(B56*$S$16),2) -> 79.73 | D56: =ROUND($T$14+(B56*$T$16),2) -> 
A57: May | B57: 4.4 | C57: 45.44 | D57: =ROUND($T$14+(B57*$T$16),2) -> 
A58: June | B58: 3.1 | C58: 34.01
A59: July | B59: 2 | C59: 24.34
A60: August | B60: 1.8 | C60: 22.58
A61: September | B61: 2 | C61: 24.34
A62: October | B62: 3.1 | C62: 34.01
A63: November | B63: 6.3 | C63: =ROUND($S$14+(B63*$S$18),2) -> 70.37 | D63: =ROUND($T$14+(B63*$T$18),2) -> 
A64: December | B64: 11.5 | C64: =ROUND($S$14+(B64*$S$18),2) -> 122.89 | D64: =ROUND($T$14+(B64*$T$18),2) -> 
B65: =SUM(B53:B64) -> 80 | C65: =SUM(C53:C64) -> 856.66 | D65: =SUM(D53:D64) ->  | H65: =SUM(H53:H64) ->  | J65: =H65/C65 -> 
A68: Typical Customer Difference - DSM Amortization Only
B69: Typical
A70: GS | B70: Dth | C70: =C52 -> 2022-10-01 | D70: =D52 -> 2022-11-01 | H70: Change | J70: % Change
A71: January | B71: 14.9 | C71: =ROUND($S$14+(B71*$S$18),2) -> 157.22 | D71: =ROUND($U$14+(B71*$U$18),2) ->  | H71: =D71-C71 -> 
A72: February | B72: 12.5 | C72: =ROUND($S$14+(B72*$S$18),2) -> 132.98 | D72: =ROUND($U$14+(B72*$U$18),2) -> 
A73: March | B73: 10.1 | C73: =ROUND($S$14+(B73*$S$18),2) -> 108.75 | D73: =ROUND($U$14+(B73*$U$18),2) -> 
A74: April | B74: 8.3 | C74: =ROUND($S$14+(B74*$S$16),2) -> 79.73 | D74: =ROUND($U$14+(B74*$U$16),2) -> 
A75: May | B75: 4.4 | C75: 45.44
A76: June | B76: 3.1 | C76: 34.01
A77: July | B77: 2 | C77: 24.34
A78: August | B78: 1.8 | C78: 22.58
A79: September | B79: 2 | C79: 24.34
A80: October | B80: 3.1 | C80: 34.01
A81: November | B81: 6.3 | C81: =ROUND($S$14+(B81*$S$18),2) -> 70.37 | D81: =ROUND($U$14+(B81*$U$18),2) -> 
A82: December | B82: 11.5 | C82: =ROUND($S$14+(B82*$S$18),2) -> 122.89 | D82: =ROUND($U$14+(B82*$U$18),2) -> 
B83: =SUM(B71:B82) -> 80 | C83: =SUM(C71:C82) -> 856.66 | D83: =SUM(D71:D82) ->  | H83: =SUM(H71:H82) ->  | J83: =H83/C83 -> 
A86: Typical Customer Difference - SNG and Commodity Changes Only
B87: Typical
A88: GS-1 | B88: Dth | C88: =C70 -> 2022-10-01 | D88: =D70 -> 2022-11-01 | H88: Change | J88: % Change
A89: January | B89: 14.9 | C89: =ROUND($S$14+(B89*$S$18),2) -> 157.22 | D89: =ROUND($V$14+(B89*$V$18),2) ->  | H89: =D89-C89 -> 
A90: February | B90: 12.5 | C90: =ROUND($S$14+(B90*$S$18),2) -> 132.98 | D90: =ROUND($V$14+(B90*$V$18),2) -> 
A91: March | B91: 10.1 | C91: =ROUND($S$14+(B91*$S$18),2) -> 108.75 | D91: =ROUND($V$14+(B91*$V$18),2) -> 
A92: April | B92: 8.3 | C92: =ROUND($S$14+(B92*$S$16),2) -> 79.73 | D92: =ROUND($V$14+(B92*$V$16),2) -> 
A93: May | B93: 4.4 | C93: 45.44
A94: June | B94: 3.1 | C94: 34.01
A95: July | B95: 2 | C95: 24.34
A96: August | B96: 1.8 | C96: 22.58
A97: September | B97: 2 | C97: 24.34
A98: October | B98: 3.1 | C98: 34.01
A99: November | B99: 6.3 | C99: =ROUND($S$14+(B99*$S$18),2) -> 70.37 | D99: =ROUND($V$14+(B99*$V$18),2) -> 
A100: December | B100: 11.5 | C100: =ROUND($S$14+(B100*$S$18),2) -> 122.89 | D100: =ROUND($V$14+(B100*$V$18),2) -> 
B101: =SUM(B89:B100) -> 80 | C101: =SUM(C89:C100) -> 856.66 | D101: =SUM(D89:D100) ->  | H101: =SUM(H89:H100) ->  | J101: =H101/C101 -> 
A104: Typical Customer Difference - CET & DSM Amort, SNG and Commodity Changes
B105: Typical
A106: GS-1 | B106: Dth | C106: =C52 -> 2022-10-01 | D106: =D52 -> 2022-11-01 | H106: Change | J106: % Change
A107: January | B107: 14.9 | C107: =ROUND($S$14+(B107*$S$18),2) -> 157.22 | D107: =ROUND($W$14+(B107*$W$18),2) ->  | H107: =D107-C107 -> 
A108: February | B108: 12.5 | C108: =ROUND($S$14+(B108*$S$18),2) -> 132.98 | D108: =ROUND($W$14+(B108*$W$18),2) -> 
A109: March | B109: 10.1 | C109: =ROUND($S$14+(B109*$S$18),2) -> 108.75 | D109: =ROUND($W$14+(B109*$W$18),2) -> 
A110: April | B110: 8.3 | C110: =ROUND($S$14+(B110*$S$16),2) -> 79.73 | D110: =ROUND($W$14+(B110*$W$16),2) -> 
A111: May | B111: 4.4 | C111: 45.44
A112: June | B112: 3.1 | C112: 34.01
A113: July | B113: 2 | C113: 24.34
A114: August | B114: 1.8 | C114: 22.58
A115: September | B115: 2 | C115: 24.34
A116: October | B116: 3.1 | C116: 34.01
A117: November | B117: 6.3 | C117: =ROUND($S$14+(B117*$S$18),2) -> 70.37 | D117: =ROUND($W$14+(B117*$W$18),2) -> 
A118: December | B118: 11.5 | C118: =ROUND($S$14+(B118*$S$18),2) -> 122.89 | D118: =ROUND($W$14+(B118*$W$18),2) -> 
B119: =SUM(B107:B118) -> 80 | C119: =SUM(C107:C118) -> 856.66 | D119: =SUM(D107:D118) ->  | H119: =SUM(H107:H118) ->  | J119: =H119/C119 -> 

Sheet UT Tariff Sheets PT (hidden)
B2: 2.02 GS Rate Schedule | J2: 2.03 FS Rate Schedule | AB2: 4.03 ES Rate Schedule | AI2: 2.05 NGV Rate Schedule
C3: Rates Per Dth Used Each Month | M3: Rates Per Dth Used Each Month | T3: 4.02 IS Rate Schedule | AB3: ES Volumetric Rates | AI3: NGV Volumetric Rate
C4: Summer Rates: Apr. 1 - Oct. 31 | E4: Winter Rates: Nov. 1 - Mar. 31 | M4: Dth = decatherm = 10 therms = 1,000,000 BTU | T4: IS Volumetric Rates
C5: First 45 Dth | D5: All Over 45 Dth | E5: First 45 Dth | F5: All Over 45 Dth | K5: Summer Rates: Apr. 1 - Oct. 31 | N5: Winter Rates: Nov. 1 - Mar. 31 | U5: Rates Per Dth Used Each Month | AE5: Rates Per Dth Used Each Month | AM5: Rates Per Dth Used Each Month
B6: Base DNG | C6: ='CET & DSM'!B38 -> 1.94617 | D6: ='CET & DSM'!B39 -> 0.74377 | E6: ='CET & DSM'!B40 -> 2.64801 | F6: ='CET & DSM'!B41 -> 1.44561 | K6: First | L6: Next | M6: All Over | N6: First | O6: Next | P6: All Over | U6: Dth = decatherm = 10 therms = 1,000,000 BTU | AE6: Dth = decatherm = 10 therms = 1,000,000 BTU | AM6: Dth = decatherm = 10 therms = 1,000,000 BTU
B7: CET Amortization | C7: ='CET & DSM'!C38 -> -0.0599 | D7: ='CET & DSM'!C39 -> -0.02224 | E7: ='CET & DSM'!C40 -> -0.07112 | F7: ='CET & DSM'!C41 -> -0.02953 | K7: 200 | L7: 1800 | M7: 2000 | N7: 200 | O7: 1800 | P7: 2000 | U7: First | V7: Next | W7: All Over | AB7: Distribution Non-Gas Rate | AC7: ='Ut 1.6 Source'!#REF! ->  | AI7: Base DNG | AK7: ='Ut 1.6 Source'!C62 -> 8.11914
B8: DSM Amortization | C8: =ROUND('CET & DSM'!D38,5) -> 0.44104 | D8: =ROUND('CET & DSM'!D39,5) -> 0.44104 | E8: =ROUND('CET & DSM'!D40,5) -> 0.44104 | F8: =ROUND('CET & DSM'!D41,5) -> 0.44104 | J8: Base DNG | K8: ='Ut 1.6 Source'!C25 -> 1.03811 | L8: ='Ut 1.6 Source'!D25 -> 0.54067 | M8: ='Ut 1.6 Source'!E25 -> 0.01703 | N8: ='Ut 1.6 Source'!F25 -> 1.56992 | O8: ='Ut 1.6 Source'!G25 -> 1.07247 | P8: ='Ut 1.6 Source'!H25 -> 0.54883 | U8: 2000 | V8: 18000 | W8: 20000 | AI8: Energy Assistance | AK8: ='Other Inputs'!#REF! -> 
B9: Energy Assistance | C9: ='Other Inputs'!#REF! ->  | D9: ='Other Inputs'!#REF! ->  | E9: ='Other Inputs'!#REF! ->  | F9: ='Other Inputs'!#REF! ->  | J9: Energy Assistance | K9: ='Other Inputs'!#REF! ->  | L9: ='Other Inputs'!#REF! ->  | M9: ='Other Inputs'!#REF! ->  | N9: ='Other Inputs'!#REF! ->  | O9: ='Other Inputs'!#REF! ->  | P9: ='Other Inputs'!#REF! ->  | T9: Base DNG | U9: ='Ut 1.6 Source'!C74 -> 0.91912 | V9: ='Ut 1.6 Source'!D74 -> 0.13879 | W9: ='Ut 1.6 Source'!E74 -> 0.08169 | AB9: Base SNG | AC9: =ROUND(#REF!,5) ->  | AI9: Distribution Non-Gas Rate | AK9: =SUM(AK7:AM8) -> 
B10: Distribution Non-Gas Rate | C10: =SUM(C6:C9) ->  | D10: =SUM(D6:D9) ->  | E10: =SUM(E6:E9) ->  | F10: =SUM(F6:F9) ->  | J10: Distribution Non-Gas Rate | K10: =SUM(K8:K9) ->  | T10: Energy Assistance | U10: ='Other Inputs'!#REF! ->  | V10: ='Other Inputs'!#REF! ->  | W10: ='Other Inputs'!#REF! ->  | AB10: SNG Amortization | AC10: =ROUND(#REF!,5) -> 
T11: Distribution Non-Gas Rate | U11: =SUM(U9:U10) ->  | V11: =SUM(V9:V10) ->  | W11: =SUM(W9:W10) ->  | AB11: Supplier Non-Gas Rate | AC11: =SUM(AC9:AF10) ->  | AI11: Base SNG | AK11: =ROUND(#REF!,5) -> 
B12: Base SNG | C12: ='CET & DSM'!I38 ->  | D12: ='CET & DSM'!I39 ->  | E12: ='CET & DSM'!I40 ->  | F12: ='CET & DSM'!I41 ->  | J12: Base SNG | K12: =ROUND(#REF!,5) ->  | L12: =ROUND(#REF!,5) ->  | M12: =ROUND(#REF!,5) ->  | N12: =ROUND(#REF!,5) ->  | O12: =ROUND(#REF!,5) ->  | P12: =ROUND(#REF!,5) ->  | T12: Supplier Non-Gas Rate | U12: =ROUND(#REF!/(1-'Other Inputs'!$E$287),5) ->  | V12: =ROUND(#REF!/(1-'Other Inputs'!$E$287),5) ->  | W12: =ROUND(#REF!/(1-'Other Inputs'!$E$287),5) ->  | AI12: SNG Amortization | AK12: =ROUND(#REF!,5) -> 
B13: SNG Amortization | C13: ='CET & DSM'!J38 ->  | D13: ='CET & DSM'!J39 ->  | E13: ='CET & DSM'!J40 ->  | F13: ='CET & DSM'!J41 ->  | J13: SNG Amortization | K13: =ROUND(#REF!,5) ->  | L13: =ROUND(#REF!,5) ->  | M13: =ROUND(#REF!,5) ->  | N13: =ROUND(#REF!,5) ->  | O13: =ROUND(#REF!,5) ->  | P13: =ROUND(#REF!,5) ->  | AB13: Commodity Rate | AC13: Highest Gas Cost | AI13: Supplier Non-Gas Rate | AK13: =SUM(AK11:AM12) -> 
B14: Supplier Non-Gas Rate | C14: =SUM(C12:C13) ->  | D14: =SUM(D12:D13) ->  | E14: =SUM(E12:E13) ->  | F14: =SUM(F12:F13) ->  | J14: Supplier Non-Gas Rate | K14: =SUM(K12:K13) ->  | AB14: Total Rate | AC14: $
AI15: Base Gas Cost | AK15: =ROUND('Ut 1.5 p1'!$F$30,5) -> 6.58934
B16: Base Gas Cost | C16: ='Ut 1.5 p1'!$F$30 -> 6.58934 | D16: ='Ut 1.5 p1'!$F$30 -> 6.58934 | E16: ='Ut 1.5 p1'!$F$30 -> 6.58934 | F16: ='Ut 1.5 p1'!$F$30 -> 6.58934 | J16: Base Gas Cost | K16: =ROUND('Ut 1.5 p1'!$F$30,5) -> 6.58934 | L16: =ROUND('Ut 1.5 p1'!$F$30,5) -> 6.58934 | M16: =ROUND('Ut 1.5 p1'!$F$30,5) -> 6.58934 | N16: =ROUND('Ut 1.5 p1'!$F$30,5) -> 6.58934 | O16: =ROUND('Ut 1.5 p1'!$F$30,5) -> 6.58934 | P16: =ROUND('Ut 1.5 p1'!$F$30,5) -> 6.58934 | AB16: Penalty for failure to interrupt or limit usage when requested by the Company. See See § 3.02 | AI16: Commodity Amortization | AK16: =ROUND('Ut 1.5 p1'!$F$31,5) -> 0.53231
B17: 191 Amortization | C17: ='Ut 1.5 p1'!$F$31 -> 0.53231 | D17: ='Ut 1.5 p1'!$F$31 -> 0.53231 | E17: ='Ut 1.5 p1'!$F$31 -> 0.53231 | F17: ='Ut 1.5 p1'!$F$31 -> 0.53231 | J17: 191 Amortization | K17: =ROUND('Ut 1.5 p1'!$F$31,5) -> 0.53231 | L17: =ROUND('Ut 1.5 p1'!$F$31,5) -> 0.53231 | M17: =ROUND('Ut 1.5 p1'!$F$31,5) -> 0.53231 | N17: =ROUND('Ut 1.5 p1'!$F$31,5) -> 0.53231 | O17: =ROUND('Ut 1.5 p1'!$F$31,5) -> 0.53231 | P17: =ROUND('Ut 1.5 p1'!$F$31,5) -> 0.53231 | AI17: Commodity Rate | AK17: =SUM(AK15:AM16) -> 7.12165
B18: Commodity Rate | C18: =SUM(C16:C17) -> 7.12165 | D18: =SUM(D16:D17) -> 7.12165 | E18: =SUM(E16:E17) -> 7.12165 | F18: =SUM(F16:F17) -> 7.12165 | J18: Commodity Rate | K18: =SUM(K16:K17) -> 7.12165 | L18: 7.12165 | M18: 7.12165 | N18: 7.12165 | O18: 7.12165 | P18: 7.12165 | T18: Total Rate | U18: $ | V18: $ | W18: $
AI19: Total Rate | AK19: =SUM(AK9,AK13,AK17) -> 
B20: Total Rate | C20: =SUM(C18,C14,C10) ->  | D20: =SUM(D18,D14,D10) ->  | E20: =SUM(E18,E14,E10) ->  | F20: =SUM(F18,F14,F10) ->  | J20: Total Rate | K20: =SUM(K18,K14,K10) ->  | T20: Minimum Monthly Distribution Non-Gas Charge
AI21: Penalty for failure to interrupt or limit usage when requested by the Company. See See § 3.02
E22: BSF Category 1 | F22: ='Ut 1.6 Source'!C18 -> 6.75 | J22: Minimum Monthly Distribution Non-Gas Charge | O22: Summer | P22: =ROUND(K8*175,0) -> 182
E23: BSF Category 2 | F23: ='Ut 1.6 Source'!C19 -> 18.25 | O23: Winter | P23: =ROUND(N8*175,0) -> 275
E24: BSF Category 3 | F24: ='Ut 1.6 Source'!C20 -> 63.5 | V24: BSF Category 1 | W24: 5
E25: BSF Category 4 | F25: ='Ut 1.6 Source'!C21 -> 420.25 | V25: BSF Category 2 | W25: 29
N26: BSF Category 1 | P26: 5 | V26: BSF Category 3 | W26: 67
N27: BSF Category 2 | P27: 21 | V27: BSF Category 4 | W27: 274
N28: BSF Category 3 | P28: 55
N29: BSF Category 4 | P29: 244
AI30: =B44 -> Issued by R. W. Jibson, President | AL30: Advice No | AM30: Section Revision No.
AB39: =B44 -> Issued by R. W. Jibson, President | AE39: Advice No | AF39: Section Revision No.
AB42: New Pass Through Values
B44: Issued by R. W. Jibson, President | D44: Advice No | E44: Section Revision No. | F44: Effective Date
T47: =B44 -> Issued by R. W. Jibson, President | W47: Advice No
B48: Pass Through Changes | J48: =B44 -> Issued by R. W. Jibson, President | M48: Advice No | N48: Section Revision No. | P48: Effective Date
T50: New Pass Through Values
J51: New Pass Through Values

Sheet UT Tariff Sheets (hidden)
B2: 2.02 GS Rate Schedule | I2: 2.02 GS Rate Schedule
C3: Rates Per Dth Used Each Month | J3: Rates Per Dth Used Each Month
C4: Summer Rates: Apr. 1 - Oct. 31 | E4: Winter Rates: Nov. 1 - Mar. 31 | J4: Summer Rates: Apr. 1 - Oct. 31 | L4: Winter Rates: Nov. 1 - Mar. 31
C5: First 45 Dth | D5: All Over 45 Dth | E5: First 45 Dth | F5: All Over 45 Dth | J5: First 45 Dth | K5: All Over 45 Dth | L5: First 45 Dth | M5: All Over 45 Dth
B6: Base DNG | C6: ='CET & DSM'!B24 -> 1.94617 | D6: ='CET & DSM'!B25 -> 0.74377 | E6: ='CET & DSM'!B26 -> 2.64801 | F6: ='CET & DSM'!B27 -> 1.44561 | I6: Base DNG | J6: ='CET & DSM'!B31 -> 1.94617 | K6: ='CET & DSM'!B32 -> 0.74377 | L6: ='CET & DSM'!B33 -> 2.64801 | M6: ='CET & DSM'!B34 -> 1.44561
B7: CET Amortization | C7: ='CET & DSM'!H16 ->  | D7: ='CET & DSM'!H17 ->  | E7: ='CET & DSM'!H18 ->  | F7: ='CET & DSM'!H19 ->  | I7: CET Amortization | J7: ='CET & DSM'!C31 -> -0.0599 | K7: ='CET & DSM'!C32 -> -0.02224 | L7: ='CET & DSM'!C33 -> -0.07112 | M7: ='CET & DSM'!C34 -> -0.02953
B8: DSM Amortization | C8: ='CET & DSM'!D24 -> 0.44104 | D8: ='CET & DSM'!D25 -> 0.44104 | E8: ='CET & DSM'!D26 -> 0.44104 | F8: ='CET & DSM'!D27 -> 0.44104 | I8: DSM Amortization | J8: =ROUND('CET & DSM'!D31,5) ->  | K8: =ROUND('CET & DSM'!D32,5) ->  | L8: =ROUND('CET & DSM'!D33,5) ->  | M8: =ROUND('CET & DSM'!D34,5) -> 
B9: Energy Assistance | C9: ='Other Inputs'!#REF! ->  | D9: ='Other Inputs'!#REF! ->  | E9: ='Other Inputs'!#REF! ->  | F9: ='Other Inputs'!#REF! ->  | I9: Energy Assistance | J9: ='Other Inputs'!#REF! ->  | K9: ='Other Inputs'!#REF! ->  | L9: ='Other Inputs'!#REF! ->  | M9: ='Other Inputs'!#REF! -> 
B10: Distribution Non-Gas Rate | C10: =SUM(C6:C9) ->  | D10: =SUM(D6:D9) ->  | E10: =SUM(E6:E9) ->  | F10: =SUM(F6:F9) ->  | I10: Distribution Non-Gas Rate | J10: =SUM(J6:J9) ->  | K10: =SUM(K6:K9) ->  | L10: =SUM(L6:L9) ->  | M10: =SUM(M6:M9) -> 
B12: Base SNG | C12: ='CET & DSM'!I24 -> 0.55715 | D12: ='CET & DSM'!I25 -> 0.55715 | E12: ='CET & DSM'!I26 -> 1.18665 | F12: ='CET & DSM'!I27 -> 1.18665 | I12: Base SNG | J12: ='CET & DSM'!I31 -> 0.55715 | K12: ='CET & DSM'!I32 -> 0.55715 | L12: ='CET & DSM'!I33 -> 1.18665 | M12: ='CET & DSM'!I34 -> 1.18665
B13: SNG Amortization | C13: ='CET & DSM'!J24 -> 0.01244 | D13: ='CET & DSM'!J25 -> 0.01244 | E13: ='CET & DSM'!J26 -> 0.02651 | F13: ='CET & DSM'!J27 -> 0.02651 | I13: SNG Amortization | J13: ='CET & DSM'!J31 -> 0.01244 | K13: ='CET & DSM'!J32 -> 0.01244 | L13: ='CET & DSM'!J33 -> 0.02651 | M13: ='CET & DSM'!J34 -> 0.02651
B14: Supplier Non-Gas Rate | C14: =SUM(C12:C13) -> 0.56959 | D14: =SUM(D12:D13) -> 0.56959 | E14: =SUM(E12:E13) -> 1.21316 | F14: =SUM(F12:F13) -> 1.21316 | I14: Supplier Non-Gas Rate | J14: =SUM(J12:J13) -> 0.56959 | K14: =SUM(K12:K13) -> 0.56959 | L14: =SUM(L12:L13) -> 1.21316 | M14: =SUM(M12:M13) -> 1.21316
B16: Base Gas Cost | C16: ='CET & DSM'!L24 -> 4.21339 | D16: ='CET & DSM'!L25 -> 4.21339 | E16: ='CET & DSM'!L26 -> 4.21339 | F16: ='CET & DSM'!L27 -> 4.21339 | I16: Base Gas Cost | J16: ='CET & DSM'!L31 -> 4.21339 | K16: ='CET & DSM'!L32 -> 4.21339 | L16: ='CET & DSM'!L33 -> 4.21339 | M16: ='CET & DSM'!L34 -> 4.21339
B17: 191 Amortization | C17: ='CET & DSM'!M24 -> 0.14067 | D17: ='CET & DSM'!M25 -> 0.14067 | E17: ='CET & DSM'!M26 -> 0.14067 | F17: ='CET & DSM'!M27 -> 0.14067 | I17: 191 Amortization | J17: ='CET & DSM'!M31 -> 0.14067 | K17: ='CET & DSM'!M32 -> 0.14067 | L17: ='CET & DSM'!M33 -> 0.14067 | M17: ='CET & DSM'!M34 -> 0.14067
B18: Commodity Rate | C18: =SUM(C16:C17) -> 4.35406 | D18: =SUM(D16:D17) -> 4.35406 | E18: =SUM(E16:E17) -> 4.35406 | F18: =SUM(F16:F17) -> 4.35406 | I18: Commodity Rate | J18: =SUM(J16:J17) -> 4.35406 | K18: =SUM(K16:K17) -> 4.35406 | L18: =SUM(L16:L17) -> 4.35406 | M18: =SUM(M16:M17) -> 4.35406
B20: Total Rate | C20: =SUM(C18,C14,C10) ->  | D20: =SUM(D18,D14,D10) ->  | E20: =SUM(E18,E14,E10) ->  | F20: =SUM(F18,F14,F10) ->  | I20: Total Rate | J20: =SUM(J18,J14,J10) ->  | K20: =SUM(K18,K14,K10) ->  | L20: =SUM(L18,L14,L10) ->  | M20: =SUM(M18,M14,M10) -> 
E23: BSF Category 1 | F23: ='Ut 1.6 Source'!C18 -> 6.75 | L23: BSF Category 1 | M23: ='Ut 1.6 Source'!C18 -> 6.75
E24: BSF Category 2 | F24: ='Ut 1.6 Source'!C19 -> 18.25 | L24: BSF Category 2 | M24: ='Ut 1.6 Source'!C19 -> 18.25
E25: BSF Category 3 | F25: ='Ut 1.6 Source'!C20 -> 63.5 | L25: BSF Category 3 | M25: ='Ut 1.6 Source'!C20 -> 63.5
E26: BSF Category 4 | F26: ='Ut 1.6 Source'!C21 -> 420.25 | L26: BSF Category 4 | M26: ='Ut 1.6 Source'!C21 -> 420.25
B45: Issued by R. W. Jibson, President | D45: Advice No | E45: Section Revision No. | F45: Effective Date | I45: Issued by R. W. Jibson, President | K45: Advice No | L45: Section Revision No. | M45: Effective Date
B49: New CET Only | I49: NEW DSM ONLY

Sheet Utah Summary-by class
A1: UTAH SUMMARY
Q3: Sub Total
C4: COMMODITY | J4: SNG | Q4: TOTAL
C5: Current | D5: Proposed | E5: Current | F5: Proposed | G5: Revenue | H5: % | J5: Current | K5: Proposed | L5: Current | M5: Proposed | N5: Revenue | O5: % | Q5: Revenue | R5: %
A6: RATE | B6: Dth Sales | C6: Rates | D6: Rates | E6: Revenue | F6: Revenue | G6: Difference | H6: Change | J6: Rates | K6: Rates | L6: Revenue | M6: Revenue | N6: Difference | O6: Change | Q6: Difference | R6: Change
A8: GS (W) | B8: =Calculations!P52 -> 80455858 | C8: ='Ut 1.5 p1'!$H$32 -> 6.00617 | D8: =ROUND('Ut 1.5 p1'!$F$32,5) -> 7.12165 | E8: =ROUND(B8*C8,0) -> 483231561 | F8: =ROUND(B8*D8,0) -> 572978461 | G8: =(F8-E8) -> 89746900 | J8: ='Other Inputs'!G88 -> 0.94588 | K8: ='Ut 1.5 p6'!E36 -> 0.9468 | L8: =ROUND(B8*J8,0) -> 76101587 | M8: =B8*K8 -> 76175606.35 | N8: =(M8-L8) -> 74019.3544 | O8: =IF(N8=0,0,N8/L8) -> 0.0009726387756 | Q8: =G8+N8 -> 89820919.35
A9: GS (S) | B9: =Calculations!P53 -> 31228294 | C9: ='Ut 1.5 p1'!$H$32 -> 6.00617 | D9: =D8 -> 7.12165 | E9: =ROUND(B9*C9,0) -> 187562443 | F9: =ROUND(B9*D9,0) -> 222396980 | G9: =(F9-E9) -> 34834537 | J9: ='Other Inputs'!G89 -> 0.39655 | K9: ='Ut 1.5 p6'!E32 -> 0.39825 | L9: =ROUND(B9*J9,0) -> 12383580 | M9: =B9*K9 -> 12436668.09 | N9: =(M9-L9) -> 53088.0855 | O9: =IF(N9=0,0,N9/L9) -> 0.004286974001 | Q9: =G9+N9 -> 34887625.09
A10: Total | B10: =SUM(B8:B9) -> 111684152 | E10: =SUM(E8:E9) -> 670794004 | F10: =SUM(F8:F9) -> 795375441 | G10: =SUM(G8:G9) -> 124581437 | H10: =IF(G10=0,0,G10/E10) -> 0.1857223473 | L10: =SUM(L8:L9) -> 88485167 | M10: =SUM(M8:M9) -> 88612274.44 | N10: =SUM(N8:N9) -> 127107.4399 | O10: =IF(N10=0,0,N10/L10) -> 0.00143648302 | Q10: =SUM(Q8:Q9) -> 124708544.4 | R10: =IF(Q10=0,0,Q10/(E10+L10)) -> 0.1642459707
A13: FS (W) | B13: =Calculations!P58 -> 1280686 | C13: ='Ut 1.5 p1'!$H$32 -> 6.00617 | D13: =D8 -> 7.12165 | E13: =ROUND(B13*C13,0) -> 7692018 | F13: =ROUND(B13*D13,0) -> 9120597 | G13: =(F13-E13) -> 1428579 | J13: ='Other Inputs'!G91 -> 0.93493 | K13: ='Ut 1.5 p6'!E44 -> 0.93299 | L13: =ROUND(B13*J13,0) -> 1197352 | M13: =B13*K13 -> 1194867.231 | N13: =(M13-L13) -> -2484.76886 | O13: =IF(N13=0,0,N13/L13) -> -0.002075220036 | Q13: =G13+N13 -> 1426094.231
A14: FS (S) | B14: =Calculations!P59 -> 1308506 | C14: ='Ut 1.5 p1'!$H$32 -> 6.00617 | D14: =D9 -> 7.12165 | E14: =ROUND(B14*C14,0) -> 7859109 | F14: =ROUND(B14*D14,0) -> 9318722 | G14: =(F14-E14) -> 1459613 | J14: ='Other Inputs'!G92 -> 0.78051 | K14: ='Ut 1.5 p6'!E40 -> 0.77862 | L14: =ROUND(B14*J14,0) -> 1021302 | M14: =B14*K14 -> 1018828.942 | N14: =(M14-L14) -> -2473.05828 | O14: =IF(N14=0,0,N14/L14) -> -0.002421475998 | Q14: =G14+N14 -> 1457139.942
A15: Total | B15: =SUM(B13:B14) -> 2589192 | E15: =SUM(E13:E14) -> 15551127 | F15: =SUM(F13:F14) -> 18439319 | G15: =SUM(G13:G14) -> 2888192 | H15: =IF(G15=0,0,G15/E15) -> 0.1857223595 | L15: =SUM(L13:L14) -> 2218654 | M15: =SUM(M13:M14) -> 2213696.173 | N15: =SUM(N13:N14) -> -4957.82714 | O15: =IF(N15=0,0,N15/L15) -> -0.002234610327 | Q15: =SUM(Q13:Q14) -> 2883234.173 | R15: =IF(Q15=0,0,Q15/(E15+L15)) -> 0.1622549075
A18: NGV | B18: =Calculations!P12 -> 289772 | C18: ='Ut 1.5 p6'!D25 -> 5.6631 | D18: ='Ut 1.5 p6'!E25 -> 6.62448 | E18: =ROUND(B18*C18,0) -> 1641008 | F18: =ROUND(B18*D18,0) -> 1919589 | G18: =(F18-E18) -> 278581 | H18: =IF(G18=0,0,G18/E18) -> 0.1697621218 | J18: ='Other Inputs'!G94 -> 0.70658 | K18: ='Ut 1.5 p6'!E60 -> 0.70443 | L18: =ROUND(B18*J18,0) -> 204747 | M18: =ROUND(B18*K18,0) -> 204124 | N18: =(M18-L18) -> -623 | O18: =IF(N18=0,0,N18/L18) -> -0.003042779626 | Q18: =G18+N18 -> 277958 | R18: =IF(Q18=0,0,Q18/(E18+L18)) -> 0.1505931177
A21: IS | B21: =Calculations!P17 -> 271004 | C21: ='Ut 1.5 p1'!$H$32 -> 6.00617 | D21: ='Ut 1.5 p6'!E19 -> 7.10544 | E21: =ROUND(B21*C21,0) -> 1627696 | F21: =ROUND(B21*D21,0) -> 1925603 | G21: =(F21-E21) -> 297907 | H21: =IF(G21=0,0,G21/E21) -> 0.1830237342 | J21: ='Other Inputs'!G96 -> 0.17905 | K21: ='Ut 1.5 p6'!E46 -> 0.17938 | L21: =ROUND(B21*J21,0) -> 48523 | M21: =ROUND(B21*K21,0) -> 48613 | N21: =(M21-L21) -> 90 | O21: =IF(N21=0,0,N21/L21) -> 0.001854790512 | Q21: =G21+N21 -> 297997 | R21: =IF(Q21=0,0,Q21/(E21+L21)) -> 0.1777792759
A23: TSF | B23: ='Ut 1.5 p3'!F18 -> 222022 | J23: ='Ut 1.5 p6'!D50 -> 2.15835 | K23: ='Ut 1.5 p6'!E50 -> 2.15694 | L23: =ROUND(B23*J23,0) -> 479201 | M23: =ROUND(B23*K23,0) -> 478888 | N23: =(M23-L23) -> -313 | O23: =IF(N23=0,0,N23/L23) -> -0.0006531705902 | Q23: =G23+N23 -> -313 | R23: =IF(Q23=0,0,Q23/(E23+L23)) -> -0.0006531705902
A25: TBF | B25: ='Ut 1.5 p3'!G18 -> 45000 | J25: ='Ut 1.5 p6'!D55 -> 1.43793 | K25: ='Ut 1.5 p6'!E55 -> 1.43699 | L25: =ROUND(B25*J25,0) -> 64707 | M25: =ROUND(B25*K25,0) -> 64665 | N25: =(M25-L25) -> -42 | O25: =IF(N25=0,0,N25/L25) -> -0.0006490796977 | Q25: =G25+N25 -> -42 | R25: =IF(Q25=0,0,Q25/(E25+L25)) -> -0.0006490796977
B26: - | E26: - | F26: - | G26: - | L26: ------------------- | M26: ------------------- | N26: ------------------- | Q26: -------------------
B27: =B10+B15+B18+B21 -> 114834120 | E27: =E10+E15+E18+E21 -> 689613835 | F27: =F10+F15+F18+F21 -> 817659952 | G27: =G10+G15+G18+G21 -> 128046117 | H27: =IF(G27=0,0,G27/E27) -> 0.1856779991 | L27: =L10+L15+L18+L21+L23+L25 -> 91500999 | M27: =M10+M15+M18+M21+M23+M25 -> 91622260.61 | N27: =N10+N15+N18+N21+N23+N25 -> 121261.6128 | O27: =IF(N27=0,0,N27/L27) -> 0.001325249058 | Q27: =Q10+Q15+Q18+Q21+Q23+Q25 -> 128167378.6 | R27: =IF(Q27=0,0,Q27/(E27+L27)) -> 0.164082633
G28: =IF(G27>0,"Commodity Increase","Commodity Decrease") -> Commodity Increase | N28: =IF(N27>0,"Increase to SNG","Decrease to SNG") -> Increase to SNG
G30: =ROUND(G27,-3) -> 128046000 | N30: =ROUND(N27,-3) -> 121000 | Q30: =ROUND(Q27,-3) -> 128167000
B31: =B27 -> 114834120 | G31: Rounded | N31: Rounded | Q31: Rounded

Sheet UT Summary - by cost (hidden)

Sheet WY Summary - by cost (hidden)

Sheet Model Checks
B2: Model Checks
D6: Total of all Checks
D7: =ABS(SUM(D10:D1993)) -> 0.3022633791
B9: Forecasted Demand
C10: Utah | D10: =Calculations!P25-'RevRun Fcst'!T205 -> 0
C11: Wyoming | D11: =Calculations!P44-'RevRun Fcst'!T329 -> 0
C12: Total System | D12: =Calculations!P47-'RevRun Fcst'!T370 -> 0
B13: Forecasted Utah Demand Check by Month
C14: 1 | D14: =Calculations!D25-'RevRun Fcst'!H205 -> 0
C15: 2 | D15: =Calculations!E25-'RevRun Fcst'!I205 -> 0
C16: 3 | D16: =Calculations!F25-'RevRun Fcst'!J205 -> 0
C17: 4 | D17: =Calculations!G25-'RevRun Fcst'!K205 -> 0
C18: 5 | D18: =Calculations!H25-'RevRun Fcst'!L205 -> 0
C19: 6 | D19: =Calculations!I25-'RevRun Fcst'!M205 -> 0
C20: 7 | D20: =Calculations!J25-'RevRun Fcst'!N205 -> 0
C21: 8 | D21: =Calculations!K25-'RevRun Fcst'!O205 -> 0
C22: 9 | D22: =Calculations!L25-'RevRun Fcst'!P205 -> 0
C23: 10 | D23: =Calculations!M25-'RevRun Fcst'!Q205 -> 0
C24: 11 | D24: =Calculations!N25-'RevRun Fcst'!R205 -> 0
C25: 12 | D25: =Calculations!O25-'RevRun Fcst'!S205 -> 0
C26: Wyoming I-2 and I-4 Revenues | D26: =('RevRun Fcst'!T273+'RevRun Fcst'!T282)-Calculations!P65 -> 0
C27: System Sales Volumes | D27: =Calculations!H76-'RevRun Fcst'!T368 -> 0
C28: Utah Sales Volumes | D28: =Calculations!P20-'Utah Summary-by class'!B27 -> 0
B29: Company Production | D29: =Calculations!P121-'Monthly Inputs'!S7-'Monthly Inputs'!S13 -> 0
B30: Injections | D30: ='Monthly Inputs'!S29-SUM('Monthly Inputs'!S23:S28) -> 0
B31: Withdrawals | D31: ='Monthly Inputs'!S37-SUM('Monthly Inputs'!S32:S36) -> 0
B32: Injections & Withdrawals | D32: =SUM('Ut 1.4 p2'!D23:D28)-'Monthly Inputs'!S29-'Monthly Inputs'!S37 -> 0
B33: Injections | D33: =Calculations!P130-'Monthly Inputs'!S29 -> 0
B34: Withdrawals | D34: =Calculations!P139-'Monthly Inputs'!S37 -> 0
B35: Sales for Resale | D35: =Expenses!P13-Calculations!P86 -> 0
B36: Incidental Plant Prod Sales | D36: =Expenses!P14-Calculations!P87 -> 0
B37: Incidental Gas & Oil Sales | D37: =Expenses!P15-Calculations!P89 -> 0
B38: Gasoline and Oil Costs | D38: =Expenses!P18+Calculations!P90 -> 0
B39: Wexpro Revenue Sharing | D39: =Expenses!P17-Calculations!P94 -> 0
B40: Storage Gas | D40: ='Rate Base'!Q11-Calculations!P99 -> 0
B41: 101 Production | D41: ='Rate Base'!Q5-Calculations!P101 -> 0
B42: 108 Production | D42: ='Rate Base'!Q7-Calculations!P102 -> 0
B43: 111 Production | D43: ='Rate Base'!Q9-Calculations!P103 -> 0
B44: 255 Production | D44: ='Rate Base'!Q14-Calculations!P104 -> 0
B45: 282 Production | D45: ='Rate Base'!Q16-Calculations!P105 -> 0
B46: 282.1 Production | D46: ='Rate Base'!Q18-Calculations!P106 -> 0
B47: Production Rate Base | D47: =SUM(Calculations!P99:P106)-'Rate Base'!Q20 -> 0
B48: Purchased Gas Cost | D48: ='Ut 1.2 p4'!E25-Calculations!P207 -> -0.3239345551
B49: Working Gas Rate Base | D49: =Calculations!P99-'Ut 1.2 p5'!E43 -> 0
B50: Allocations | D50: ='Ut 1.1 p2'!F48-'Ut 1.1 p2'!G48-'Ut 1.1 p2'!H48+'Ut 1.1 p2'!H46 -> 0
B52: System Sales | D52: ='SDR#1'!C10-'RevRun Fcst'!T368 -> 0
B53: Lost & Unaccounted For | D53: ='SDR#1'!C15-(('SDR#1'!C10+'SDR#1'!C11)/(1-'Other Inputs'!E276)) -> -0.03630292416
B54: Supply / Demand | D54: ='SDR#1'!C37-'SDR#1'!C15 -> -0.04677927494
B55: System Sales | D55: ='SDR#3'!H36-'SDR#1'!C10 -> 0
B56: SNG Revenue | D56: ='SDR#4'!G23+'SDR#4'!G33-'Utah Summary-by class'!L27 -> 0.1304399967
B57: Utah Sales | D57: ='SDR#3'!D36-'SDR#4'!E23 -> 0
B58: Utah Sales | D58: ='SDR#2'!G75-'Ut 1.1 p2'!H48 -> 0.5788401365
B59: Seasonal Volumes | D59: =Calculations!P52+Calculations!P53-Calculations!P7-Calculations!P8 -> 0
B60: Seasonal Volumes | D60: =Calculations!P55+Calculations!P56-Calculations!P9 -> 0
B61: Seasonal Volumes | D61: =Calculations!P58+Calculations!P59-Calculations!P10 -> 0

Sheet Royalty Detail
D4: Test-Year Cost of Dominion Energy's Production
D5: November 2022 through October 2023
B7: WEXPRO I
B8: (A) | C8: (B) | D8: (C) | E8: (D) | F8: (E) | G8: (F) | H8: (G) | I8: (H)
F9: Base Year | G9: Market | H9: Royalty | I9: Test-Year
B10: Field Name | C10: Well Name | D10: Formation | E10: Price $ | F10: Dth | G10: Value $ | H10: Rate % | I10: Royalty $
A11: 1 | B11: ACE UNIT (CO) | C11: ACE UNIT 10 FT UN | D11: MESAVERDE | E11: 6.250360983 | F11: 32962 | G11: 206024.3987 | H11: 0.1268519763 | I11: 26134.60215
A12: 2 | C12: ACE UNIT 11 FT UN | D12: FORT UNION | E12: 6.250360983 | F12: 7404 | G12: 46277.67272 | H12: 0.1268519763 | I12: 5870.414244
A13: 3 | C13: ACE UNIT 12 FT UN | D13: FORT UNION | E13: 6.250360983 | F13: 66495 | G13: 415617.7536 | H13: 0.1371675 | I13: 57009.24822
A14: 4 | C14: ACE UNIT 13 FT UN | D14: FORT UNION | E14: 6.250360983 | F14: 29052 | G14: 181585.4873 | H14: 0.1268519763 | I14: 23034.47793
A15: 5 | C15: ACE UNIT 2 FT UN | D15: FORT UNION | E15: 6.250360983 | F15: 8099 | G15: 50621.6736 | H15: 0.1268519763 | I15: 6421.459341
A16: 6 | B16: BIRCH CR (WY) | C16: BIRCH CREEK UNIT 1 BR | D16: BEAR RIVER | E16: 6.250360983 | F16: 6468 | G16: 40427.33484 | H16: 0.1329769324 | I16: 5375.902973
A17: 7 | C17: BIRCH CREEK UNIT 1 BR - D24 | D17: BEAR RIVER | E17: 6.250360983 | F17: 1929 | G17: 12056.94634 | H17: 0.1329769324 | I17: 1603.295738
A18: 8 | C18: BIRCH CREEK UNIT 1 FR | D18: FRONTIER | E18: 6.250360983 | F18: 6465 | G18: 40408.58376 | H18: 0.1329769324 | I18: 5373.409511
A19: 9 | C19: BIRCH CREEK UNIT 1 FR - D24 | D19: FRONTIER | E19: 6.250360983 | F19: 1928 | G19: 12050.69598 | H19: 0.1329769324 | I19: 1602.464584
A20: 10 | C20: BIRCH CREEK UNIT 100 FR | D20: FRONTIER | E20: 6.250360983 | F20: 5619 | G20: 35120.77837 | H20: 0.1329769324 | I20: 4670.253371
A21: 11 | C21: BIRCH CREEK UNIT 101 BR | D21: BEAR RIVER | E21: 6.250360983 | F21: 642 | G21: 4012.731751 | H21: 0.1329769324 | I21: 533.6007589
A22: 12 | C22: BIRCH CREEK UNIT 101 FR | D22: FRONTIER | E22: 6.250360983 | F22: 12174 | G22: 76091.89461 | H22: 0.1329769324 | I22: 10118.46673
A23: 13 | C23: BIRCH CREEK UNIT 103 BR | D23: BEAR RIVER | E23: 6.250360983 | F23: 683 | G23: 4268.996552 | H23: 0.1329769324 | I23: 567.6780659
A24: 14 | C24: BIRCH CREEK UNIT 103 FR | D24: FRONTIER | E24: 6.250360983 | F24: 6154 | G24: 38464.72149 | H24: 0.1329769324 | I24: 5114.92067
A25: 15 | C25: BIRCH CREEK UNIT 104 BR | D25: BEAR RIVER | E25: 6.250360983 | F25: 3192 | G25: 19951.15226 | H25: 0.1329769324 | I25: 2653.043026
A26: 16 | C26: BIRCH CREEK UNIT 104 FR | D26: FRONTIER | E26: 6.250360983 | F26: 13614 | G26: 85092.41443 | H26: 0.1329769324 | I26: 11315.32824
A27: 17 | C27: BIRCH CREEK UNIT 105 BR | D27: BEAR RIVER | E27: 6.250360983 | F27: 7273 | G27: 45458.87543 | H27: 0.1329769324 | I27: 6044.981806
A28: 18 | C28: BIRCH CREEK UNIT 105 FR | D28: FRONTIER | E28: 6.250360983 | F28: 8199 | G28: 51246.7097 | H28: 0.1329769324 | I28: 6814.630253
A29: 19 | C29: BIRCH CREEK UNIT 106 BR | D29: BEAR RIVER | E29: 6.250360983 | F29: 5031 | G29: 31445.56611 | H29: 0.1329769324 | I29: 4181.534919
A30: 20 | C30: BIRCH CREEK UNIT 106 FR | D30: FRONTIER | E30: 6.250360983 | F30: 17839 | G30: 111500.1896 | H30: 0.1329769324 | I30: 14826.95317
A31: 21 | C31: BIRCH CREEK UNIT 107 BR | D31: BEAR RIVER | E31: 6.250360983 | F31: 2301 | G31: 14382.08062 | H31: 0.1329769324 | I31: 1912.484963
A32: 22 | C32: BIRCH CREEK UNIT 107 FR | D32: FRONTIER | E32: 6.250360983 | F32: 2210 | G32: 13813.29777 | H32: 0.1329769324 | I32: 1836.849964
A33: 23 | C33: BIRCH CREEK UNIT 108 BR | D33: BEAR RIVER | E33: 6.250360983 | F33: 1739 | G33: 10869.37775 | H33: 0.1329769324 | I33: 1445.37651
A34: 24 | C34: BIRCH CREEK UNIT 108 FR | D34: FRONTIER | E34: 6.250360983 | F34: 8496 | G34: 53103.06692 | H34: 0.1329769324 | I34: 7061.48294
A35: 25 | C35: BIRCH CREEK UNIT 109 BAX | D35: BAXTER | E35: 6.250360983 | F35: 2658 | G35: 16613.45949 | H35: 0.13375 | I35: 2222.050207
A36: 26 | C36: BIRCH CREEK UNIT 109 BR | D36: BEAR RIVER | E36: 6.250360983 | F36: 6385 | G36: 39908.55488 | H36: 0.1329769324 | I36: 5306.917205
A37: 27 | C37: BIRCH CREEK UNIT 109 FR | D37: FRONTIER | E37: 6.250360983 | F37: 5811 | G37: 36320.84767 | H37: 0.1329769324 | I37: 4829.834907
A38: 28 | C38: BIRCH CREEK UNIT 110 BR | D38: BEAR RIVER | E38: 6.250360983 | F38: 10836 | G38: 67728.91162 | H38: 0.1329769324 | I38: 9006.382903
A39: 29 | C39: BIRCH CREEK UNIT 110 FR | D39: FRONTIER | E39: 6.250360983 | F39: 10003 | G39: 62522.36092 | H39: 0.1329769324 | I39: 8314.031762
A40: 30 | C40: BIRCH CREEK UNIT 111 BR | D40: BEAR RIVER | E40: 6.250360983 | F40: 9820 | G40: 61378.54486 | H40: 0.1329769324 | I40: 8161.930611
A41: 31 | C41: BIRCH CREEK UNIT 111 FR | D41: FRONTIER | E41: 6.250360983 | F41: 3631 | G41: 22695.06073 | H41: 0.1329769324 | I41: 3017.919557
A42: 32 | C42: BIRCH CREEK UNIT 112 BR | D42: BEAR RIVER | E42: 6.250360983 | F42: 5690 | G42: 35564.554 | H42: 0.1329769324 | I42: 4729.265293
A43: 33 | C43: BIRCH CREEK UNIT 112 FR | D43: FRONTIER | E43: 6.250360983 | F43: 15392 | G43: 96205.55626 | H43: 0.1329769324 | I43: 12793.11975
A44: 34 | C44: BIRCH CREEK UNIT 113 BR | D44: BEAR RIVER | E44: 6.250360983 | F44: 13538 | G44: 84617.38699 | H44: 0.1329769324 | I44: 11252.16055
A45: 35 | C45: BIRCH CREEK UNIT 113 FR | D45: FRONTIER | E45: 6.250360983 | F45: 4045 | G45: 25282.71018 | H45: 0.1329769324 | I45: 3362.017243
A46: 36 | C46: BIRCH CREEK UNIT 114 BR | D46: BEAR RIVER | E46: 6.250360983 | F46: 7852 | G46: 49077.83444 | H46: 0.1329769324 | I46: 6526.219874
A47: 37 | C47: BIRCH CREEK UNIT 114 FR | D47: FRONTIER | E47: 6.250360983 | F47: 1837 | G47: 11481.91313 | H47: 0.1329769324 | I47: 1526.829586
A48: 38 | C48: BIRCH CREEK UNIT 115 BR | D48: BEAR RIVER | E48: 6.250360983 | F48: 3547 | G48: 22170.03041 | H48: 0.1329769324 | I48: 2948.102635
A49: 39 | C49: BIRCH CREEK UNIT 115 FR | D49: FRONTIER | E49: 6.250360983 | F49: 11886 | G49: 74291.79065 | H49: 0.1329769324 | I49: 9879.094424
A50: 40 | C50: BIRCH CREEK UNIT 116 BR | D50: BEAR RIVER | E50: 6.250360983 | F50: 10846 | G50: 67791.41523 | H50: 0.1329769324 | I50: 9014.694441
A51: 41 | C51: BIRCH CREEK UNIT 116 FR | D51: FRONTIER | E51: 6.250360983 | F51: 3815 | G51: 23845.12715 | H51: 0.1329769324 | I51: 3170.851862
A52: 42 | C52: BIRCH CREEK UNIT 117 BAX | D52: BAXTER | E52: 6.250360983 | F52: 920 | G52: 5750.332105 | H52: 0.13375 | I52: 769.106919
A53: 43 | C53: BIRCH CREEK UNIT 117 BR | D53: BEAR RIVER | E53: 6.250360983 | F53: 607 | G53: 3793.969117 | H53: 0.1329769324 | I53: 504.5103749
A54: 44 | C54: BIRCH CREEK UNIT 117 FR | D54: FRONTIER | E54: 6.250360983 | F54: 6129 | G54: 38308.46247 | H54: 0.1329769324 | I54: 5094.141824
A55: 45 | C55: BIRCH CREEK UNIT 118 BR | D55: BEAR RIVER | E55: 6.250360983 | F55: 1157 | G55: 7231.667658 | H55: 0.1329769324 | I55: 961.6449814
A56: 46 | C56: BIRCH CREEK UNIT 118 FR | D56: FRONTIER | E56: 6.250360983 | F56: 10416 | G56: 65103.76 | H56: 0.1329769324 | I56: 8657.298294
A57: 47 | C57: BIRCH CREEK UNIT 119 BR | D57: BEAR RIVER | E57: 6.250360983 | F57: 3841 | G57: 24007.63654 | H57: 0.1329769324 | I57: 3192.461861
A58: 48 | C58: BIRCH CREEK UNIT 119 FR | D58: FRONTIER | E58: 6.250360983 | F58: 15364 | G58: 96030.54615 | H58: 0.1329769324 | I58: 12769.84745
A59: 49 | C59: BIRCH CREEK UNIT 121 BR | D59: BEAR RIVER | E59: 6.250360983 | F59: 15885 | G59: 99286.98422 | H59: 0.1329769324 | I59: 13202.87859
A60: 50 | C60: BIRCH CREEK UNIT 121 FR | D60: FRONTIER | E60: 6.250360983 | F60: 3252 | G60: 20326.17392 | H60: 0.1329769324 | I60: 2702.912255
A61: 51 | C61: BIRCH CREEK UNIT 122 BR | D61: BEAR RIVER | E61: 6.250360983 | F61: 3036 | G61: 18976.09595 | H61: 0.1329769324 | I61: 2523.383028
A62: 52 | C62: BIRCH CREEK UNIT 122 FR | D62: FRONTIER | E62: 6.250360983 | F62: 10445 | G62: 65285.02047 | H62: 0.1329769324 | I62: 8681.401755
A63: 53 | C63: BIRCH CREEK UNIT 123 BR | D63: BEAR RIVER | E63: 6.250360983 | F63: 4231 | G63: 26445.27732 | H63: 0.1329769324 | I63: 3516.611855
A64: 54 | C64: BIRCH CREEK UNIT 123 FR | D64: FRONTIER | E64: 6.250360983 | F64: 12683 | G64: 79273.32835 | H64: 0.1329769324 | I64: 10541.52403
A65: 55 | C65: BIRCH CREEK UNIT 124 BR | D65: BEAR RIVER | E65: 6.250360983 | F65: 3891 | G65: 24320.15459 | H65: 0.1329769324 | I65: 3234.019553
A66: 56 | C66: BIRCH CREEK UNIT 124 FR | D66: FRONTIER | E66: 6.250360983 | F66: 15552 | G66: 97205.61401 | H66: 0.1329769324 | I66: 12926.10437
A67: 57 | C67: BIRCH CREEK UNIT 126 BR | D67: BEAR RIVER | E67: 6.250360983 | F67: 6918 | G67: 43239.99728 | H67: 0.1329769324 | I67: 5749.922196
A68: 58 | C68: BIRCH CREEK UNIT 126 FR | D68: FRONTIER | E68: 6.250360983 | F68: 10375 | G68: 64847.4952 | H68: 0.1329769324 | I68: 8623.220987
A69: 59 | C69: BIRCH CREEK UNIT 127 BR | D69: DAKOTA | E69: 6.250360983 | F69: 3897 | G69: 24357.65675 | H69: 0.1329769324 | I69: 3239.006476
A70: 60 | C70: BIRCH CREEK UNIT 127 FR | D70: FRONTIER | E70: 6.250360983 | F70: 974 | G70: 6087.851598 | H70: 0.1329769324 | I70: 809.5438305
A71: 61 | C71: BIRCH CREEK UNIT 128 FR | D71: FRONTIER | E71: 6.250360983 | F71: 19972 | G71: 124832.2096 | H71: 0.1329769324 | I71: 16599.80429
A72: 62 | C72: BIRCH CREEK UNIT 129 BR | D72: BEAR RIVER | E72: 6.250360983 | F72: 522 | G72: 3262.688433 | H72: 0.1329769324 | I72: 433.8622993
A73: 63 | C73: BIRCH CREEK UNIT 129 FR | D73: FRONTIER | E73: 6.250360983 | F73: 9875 | G73: 61722.31471 | H73: 0.1329769324 | I73: 8207.644072
A74: 64 | C74: BIRCH CREEK UNIT 130 BR | D74: BEAR RIVER | E74: 6.250360983 | F74: 9166 | G74: 57290.80877 | H74: 0.1329769324 | I74: 7618.356006
A75: 65 | C75: BIRCH CREEK UNIT 130 FR | D75: FRONTIER | E75: 6.250360983 | F75: 11206 | G75: 70041.54518 | H75: 0.1329769324 | I75: 9313.90982
A76: 66 | C76: BIRCH CREEK UNIT 131 FR | D76: FRONTIER | E76: 6.250360983 | F76: 12922 | G76: 80767.16463 | H76: 0.1329769324 | I76: 10740.16979
A77: 67 | C77: BIRCH CREEK UNIT 132 BR | D77: BEAR RIVER | E77: 6.250360983 | F77: 2270 | G77: 14188.31943 | H77: 0.1329769324 | I77: 1886.719194
A78: 68 | C78: BIRCH CREEK UNIT 132 FR | D78: FRONTIER | E78: 6.250360983 | F78: 12843 | G78: 80273.38611 | H78: 0.1329769324 | I78: 10674.50864
A79: 69 | C79: BIRCH CREEK UNIT 133 BR | D79: BEAR RIVER | E79: 6.250360983 | F79: 4693 | G79: 29332.9441 | H79: 0.1329769324 | I79: 3900.604925
A80: 70 | C80: BIRCH CREEK UNIT 133 FR | D80: FRONTIER | E80: 6.250360983 | F80: 18776 | G80: 117356.7778 | H80: 0.1329769324 | I80: 15605.74431
A81: 71 | C81: BIRCH CREEK UNIT 134 BR | D81: BEAR RIVER | E81: 6.250360983 | F81: 12576 | G81: 78604.53973 | H81: 0.1329769324 | I81: 10452.59057
A82: 72 | C82: BIRCH CREEK UNIT 134 FR | D82: FRONTIER | E82: 6.250360983 | F82: 17372 | G82: 108581.271 | H82: 0.1329769324 | I82: 14438.80434
A83: 73 | C83: BIRCH CREEK UNIT 137 BR | D83: BEAR RIVER | E83: 6.250360983 | F83: 5538 | G83: 34614.49913 | H83: 0.1329769324 | I83: 4602.929911
A84: 74 | C84: BIRCH CREEK UNIT 137 FR | D84: FRONTIER | E84: 6.250360983 | F84: 9044 | G84: 56528.26473 | H84: 0.1329769324 | I84: 7516.955239
A85: 75 | C85: BIRCH CREEK UNIT 138 FR | D85: FRONTIER | E85: 6.250360983 | F85: 16136 | G85: 100855.8248 | H85: 0.1329769324 | I85: 13411.4982
A86: 76 | C86: BIRCH CREEK UNIT 139 BR | D86: BEAR RIVER | E86: 6.250360983 | F86: 6863 | G86: 42896.22743 | H86: 0.1329769324 | I86: 5704.208736
A87: 77 | C87: BIRCH CREEK UNIT 13A BR | D87: BEAR RIVER | E87: 6.250360983 | F87: 7101 | G87: 44383.81334 | H87: 0.1329769324 | I87: 5902.023347
A88: 78 | C88: BIRCH CREEK UNIT 13A FR | D88: FRONTIER | E88: 6.250360983 | F88: 7099 | G88: 44371.31262 | H88: 0.1329769324 | I88: 5900.36104
A89: 79 | C89: BIRCH CREEK UNIT 140 BR | D89: BEAR RIVER | E89: 6.250360983 | F89: 2962 | G89: 18513.56923 | H89: 0.1329769324 | I89: 2461.877645
A90: 80 | C90: BIRCH CREEK UNIT 140 FR | D90: FRONTIER | E90: 6.250360983 | F90: 16803 | G90: 105024.8156 | H90: 0.1329769324 | I90: 13965.87781
A91: 81 | C91: BIRCH CREEK UNIT 141 BR | D91: BEAR RIVER | E91: 6.250360983 | F91: 13275 | G91: 82973.54205 | H91: 0.1329769324 | I91: 11033.56709
A92: 82 | C92: BIRCH CREEK UNIT 141 FR | D92: FRONTIER | E92: 6.250360983 | F92: 4421 | G92: 27632.84591 | H92: 0.1329769324 | I92: 3674.531083
A93: 83 | C93: BIRCH CREEK UNIT 142 BR | D93: BEAR RIVER | E93: 6.250360983 | F93: 3038 | G93: 18988.59667 | H93: 0.1329769324 | I93: 2525.045336
A94: 84 | C94: BIRCH CREEK UNIT 142 FR | D94: FRONTIER | E94: 6.250360983 | F94: 7085 | G94: 44283.80757 | H94: 0.1329769324 | I94: 5888.724886
A95: 85 | C95: BIRCH CREEK UNIT 144 BR | D95: BEAR RIVER | E95: 6.250360983 | F95: 804 | G95: 5025.290231 | H95: 0.1329769324 | I95: 668.2476794
A96: 86 | C96: BIRCH CREEK UNIT 144 FR | D96: FRONTIER | E96: 6.250360983 | F96: 12587 | G96: 78673.2937 | H96: 0.1329769324 | I96: 10461.73326
A97: 87 | C97: BIRCH CREEK UNIT 145 BR | D97: BEAR RIVER | E97: 6.250360983 | F97: 1327 | G97: 8294.229025 | H97: 0.1329769324 | I97: 1102.941133
A98: 88 | C98: BIRCH CREEK UNIT 145 FR | D98: FRONTIER | E98: 6.250360983 | F98: 9725 | G98: 60784.76056 | H98: 0.1329769324 | I98: 8082.970997
A99: 89 | C99: BIRCH CREEK UNIT 146 BR | D99: BEAR RIVER | E99: 6.250360983 | F99: 11809 | G99: 73810.51285 | H99: 0.1329769324 | I99: 9815.095579
A100: 90 | C100: BIRCH CREEK UNIT 146 FR | D100: FRONTIER | E100: 6.250360983 | F100: 3934 | G100: 24588.92011 | H100: 0.1329769324 | I100: 3269.759167
A101: 91 | C101: BIRCH CREEK UNIT 148 BR | D101: BEAR RIVER | E101: 6.250360983 | F101: 214 | G101: 1337.57725 | H101: 0.1329769324 | I101: 177.8669196
A102: 92 | C102: BIRCH CREEK UNIT 148 FR | D102: FRONTIER | E102: 6.250360983 | F102: 20813 | G102: 130088.7631 | H102: 0.1329769324 | I102: 17298.80467
A103: 93 | C103: BIRCH CREEK UNIT 149 BR | D103: BEAR RIVER | E103: 6.250360983 | F103: 4662 | G103: 29139.1829 | H103: 0.1329769324 | I103: 3874.839156
A104: 94 | C104: BIRCH CREEK UNIT 149 FR | D104: FRONTIER | E104: 6.250360983 | F104: 16530 | G104: 103318.4671 | H104: 0.1329769324 | I104: 13738.97281
A105: 95 | C105: BIRCH CREEK UNIT 15 BR | D105: LANCE | E105: 6.250360983 | F105: 306 | G105: 1912.610461 | H105: 0.1329769324 | I105: 254.333072
A106: 96 | C106: BIRCH CREEK UNIT 15 FR | D106: LANCE | E106: 6.250360983 | F106: 911 | G106: 5694.078856 | H106: 0.1329769324 | I106: 757.1811392
A107: 97 | C107: BIRCH CREEK UNIT 151 BR | D107: BEAR RIVER | E107: 6.250360983 | F107: 5108 | G107: 31926.8439 | H107: 0.1329769324 | I107: 4245.533764
A108: 98 | C108: BIRCH CREEK UNIT 151 FR | D108: FRONTIER | E108: 6.250360983 | F108: 7055 | G108: 44096.29674 | H108: 0.1329769324 | I108: 5863.790271
A109: 99 | C109: BIRCH CREEK UNIT 153 ALMY | D109: ALMY | E109: 6.250360983 | F109: 999 | G109: 6244.110622 | H109: 0.13375 | I109: 835.1497958
A110: 100 | C110: BIRCH CREEK UNIT 164 FR | D110: FRONTIER | E110: 6.250360983 | F110: 16625 | G110: 103912.2513 | H110: 0.1329769324 | I110: 13817.93242
A111: 101 | C111: BIRCH CREEK UNIT 166 BR | D111: BEAR RIVER | E111: 6.250360983 | F111: 6098 | G111: 38114.70128 | H111: 0.1329769324 | I111: 5068.376056
A112: 102 | C112: BIRCH CREEK UNIT 166 FR | D112: FRONTIER | E112: 6.250360983 | F112: 1526 | G112: 9538.050861 | H112: 0.1329769324 | I112: 1268.340745
A113: 103 | C113: BIRCH CREEK UNIT 167 BR | D113: BEAR RIVER | E113: 6.250360983 | F113: 2079 | G113: 12994.50048 | H113: 0.1329769324 | I113: 1727.968813
A114: 104 | C114: BIRCH CREEK UNIT 167 FR | D114: FRONTIER | E114: 6.250360983 | F114: 8333 | G114: 52084.25807 | H114: 0.1329769324 | I114: 6926.004866
A115: 105 | C115: BIRCH CREEK UNIT 168 BR | D115: BEAR RIVER | E115: 6.250360983 | F115: 680 | G115: 4250.245469 | H115: 0.1329769324 | I115: 565.1846044
A116: 106 | C116: BIRCH CREEK UNIT 168 RECOM BAX | D116: BAXTER | E116: 6.250360983 | F116: 1155 | G116: 7219.166936 | H116: 0.13375 | I116: 965.5635777
A117: 107 | C117: BIRCH CREEK UNIT 168 RECOM FR | D117: FRONTIER | E117: 6.250360983 | F117: 2776 | G117: 17351.00209 | H117: 0.1329769324 | I117: 2307.283032
A118: 108 | C118: BIRCH CREEK UNIT 169 BR | D118: BEAR RIVER | E118: 6.250360983 | F118: 3139 | G118: 19619.88313 | H118: 0.1329769324 | I118: 2608.991873
A119: 109 | C119: BIRCH CREEK UNIT 169 FR | D119: FRONTIER | E119: 6.250360983 | F119: 12561 | G119: 78510.78431 | H119: 0.1329769324 | I119: 10440.12326
A120: 110 | C120: BIRCH CREEK UNIT 173 BR | D120: BEAR RIVER | E120: 6.250360983 | F120: 6387 | G120: 39921.0556 | H120: 0.1329769324 | I120: 5308.579513
A121: 111 | C121: BIRCH CREEK UNIT 173 FR | D121: FRONTIER | E121: 6.250360983 | F121: 18172 | G121: 113581.5598 | H121: 0.1329769324 | I121: 15103.7274
A122: 112 | C122: BIRCH CREEK UNIT 174 BR | D122: BEAR RIVER | E122: 6.250360983 | F122: 10199 | G122: 63747.43167 | H122: 0.1329769324 | I122: 8476.937913
A123: 113 | C123: BIRCH CREEK UNIT 174 FR | D123: FRONTIER | E123: 6.250360983 | F123: 10085 | G123: 63034.89052 | H123: 0.1329769324 | I123: 8382.186376
A124: 114 | C124: BIRCH CREEK UNIT 177 BR | D124: BEAR RIVER | E124: 6.250360983 | F124: 3226 | G124: 20163.66453 | H124: 0.1329769324 | I124: 2681.302256
A125: 115 | C125: BIRCH CREEK UNIT 177 FR | D125: FRONTIER | E125: 6.250360983 | F125: 12920 | G125: 80754.66391 | H125: 0.1329769324 | I125: 10738.50748
A126: 116 | C126: BIRCH CREEK UNIT 178 BR | D126: BEAR RIVER | E126: 6.250360983 | F126: 4846 | G126: 30289.24933 | H126: 0.1329769324 | I126: 4027.771461
A127: 117 | C127: BIRCH CREEK UNIT 178 FR | D127: FRONTIER | E127: 6.250360983 | F127: 19394 | G127: 121219.5009 | H127: 0.1329769324 | I127: 16119.39738
A128: 118 | C128: BIRCH CREEK UNIT 179 BR | D128: BEAR RIVER | E128: 6.250360983 | F128: 4308 | G128: 26926.55512 | H128: 0.1329769324 | I128: 3580.6107
A129: 119 | C129: BIRCH CREEK UNIT 179 FR | D129: FRONTIER | E129: 6.250360983 | F129: 2868 | G129: 17926.0353 | H129: 0.1329769324 | I129: 2383.749185
A130: 120 | C130: BIRCH CREEK UNIT 180 FR | D130: FRONTIER | E130: 6.250360983 | F130: 10227 | G130: 63922.44178 | H130: 0.1329769324 | I130: 8500.21022
A131: 121 | C131: BIRCH CREEK UNIT 181 BR | D131: BEAR RIVER | E131: 6.250360983 | F131: 2654 | G131: 16588.45805 | H131: 0.1329769324 | I131: 2205.882265
A132: 122 | C132: BIRCH CREEK UNIT 181 FR | D132: FRONTIER | E132: 6.250360983 | F132: 10596 | G132: 66228.82498 | H132: 0.1329769324 | I132: 8806.905983
A133: 123 | C133: BIRCH CREEK UNIT 182 BR | D133: BEAR RIVER | E133: 6.250360983 | F133: 3466 | G133: 21663.75117 | H133: 0.1329769324 | I133: 2880.779175
A134: 124 | C134: BIRCH CREEK UNIT 182 FR | D134: FRONTIER | E134: 6.250360983 | F134: 5199 | G134: 32495.62675 | H134: 0.1329769324 | I134: 4321.168763
A135: 125 | C135: BIRCH CREEK UNIT 183 BR | D135: BEAR RIVER | E135: 6.250360983 | F135: 6652 | G135: 41577.40126 | H135: 0.1329769324 | I135: 5528.835278
A136: 126 | C136: BIRCH CREEK UNIT 183 FR | D136: FRONTIER | E136: 6.250360983 | F136: 9977 | G136: 62359.85153 | H136: 0.1329769324 | I136: 8292.421763
A137: 127 | C137: BIRCH CREEK UNIT 184 BR | D137: BEAR RIVER | E137: 6.250360983 | F137: 1861 | G137: 11631.92179 | H137: 0.1329769324 | I137: 1546.777278
A138: 128 | C138: BIRCH CREEK UNIT 184 FR | D138: FRONTIER | E138: 6.250360983 | F138: 16800 | G138: 105006.0645 | H138: 0.1329769324 | I138: 13963.38435
A139: 129 | C139: BIRCH CREEK UNIT 185 BR | D139: BEAR RIVER | E139: 6.250360983 | F139: 5433 | G139: 33958.21122 | H139: 0.1329769324 | I139: 4515.658759
A140: 130 | C140: BIRCH CREEK UNIT 185 FR | D140: FRONTIER | E140: 6.250360983 | F140: 12675 | G140: 79223.32546 | H140: 0.1329769324 | I140: 10534.8748
A141: 131 | C141: BIRCH CREEK UNIT 187 BR | D141: BEAR RIVER | E141: 6.250360983 | F141: 6806 | G141: 42539.95685 | H141: 0.1329769324 | I141: 5656.832967
A142: 132 | C142: BIRCH CREEK UNIT 187 FR | D142: FRONTIER | E142: 6.250360983 | F142: 12092 | G142: 75579.36501 | H142: 0.1329769324 | I142: 10050.31211
A143: 133 | C143: BIRCH CREEK UNIT 188 FR | D143: FRONTIER | E143: 6.250360983 | F143: 20795 | G143: 129976.2567 | H143: 0.1329769324 | I143: 17283.8439
A144: 134 | C144: BIRCH CREEK UNIT 189 BR | D144: BEAR RIVER | E144: 6.250360983 | F144: 6597 | G144: 41233.63141 | H144: 0.1329769324 | I144: 5483.121817
A145: 135 | C145: BIRCH CREEK UNIT 189 FR | D145: FRONTIER | E145: 6.250360983 | F145: 9497 | G145: 59359.67826 | H145: 0.1329769324 | I145: 7893.467924
A146: 136 | C146: BIRCH CREEK UNIT 190 BR | D146: BEAR RIVER | E146: 6.250360983 | F146: 2075 | G146: 12969.49904 | H146: 0.1329769324 | I146: 1724.644197
A147: 137 | C147: BIRCH CREEK UNIT 190 FR | D147: FRONTIER | E147: 6.250360983 | F147: 18666 | G147: 116669.2381 | H147: 0.1329769324 | I147: 15514.31739
A148: 138 | C148: BIRCH CREEK UNIT 191 BR | D148: BEAR RIVER | E148: 6.250360983 | F148: 2898 | G148: 18113.54613 | H148: 0.1329769324 | I148: 2408.6838
A149: 139 | C149: BIRCH CREEK UNIT 191 FR | D149: FRONTIER | E149: 6.250360983 | F149: 12371 | G149: 77323.21573 | H149: 0.1329769324 | I149: 10282.20403
A150: 140 | C150: BIRCH CREEK UNIT 192 BR | D150: BEAR RIVER | E150: 6.250360983 | F150: 1507 | G150: 9419.294002 | H150: 0.1329769324 | I150: 1252.548822
A151: 141 | C151: BIRCH CREEK UNIT 192 FR | D151: FRONTIER | E151: 6.250360983 | F151: 23636 | G151: 147733.5322 | H151: 0.1329769324 | I151: 19645.15193
A152: 142 | C152: BIRCH CREEK UNIT 193 BR | D152: BEAR RIVER | E152: 6.250360983 | F152: 681 | G152: 4256.49583 | H152: 0.1329769324 | I152: 566.0157583
A153: 143 | C153: BIRCH CREEK UNIT 193 FR | D153: FRONTIER | E153: 6.250360983 | F153: 12965 | G153: 81035.93015 | H153: 0.1329769324 | I153: 10775.90941
A154: 144 | C154: BIRCH CREEK UNIT 194 BR | D154: BEAR RIVER | E154: 6.250360983 | F154: 1360 | G154: 8500.490937 | H154: 0.1329769324 | I154: 1130.369209
A155: 145 | C155: BIRCH CREEK UNIT 194 FR | D155: FRONTIER | E155: 6.250360983 | F155: 21346 | G155: 133420.2056 | H155: 0.1329769324 | I155: 17741.80966
A156: 146 | C156: BIRCH CREEK UNIT 195 BR | D156: BEAR RIVER | E156: 6.250360983 | F156: 3383 | G156: 21144.97121 | H156: 0.1329769324 | I156: 2811.793407
A157: 147 | C157: BIRCH CREEK UNIT 195 FR | D157: FRONTIER | E157: 6.250360983 | F157: 24820 | G157: 155133.9596 | H157: 0.1329769324 | I157: 20629.23806
A158: 148 | C158: BIRCH CREEK UNIT 196 BR | D158: BEAR RIVER | E158: 6.250360983 | F158: 350 | G158: 2187.626344 | H158: 0.1329769324 | I158: 290.9038405
A159: 149 | C159: BIRCH CREEK UNIT 196 FR | D159: FRONTIER | E159: 6.250360983 | F159: 17188 | G159: 107431.2046 | H159: 0.1329769324 | I159: 14285.87203
A160: 150 | C160: BIRCH CREEK UNIT 198 BR | D160: BEAR RIVER | E160: 6.250360983 | F160: 3186 | G160: 19913.65009 | H160: 0.1329769324 | I160: 2648.056103
A161: 151 | C161: BIRCH CREEK UNIT 198 FR | D161: FRONTIER | E161: 6.250360983 | F161: 1877 | G161: 11731.92757 | H161: 0.1329769324 | I161: 1560.075739
A162: 152 | C162: BIRCH CREEK UNIT 199 BR | D162: BEAR RIVER | E162: 6.250360983 | F162: 1266 | G162: 7912.957005 | H162: 0.1329769324 | I162: 1052.240749
A163: 153 | C163: BIRCH CREEK UNIT 199 FR | D163: FRONTIER | E163: 6.250360983 | F163: 12856 | G163: 80354.6408 | H163: 0.1329769324 | I163: 10685.31364
A164: 154 | C164: BIRCH CREEK UNIT 2 BR | D164: BEAR RIVER | E164: 6.250360983 | F164: 3118 | G164: 19488.62555 | H164: 0.1329769324 | I164: 2591.537642
A165: 155 | C165: BIRCH CREEK UNIT 2 FR | D165: FRONTIER | E165: 6.250360983 | F165: 5089 | G165: 31808.08704 | H165: 0.1329769324 | I165: 4229.741841
A166: 156 | C166: BIRCH CREEK UNIT 200 BR | D166: BEAR RIVER | E166: 6.250360983 | F166: 2678 | G166: 16738.46671 | H166: 0.1329769324 | I166: 2225.829957
A167: 157 | C167: BIRCH CREEK UNIT 200 FR | D167: FRONTIER | E167: 6.250360983 | F167: 8035 | G167: 50221.6505 | H167: 0.1329769324 | I167: 6678.321025
A168: 158 | C168: BIRCH CREEK UNIT 201-25 BR | D168: BEAR RIVER | E168: 6.250360983 | F168: 2516 | G168: 15725.90823 | H168: 0.1329769324 | I168: 2091.183036
A169: 159 | C169: BIRCH CREEK UNIT 201-25 FR | D169: FRONTIER | E169: 6.250360983 | F169: 5879 | G169: 36745.87222 | H169: 0.1329769324 | I169: 4886.353367
A170: 160 | C170: BIRCH CREEK UNIT 202-25 BR | D170: BEAR RIVER | E170: 6.250360983 | F170: 4398 | G170: 27489.08761 | H170: 0.1329769324 | I170: 3655.414545
A171: 161 | C171: BIRCH CREEK UNIT 202-25 FR | D171: FRONTIER | E171: 6.250360983 | F171: 10267 | G171: 64172.45622 | H171: 0.1329769324 | I171: 8533.456373
A172: 162 | C172: BIRCH CREEK UNIT 203-25 BR | D172: BEAR RIVER | E172: 6.250360983 | F172: 6436 | G172: 40227.32329 | H172: 0.1329769324 | I172: 5349.30605
A173: 163 | C173: BIRCH CREEK UNIT 203-25 FR | D173: FRONTIER | E173: 6.250360983 | F173: 15024 | G173: 93905.42341 | H173: 0.1329769324 | I173: 12487.25514
A174: 164 | C174: BIRCH CREEK UNIT 26 FR | D174: FRONTIER | E174: 6.250360983 | F174: 8747 | G174: 54671.90752 | H174: 0.1329769324 | I174: 7270.102552
A175: 165 | C175: BIRCH CREEK UNIT 3 FFR | D175: 1ST FRONTIER | E175: 6.250360983 | F175: 15925 | G175: 99536.99866 | H175: 0.1329769324 | I175: 13236.12474
A176: 166 | C176: BIRCH CREEK UNIT 43A BR | D176: BEAR RIVER | E176: 6.250360983 | F176: 1049 | G176: 6556.628672 | H176: 0.1329769324 | I176: 871.8803677
A177: 167 | C177: BIRCH CREEK UNIT 43A FR | D177: FRONTIER | E177: 6.250360983 | F177: 9415 | G177: 58847.14866 | H177: 0.1329769324 | I177: 7825.31331
A178: 168 | C178: BIRCH CREEK UNIT 5 2ND FR | D178: FRONTIER | E178: 6.250360983 | F178: 2588 | G178: 16175.93423 | H178: 0.1329769324 | I178: 2151.026112
A179: 169 | C179: BIRCH CREEK UNIT 5 FR | D179: FORT UNION | E179: 6.250360983 | F179: 2803 | G179: 17519.76184 | H179: 0.1329769324 | I179: 2329.724186
A180: 170 | C180: BIRCH CREEK UNIT 56 2ND FR | D180: FRONTIER | E180: 6.250360983 | F180: 5095 | G180: 31845.58921 | H180: 0.1329769324 | I180: 4234.728764
A181: 171 | C181: BIRCH CREEK UNIT 6 FR | D181: FRONTIER | E181: 6.250360983 | F181: 9766 | G181: 61041.02536 | H181: 0.1329769324 | I181: 8117.048304
A182: 172 | C182: BIRCH CREEK UNIT 61 BR | D182: BEAR RIVER | E182: 6.250360983 | F182: 1461 | G182: 9131.777397 | H182: 0.1329769324 | I182: 1214.315746
A183: 173 | C183: BIRCH CREEK UNIT 61 FR | D183: FRONTIER | E183: 6.250360983 | F183: 5822 | G183: 36389.60165 | H183: 0.1329769324 | I183: 4838.977599
A184: 174 | C184: BIRCH CREEK UNIT 7 FR | D184: FRONTIER | E184: 6.250360983 | F184: 4794 | G184: 29964.23055 | H184: 0.1329769324 | I184: 3984.551461
A185: 175 | C185: BIRCH CREEK UNIT 8 FR | D185: FRONTIER | E185: 6.250360983 | F185: 15655 | G185: 97849.4012 | H185: 0.1329769324 | I185: 13011.71321
A186: 176 | C186: BIRCH CREEK UNIT 87 2ND FR | D186: FRONTIER | E186: 6.250360983 | F186: 6233 | G186: 38958.50001 | H186: 0.1329769324 | I186: 5180.581823
A187: 177 | C187: BIRCH CREEK UNIT 87 BR | D187: BEAR RIVER | E187: 6.250360983 | F187: 686 | G187: 4287.747635 | H187: 0.1329769324 | I187: 570.1715274
A188: 178 | C188: BIRCH CREEK UNIT 87 BR RECOMP | D188: BEAR RIVER | E188: 6.250360983 | F188: 1594 | G188: 9963.075408 | H188: 0.1329769324 | I188: 1324.859205
A189: 179 | C189: BIRCH CREEK UNIT 87 FR | D189: FRONTIER | E189: 6.250360983 | F189: 2672 | G189: 16700.96455 | H189: 0.1329769324 | I189: 2220.843034
A190: 180 | C190: BIRCH CREEK UNIT 91 BR | D190: BEAR RIVER | E190: 6.250360983 | F190: 1376 | G190: 8600.496713 | H190: 0.1329769324 | I190: 1143.66767
A191: 181 | C191: BIRCH CREEK UNIT 91 FR | D191: FRONTIER | E191: 6.250360983 | F191: 12419 | G191: 77623.23305 | H191: 0.1329769324 | I191: 10322.09942
A192: 182 | C192: BIRCH CREEK UNIT 92 BR | D192: BEAR RIVER | E192: 6.250360983 | F192: 1777 | G192: 11106.89147 | H192: 0.1329769324 | I192: 1476.960356
A193: 183 | C193: BIRCH CREEK UNIT 92 FR | D193: FRONTIER | E193: 6.250360983 | F193: 5447 | G193: 34045.71628 | H193: 0.1329769324 | I193: 4527.294912
A194: 184 | C194: BIRCH CREEK UNIT 931 BR | D194: BEAR RIVER | E194: 6.250360983 | F194: 1894 | G194: 11838.1837 | H194: 0.1329769324 | I194: 1574.205354
A195: 185 | C195: BIRCH CREEK UNIT 931 FR | D195: FRONTIER | E195: 6.250360983 | F195: 14599 | G195: 91249.02 | H195: 0.1329769324 | I195: 12134.01477
A196: 186 | C196: BIRCH CREEK UNIT 94 BR | D196: BEAR RIVER | E196: 6.250360983 | F196: 111 | G196: 693.7900692 | H196: 0.1329769324 | I196: 92.25807514
A197: 187 | C197: BIRCH CREEK UNIT 94 FR | D197: FRONTIER | E197: 6.250360983 | F197: 16110 | G197: 100693.3154 | H197: 0.1329769324 | I197: 13389.8882
A198: 188 | C198: BIRCH CREEK UNIT 95 BR | D198: BEAR RIVER | E198: 6.250360983 | F198: 847 | G198: 5294.055753 | H198: 0.1329769324 | I198: 703.9872941
A199: 189 | C199: BIRCH CREEK UNIT 95 FR | D199: FRONTIER | E199: 6.250360983 | F199: 11587 | G199: 72422.93271 | H199: 0.1329769324 | I199: 9630.579429
A200: 190 | C200: BIRCH CREEK UNIT 96 BR | D200: BEAR RIVER | E200: 6.250360983 | F200: 2838 | G200: 17738.52447 | H200: 0.1329769324 | I200: 2358.81457
A201: 191 | C201: BIRCH CREEK UNIT 96 FR | D201: FRONTIER | E201: 6.250360983 | F201: 18478 | G201: 115494.1703 | H201: 0.1329769324 | I201: 15358.06047
A202: 192 | C202: BIRCH CREEK UNIT 97 BR | D202: BEAR RIVER | E202: 6.250360983 | F202: 8610 | G202: 53815.60807 | H202: 0.1329769324 | I202: 7156.234477
A203: 193 | C203: BIRCH CREEK UNIT 97 FR | D203: FRONTIER | E203: 6.250360983 | F203: 13189 | G203: 82436.01101 | H203: 0.1329769324 | I203: 10962.08786
A204: 194 | C204: BIRCH CREEK UNIT 98 BR | D204: BEAR RIVER | E204: 6.250360983 | F204: 1045 | G204: 6531.627228 | H204: 0.1329769324 | I204: 868.5557524
... 1483 more rows

Sheet SDR#1
E1: ='Control Panel'!F32 -> Dominion Energy Utah
E2: ='Control Panel'!F33 -> Docket No. 22-057-16
B4: Standard Data Request #1
B5: Summary of Sources of Supply and Demand
A8: 1 | B8: DEMAND | C8: Total | D8: Utah | E8: Wyoming
A10: =A8+1 -> 2 | B10: SALES IN DTHS | C10: =D10+E10 -> 118552357 | D10: =Calculations!P20 -> 114834120 | E10: =Calculations!P39 -> 3718237
A11: =A10+1 -> 3 | B11: DIST. CO. USE & | C11: 0
A12: =A11+1 -> 4 | B12: DIST. LOST & UNACCT. (0.49%) | C12: =Calculations!P154 -> 666433
A15: =A12+1 -> 5 | B15: TOTAL | C15: =SUM(C10:C12) -> 119218790
A19: =A15+1 -> 6 | B19: SUPPLY | C19: Total | D19: Utah | E19: Wyoming
A21: =A19+1 -> 7 | B21: COMPANY PRODUCTION | C21: ='Royalty Detail'!F1426+'Royalty Detail'!F1700 -> 58444351.95 | D21: =$D$10/$C$10*C21 -> 56611322.58 | E21: =$E$10/$C$10*C21 -> 1833029.367
A22: =A21+1 -> 8 | B22: GAS REIMBURSEMENT | C22: =C21*-'Other Inputs'!$E$280 -> -2951439.773 | D22: =D21*-'Other Inputs'!$E$280 -> -2858871.79 | E22: =E21*-'Other Inputs'!$E$280 -> -92567.98301
A25: =A22+1 -> 9 | B25: CONTRACT GAS | C25: ='Ut 1.2 p4'!F25 -> 67933164 | D25: =$D$10/$C$10*C25 -> 65802530.66 | E25: =$E$10/$C$10*C25 -> 2130633.336
A26: =A25+1 -> 10 | B26: GAS REIMBURSEMENT | C26: =C25*-'Other Inputs'!$E$279 -> -713298.222 | D26: =D25*-'Other Inputs'!$E$279 -> -690926.572 | E26: =E25*-'Other Inputs'!$E$279 -> -22371.65003
A28: =A26+1 -> 11 | B28: STORAGE
A29: =A28+1 -> 12 | B29: INJECTIONS | C29: ='Ut 1.2 p5'!G18 -> -15007402 | D29: =$D$10/$C$10*C29 -> -14536714.8 | E29: =$E$10/$C$10*C29 -> -470687.2035
A30: =A29+1 -> 13 | B30: WITHDRAWALS | C30: ='Ut 1.2 p5'!G17 -> 11703439 | D30: =$D$10/$C$10*C30 -> 11336376.2 | E30: =$E$10/$C$10*C30 -> 367062.7984
A31: =A30+1 -> 14 | B31: NET (INJECTIONS) WITHDRAWALS | C31: =C29+C30 -> -3303963 | D31: =D29+D30 -> -3200338.595 | E31: =E29+E30 -> -103624.4051
A33: =A31+1 -> 15 | B33: Storage Fuel | C33: =Calculations!P172+Calculations!P173 -> -374974.9982 | D33: =D10/C10*C33 -> -363214.4061 | E33: =E10/C10*C33 -> -11760.59209
A34: =A33+1 -> 16 | B34: LNG WITHDRAWALS | C34: ='Ut 1.2 p6'!G22 -> 184950 | D34: =C34 -> 184950 | E34: 0
A37: =A34+1 -> 17 | B37: TOTAL SUPPLY | C37: =C21+C22+C25+C26+C29+C30+C33+C34 -> 119218790 | D37: =SUM(D21:D30)+D33+D34 -> 115485451.9 | E37: =SUM(E21:E30)+E33 -> 3733338.072
A39: =A37+1 -> 18 | B39: Company Use & Loss % | C39: =(+C37-C10)/C37 -> 0.005589999307 | D39: =(+D37-D10)/D37 -> 0.005639947458 | E39: =(+E37-E10)/E37 -> 0.004044924984
B42: Difference | C42: =C15-C37 -> 0.04677927494

Sheet SDR#2
H1: ='Control Panel'!F32 -> Dominion Energy Utah
H2: ='Control Panel'!F33 -> Docket No. 22-057-16
A5: Standard Data Request #2
A6: Supplier Non-Gas Costs
B8: (A) | C8: (B) | D8: (C) | E8: (D) | F8: (E) | G8: (F) | T8: withdraw
A9: I. Transportation (QPC T-1) | C9: Volume (Dth) | G9: Utah Total | J9: Utah gas | K9: Utah Co. | L9: Utah gas | M9: Wyo gas | N9: Wyo Co. | O9: Wyo gas | Q9: @city gate | R9: @city gate | T9: loss | U9: Kern River | X9: Overthrust
B10: Month | C10: Utah | D10: Wyoming | E10: $/dth | F10: Demand | G10: b*d+e*(Ut %) | J10: purchased | K10: production | L10: withdrawn | M10: purchased | N10: production | O10: withdrawn | P10: Total | Q10: purchased | R10: co production | S10: withdrawls | T10: =-Calculations!P172/Calculations!P139 -> 0.01466523804 | U10: Transportation | X10: Transportation
B12: Nov22 | C12: =J12+K12+L12-((T12+$B$51*U12)+(X12))*$J$39 -> 10327640.23 | D12: =M12+N12+O12-((T12+$B$51*U12)+(X12))*$K$39 -> 334400.7342 | E12: ='Other Inputs'!$F$44 -> 0.00267 | F12: =('Other Inputs'!$D$28)*('Other Inputs'!$F$28)-('Other Inputs'!$E$284/12)+('Other Inputs'!$D$35*'Other Inputs'!$F$35) -> 4294024.626 | G12: =(+C12)*E12+F12*$J$33/$L$33 -> 4185917.543 | J12: =Q12*$J$39 -> 7898946.466 | K12: =R12*$J$39 -> 5105716.491 | L12: =S12*$J$39 -> 0 | M12: =Q12-J12 -> 255761.5716 | N12: =R12-K12 -> 165319.0182 | O12: =S12-L12 -> 0 | P12: =SUM(J12:O12)-U12 -> 9889193.547 | Q12: =Calculations!D176 -> 8154708.037 | R12: =Calculations!D167 -> 5271035.51 | S12: =Calculations!D169+Calculations!D170 -> 0 | T12: =S12*$T$10 -> 0 | U12: =V12*W12 -> 3536550 | V12: =Calculations!D255 -> 117885 | W12: =Calculations!D254 -> 30 | X12: =+W12*$D$39 -> 256260 | Y12: =B12 -> Nov22
B13: Dec22 | C13: =J13+K13+L13-((T13+$B$51*U13)+(X13))*$J$39 -> 15044763.07 | D13: =M13+N13+O13-((T13+$B$51*U13)+(X13))*$K$39 -> 487137.4004 | E13: ='Other Inputs'!$F$44 -> 0.00267 | F13: =('Other Inputs'!$D$28)*('Other Inputs'!$F$28)-('Other Inputs'!$E$284/12)+('Other Inputs'!$D$35*'Other Inputs'!$F$35) -> 4294024.626 | G13: =(+C13)*E13+F13*$J$33/$L$33 -> 4198512.261 | J13: =Q13*$J$39 -> 10637775.35 | K13: =R13*$J$39 -> 5002775.15 | L13: 3303098.317 | M13: 344442.6613 | N13: 161985.8598 | O13: 106951.6828 | P13: =SUM(J13:O13)-U13 -> 14323919.02 | Q13: =Calculations!E176 -> 10982218.01 | R13: =Calculations!E167 -> 5164761.01 | S13: =Calculations!E169+Calculations!E170 -> 3410050 | T13: =S13*$T$10 -> 50009.19497 | U13: =V13*W13 -> 5233110 | V13: =Calculations!E255 -> 168810 | W13: =Calculations!E254 -> 31 | X13: =+W13*$D$39 -> 264802 | Y13: Dec22
B14: Jan23 | C14: 16695618.54 | D14: 540590.7809 | E14: ='Other Inputs'!$F$44 -> 0.00267 | F14: =('Other Inputs'!$D$28)*('Other Inputs'!$F$28)-('Other Inputs'!$E$284/12)+('Other Inputs'!$D$35*'Other Inputs'!$F$35) -> 4294024.626 | G14: =(+C14)*E14+F14*$J$33/$L$33 -> 4202920.045 | J14: =Q14*$J$39 -> 11510488.56 | K14: 4821672.211 | L14: 4276620.449 | M14: 372700.4175 | N14: 156121.8914 | O14: 138473.5511 | P14: 16042967.08 | Q14: =Calculations!F176 -> 11883188.98 | R14: =Calculations!F167 -> 4977794.102 | S14: =Calculations!F169+Calculations!F170 -> 4415094 | T14: =S14*$T$10 -> 64748.40447 | U14: =V14*W14 -> 5233110 | V14: =Calculations!F255 -> 168810 | W14: =Calculations!F254 -> 31 | X14: 264802 | Y14: Jan23
B15: Feb23 | C15: 14063235.03 | D15: 455356.3074 | E15: ='Other Inputs'!$F$44 -> 0.00267 | F15: =('Other Inputs'!$D$28)*('Other Inputs'!$F$28)-('Other Inputs'!$E$284/12)+('Other Inputs'!$D$35*'Other Inputs'!$F$35) -> 4294024.626 | G15: 4195891.581 | J15: =Q15*$J$39 -> 9702956.311 | K15: 4243550.456 | L15: 3648049.087 | M15: 314173.9682 | N15: 137402.7712 | O15: 118120.913 | P15: 13437573.51 | Q15: =Calculations!G176 -> 10017130.28 | R15: =Calculations!G167 -> 4380953.227 | S15: =Calculations!G169+Calculations!G170 -> 3766170 | T15: 55231.77954 | U15: 4726680 | V15: =Calculations!G255 -> 168810 | W15: =Calculations!G254 -> 28 | X15: 239176 | Y15: Feb23
B16: Mar23 | C16: 11679224.58 | D16: 378163.9548 | E16: ='Other Inputs'!$F$44 -> 0.00267 | F16: =('Other Inputs'!$D$28)*('Other Inputs'!$F$28)-('Other Inputs'!$E$284/12)+('Other Inputs'!$D$35*'Other Inputs'!$F$35) -> 4294024.626 | G16: 4189526.273 | J16: 9770952.286 | K16: 4567513.528 | L16: 108608.3485 | M16: 316375.6235 | N16: 147892.4365 | O16: 3516.651496 | P16: 11260423.87 | Q16: =Calculations!H176 -> 10087327.91 | R16: =Calculations!H167 -> 4715405.965 | S16: =Calculations!H169+Calculations!H170 -> 112125 | T16: 1644.339815 | U16: 3654435 | V16: =Calculations!H255 -> 117885 | W16: =Calculations!H254 -> 31 | X16: 264802 | Y16: Mar23
B17: Apr23 | C17: 8272354.496 | D17: 267852.2252 | E17: ='Other Inputs'!$F$44 -> 0.00267 | F17: =('Other Inputs'!$D$28)*('Other Inputs'!$F$28)-('Other Inputs'!$E$284/12)+('Other Inputs'!$D$35*'Other Inputs'!$F$35) -> 4294024.626 | G17: 4180429.93 | J17: 4908616.879 | K17: 4330700.554 | L17: 0 | M17: 158937.0903 | N17: 140224.6217 | O17: 0 | P17: 8491929.144 | Q17: =Calculations!I176 -> 5067553.969 | R17: =Calculations!I167 -> 4470925.175 | S17: =Calculations!I169+Calculations!I170 -> 0 | T17: =S17*$T$10 -> 0 | U17: 1046550 | V17: =Calculations!I255 -> 34885 | W17: =Calculations!I254 -> 30 | X17: 256260 | Y17: Apr23
B18: May23 | C18: 6839753.493 | D18: 221465.75 | E18: ='Other Inputs'!$F$44 -> 0.00267 | F18: =('Other Inputs'!$D$28)*('Other Inputs'!$F$28)-('Other Inputs'!$E$284/12)+('Other Inputs'!$D$35*'Other Inputs'!$F$35) -> 4294024.626 | G18: =(+C18)*E18+F18*$J$33/$L$33 -> 4176604.885 | J18: 3460740.031 | K18: 4378208.496 | L18: 0 | M18: 112055.9955 | N18: 141762.8909 | O18: 0 | P18: 7011332.413 | Q18: =Calculations!J176 -> 3572796.026 | R18: =Calculations!J167 -> 4519971.387 | S18: =Calculations!J169+Calculations!J170 -> 0 | T18: 0 | U18: 1081435 | V18: =Calculations!J255 -> 34885 | W18: =Calculations!J254 -> 31 | X18: 264802 | Y18: May23
B19: Jun23 | C19: 4071144.184 | D19: 131820.3939 | E19: ='Other Inputs'!$F$44 -> 0.00267 | F19: =('Other Inputs'!$D$28)*('Other Inputs'!$F$28)-('Other Inputs'!$E$284/12)+('Other Inputs'!$D$35*'Other Inputs'!$F$35) -> 4294024.626 | G19: 4169212.698 | J19: 879026.761 | K19: 4159080.358 | L19: 0 | M19: 28462.18377 | N19: 134667.697 | O19: 0 | P19: 4154687 | Q19: =Calculations!K176 -> 907488.9448 | R19: =Calculations!K167 -> 4293748.055 | S19: =Calculations!K169+Calculations!K170 -> 0 | T19: 0 | U19: 1046550 | V19: =Calculations!K255 -> 34885 | W19: =Calculations!K254 -> 30 | X19: 256260 | Y19: Jun23
B20: Jul23 | C20: 3593488.337 | D20: 116354.2795 | E20: ='Other Inputs'!$F$44 -> 0.00267 | F20: =('Other Inputs'!$D$28)*('Other Inputs'!$F$28)-('Other Inputs'!$E$284/12)+('Other Inputs'!$D$35*'Other Inputs'!$F$35) -> 4294024.626 | G20: =(+C20)*E20+F20*$J$33/$L$33 -> 4167937.357 | J20: 295650.7843 | K20: 4297032.587 | L20: 0 | M20: 9572.936034 | N20: 139134.4798 | O20: 0 | P20: 3659955.787 | Q20: =Calculations!L176 -> 305223.7203 | R20: =Calculations!L167 -> 4436167.066 | S20: =Calculations!L169+Calculations!L170 -> 0 | T20: 0 | U20: 1081435 | V20: =Calculations!L255 -> 34885 | W20: =Calculations!L254 -> 31 | X20: 264802 | Y20: Jul23
B21: Aug23 | C21: 3561624.017 | D21: 115322.5383 | E21: ='Other Inputs'!$F$44 -> 0.00267 | F21: =('Other Inputs'!$D$28)*('Other Inputs'!$F$28)-('Other Inputs'!$E$284/12)+('Other Inputs'!$D$35*'Other Inputs'!$F$35) -> 4294024.626 | G21: =(+C21)*E21+F21*$J$33/$L$33 -> 4167852.279 | J21: 160929.7741 | K21: 4399889.276 | L21: 0 | M21: 5210.777428 | N21: 142464.8972 | O21: 0 | P21: 3627059.725 | Q21: =Calculations!M176 -> 166140.5515 | R21: =Calculations!M167 -> 4542354.173 | S21: =Calculations!M169+Calculations!M170 -> 0 | T21: 0 | U21: 1081435 | V21: =Calculations!M255 -> 34885 | W21: =Calculations!M254 -> 31 | X21: 264802 | Y21: Aug23
B22: Sep23 | C22: 4114510.382 | D22: 133224.5568 | E22: ='Other Inputs'!$F$44 -> 0.00267 | F22: =('Other Inputs'!$D$28)*('Other Inputs'!$F$28)-('Other Inputs'!$E$284/12)+('Other Inputs'!$D$35*'Other Inputs'!$F$35) -> 4294024.626 | G22: =(+C22)*E22+F22*$J$33/$L$33 -> 4169328.486 | J22: 882599.5577 | K22: 4198873.76 | L22: 0 | M22: 28577.86807 | N22: 135956.1755 | O22: 0 | P22: 4199457.361 | Q22: =Calculations!N176 -> 911177.4258 | R22: =Calculations!N167 -> 4334829.935 | S22: =Calculations!N169+Calculations!N170 -> 0 | T22: 0 | U22: 1046550 | V22: =Calculations!N255 -> 34885 | W22: =Calculations!N254 -> 30 | X22: 256260 | Y22: Sep23
B23: Oct23 | C23: 8251164.266 | D23: 267166.1024 | E23: ='Other Inputs'!$F$44 -> 0.00267 | F23: =('Other Inputs'!$D$28)*('Other Inputs'!$F$28)-('Other Inputs'!$E$284/12)+('Other Inputs'!$D$35*'Other Inputs'!$F$35) -> 4294024.626 | G23: =(+C23)*E23+F23*$J$33/$L$33 -> 4180373.352 | J23: 5002921.595 | K23: 4247437.704 | L23: 0 | M23: 161990.6016 | N23: 137528.6372 | O23: 0 | P23: 8468443.538 | Q23: =Calculations!O176 -> 5164912.197 | R23: =Calculations!O167 -> 4384966.342 | S23: =Calculations!O169+Calculations!O170 -> 0 | T23: 0 | U23: 1081435 | V23: =Calculations!O255 -> 34885 | W23: =Calculations!O254 -> 31 | X23: 264802 | Y23: =B23 -> Oct23
C26: =SUM(C12:C23) -> 106514520.6 | D26: =SUM(D12:D23) -> 3448855.024 | G26: =SUM(G12:G23) -> 50184506.69 | J26: =SUM(J12:J25) -> 65111604.36 | K26: 53752450.57 | L26: 11336376.2 | M26: 2108261.695 | N26: 1740461.376 | O26: 367062.7984 | P26: =SUM(P12:P23) -> 104566942 | Q26: 67219866.05 | R26: 55492911.95 | S26: 11703439 | T26: 171633.7188 | U26: 29849275
C29: Months | F29: System | G29: Utah | J29: Allocation Factors
C30: or Days | D30: Dth | E30: Rate | F30: Total | G30: Total
J31: Peak Demand Allocation Base
A32: II. Transportation (ML 104 demand) | C32: ='Other Inputs'!E29 -> 12 | D32: ='Other Inputs'!D29 -> 30000 | E32: ='Other Inputs'!F29 -> 5.28804 | F32: =C32*D32*E32 -> 1903694.4 | G32: =F32*J34 -> 1843541.778 | J32: Utah | K32: Wyo | L32: Total
J33: ='Other Inputs'!E146 -> 1205682 | K33: ='Other Inputs'!E147 -> 39340 | L33: =J33+K33 -> 1245022
A34: III. Transportation (TL 112 demand) | C34: ='Other Inputs'!E30 -> 12 | D34: ='Other Inputs'!D30 -> 12000 | E34: ='Other Inputs'!F30 -> 5.28804 | F34: =C34*D34*E34 -> 761477.76 | G34: =F34*J34 -> 737416.7112 | J34: =J33/L33 -> 0.9684021648 | K34: =K33/L33 -> 0.03159783522
C35: ='Other Inputs'!E31 -> 5 | D35: ='Other Inputs'!D31 -> 75000 | E35: ='Other Inputs'!F31 -> 6.80887 | F35: =C35*D35*E35 -> 2553326.25 | G35: =F35*J34 -> 2472646.668
J36: Dth Sales Allocation Base
A37: III. Transportation (Hyrum) | C37: =+'Other Inputs'!E32 -> 12 | D37: ='Other Inputs'!D32 -> 100000 | E37: ='Other Inputs'!F32 -> 5.28804 | F37: =C37*D37*E37 -> 6345648 | G37: =F37*J34 -> 6145139.26 | J37: Utah | K37: Wyo | L37: Total
J38: =Calculations!P20 -> 114834120 | K38: =Calculations!P39 -> 3718237 | L38: =J38+K38 -> 118552357
A39: IV. Transportation (Overthrust Pipeline) | C39: ='Other Inputs'!E38 -> 12 | D39: ='Other Inputs'!D38 -> 8542 | E39: ='Other Inputs'!F38 -> 1.62 | F39: =C39*D39*E39 -> 166056.48 | G39: =F39*J34 -> 160809.4547 | J39: =J38/L38 -> 0.96863633 | K39: =K38/L38 -> 0.03136366998
C40: 365 | D40: ='Other Inputs'!D38 -> 8542 | E40: ='Other Inputs'!F39 -> 0.00167 | F40: =C40*D40*E40 -> 5206.7761 | G40: =F40*J39 -> 5043.472493
A42: IV. Transportation (KR 2003 Expansion) | C42: ='Other Inputs'!E59 -> 12 | D42: ='Other Inputs'!D59 -> 33000 | E42: ='Other Inputs'!F59 -> 3.172933333 | F42: =C42*D42*E42 -> 1256481.6
C43: ='Other Inputs'!E60 -> 5 | D43: ='Other Inputs'!D60 -> 50000 | E43: ='Other Inputs'!F60 -> 3.172933333 | F43: =C43*D43*E43 -> 793233.3333 | G43: =(F42+F43+F44)*J34 -> 2105146.174
C44: ='Other Inputs'!E61 -> 12 | D44: ='Other Inputs'!D61 -> 1885 | E44: ='Other Inputs'!F61 -> 5.487166667 | F44: =C44*D44*E44 -> 124119.71
A46: V. Transportation (KR #20024) | C46: =+'Other Inputs'!E69 -> 5 | D46: =+'Other Inputs'!D69 -> 27000 | E46: =+'Other Inputs'!F69 -> 8.758 | F46: =C46*D46*E46 -> 1182330 | G46: =F46*J34 -> 1144970.931
A48: VI. Transportation (KR #20017) | C48: =+'Other Inputs'!E65 -> 3 | D48: =+'Other Inputs'!D65 -> 56925 | E48: =+'Other Inputs'!F65 -> 8.7 | F48: =C48*D48*E48 -> 1485742.5 | G48: =F48*J34 -> 1438796.253
C49: =+'Other Inputs'!E67 -> 2 | D49: =+'Other Inputs'!D67 -> 6000 | E49: =+'Other Inputs'!F67 -> 8.845 | F49: =C49*D49*E49 -> 106140 | G49: =F49*J34 -> 102786.2058
A51: VIII. Trans (KR 2003 Expansion) | B51: ='Other Inputs'!C74 -> 0.7090080956 | C51: ='Other Inputs'!E73 -> 365 | D51: ='Other Inputs'!D73 -> 34885 | E51: ='Other Inputs'!F73 -> 0.0044 | F51: =B51*C51*D51*E51 -> 39722.39835
B52: ='Other Inputs'!C73 -> 0.7090080956 | C52: ='Other Inputs'!E74 -> 151 | D52: ='Other Inputs'!D74 -> 50000 | E52: ='Other Inputs'!F74 -> 0.0044 | F52: =B52*C52*D52*E52 -> 23553.24894 | G52: =(F51+F52)*J39 -> 61291.09077
A54: IX. Transportation (KR #20024) | B54: =+'Other Inputs'!C80 -> 0.7090080956 | C54: =+'Other Inputs'!E80 -> 151 | D54: =+'Other Inputs'!D80 -> 27000 | E54: =+'Other Inputs'!F80 -> 0.0044 | F54: =B54*C54*D54*E54 -> 12718.75443 | G54: =+F54*J39 -> 12319.84761
A56: X. Trans (KR #20017) | B56: =+'Other Inputs'!C77 -> 0.7090080956 | C56: =+'Other Inputs'!E77 -> 90 | D56: =+'Other Inputs'!D77 -> 56925 | E56: =+'Other Inputs'!F77 -> 0.0044 | F56: =B56*C56*D56*E56 -> 15982.67319
B57: =+'Other Inputs'!C78 -> 0.7090080956 | C57: =+'Other Inputs'!E78 -> 61 | D57: =+'Other Inputs'!D78 -> 6000 | E57: =+'Other Inputs'!F78 -> 0.0044 | F57: =B57*C57*D57*E57 -> 1141.786637 | G57: =(F56+F57)*J39 -> 16587.37392
A59: XII. Other Trans | F59: ='Other Inputs'!$D$186 -> 2651219.403 | G59: =F59*$J$39 -> 2568067.433
A61: Storage Commodity | F61: =+'Ut 1.4 p2'!J29 -> 455883 | G61: =+F61*J39 -> 441584.836
A62: Total ACA | D62: =+'Ut 1.4 p1'!F41 -> 134244583.3 | E62: =+'Ut 1.4 p1'!J41 -> 0.0015 | F62: =+D62*E62 -> 201366.8749 | G62: =+F62*J39 -> 195051.2707
A64: XIV. Storage Demand | C64: 12 | D64: ='Other Inputs'!E171 -> 184625 | E64: ='Other Inputs'!E14 -> 2.87375 | F64: =C64*D64*E64 -> 6366793.125
C65: 5 | D65: =+'Other Inputs'!E172 -> 0 | E65: =+'Other Inputs'!E15 -> 0 | F65: =C65*D65*E65 -> 0
C66: 12 | D66: ='Other Inputs'!E173 -> 111827 | E66: ='Other Inputs'!E16 -> 2.85338 | F66: =C66*D66*E66 -> 3829019.103
C67: 12 | D67: ='Other Inputs'!E174 -> 13419000 | E67: ='Other Inputs'!E17 -> 0.02378 | F67: =C67*D67*E67 -> 3829245.84 | G67: =SUM(F64:F67)*J34 -> 13581896.59
A69: XV. Peak Hour Service | C69: =+'Other Inputs'!E20 -> 3 | D69: =+'Other Inputs'!D20 -> 28752 | E69: =+'Other Inputs'!F20 -> 18.0596 | F69: =C69*D69*E69 -> 1557748.858 | G69: =F69*J34 -> 1508527.366
C70: =+'Other Inputs'!E23 -> 3 | D70: =+'Other Inputs'!D23 -> 74666.66667 | E70: =+'Other Inputs'!F23 -> 7.357482143 | F70: =C70*D70*E70 -> 1648076 | G70: =F70*J34 -> 1596000.366
A72: LNG Electric Costs | C72: 12 | F72: =+'Ut 1.4 p2'!K34 -> 2088763.27 | G72: =+F72 -> 2088763.27
A75: Total Supplier Non-Gas Costs | G75: =G26+G32+G34+G35+G43+G52+G59+G67++G46+G48+G49+G54+G57+G69+G70+G61+G62+G37+G39+G40+G72 -> 88410893.05

Sheet Wy SDR#1 (hidden)
A1: Wyoming Standard Data Request #1
A2: Global Insights Forecast

Sheet SDR#3
I1: ='Control Panel'!F32 -> Dominion Energy Utah
I2: ='Control Panel'!F33 -> Docket No. 22-057-16
C5: Standard Data Request #3
C6: Monthly Forecasted Sales
D8: Utah Sales | F8: Wyoming Sales | H8: System Total
C9: Month | D9: Dth | F9: Dth | H9: Dth
B11: 1 | C11: =Calculations!D147 -> Nov22 | D11: =Calculations!D20 -> 12279657 | F11: =Calculations!D39 -> 420452 | H11: =SUM(D11:F11) -> 12700109
B13: =B11+1 -> 2 | C13: =Calculations!E147 -> Dec22 | D13: =Calculations!E20 -> 18712488 | F13: =Calculations!E39 -> 592197 | H13: =SUM(D13:F13) -> 19304685
B15: =B13+1 -> 3 | C15: =Calculations!F147 -> Jan23 | D15: =Calculations!F20 -> 20486544 | F15: =Calculations!F39 -> 602427 | H15: 21088971
B17: =B15+1 -> 4 | C17: =Calculations!G147 -> Feb23 | D17: =Calculations!G20 -> 17106677 | F17: =Calculations!G39 -> 534389 | H17: 17641066
B19: =B17+1 -> 5 | C19: =Calculations!H147 -> Mar23 | D19: =Calculations!H20 -> 13433023 | F19: =Calculations!H39 -> 448594 | H19: 13881617
B21: =B19+1 -> 6 | C21: =Calculations!I147 -> Apr23 | D21: =Calculations!I20 -> 9017969 | F21: =Calculations!I39 -> 329671 | H21: 9347640
B23: =B21+1 -> 7 | C23: =Calculations!J147 -> May23 | D23: =Calculations!J20 -> 5391667 | F23: =Calculations!J39 -> 219398 | H23: 5611065
B25: =B23+1 -> 8 | C25: =Calculations!K147 -> Jun23 | D25: =Calculations!K20 -> 3071369 | F25: =Calculations!K39 -> 105674 | H25: 3177043
B27: =B25+1 -> 9 | C27: =Calculations!L147 -> Jul23 | D27: =Calculations!L20 -> 2584396 | F27: =Calculations!L39 -> 68869 | H27: 2653265
B29: =B27+1 -> 10 | C29: =Calculations!M147 -> Aug23 | D29: =Calculations!M20 -> 2544456 | F29: =Calculations!M39 -> 70192 | H29: 2614648
B31: =B29+1 -> 11 | C31: =Calculations!N147 -> Sep23 | D31: =Calculations!N20 -> 2986836 | F31: =Calculations!N39 -> 98227 | H31: 3085063
B33: =B31+1 -> 12 | C33: =Calculations!O147 -> Oct23 | D33: =Calculations!O20 -> 7219038 | F33: =Calculations!O39 -> 228147 | H33: 7447185
B36: =B33+1 -> 13 | C36: Total Sales (Dth) | D36: =SUM(D11:D33) -> 114834120 | F36: =SUM(F11:F33) -> 3718237 | H36: =SUM(H11:H33) -> 118552357

Sheet SDR#4
H1: ='Control Panel'!F32 -> Dominion Energy Utah
H2: ='Control Panel'!F33 -> Docket No. 22-057-16
C5: Standard Data Request #4
C6: Supplier Non-Gas Costs Recovered at Current Rates
C9: (A) | D9: (B) | E9: (C) | F9: (D) | G9: (E)
B10: 1 | C10: Rate Schedule | D10: Season | E10: Sales Dth | F10: SNG Rate | G10: SNG Revenue
B12: =B10+1 -> 2 | C12: GS | D12: winter | E12: ='Utah Summary-by class'!B8 -> 80455858 | F12: ='Utah Summary-by class'!J8 -> 0.94588 | G12: =E12*F12 -> 76101586.97
B13: =B12+1 -> 3 | D13: summer | E13: ='Utah Summary-by class'!B9 -> 31228294 | F13: ='Utah Summary-by class'!J9 -> 0.39655 | G13: =E13*F13 -> 12383579.99
B15: =B13+1 -> 4 | C15: FS | D15: winter | E15: ='Utah Summary-by class'!B13 -> 1280686 | F15: ='Utah Summary-by class'!J13 -> 0.93493 | G15: =E15*F15 -> 1197351.762
B16: =B15+1 -> 5 | D16: summer | E16: ='Utah Summary-by class'!B14 -> 1308506 | F16: ='Utah Summary-by class'!J14 -> 0.78051 | G16: =E16*F16 -> 1021302.018
B18: =B16+1 -> 6 | C18: NGV | D18: annual | E18: ='Utah Summary-by class'!B18 -> 289772 | F18: ='Utah Summary-by class'!J18 -> 0.70658 | G18: =E18*F18 -> 204747.0998
B20: =B18+1 -> 7 | C20: IS | D20: annual | E20: ='Utah Summary-by class'!B21 -> 271004 | F20: ='Utah Summary-by class'!J21 -> 0.17905 | G20: =E20*F20 -> 48523.2662
B23: =B20+1 -> 8 | C23: Total Supplier Non-Gas Costs | E23: =SUM(E12:E20) -> 114834120 | G23: =SUM(G12:G21) -> 90957091.1
C27: Rate Schedule | D27: Season | E27: Trans Dth | F27: SNG Rate | G27: SNG Revenue
B28: 9 | C28: TSF | D28: annual | E28: ='Utah Summary-by class'!B23 -> 222022 | F28: ='Utah Summary-by class'!J23 -> 2.15835 | G28: =E28*F28 -> 479201.1837
B30: 10 | C30: TBF | D30: annual | E30: ='Utah Summary-by class'!B25 -> 45000 | F30: ='Utah Summary-by class'!J25 -> 1.43793 | G30: =E30*F30 -> 64706.85
B33: 11 | C33: Total Supplier Non-Gas Costs | E33: =SUM(E28:E30) -> 267022 | G33: =SUM(G28:G30) -> 543908.0337

Sheet Current Exh Updated Exh (hidden)
B8: Current Exhibits to Proposed Exhibits
B12: Current Exhibit | C12: Description of Exhibit | D12: Proposed Exhibit | E12: Comments
B13: 1.1 | C13: Company Production with detailed well information | D13: 1.2 p1 | E13: Detail of well info in electronic model
B14: 1.2 | C14: Purchased Gas Costs | D14: 1.2 p4
B15: 1.3 p1 | C15: Transportation | D15: 1.4 p1
C16: Gathering | D16: 1.2 p3
B17: 1.3 p2 | C17: Storage | D17: 1.4 p3
C18: Working Gas Charges | D18: 1.2 p5
B19: 1.4 p1 | C19: Gas Related Costs and Revenue Credits | D19: 1.2 p3
B20: 1.4 p2 | C20: Cost of Storage Gas | D20: 1.2 p5
B21: 1.4 p3 | C21: Other Revenues | D21: 1.2 p2
B22: 1.5 | C22: Gas Cost Allocation | D22: 1.1 p2
B23: 1.6 p1 | C23: Commodity Change and New Rates | D23: 1.5 p1
B24: 1.6 p2 | C24: Supplier Non-Gas Change | D24: 1.5 p2
B25: 1.6 p3 | C25: Supplier Non-Gas New Rates | D25: 1.5 p3 | E25: Detail of calculation updated
B26: 1.7 | C26: Effect on GS Typical Customer | D26: 1.6
B27: 1.8 | C27: Legislative/Proposed Rate Schedules | D27: 1.7
B28: 1.9 | C28: Dominion Energy Questar Pipeline, LLC Tariff Rates | D28: - | E28: Removed as an exhibit
B29: 1.10 | C29: Confidential Comparison of Natural Gas Price Forecast | D29: 1.3
B30: 1.11 | C30: Legislative/Proposed Combined Rate Schedules | D30: 1.8

Sheet SDR#5
H1: Dominion Energy Utah
H2: =+'SDR#4'!H2 -> Docket No. 22-057-16
B5: Standard Data Request #5
B6: RIN Proceeds
F8: Total | G8: Volumes | H8: Rate
A9: Total RIN Proceeds | F9: -96190.32947 | G9: 289772 | H9: -0.3319517741
B11: Month | C11: NGV Dths | D11: Rate | E11: Refund
B12: 2022-05-01 | C12: 16662.82 | D12: -0.37839 | E12: -6305.029798
B13: 2022-06-01 | C13: 17358.689 | D13: -0.37839 | E13: -6568.339056
B14: 2022-07-01 | C14: 17864.705 | D14: -0.37839 | E14: -6759.810005
C15: Estimated Dths | E15: -19633.17886
B17: 2022-05-01 | C17: 23490.523 | D17: -0.37839 | E17: -8888.578998
B18: 2022-06-01 | C18: 27400.37 | D18: -0.37839 | E18: -10368.026
B19: 2022-07-01 | C19: 21377.085 | D19: -0.37839 | E19: -8088.875193
C20: Actual Dths | E20: -27345.4802
A21: True up of Estimated Volumes | F21: -7712.301336
B23: Month | C23: NGV Dths | D23: Rate | E23: Refunded
B24: 2022-08-01 | C24: 20949.326 | D24: -0.3319517741 | E24: -6954.165931
A25: estimate | B25: 2022-09-01 | C25: 20224.652 | D25: -0.3319517741 | E25: -6713.609111
A26: estimate | B26: 2022-10-01 | C26: 17660.12 | D26: -0.3319517741 | E26: -5862.308164
D27: Expected Amortized Total | F27: -19530.08321
A29: Remaining to be Amortized | F29: =F9-F21-F27 -> -68947.94493
B31: Document No. | C31: Date | D31: RIN Proceed
B32: 1800000177 | C32: 2022-06-02 | D32: 12617.03
B33: 1800000178 | C33: 2022-06-02 | D33: 3740.35
B34: 1800000179 | C34: 2022-06-08 | D34: 7816.14
B35: 1800000180 | C35: 2022-06-08 | D35: 959.53
B36: 1800000181 | C36: 2022-06-08 | D36: 7141.44
B37: 1800000216 | C37: 2022-06-30 | D37: 1815.92
B38: 1800000217 | C38: 2022-06-30 | D38: 5773.71
B39: 1800000235 | C39: 2022-07-20 | D39: 16765.61
B40: 1400000890 | C40: 2022-07-25 | D40: -15917.11
B41: 1800000263 | C41: 2022-08-10 | D41: 4721.4
B42: 1800000264 | C42: 2022-08-10 | D42: 7954.22
B43: 1800000265 | C43: 2022-08-18 | D43: 12456.75
B44: 1800000266 | C44: 2022-08-18 | D44: 4577.25
A45: New RIN Proceeds | F45: 70422.24
A47: Total RIN Proceeds | F47: =F29-F45 -> -139370.1849 | G47: ='RevRun Fcst'!T66 -> 289772 | H47: =F47/G47 -> -0.4809649826

Sheet Ut 1.1 p1
F1: ='Control Panel'!$F$32 -> Dominion Energy Utah
F2: ='Control Panel'!$F$33 -> Docket No. 22-057-16
F3: DEU Exhibit 1.1
F4: Page 1 of 2
B9: TABLE OF CONTENTS
B14: DEU Exhibit | D14: Description | E14: Type
B16: 1.1 | C16: Page 2 | D16: Test-Year Gas Cost Allocation | E16: Summary
B18: 1.2 | C18: Page 1 | D18: Test-Year Royalties & Company Production | E18: Commodity
C19: Page 2 | D19: Test-Year Other Revenues | E19: Commodity
C20: Page 3 | D20: Summary of Wexpro Test-Year Gas Costs and Revenue Credits | E20: Commodity
C21: Page 4 | D21: Test-Year Purchased Gas Costs | E21: Commodity
C22: Page 5 | D22: Test-Year Storage Gas & Working Gas Charges | E22: Commodity
C23: Page 6 | D23: Test-Year LNG Purchased Gas, Storage Gas & Working Gas Charges | E23: Commodity
B25: 1.3 | D25: Confidential Comparison of Natural Gas Price Forecasts | E25: Commodity
B27: 1.4 | C27: Page 1 | D27: Test-Year Transportation Charges | E27: SNG
C28: Page 2 | D28: Test-Year Storage Charges and LNG Electricity Costs | E28: SNG
C29: Page 3 | D29: Supplier Non-Gas Cost Class Allocation | E29: SNG
C30: Page 4 | D30: Supplier Non-Gas Cost Summary | E30: SNG
B32: 1.5 | C32: Page 1 | D32: Test-Year Gas Cost Change | E32: Commodity
C33: Page 2 | D33: Test-Year Supplier Non-Gas Cost Change | E33: SNG
C34: Page 3 | D34: Supplier Non-Gas Rate Calculation | E34: SNG
C35: Page 4 | D35: General Service Summer / Winter Differential | E35: SNG
C36: Page 5 | D36: Firm Service Summer / Winter Differential | E36: SNG
C37: Page 6 | D37: Summary of Rates | E37: Summary
B39: 1.6 | C39: Page 1 | D39: Effect on GS Typical Customer 80 Dth | E39: Summary
C40: Page 2 | D40: Effect on GS Typical Customer 70 Dth | E40: Summary
B42: 1.7 | C42: Page1-8 | D42: Legislative Rate Schedules | E42: Summary
C43: Page 9-17 | D43: Proposed Rate Schedules | E43: Summary
B45: 1.8 | C45: Page1-8 | D45: Legislative Combined Rate Schedules | E45: Summary
C46: Page 9-17 | D46: Proposed Combined Rate Schedules | E46: Summary

Sheet Ut 1.1 p2
I1: ='Control Panel'!$F$32 -> Dominion Energy Utah
I2: ='Control Panel'!$F$33 -> Docket No. 22-057-16
I3: DEU Exhibit 1.1
I4: Page 2 of 2
C8: TEST-YEAR GAS COST ALLOCATION
C11: (A) | E11: (B) | F11: (C) | G11: (D) | H11: (E)
E12: Allocation
E13: Factor 1/ | F13: System | G13: Wyoming | H13: Utah
B15: COMMODITY
A16: 1 | C16: Dominion Energy Production (DEU Exhibit 1.2, p 1) | E16: 2 | F16: ='Ut 1.2 p3'!E15+'Ut 1.2 p3'!E28 -> 292835638 | G16: =CHOOSE($E16,G$58,G$61)*$F16 -> 9184400.309 | H16: 283651237.7
A17: =A16+1 -> 2 | C17: Other Revenue's Credit (DEU Exhibit 1.2, p 2) | E17: 2 | F17: ='Ut 1.2 p3'!E16+'Ut 1.2 p3'!E29+'Ut 1.2 p3'!E47 -> -39442063.18 | G17: -1237047.853 | H17: -38205015.33
A18: =A17+1 -> 3 | C18: Gathering (DEU Exhibit 1.2, p 3, ln 4) | D18: - Demand | E18: 1 | F18: ='Ut 1.2 p3'!E19 -> 2887809.099 | G18: 91248.51604 | H18: 2796560.583
A19: =A18+1 -> 4 | C19: Gathering (DEU Exhibit 1.2, p 3, lns 5, 6, 12) | D19: - Commodity | E19: 2 | F19: ='Ut 1.2 p3'!E21+'Ut 1.2 p3'!E20+'Ut 1.2 p3'!E32 -> 3492107.502 | G19: 109525.3072 | H19: 3382582.195
A20: =A19+1 -> 5 | C20: Net Cost of Dominion Energy Production | F20: =SUM(F16:F19) -> 259773491.5 | G20: =SUM(G16:G19) -> 8148126.28 | H20: =SUM(H16:H19) -> 251625365.2
A22: =A20+1 -> 6 | C22: Dominion Energy Contract Gas (DEU Exhibit 1.2, p 4) | E22: 2 | F22: ='Ut 1.2 p4'!E25 -> 533208247 | G22: =CHOOSE($E22,G$58,G$61)*$F22 -> 16723367.49 | H22: =CHOOSE($E22,H$58,H$61)*$F22 -> 516484879.5
A23: =A22+1 -> 7 | C23: LNG Purchased Gas (DEU Exhibit 1.2, p 6, ln 1) | F23: ='Ut 1.2 p6'!E17 -> 7575865.357 | G23: 0 | H23: =F23 -> 7575865.357
A25: 8 | C25: Injection / Withdrawal Adjustment (DEU Exhibit 1.2, p 5, ln 3) | E25: 2 | F25: ='Ut 1.2 p5'!E21 -> -16067484.03 | G25: =CHOOSE($E25,G$58,G$61)*$F25 -> -503935.2664 | H25: =CHOOSE($E25,H$58,H$61)*$F25 -> -15563548.76
A26: =A25+1 -> 9 | C26: LNG Injection / Withdrawal Adjustment (DEU Exhibit 1.2, p 6, ln 4) | E26: UT | F26: ='Ut 1.2 p6'!E26 -> -6262203.488 | G26: 0 | H26: =F26 -> -6262203.488
A28: 10 | C28: Working Gas Costs (DEU Exhibit 1.2, p 5, ln 17) | E28: 2 | F28: ='Ut 1.2 p5'!I43 -> 2346560.806 | G28: =CHOOSE($E28,G$58,G$61)*$F28 -> 73596.75872 | H28: =CHOOSE($E28,H$58,H$61)*$F28 -> 2272964.048
A29: =A28+1 -> 11 | C29: LNG Working Gas Costs (DEU Exhibit 1.2, p 6, ln 18) | E29: UT | F29: ='Ut 1.2 p6'!I48 -> 538347.2125 | G29: 0 | H29: =F29 -> 538347.2125
A32: =A29+1 -> 12 | C32: TOTAL COMMODITY | F32: =SUM(F20:F30) -> 781112824.3 | G32: =SUM(G20:G30) -> 24441155.26 | H32: =SUM(H20:H30) -> 756671669.1
B34: SNG
A35: =A32+1 -> 13 | C35: Transportation (DEU Exhibit 1.4, p 1, ln 15) | D35: - Demand | E35: 1 | F35: ='Ut 1.4 p1'!M36 -> 68206545 | G35: =CHOOSE($E35,G$58,G$61)*$F35 -> 2155179.17 | H35: =CHOOSE($E35,H$58,H$61)*$F35 -> 66051365.83
A36: =A35+1 -> 14 | C36: Transportation (DEU Exhibit 1.4, p 1, ln 25) | D36: - Commodity | E36: 2 | F36: ='Ut 1.4 p1'!M55 -> 593295 | G36: =CHOOSE($E36,G$58,G$61)*$F36 -> 18607.90858 | H36: =CHOOSE($E36,H$58,H$61)*$F36 -> 574687.0914
A38: =A36+1 -> 15 | C38: Other Transportation (DEU Exhibit 1.4, p 1, ln 26) | E38: 2 | F38: ='Ut 1.4 p1'!M59 -> 2651219 | G38: =CHOOSE($E38,G$58,G$61)*$F38 -> 83151.95775 | H38: =CHOOSE($E38,H$58,H$61)*$F38 -> 2568067.042
A40: =A38+1 -> 16 | C40: Peak Hour Service (DEU Exhibit 1.4, p 1, ln 29) | E40: 1 | F40: ='Ut 1.4 p1'!L65+'Ut 1.4 p1'!L66 -> 3205825 | G40: =CHOOSE($E40,G$58,G$61)*$F40 -> 101297.1301 | H40: =CHOOSE($E40,H$58,H$61)*$F40 -> 3104527.87
A42: =A40+1 -> 17 | C42: Storage (DEU Exhibit 1.4, p 2, ln 5) | D42: - Demand | E42: 1 | F42: ='Ut 1.4 p2'!J20 -> 14025058 | G42: =CHOOSE($E42,G$58,G$61)*$F42 -> 443161.4716 | H42: =CHOOSE($E42,H$58,H$61)*$F42 -> 13581896.53
A43: =A42+1 -> 18 | C43: Storage (DEU Exhibit 1.4, p 2, ln 12) | D43: - Commodity | E43: 2 | F43: ='Ut 1.4 p2'!J29 -> 455883 | G43: =CHOOSE($E43,G$58,G$61)*$F43 -> 14298.16396 | H43: =CHOOSE($E43,H$58,H$61)*$F43 -> 441584.836
A45: =A43+1 -> 19 | C45: LNG Electricity Costs (DEU Exhibit 1.4, p 2, ln 14) | E45: UT | F45: ='Ut 1.4 p2'!K34 -> 2088763.27 | G45: 0 | H45: =F45 -> 2088763.27
A48: =A45+1 -> 20 | C48: TOTAL SNG | F48: =SUM(F35:F45) -> 91226588.27 | G48: =SUM(G35:G45) -> 2815695.802 | H48: =SUM(H35:H45) -> 88410892.47
A51: =A48+1 -> 21 | C51: TOTAL GAS COST | F51: =F32+F48 -> 872339412.6 | G51: =G32+G48 -> 27256851.06 | H51: =H32+H48 -> 845082561.5
A55: 1/ | C55: Allocation Factors | F55: Total | G55: Wyoming | H55: Utah
C57: #1 Peak Day Demand | E57: Dth- | F57: =SUM(G57:H57) -> 1245022 | G57: ='Other Inputs'!$E$147 -> 39340 | H57: ='Other Inputs'!$E$146 -> 1205682
E58: Percent- | F58: =G58+H58 -> 1 | G58: =G57/F57 -> 0.03159783522 | H58: =H57/F57 -> 0.9684021648
C60: #2 Commodity Sales - All | E60: Dth- | F60: =G60+H60 -> 118552357 | G60: ='Ut 1.5 p1'!H22 -> 3718237 | H60: ='Ut 1.5 p1'!H21 -> 114834120
E61: Percent- | F61: =G61+H61 -> 1 | G61: =G60/F60 -> 0.03136366998 | H61: =H60/F60 -> 0.96863633
C63: #UT Utah Only | F63: =G63+H63 -> 1 | G63: 0 | H63: 1

Sheet Ut 1.2 p1
H1: Dominion Energy Utah
H2: ='Control Panel'!$F$33 -> Docket No. 22-057-16
H3: DEU Exhibit 1.2
H4: Page 1 of 6
C8: TEST-YEAR ROYALTIES & COMPANY PRODUCTION
B10: COMMODITY
C11: (A) | E11: (B) | G11: (C)
E12: Base Year | G12: Test-Year
E13: Dth | G13: Royalty $
B15: WEXPRO I
A16: =A15+1 -> 1 | C16: Royalties Based on Historical Production | E16: =+'Royalty Detail'!F1416 -> 41744996 | G16: =+'Royalty Detail'!I1416 -> 42581675.35
A18: =A16+1 -> 2 | C18: Test-Year Adjustment for IRP Production Forecast | E18: =+'Royalty Detail'!F1418 -> -511837.159 | G18: =G16/E16*E18 -> -522095.7198
A21: =A18+1 -> 3 | C21: Total Wexpro I Test-Year Royalties | G21: =G16+G18 -> 42059579.63
A23: =A21+1 -> 4 | C23: Wexpro I Operator Service Fee | G23: ='Monthly Inputs'!S117 -> 180114962.4
A26: =A23+1 -> 5 | C26: Total Wexpro I Company Production (IRP Forecast) | E26: =+'Monthly Inputs'!S7 -> 41233158.84 | G26: =G21+G23 -> 222174542
B30: WEXPRO II
A31: =A26+1 -> 6 | C31: Royalties Based on Historical Production | E31: =+'Royalty Detail'!F1690 -> 14958729.23 | G31: =+'Royalty Detail'!I1690 -> 14215480.65
A33: =A31+1 -> 7 | C33: Test-Year Adjustment for IRP Production Forecast | E33: =+'Royalty Detail'!F1692 -> 2252463.873 | G33: =G31/E31*E33 -> 2140546.573
A36: =A33+1 -> 8 | C36: Total Wexpro II Test-Year Royalties | G36: =G31+G33 -> 16356027.22
A38: =A36+1 -> 9 | C38: Wexpro II Operator Service Fee | G38: ='Monthly Inputs'!S119 -> 54305068.81
A41: =A38+1 -> 10 | C41: Total Wexpro II Company Production (IRP Forecast) | E41: ='Monthly Inputs'!S13 -> 17211193.11 | G41: =G36+G38 -> 70661096.03
B45: TOTAL WEXPRO
A46: =A41+1 -> 11 | C46: Total Wexpro Test-Year Royalties | G46: =G36+G21 -> 58415606.85
A48: =A46+1 -> 12 | C48: Total Wexpro Operator Service Fee | G48: =G38+G23 -> 234420031.2
A51: =A48+1 -> 13 | C51: Total Wexpro Company Production | E51: =E41+E26 -> 58444351.95 | G51: =G46+G48 -> 292835638

Sheet Ut 1.2 p2
K1: ='Control Panel'!$F$32 -> Dominion Energy Utah
K2: ='Control Panel'!$F$33 -> Docket No. 22-057-16
K3: DEU Exhibit 1.2
K4: Page 2 of 6
D8: TEST-YEAR OTHER REVENUES 1/
B10: COMMODITY
C11: (A) | E11: (B) | F11: (C) | G11: (D)
C12: Account | G12: =Expenses!P2 -> 12 Months Ending
C13: Number | E13: Account Name | G13: ='Control Panel'!F7 -> 2023-10-31
C14: WEXPRO I
B15: 1 | D15: 483 | E15: Sales for Resale | H15: ='Other Inputs'!F210 -> 2608104.323
B17: =B15+1 -> 2 | D17: 490 | E17: Plant By-Product | H17: ='Other Inputs'!F211 -> 7054646.295
B19: =B17+1 -> 3 | D19: 492 | E19: Gasoline and Oil Sales | F19: ='Other Inputs'!F212 -> 800670.2243
B20: =B19+1 -> 4 | D20: 758-1 | E20: Gasoline and Oil Cost | F20: ='Other Inputs'!F216 -> -113163.6978
B21: =B20+1 -> 5 | E21: Net Gasoline and Oil Sales | H21: =F19+F20 -> 687506.5265
B23: =B21+1 -> 6 | D23: 495-1 | E23: Overriding Royalty Revenue | H23: ='Other Inputs'!F213 -> 13230202.85
B25: =B23+1 -> 7 | D25: 495-2 | E25: Oil Revenue Received from Wexpro | H25: ='Other Inputs'!F214 -> 2393370.967
B27: =B25+1 -> 8 | E27: 3rd Party & Liquids Credits from MLPX Acquisition | H27: ='Other Inputs'!F215 -> 4401796.663
B29: 9 | E29: EDIT Amortization | H29: ='Other Inputs'!F217 -> 4770564
B32: 10 | E32: Total Wexpro I | H32: =SUM(H15:H30) -> 35146191.62
C34: WEXPRO II
B35: =B32+1 -> 11 | D35: 483 | E35: Sales for Resale | H35: ='Other Inputs'!E233 -> 0
B37: =B35+1 -> 12 | D37: 490 | E37: Plant By-Product | H37: ='Other Inputs'!E234 -> 1987413.025
B39: =B37+1 -> 13 | D39: 492 | E39: Gasoline and Oil Sales | F39: ='Other Inputs'!E235 -> 1562109.906
B40: =B39+1 -> 14 | D40: 758-1 | E40: Gasoline and Oil Cost | F40: ='Other Inputs'!E238 -> -231586.5924
B41: =B40+1 -> 15 | E41: Net Gasoline and Oil Sales | H41: =F39+F40 -> 1330523.314
B43: =B41+1 -> 16 | D43: 495-1 | E43: Overriding Royalty Revenue | H43: ='Other Inputs'!E236 -> 0
B45: =B43+1 -> 17 | D45: 495-2 | E45: Oil Revenue Received from Wexpro | H45: ='Other Inputs'!E237 -> 881707.2207
B47: 18 | E47: EDIT Amortization | H47: ='Other Inputs'!F239 -> 96228
B50: 19 | E50: Total Wexpro II | H50: =SUM(H35:H48) -> 4295871.56
B52: =1+B50 -> 20 | E52: Sales of Cost-of-Service Gas | H52: ='Other Inputs'!E245 -> 0
B55: =B52+1 -> 21 | E55: Grand Total (Line 10 + Line 19 + Line 20) | H55: =H32+H50+H52 -> 39442063.18
B59: 1/ | D59: Forecasted 12-month test year.

Sheet Ut 1.2 p3
G1: ='Control Panel'!$F$32 -> Dominion Energy Utah
G2: ='Control Panel'!$F$33 -> Docket No. 22-057-16
G3: DEU Exhibit 1.2
G4: Page 3 of 6
B8: SUMMARY OF WEXPRO TEST-YEAR GAS COSTS AND REVENUES CREDITS
B10: COMMODITY
B11: (A) | E11: (B) | F11: (C) | G11: (D)
B12: Component | E12: Costs | F12: Dth 1/ | G12: $ per Dth
B14: WEXPRO I
A15: 1 | C15: Dominion Energy Production 2/ | E15: ='Other Inputs'!D203 -> 222174542
A16: =A15+1 -> 2 | C16: Wexpro I Revenue Sharing Credits 3/ | E16: =-'Ut 1.2 p2'!H32 -> -35146191.62
A17: =A16+1 -> 3 | D17: Net Dominion Energy Production Costs | E17: =E15+E16 -> 187028350.4 | F17: =F25 -> 39583832.49 | G17: =E17/F25 -> 4.724867165
A19: =A17+1 -> 4 | C19: Gathering Demand | E19: ='Other Inputs'!E192 -> 2887809.099
A20: =A19+1 -> 5 | C20: Gathering Commodity | E20: ='Other Inputs'!D192 -> 1925206.066
A21: =A20+1 -> 6 | C21: Gathering Other Charges | E21: =ROUND('Other Inputs'!D184,0) -> 1342285
A22: =A21+1 -> 7 | D22: Gathering | E22: =SUM(E19:E21) -> 6155300.164
A25: =A22+1 -> 8 | B25: Total Wexpro I Cost of Production | E25: =E17+E22 -> 193183650.6 | F25: ='Monthly Inputs'!S7*(1-'Other Inputs'!E278) -> 39583832.49 | G25: =E25/F25 -> 4.880367524
B27: WEXPRO II
A28: =A25+1 -> 9 | C28: Wexpro II Production 4/ | E28: ='Other Inputs'!D226 -> 70661096.03
A29: =A28+1 -> 10 | C29: Wexpro II Revenue Sharing Credits 5/ | E29: =-'Ut 1.2 p2'!H50 -> -4295871.56
A30: =A29+1 -> 11 | D30: Net Cost of Wexpro II Production | E30: =E28+E29 -> 66365224.47 | F30: =F35 -> 16522745.38 | G30: =E30/F35 -> 4.016597904
A32: =A30+1 -> 12 | D32: Gathering | E32: ='Other Inputs'!D195 -> 224616.4362
A35: =A32+1 -> 13 | B35: Total Wexpro II Cost of Production | E35: =SUM(E30:E32) -> 66589840.91 | F35: ='Monthly Inputs'!S13*(1-'Other Inputs'!E278) -> 16522745.38 | G35: =E35/F35 -> 4.030192282
B37: TOTAL WEXPRO
A38: =A35+1 -> 14 | C38: Total Wexpro Production | E38: =E15+E28 -> 292835638
A39: =A38+1 -> 15 | C39: Total Wexpro Revenue Sharing Credits | E39: =E16+E29 -> -39442063.18
A40: =A39+1 -> 16 | D40: Net Cost of Total Wexpro Production | E40: =E38+E39 -> 253393574.9 | F40: =F25+F35 -> 56106577.87 | G40: =E40/F45 -> 4.51628997
A42: =A40+1 -> 17 | D42: Total Wexpro Gathering | E42: =E22+E32 -> 6379916.601
A45: =A42+1 -> 18 | B45: Total Wexpro Cost of Production | E45: =SUM(E40:E42) -> 259773491.5 | F45: =F25+F35 -> 56106577.87 | G45: =E45/F45 -> 4.63000064
A47: =A45+1 -> 19 | B47: Sales of Cost-of-Service Gas 6/ | E47: =-'Other Inputs'!E245 -> 0 | F47: ='Other Inputs'!F245 -> 0 | G47: ='Other Inputs'!G245 -> 0
A50: =A47+1 -> 20 | B50: Total Cost-of-Service Production | E50: =E25+E35+E47 -> 259773491.5 | F50: =F25+F35 -> 56106577.87 | G50: =E50/F50 -> 4.63000064
A54: 1/ | B54: Estimated into-pipe volumes used for Wexpro dths.
A55: 2/ | B55: DEU Exhibit 1.2, Page 1, Line 5.
A56: 3/ | B56: DEU Exhibit 1.2, Page 2, Line 10.
A57: 4/ | B57: DEU Exhibit 1.2, Page 1, Line 10.
A58: 5/ | B58: DEU Exhibit 1.2, Page 2, Line 19.
A59: 6/ | B59: DEU Exhibit 1.2, Page 2, Line 20.

Sheet Ut 1.2 p4
H1: ='Control Panel'!$F$32 -> Dominion Energy Utah
H2: ='Control Panel'!$F$33 -> Docket No. 22-057-16
H3: DEU Exhibit 1.2
H4: Page 4 of 6
A8: TEST-YEAR PURCHASED GAS COSTS
B10: COMMODITY
D11: (A) | E11: (B) | F11: (C) | G11: (D)
G12: Cost
C13: Component | E13: Total Cost | F13: Dth | G13: per Dth
B15: 1 | C15: Current Contracts | E15: =ROUND(Calculations!$P$196+Calculations!$P$199-E17-E16,0) -> 264909700
B16: 2 | C16: Hedging Contracts | E16: ='Monthly Inputs'!S104 -> 47038500
B17: 3 | C17: Stabilization Costs | E17: ='Monthly Inputs'!S101 -> 0
B18: =B16+1 -> 3 | D18: Total Current Contracts | E18: =E15+E16+E17 -> 311948200 | F18: =Calculations!$P$195+Calculations!$P$198 -> 32359000 | G18: =E18/F18 -> 9.640229921
B20: =B18+1 -> 4 | C20: Forecast Spot | E20: =ROUND(Calculations!P193,0) -> 210348669 | F20: =Calculations!$P$192 -> 33757667.9 | G20: =E20/F20 -> 6.23113746
B22: =B20+1 -> 5 | C22: Future Contracts | E22: =ROUND(Calculations!P202,0) -> 10911378 | F22: =Calculations!P201 -> 1816496.1 | G22: =E22/F22 -> 6.0068271
B25: =B22+1 -> 6 | C25: Total Gas Purchased | E25: =E18+E20+E22 -> 533208247 | F25: =F18+F20+F22 -> 67933164 | G25: =E25/F25 -> 7.849012406

Sheet Ut 1.2 p5
K1: ='Control Panel'!$F$32 -> Dominion Energy Utah
K2: ='Control Panel'!$F$33 -> Docket No. 22-057-16
K3: DEU Exhibit 1.2
K4: Page 5 of 6
B8: TEST-YEAR STORAGE GAS & WORKING GAS CHARGES
B10: COMMODITY
C11: (A) | E11: (B) | G11: (C) | I11: (D)
I12: Average
E13: Total Costs | G13: Dth | I13: Rate
B15: STORAGE GAS 1/
B17: 1 | C17: Withdrawals | E17: =G17*I17 -> 57180246.56 | G17: ='Monthly Inputs'!S37 -> 11703439 | I17: ='Ut Storage'!L27 -> 4.88576448
B18: 2 | C18: Injections | E18: =G18*I18 -> -73247730.58 | G18: =-'Monthly Inputs'!S29 -> -15007402 | I18: ='Ut Storage'!K27 -> 4.88077354
B21: =B18+1 -> 3 | C21: Storage Adjustment | E21: =E17+E18 -> -16067484.03
B24: WORKING GAS CHARGES
D26: Month | E26: Amount | G26: Pre-Tax Return % | I26: Total
B28: =B21+1 -> 4 | D28: =+'Rate Base'!D4 -> 2021-08-31 | E28: =+'Rate Base'!D11 -> 35307557.59
B29: =B28+1 -> 5 | D29: =+'Rate Base'!E4 -> 2021-09-30 | E29: =+'Rate Base'!E11 -> 37462513.81
B30: 6 | D30: =+'Rate Base'!F4 -> 2021-10-31 | E30: =+'Rate Base'!F11 -> 49638760.36
B31: 7 | D31: =+'Rate Base'!G4 -> 2021-11-30 | E31: =+'Rate Base'!G11 -> 48688525.37
B32: 8 | D32: =+'Rate Base'!H4 -> 2021-12-31 | E32: =+'Rate Base'!H11 -> 44932895.7
B33: 9 | D33: =+'Rate Base'!I4 -> 2021-01-31 | E33: =+'Rate Base'!I11 -> 32520297.1
B34: 10 | D34: =+'Rate Base'!J4 -> 2021-02-28 | E34: =+'Rate Base'!J11 -> 24327140.39
B35: 11 | D35: =+'Rate Base'!K4 -> 2021-03-31 | E35: =+'Rate Base'!K11 -> 13377221.65
B36: 12 | D36: =+'Rate Base'!L4 -> 2021-04-30 | E36: =+'Rate Base'!L11 -> 4611532.51
B37: 13 | D37: =+'Rate Base'!M4 -> 2022-05-31 | E37: =+'Rate Base'!M11 -> 4273987.86
B38: 14 | D38: =+'Rate Base'!N4 -> 2022-06-30 | E38: =+'Rate Base'!N11 -> 9042867.91
B39: 15 | D39: =+'Rate Base'!O4 -> 2022-07-31 | E39: =+'Rate Base'!O11 -> 16864248.25
B40: =B39+1 -> 16 | D40: =+'Rate Base'!P4 -> 2022-08-31 | E40: =+'Rate Base'!P11 -> 25992902.78
B43: =B40+1 -> 17 | C43: 12-Month Average 2/ | E43: =(SUM(E29:E39)+E28/2+E40/2)/12 -> 26365851.76 | F43: x | G43: ='Other Inputs'!E273 -> 0.089 | H43: = | I43: =E43*G43 -> 2346560.806
B48: 1/ | C48: Dominion Energy planned volumes.
B49: 2/ | C49: (1/2 of Line 4 + sum of Lines 5-15 + 1/2 of Line 16) / 12

Sheet Ut 1.2 p6
K1: ='Control Panel'!$F$32 -> Dominion Energy Utah
K2: ='Control Panel'!$F$33 -> Docket No. 22-057-16
K3: DEU Exhibit 1.2
K4: Page 6 of 6
B8: TEST-YEAR LNG PURCHASED GAS, STORAGE GAS & WORKING GAS CHARGES
B10: COMMODITY
C11: (A) | E11: (B) | G11: (C) | I11: (D)
I12: Average
E13: Total Costs | G13: Dth | I13: Rate
B15: LNG PURCHASED GAS 1/
B17: =B13+1 -> 1 | C17: Total Gas Purchased | E17: ='LNG Storage'!M16 -> 7575865.357 | G17: ='Monthly Inputs'!S40 -> 1048950 | I17: =E17/G17 -> 7.222332196
B20: LNG STORAGE 1/
B22: =B17+1 -> 2 | C22: Withdrawals | E22: =G22*I22 -> 1336917.416 | G22: ='Monthly Inputs'!S41 -> 184950 | I22: ='LNG Storage'!L27 -> 7.228534284
B23: =B22+1 -> 3 | C23: Injections | E23: =G23*I23 -> -7599120.904 | G23: =-'Monthly Inputs'!S40 -> -1048950 | I23: ='LNG Storage'!K27 -> 7.244502506
B26: =B23+1 -> 4 | C26: Storage Adjustment | E26: =E22+E23 -> -6262203.488
B29: WORKING LNG CHARGES
D31: Month | E31: Amount 2/ | G31: Pre-Tax Return % | I31: Total
B33: =B26+1 -> 5 | D33: Aug-22 | E33: ='Rate Base'!$D$12 -> 0
B34: =B33+1 -> 6 | D34: Sep-22 | E34: ='Rate Base'!$E$12 -> 456302.3845
B35: 7 | D35: Oct-22 | E35: ='Rate Base'!$F$12 -> 2170482.176
B36: 8 | D36: Nov-22 | E36: ='Rate Base'!$G$12 -> 4040202.491
B37: 9 | D37: Dec-22 | E37: ='Rate Base'!$H$12 -> 6275079.85
B38: 10 | D38: Jan-23 | E38: ='Rate Base'!$I$12 -> 8635621.719
B39: 11 | D39: Feb-23 | E39: ='Rate Base'!$J$12 -> 8912782.773
B40: =B39+1 -> 12 | D40: Mar-23 | E40: ='Rate Base'!$K$12 -> 7575865.357
B41: 13 | D41: Apr-23 | E41: ='Rate Base'!$L$12 -> 7575865.357
B42: 14 | D42: May-23 | E42: ='Rate Base'!$M$12 -> 7575865.357
B43: 15 | D43: Jun-23 | E43: ='Rate Base'!$N$12 -> 7575865.357
B44: 16 | D44: Jul-23 | E44: ='Rate Base'!$O$12 -> 7575865.357
B45: 17 | D45: Aug-23 | E45: ='Rate Base'!$P$12 -> 8432685.664
B48: =B45+1 -> 18 | C48: 12-Month Average 3/ | E48: =(SUM(E34:E44)+E33/2+E45/2)/12 -> 6048845.084 | F48: x | G48: ='Other Inputs'!E273 -> 0.089 | H48: = | I48: =E48*G48 -> 538347.2125
B53: 1/ | C53: Dominion Energy planned volumes.
B54: 2/ | C54: Estimated monthly balance. When history established, balance updated for actuals.
B55: 3/ | C55: (1/2 of Line 5 + sum of Lines 6-16 + 1/2 of Line 17) / 12

Sheet Ut 1.3 Redacted
I1: REDACTED
P29: DEU Exhibit 1.3 | Q29: =CONCATENATE("Docket No. ",'Control Panel'!F5) -> Docket No. 22-057-16 | R29: Dominion Energy Utah

Sheet Ut 1.4 p1
N1: ='Control Panel'!$F$32 -> Dominion Energy Utah
N2: ='Control Panel'!$F$33 -> Docket No. 22-057-16
N3: DEU Exhibit 1.4
N4: Page 1 of 4
B8: TEST-YEAR TRANSPORTATION CHARGES
B10: SNG
B11: (A) | D11: (B) | F11: (C) | H11: (D) | J11: (E) | L11: (F) | M11: (G)
D12: Fctr | F12: Dth | H12: Months/Days | J12: Rate | M12: Total Costs
B14: TRANSPORTATION DEMAND
B16: MountainWest Pipeline (MWP) Demand
A17: 1 | B17: T-1 Transportation - Yearly | F17: ='Other Inputs'!D28+'Other Inputs'!D29+'Other Inputs'!D30 -> 840902 | G17: x | H17: ='Other Inputs'!E28 -> 12 | I17: x | J17: ='Other Inputs'!F28 -> 5.28804 | K17: = | L17: =ROUND(F17*H17*J17,0) -> 53360681
A18: =A17+1 -> 2 | B18: T-1 Transportation - Yearly | F18: ='Other Inputs'!D32 -> 100000 | G18: x | H18: ='Other Inputs'!E32 -> 12 | I18: x | J18: ='Other Inputs'!F32 -> 5.28804 | K18: = | L18: =ROUND(F18*H18*J18,0) -> 6345648
A19: =A18+1 -> 3 | B19: T-1 Transportation Nov-Mar | F19: ='Other Inputs'!D31 -> 75000 | G19: x | H19: ='Other Inputs'!E31 -> 5 | I19: x | J19: ='Other Inputs'!F31 -> 6.80887 | K19: = | L19: =ROUND(F19*H19*J19,0) -> 2553326
A20: =A19+1 -> 4 | B20: No-Notice Transportation | F20: ='Other Inputs'!D35 -> 203542 | G20: x | H20: ='Other Inputs'!E35 -> 12 | I20: x | J20: ='Other Inputs'!F35 -> 0.86753 | K20: = | L20: =ROUND(F20*H20*J20,0) -> 2118945
A21: =A20+1 -> 5 | B21: Capacity Release Credits | L21: =-ROUND('Other Inputs'!E284,0) -> -1286159
A22: =A21+1 -> 6 | C22: Total | L22: =SUM(L17:L21) -> 63092441
B24: MountainWest Overthrust Pipeline (MWOP) Demand
A25: =A22+1 -> 7 | B25: January - December | F25: ='Other Inputs'!D38 -> 8542 | G25: x | H25: ='Other Inputs'!E38 -> 12 | I25: x | J25: ='Other Inputs'!F38 -> 1.62 | K25: = | L25: =ROUND(F25*H25*J25,0) -> 166056
B27: Kern River Demand
A28: =A25+1 -> 8 | B28: January - December | F28: ='Other Inputs'!D61 -> 1885 | G28: x | H28: ='Other Inputs'!E61 -> 12 | I28: x | J28: ='Other Inputs'!F61 -> 5.487166667 | K28: = | L28: =ROUND(F28*H28*J28,0) -> 124120
A29: =A28+1 -> 9 | B29: January - December | F29: ='Other Inputs'!D59 -> 33000 | G29: x | H29: ='Other Inputs'!E59 -> 12 | I29: x | J29: ='Other Inputs'!F59 -> 3.172933333 | K29: = | L29: 1256482
A30: =A29+1 -> 10 | B30: November - March | F30: ='Other Inputs'!D60 -> 50000 | G30: x | H30: ='Other Inputs'!E60 -> 5 | I30: x | J30: =J29 -> 3.172933333 | K30: = | L30: 793233
A31: 11 | B31: December - February | F31: ='Other Inputs'!D65 -> 56925 | G31: x | H31: ='Other Inputs'!E65 -> 3 | I31: x | J31: ='Other Inputs'!F65 -> 8.7 | K31: = | L31: 1485743
A32: 12 | B32: November & March | F32: ='Other Inputs'!D67 -> 6000 | G32: x | H32: ='Other Inputs'!E67 -> 2 | I32: x | J32: ='Other Inputs'!F67 -> 8.845 | K32: = | L32: 106140
A33: 13 | B33: November - March | F33: ='Other Inputs'!D69 -> 27000 | G33: x | H33: ='Other Inputs'!E69 -> 5 | I33: x | J33: ='Other Inputs'!F69 -> 8.758 | K33: = | L33: 1182330
A34: 14 | C34: Total | L34: =SUM(L28:L33) -> 4948048
A36: =A34+1 -> 15 | B36: Total Transportation Demand (SNG) | M36: =L22+L25+L34 -> 68206545
B39: TRANSPORTATION COMMODITY
A41: =A36+1 -> 16 | B41: Total ACA | F41: =Calculations!$P$183 -> 134244583.3 | I41: x | J41: ='Other Inputs'!F45 -> 0.0015 | K41: = | L41: =ROUND(F41*J41,0) -> 201367
A43: =A41+1 -> 17 | B43: MountainWest Pipeline Commodity | F43: ='Ut 1.4 p1'!F41-(D48*F48*H48)-(D49*F49*H49)-(D50*F50*H50)-(D51*F51*H51)-(D52*F52*H52)-F45 -> 109963375.7 | I43: x | J43: ='Other Inputs'!F44 -> 0.00267 | K43: = | L43: =ROUND(F43*J43,0) -> 293602
A45: =A43+1 -> 18 | B45: MountainWest Overthrust Pipeline Commodity | F45: ='Other Inputs'!D38*365 -> 3117830 | I45: x | J45: ='Other Inputs'!F39 -> 0.00167 | K45: = | L45: =ROUND(F45*J45,0) -> 5207
B47: Kern River Commodity
A48: =A45+1 -> 19 | B48: January - December | D48: ='Other Inputs'!C73 -> 0.7090080956 | E48: x | F48: ='Other Inputs'!D73 -> 34885 | G48: x | H48: ='Other Inputs'!E73 -> 365 | I48: x | J48: ='Other Inputs'!F73 -> 0.0044 | K48: = | L48: =ROUND(D48*F48*H48*J48,0) -> 39722
A49: =A48+1 -> 20 | B49: November - March | D49: ='Other Inputs'!C74 -> 0.7090080956 | E49: x | F49: ='Other Inputs'!D74 -> 50000 | G49: x | H49: ='Other Inputs'!E74 -> 151 | I49: x | J49: ='Other Inputs'!F74 -> 0.0044 | K49: = | L49: =ROUND(D49*F49*H49*J49,0) -> 23553
A50: =A49+1 -> 21 | B50: November & March | D50: ='Other Inputs'!C78 -> 0.7090080956 | E50: x | F50: ='Other Inputs'!D78 -> 6000 | G50: x | H50: ='Other Inputs'!E78 -> 61 | I50: x | J50: ='Other Inputs'!F78 -> 0.0044 | K50: = | L50: =ROUND(D50*F50*H50*J50,0) -> 1142
A51: =A50+1 -> 22 | B51: December - February | D51: ='Other Inputs'!C77 -> 0.7090080956 | E51: x | F51: ='Other Inputs'!D77 -> 56925 | G51: x | H51: ='Other Inputs'!E77 -> 90 | I51: x | J51: ='Other Inputs'!F77 -> 0.0044 | K51: = | L51: =ROUND(D51*F51*H51*J51,0) -> 15983
A52: =A51+1 -> 23 | B52: November - March | D52: ='Other Inputs'!C78 -> 0.7090080956 | E52: x | F52: ='Other Inputs'!D80 -> 27000 | G52: x | H52: ='Other Inputs'!E80 -> 151 | I52: x | J52: ='Other Inputs'!F80 -> 0.0044 | K52: = | L52: =ROUND(D52*F52*H52*J52,0) -> 12719
A53: =A52+1 -> 24 | C53: Total | L53: =SUM(L48:L52) -> 93119
A55: =A53+1 -> 25 | B55: Total Transportation Commodity | M55: =L53+L43+L41+L45 -> 593295
B58: OTHER CHARGES
A59: =A55+1 -> 26 | B59: Other Transportation Charges | M59: =ROUND('Other Inputs'!$D$186,0) -> 2651219
B64: PEAK HOUR SERVICE
A65: =A59+1 -> 27 | B65: Kern River: Mid Nov - Mid Feb | F65: ='Other Inputs'!D20 -> 28752 | G65: x | H65: ='Other Inputs'!E20 -> 3 | I65: x | J65: ='Other Inputs'!F20 -> 18.0596 | K65: = | L65: =ROUND(F65*H65*J65,0) -> 1557749
A66: =A65+1 -> 28 | B66: MountainWest Pipeline: Mid Nov - Mid Feb | F66: ='Other Inputs'!D23 -> 74666.66667 | G66: x | H66: ='Other Inputs'!E23 -> 3 | I66: x | J66: ='Other Inputs'!F23 -> 7.357482143 | K66: = | L66: =ROUND(F66*H66*J66,0) -> 1648076
A67: =A66+1 -> 29 | C67: Total Peak Hour Service | M67: =SUM(L65:L66) -> 3205825
A70: =A67+1 -> 30 | B70: TOTAL TRANSPORTATION AND OTHER CHARGES | M70: =SUM(M13:M68) -> 74656884

Sheet Ut 1.4 p2
L1: ='Control Panel'!$F$32 -> Dominion Energy Utah
L2: ='Control Panel'!$F$33 -> Docket No. 22-057-16
L3: DEU Exhibit 1.4
L4: Page 2 of 4
B7: TEST-YEAR STORAGE CHARGES
B9: SNG
B10: (A) | D10: (B) | F10: (C) | H10: (D) | J10: (E) | K10: (F)
B12: STORAGE CHARGES
B14: Component | D14: Dth | F14: Months | H14: Rate | K14: Total Costs
B15: Storage Demand
A16: 1 | B16: Aquifer Peaking Demand | D16: ='Other Inputs'!E171 -> 184625 | E16: x | F16: 12 | G16: x | H16: ='Other Inputs'!E14 -> 2.87375 | I16: = | J16: =ROUND(D16*F16*H16,0) -> 6366793
A17: =A16+1 -> 2 | B17: Spire Demand | D17: ='Other Inputs'!E172 -> 0 | E17: x | F17: 0 | G17: x | H17: ='Other Inputs'!E15 -> 0 | I17: = | J17: =ROUND(D17*F17*H17,0) -> 0
A18: =A17+1 -> 3 | B18: Clay Basin Demand | D18: ='Other Inputs'!E173 -> 111827 | E18: x | F18: 12 | G18: x | H18: ='Other Inputs'!E16 -> 2.85338 | I18: = | J18: =ROUND(D18*F18*H18,0) -> 3829019
A19: =A18+1 -> 4 | B19: Clay Basin Capacity | D19: ='Other Inputs'!E174 -> 13419000 | E19: x | F19: 12 | G19: x | H19: ='Other Inputs'!E17 -> 0.02378 | I19: = | J19: =ROUND(D19*F19*H19,0) -> 3829246
A20: =A19+1 -> 5 | C20: Total Demand Charges | J20: =SUM(J16:J19) -> 14025058
B22: Storage Commodity 1/
A23: =A20+1 -> 6 | B23: Aquifer Peaking Injections | D23: =(+'Monthly Inputs'!S24+'Monthly Inputs'!S26+'Monthly Inputs'!S27) -> 1852980 | F23: x | H23: ='Other Inputs'!E6 -> 0.03872 | I23: = | J23: =ROUND(D23*H23,0) -> 71747
A24: =A23+1 -> 7 | B24: Aquifer Peaking Withdrawals | D24: =(+'Monthly Inputs'!S32+'Monthly Inputs'!S34+'Monthly Inputs'!S35) -> 1803294 | F24: x | H24: ='Other Inputs'!E7 -> 0.03872 | I24: = | J24: 69824
A25: 8 | B25: Spire Injections | D25: ='Monthly Inputs'!S28 -> 0 | F25: x | H25: ='Other Inputs'!E8 -> 0 | I25: = | J25: 0
A26: 9 | B26: Spire Withdrawals | D26: ='Monthly Inputs'!S36 -> 0 | F26: x | H26: ='Other Inputs'!E9 -> 0 | I26: = | J26: 0
A27: 10 | B27: Clay Basin Injections | D27: ='Monthly Inputs'!S25 -> 13154422 | F27: x | H27: ='Other Inputs'!E10 -> 0.01049 | I27: = | J27: 137990
A28: 11 | B28: Clay Basin Withdrawals | D28: ='Monthly Inputs'!S33 -> 9900145 | F28: x | H28: ='Other Inputs'!E11 -> 0.01781 | I28: = | J28: 176322
A29: 12 | C29: Total Commodity Charges | J29: =SUM(J23:J28) -> 455883
A31: =A29+1 -> 13 | B31: Total Storage Charges | K31: =J20+J29 -> 14480941
B33: LNG Storage Related Charges
A34: 14 | B34: Electricity Costs | K34: =Expenses!P24 -> 2088763.27
A39: 1/ | B39: Dominion Energy planned volumes.

Sheet Ut 1.4 p3
N1: ='Control Panel'!$F$32 -> Dominion Energy Utah
N2: ='Control Panel'!$F$33 -> Docket No. 22-057-16
N3: DEU Exhibit 1.4
N4: Page 3 of 4
B9: SUPPLIER NON-GAS COST CLASS ALLOCATION
A12: SNG | C12: (A) | D12: (B) | E12: (C) | F12: (D) | G12: (E) | H12: (F) | I12: (G) | J12: (H) | K12: (I) | L12: (J) | M12: (K) | N12: (L)
C13: Description | D13: Total UT & WY SNG | E13: Allocation Factor 1/ | F13: UT SNG | G13: COS Factor 2/ | H13: GS | I13: FS | J13: IS | K13: TSF | L13: TBF | M13: NGV | N13: UT SNG Total | O13: Check
B14: Transportation | O14: =N14-F14 -> 0
A15: 1 | C15: DEQPC T-1 Transportation: Yearly | D15: =+'Ut 1.4 p1'!$L$17+'Ut 1.4 p1'!$L$18 -> 59706329 | E15: 1 | F15: ='Ut 1.1 p2'!$H$58*$D15 -> 57819738.25 | G15: Firm Sales | H15: =$D$62*$F15 -> 56260188.85 | I15: =$E$62*$F15 -> 1423756.711 | J15: =$F$62*$F15 -> 0 | K15: =$G$62*$F15 -> 0 | L15: =$H$62*$F15 -> 0 | M15: =$I$62*$F15 -> 135792.6943 | N15: =SUM(H15:M15) -> 57819738.25 | O15: =N15-F15 -> 0
A16: 2 | C16: DEQPC T-1 Transportation: November - March | D16: =+'Ut 1.4 p1'!$L$19 -> 2553326 | E16: 1 | F16: ='Ut 1.1 p2'!$H$58*$D16 -> 2472646.426 | G16: Firm Sales | H16: 2405952.691 | I16: 60886.59424 | J16: 0 | K16: 0 | L16: 0 | M16: 5807.140093 | N16: 2472646.426 | O16: 0
A17: 3 | C17: DEQPC No-Notice Transportation | D17: =+'Ut 1.4 p1'!$L$20 -> 2118945 | E17: 1 | F17: ='Ut 1.1 p2'!$H$58*$D17 -> 2051990.925 | G17: Firm Sales | H17: 1996643.369 | I17: 50528.3479 | J17: 0 | K17: 0 | L17: 0 | M17: 4819.20854 | N17: 2051990.925 | O17: 0
A18: 4 | C18: Capacity Release Credits | D18: =+'Ut 1.4 p1'!$L$21 -> -1286159 | E18: 1 | F18: ='Ut 1.1 p2'!$H$58*$D18 -> -1245519.16 | G18: Firm Sales | H18: -1211924.254 | I18: -30669.73867 | J18: 0 | K18: 0 | L18: 0 | M18: -2925.167211 | N18: -1245519.16 | O18: 0
A19: 5 | C19: DEOTP Transportation: Yearly | D19: =+'Ut 1.4 p1'!L25 -> 166056 | E19: 1 | F19: ='Ut 1.1 p2'!$H$58*$D19 -> 160808.9899 | G19: Firm Sales | H19: 156471.5513 | I19: 3959.770234 | J19: 0 | K19: 0 | L19: 0 | M19: 377.6683648 | N19: =SUM(H19:M19) -> 160808.9899 | O19: =N19-F19 -> 0
A20: 6 | C20: Kern River Transportation: Yearly | D20: =+'Ut 1.4 p1'!$L$28+'Ut 1.4 p1'!L29 -> 1380602 | E20: 1 | F20: ='Ut 1.1 p2'!$H$58*$D20 -> 1336977.966 | G20: Firm Sales | H20: 1300916.177 | I20: 32921.8258 | J20: 0 | K20: 0 | L20: 0 | M20: 3139.963024 | N20: 1336977.966 | O20: 0
A21: 7 | C21: Kern River Transportation: November - March | D21: =+'Ut 1.4 p1'!$L$30+'Ut 1.4 p1'!$L$33 -> 1975563 | E21: 1 | F21: ='Ut 1.1 p2'!$H$58*$D21 -> 1913139.486 | G21: Firm Sales | H21: 1861537.116 | I21: 47109.26171 | J21: 0 | K21: 0 | L21: 0 | M21: 4493.108637 | N21: 1913139.486 | O21: 0
A22: 8 | C22: Kern River Transportation: December - February | D22: =+'Ut 1.4 p1'!$L$31 -> 1485743 | E22: 1 | F22: ='Ut 1.1 p2'!$H$58*$D22 -> 1438796.738 | G22: Firm Sales | H22: 1399988.63 | I22: 35429.01736 | J22: 0 | K22: 0 | L22: 0 | M22: 3379.089761 | N22: 1438796.738 | O22: 0
A23: 9 | C23: Kern River Transportation: November & March | D23: =+'Ut 1.4 p1'!$L$32 -> 106140 | E23: 1 | F23: ='Ut 1.1 p2'!$H$58*$D23 -> 102786.2058 | G23: Firm Sales | H23: 100013.7933 | I23: 2531.01371 | J23: 0 | K23: 0 | L23: 0 | M23: 241.3988067 | N23: 102786.2058 | O23: 0
A24: 10 | C24: ACA (FERC) | D24: =+'Ut 1.4 p1'!$L$41 -> 201367 | E24: 2 | F24: ='Ut 1.1 p2'!$H$61*$D24 -> 195051.3919 | G24: Firm Sales | H24: 189790.3462 | I24: 4802.957199 | J24: 0 | K24: 0 | L24: 0 | M24: 458.0884457 | N24: 195051.3919 | O24: 0
A25: 11 | C25: DEQPC Commodity | D25: =+'Ut 1.4 p1'!$L$43 -> 293602 | E25: 2 | F25: ='Ut 1.1 p2'!$H$61*$D25 -> 284393.5638 | G25: Firm Sales | H25: 276722.7263 | I25: 7002.924211 | J25: 0 | K25: 0 | L25: 0 | M25: 667.9132322 | N25: 284393.5638 | O25: 0
A26: 12 | C26: DEOTP Commodity | D26: =+'Ut 1.4 p1'!L45 -> 5207 | E26: 2 | F26: ='Ut 1.1 p2'!$H$61*$D26 -> 5043.68937 | G26: Firm Sales | H26: 4907.647891 | I26: 124.1961103 | J26: 0 | K26: 0 | L26: 0 | M26: 11.84536958 | N26: =SUM(H26:M26) -> 5043.68937 | O26: =N26-F26 -> 0
A27: 13 | C27: Kern River Commodity | D27: =+'Ut 1.4 p1'!$L$53 -> 93119 | E27: 2 | F27: ='Ut 1.1 p2'!$H$61*$D27 -> 90198.44642 | G27: Firm Sales | H27: 87765.55866 | I27: 2221.051967 | J27: 0 | K27: 0 | L27: 0 | M27: 211.8357922 | N27: 90198.44642 | O27: 0
A28: 14 | C28: Other Transportation Charges | D28: =+'Ut 1.4 p1'!$M$59 -> 2651219 | E28: 2 | F28: ='Ut 1.1 p2'!$H$61*$D28 -> 2568067.042 | G28: Firm Sales | H28: 2498799.565 | I28: 63236.23723 | J28: 0 | K28: 0 | L28: 0 | M28: 6031.240426 | N28: 2568067.042 | O28: 0
A29: 15 | C29: Total Transportation | D29: =SUM(D15:D28) -> 71451059 | F29: =SUM(F15:F28) -> 69194119.96 | H29: =SUM(H15:H28) -> 67327773.77 | I29: 1703840.17 | J29: 0 | K29: 0 | L29: 0 | M29: 162506.0276 | N29: =SUM(N15:N28) -> 69194119.96 | O29: 0
B31: Peak Hour
A32: 16 | C32: DEQPC Peak Hour Service | D32: =+'Ut 1.4 p1'!L66 -> 1648076 | E32: 1 | F32: ='Ut 1.1 p2'!$H$58*$D32 -> 1596000.366 | G32: Design Day | H32: =$D$61*$F32 -> 1279961.564 | I32: =$E$61*$F32 -> 18251.7263 | J32: =$F$61*$F32 -> 0 | K32: =$G$61*$F32 -> 232794.6863 | L32: =$H$61*$F32 -> 64185.64272 | M32: =$I$61*$F32 -> 806.74713 | N32: =SUM(H32:M32) -> 1596000.366 | O32: =N32-F32 -> 0
A33: 17 | C33: Kern River Peak Hour Service | D33: =+'Ut 1.4 p1'!L65 -> 1557749 | E33: 1 | F33: ='Ut 1.1 p2'!$H$58*$D33 -> 1508527.504 | G33: Design Day | H33: =$D$61*$F33 -> 1209810.012 | I33: =$E$61*$F33 -> 17251.39399 | J33: =$F$61*$F33 -> 0 | K33: =$G$61*$F33 -> 220035.7809 | L33: =$H$61*$F33 -> 60667.7852 | M33: =$I$61*$F33 -> 762.5313002 | N33: =SUM(H33:M33) -> 1508527.504 | O33: =N33-F33 -> 0
A34: 18 | C34: Total Peak Hour | D34: =SUM(D32:D33) -> 3205825 | F34: =SUM(F32:F33) -> 3104527.87 | H34: =SUM(H32:H33) -> 2489771.576 | I34: 35503.12029 | J34: 0 | K34: 452830.4672 | L34: 124853.4279 | M34: 1569.27843 | N34: 3104527.87
B36: Storage
A37: 19 | C37: Aquifer Peaking Storage Demand | D37: =+'Ut 1.4 p2'!$J$16 -> 6366793 | E37: 1 | F37: ='Ut 1.1 p2'!$H$58*$D37 -> 6165616.124 | G37: Firm Sales | H37: =$D$62*$F37 -> 5999313.348 | I37: =$E$62*$F37 -> 151822.5021 | J37: =$F$62*$F37 -> 0 | K37: =$G$62*$F37 -> 0 | L37: =$H$62*$F37 -> 0 | M37: =$I$62*$F37 -> 14480.27353 | N37: =SUM(H37:M37) -> 6165616.124 | O37: =N37-F37 -> 0
A38: 20 | C38: Spire Storage Demand | D38: =+'Ut 1.4 p2'!$J$17 -> 0 | E38: 1 | F38: ='Ut 1.1 p2'!$H$58*$D38 -> 0 | G38: Firm Sales | H38: 0 | I38: 0 | J38: 0 | K38: 0 | L38: 0 | M38: 0 | N38: 0 | O38: 0
A39: 21 | C39: Clay Basin Storage Demand | D39: =+'Ut 1.4 p2'!$J$18 -> 3829019 | E39: 1 | F39: ='Ut 1.1 p2'!$H$58*$D39 -> 3708030.289 | G39: Firm Sales | H39: 3608015.024 | I39: 91306.76074 | J39: 0 | K39: 0 | L39: 0 | M39: 8708.504027 | N39: 3708030.289 | O39: 0
A40: 22 | C40: Clay Basin Storage Capacity | D40: =+'Ut 1.4 p2'!$J$19 -> 3829246 | E40: 1 | F40: ='Ut 1.1 p2'!$H$58*$D40 -> 3708250.116 | G40: Firm Sales | H40: 3608228.922 | I40: 91312.17378 | J40: 0 | K40: 0 | L40: 0 | M40: 8709.020303 | N40: 3708250.116 | O40: 0
A41: 23 | C41: Aquifer Peaking Injections Storage Commodity | D41: =+'Ut 1.4 p2'!$J$23 -> 71747 | E41: 2 | F41: ='Ut 1.1 p2'!$H$61*$D41 -> 69496.75077 | G41: Firm Sales | H41: 67622.24183 | I41: 1711.292169 | J41: 0 | K41: 0 | L41: 0 | M41: 163.2167719 | N41: 69496.75077 | O41: 0
A42: 24 | C42: Aquifer Peaking Withdrawals Storage Commodity | D42: =+'Ut 1.4 p2'!$J$24 -> 69824 | E42: 2 | F42: ='Ut 1.1 p2'!$H$61*$D42 -> 67634.06311 | G42: Firm Sales | H42: 65809.79572 | I42: 1665.425236 | J42: 0 | K42: 0 | L42: 0 | M42: 158.8421521 | N42: 67634.06311 | O42: 0
A43: 25 | C43: Spire Injections Storage Commodity | D43: =+'Ut 1.4 p2'!$J$25 -> 0 | E43: 2 | F43: ='Ut 1.1 p2'!$H$61*$D43 -> 0 | G43: Firm Sales | H43: 0 | I43: 0 | J43: 0 | K43: 0 | L43: 0 | M43: 0 | N43: 0 | O43: 0
A44: 26 | C44: Spire Withdrawals Storage Commodity | D44: =+'Ut 1.4 p2'!$J$26 -> 0 | E44: 2 | F44: ='Ut 1.1 p2'!$H$61*$D44 -> 0 | G44: Firm Sales | H44: 0 | I44: 0 | J44: 0 | K44: 0 | L44: 0 | M44: 0 | N44: 0 | O44: 0
A45: 27 | C45: Clay Basin Injections Storage Commodity | D45: =+'Ut 1.4 p2'!$J$27 -> 137990 | E45: 2 | F45: ='Ut 1.1 p2'!$H$61*$D45 -> 133662.1272 | G45: Firm Sales | H45: 130056.9104 | I45: 3291.304255 | J45: 0 | K45: 0 | L45: 0 | M45: 313.912531 | N45: 133662.1272 | O45: 0
A46: 28 | C46: Clay Basin Withdrawals Storage Commodity | D46: =+'Ut 1.4 p2'!$J$28 -> 176322 | E46: 2 | F46: ='Ut 1.1 p2'!$H$61*$D46 -> 170791.895 | G46: Firm Sales | H46: 166185.1914 | I46: 4205.589889 | J46: 0 | K46: 0 | L46: 0 | M46: 401.1137422 | N46: 170791.895 | O46: 0
A47: 29 | C47: Total Storage | D47: =SUM(D37:D46) -> 14480941 | F47: =SUM(F37:F46) -> 14023481.36 | H47: =SUM(H37:H46) -> 13645231.43 | I47: 345315.0482 | J47: 0 | K47: 0 | L47: 0 | M47: 32934.88306 | N47: 14023481.36 | O47: 0
A49: =+A47+1 -> 30 | B49: LNG Electricity | D49: =+'Ut 1.4 p2'!K34 -> 2088763.27 | E49: UT | F49: =+'Ut 1.1 p2'!H45 -> 2088763.27 | G49: GS, FS | H49: =$D$65*$F49 -> 2037208.358 | I49: =$E$65*$F49 -> 51554.91175 | J49: 0 | K49: 0 | L49: 0 | M49: 0 | N49: =SUM(H49:M49) -> 2088763.27 | O49: =N49-F49 -> 0
A52: =+A49+1 -> 31 | C52: Supplier Non-Gas Costs | D52: =+D29+D34+D47+D49 -> 91226588.27 | F52: =+F29+F34+F47+F49 -> 88410892.47 | H52: =+H29+H34+H47+H49 -> 85499985.13 | I52: 2136213.25 | J52: 0 | K52: 452830.4672 | L52: 124853.4279 | M52: 197010.1891 | N52: 88410892.47 | O52: =N52-F52 -> 0
H54: =H52/$F$52 -> 0.9670752409 | I54: =I52/$F$52 -> 0.02416233102 | J54: 0 | K54: 0.005121885489 | L54: 0.001412195086 | M54: 0.002228347476 | N54: 1
B58: 1/ | C58: Allocations Factors, DEU Exhibit 1.1 page 2, footnote
B60: 2/ | C60: Cost-of-Service Allocation Factor Docket No. 19-057-02 | D60: GS | E60: FS | F60: IS | G60: TS | H60: TBF | I60: NGV | J60: Total
C61: 210 Design Day | D61: =+'Other Inputs'!C313 -> 0.8019807457 | E61: =+'Other Inputs'!D313 -> 0.01143591611 | F61: =+'Other Inputs'!E313 -> 0 | G61: =+'Other Inputs'!F313 -> 0.1458612988 | H61: =+'Other Inputs'!G313 -> 0.04021655889 | I61: =+'Other Inputs'!H313 -> 0.000505480542 | J61: =SUM(D61:I61) -> 1
C62: 240 Firm Sales | D62: =+'Other Inputs'!C314 -> 0.9730273873 | E62: =+'Other Inputs'!D314 -> 0.02462406012 | F62: =+'Other Inputs'!E314 -> 0 | G62: =+'Other Inputs'!F314 -> 0 | H62: =+'Other Inputs'!G314 -> 0 | I62: =+'Other Inputs'!H314 -> 0.00234855256 | J62: =SUM(D62:I62) -> 1
D64: GS | E64: FS | F64: Total
B65: 3/ | C65: GS & FS Only | D65: =D62/($D$62+$E$62) -> 0.9753179728 | E65: =E62/($D$62+$E$62) -> 0.02468202715 | F65: =SUM(D65:E65) -> 1

Sheet Ut 1.4 p4
I1: ='Control Panel'!$F$32 -> Dominion Energy Utah
I2: ='Control Panel'!$F$33 -> Docket No. 22-057-16
I3: DEU Exhibit 1.4
I4: Page 4 of 4
C6: SUPPLIER NON-GAS COST SUMMARY
A9: SNG | C9: (A) | D9: (B) | E9: (C) | F9: (D) | G9: (E) | H9: (F) | I9: (G)
B10: Description | C10: GS | D10: FS | E10: IS | F10: TS | G10: TBF | H10: NGV | I10: Total
A13: 1 | B13: Transportation - Demand | C13: =SUM('Ut 1.4 p3'!H15:H23) -> 64269787.92 | D13: =SUM('Ut 1.4 p3'!I15:I23) -> 1626452.803 | E13: =SUM('Ut 1.4 p3'!J15:J23) -> 0 | F13: =SUM('Ut 1.4 p3'!K15:K23) -> 0 | G13: =SUM('Ut 1.4 p3'!L15:L23) -> 0 | H13: =SUM('Ut 1.4 p3'!M15:M23) -> 155125.1043 | I13: =SUM(C13:H13) -> 66051365.83
A14: =+A13+1 -> 2 | B14: Transportation - Commodity | C14: =SUM('Ut 1.4 p3'!H24:H27) -> 559186.2791 | D14: =SUM('Ut 1.4 p3'!I24:I27) -> 14151.12949 | E14: =SUM('Ut 1.4 p3'!J24:J27) -> 0 | F14: =SUM('Ut 1.4 p3'!K24:K27) -> 0 | G14: =SUM('Ut 1.4 p3'!L24:L27) -> 0 | H14: =SUM('Ut 1.4 p3'!M24:M27) -> 1349.68284 | I14: =SUM(C14:H14) -> 574687.0914
A16: =+A14+1 -> 3 | B16: Other Transportation | C16: =+'Ut 1.4 p3'!H28 -> 2498799.565 | D16: =+'Ut 1.4 p3'!I28 -> 63236.23723 | E16: =+'Ut 1.4 p3'!J28 -> 0 | F16: =+'Ut 1.4 p3'!K28 -> 0 | G16: =+'Ut 1.4 p3'!L28 -> 0 | H16: =+'Ut 1.4 p3'!M28 -> 6031.240426 | I16: =SUM(C16:H16) -> 2568067.042
A18: =+A16+1 -> 4 | B18: Peak Hour Service | C18: =SUM('Ut 1.4 p3'!H32:H33) -> 2489771.576 | D18: =SUM('Ut 1.4 p3'!I32:I33) -> 35503.12029 | E18: =SUM('Ut 1.4 p3'!J32:J33) -> 0 | F18: =SUM('Ut 1.4 p3'!K32:K33) -> 452830.4672 | G18: =SUM('Ut 1.4 p3'!L32:L33) -> 124853.4279 | H18: =SUM('Ut 1.4 p3'!M32:M33) -> 1569.27843 | I18: =SUM(C18:H19) -> 3104527.87
A19: 5 | B19: TBF Adjustment 1/ | C19: =+C18/($C$18+$D$18+$F$18+$H$18)*-$G$19 -> 52162.83223 | D19: =+D18/($C$18+$D$18+$F$18+$H$18)*-$G$19 -> 743.8205677 | E19: =+E18/($C$18+$D$18+$F$18+$H$18)*$G$18 -> 0 | F19: =+F18/($C$18+$D$18+$F$18+$H$18)*-$G$19 -> 9487.183448 | G19: =+-G18*0.5 -> -62426.71396 | H19: =+H18/($C$18+$D$18+$F$18+$H$18)*-$G$19 -> 32.87771788 | I19: =SUM(C19:H19) -> -3.815614491e-12
A20: 6 | B20: Total Peak Hour Service | C20: =SUM(C18:C19) -> 2541934.408 | D20: 36246.94086 | E20: 0 | F20: 462317.6506 | G20: 62426.71396 | H20: 1602.156148 | I20: 3104527.87
A22: 7 | B22: Storage - Demand | C22: =SUM('Ut 1.4 p3'!H37:H40) -> 13215557.29 | D22: =SUM('Ut 1.4 p3'!I37:I40) -> 334441.4366 | E22: =SUM('Ut 1.4 p3'!J37:J40) -> 0 | F22: =SUM('Ut 1.4 p3'!K37:K40) -> 0 | G22: =SUM('Ut 1.4 p3'!L37:L40) -> 0 | H22: =SUM('Ut 1.4 p3'!M37:M40) -> 31897.79786 | I22: =SUM(C22:H22) -> 13581896.53
A23: 8 | B23: Storage - Commodity | C23: =SUM('Ut 1.4 p3'!H41:H46) -> 429674.1393 | D23: =SUM('Ut 1.4 p3'!I41:I46) -> 10873.61155 | E23: =SUM('Ut 1.4 p3'!J41:J46) -> 0 | F23: =SUM('Ut 1.4 p3'!K41:K46) -> 0 | G23: =SUM('Ut 1.4 p3'!L41:L46) -> 0 | H23: =SUM('Ut 1.4 p3'!M41:M46) -> 1037.085197 | I23: =SUM(C23:H23) -> 441584.836
A24: 9 | B24: LNG Electricity | C24: =+'Ut 1.4 p3'!H49 -> 2037208.358 | D24: =+'Ut 1.4 p3'!I49 -> 51554.91175 | E24: =+'Ut 1.4 p3'!J49 -> 0 | F24: =+'Ut 1.4 p3'!K49 -> 0 | G24: =+'Ut 1.4 p3'!L49 -> 0 | H24: =+'Ut 1.4 p3'!M49 -> 0 | I24: =SUM(C24:H24) -> 2088763.27
A27: 10 | B27: Total SNG | C27: =SUM(C13:C14,C16,C20,C22:C24) -> 85552147.97 | D27: 2136957.07 | E27: 0 | F27: 462317.6506 | G27: 62426.71396 | H27: 197043.0668 | I27: =SUM(C27:H27) -> 88410892.47
A30: =+A27+1 -> 11 | B30: Percent Allocated to Rate Classes | C30: =C27/$I$27 -> 0.9676652455 | D30: 0.02417074425 | E30: 0 | F30: 0.005229193346 | G30: 0.0007060975432 | H30: 0.00222871935 | I30: =SUM(C30:H30) -> 1
A35: 1/ | B35: Represents a 50% subsidy of costs to the TBF class, which is allocated to all other classes using the design day factor.

Sheet Ut 1.5 p1
J1: ='Control Panel'!$F$32 -> Dominion Energy Utah
J2: ='Control Panel'!$F$33 -> Docket No. 22-057-16
J3: DEU Exhibit 1.5
J4: Page 1 of 6
B8: TEST-YEAR GAS COST CHANGE
B10: COMMODITY
B11: (A) | C11: (B) | D11: (C) | F11: (D) | H11: (E) | J11: (F)
F12: Average Rate | H12: x Dth | I12: = | J12: Total
A13: 1 | B13: Commodity Portion of Test-Year Gas Cost 1/ | J13: ='Ut 1.1 p2'!H32-J14 -> 754819660
A14: =A13+1 -> 2 | B14: LNG Costs | J14: =+'Ut 1.1 p2'!H23+'Ut 1.1 p2'!H26+'Ut 1.1 p2'!H29 -> 1852009.081
A15: =A14+1 -> 3 | B15: 191 Account Balance for Commodity Costs 2/ | J15: =D60-D67 -> 61223084.51
A16: =A15+1 -> 4 | B16: Total | J16: =J13+J15+J14 -> 817894753.6
H18: Total
B19: Test-Year Sales: | D19: Firm | F19: + Interruptible | H19: = Sales Dth
A21: =A16+1 -> 5 | B21: Utah | D21: =Calculations!P13 -> 114563116 | F21: =Calculations!P17 -> 271004 | H21: =D21+F21 -> 114834120
A22: =A21+1 -> 6 | B22: Wyoming | D22: =Calculations!P32 -> 3573987 | F22: =Calculations!P36 -> 144250 | H22: =D22+F22 -> 3718237
A23: =A22+1 -> 7 | B23: Total Dth | H23: =SUM(H21:H22) -> 118552357
F27: Current Case | H27: Prior Case
B28: COMMODITY RATES (GS, FS) | F28: ='Control Panel'!F5 -> 22-057-16 | H28: ='Control Panel'!F9 -> 22-057-08 | J28: Difference
A30: =A23+1 -> 8 | B30: Gas Cost (line 1/Total Sales Dth, line 4 + line 2/Total GS & FS Dths 3/) | F30: =ROUND((J13)/H21,5)+ROUND(J14/D65,5) -> 6.58934 | H30: ='Other Inputs'!F119 -> 5.43597 | J30: =F30-H30 -> 1.15337
A31: =A30+1 -> 9 | B31: 191 Account Amortization (Commodity Portion) | F31: =H60 -> 0.53231 | H31: ='Other Inputs'!F120 -> 0.5702 | J31: =F31-H31 -> -0.03789
A32: =A31+1 -> 10 | B32: Total Sales Unit Commodity Cost (Lines 8 + 9) | F32: =F30+F31 -> 7.12165 | H32: =H30+H31 -> 6.00617 | J32: =J30+J31 -> 1.11548
F34: Current Case | H34: Prior Case
B35: COMMODITY RATES (IS) | F35: ='Control Panel'!F5 -> 22-057-16 | H35: ='Control Panel'!F9 -> 22-057-08 | J35: Difference
A37: =A32+1 -> 11 | B37: Gas Cost (line 1/Total Sales Dth, line 4) | F37: =ROUND((J13)/H21,5) -> 6.57313 | H37: ='Other Inputs'!F119 -> 5.43597 | J37: =F37-H37 -> 1.13716
A38: =A37+1 -> 12 | B38: 191 Account Amortization (Commodity Portion) | F38: =H60 -> 0.53231 | H38: ='Other Inputs'!F120 -> 0.5702 | J38: =F38-H38 -> -0.03789
A39: =A38+1 -> 13 | B39: Total Sales Unit Commodity Cost (Lines 11 + 12) | F39: =F37+F38 -> 7.10544 | H39: =H37+H38 -> 6.00617 | J39: =J37+J38 -> 1.09927
F41: Current Case | H41: Prior Case
B42: COMMODITY RATES (NGV) | F42: ='Control Panel'!F5 -> 22-057-16 | H42: ='Control Panel'!F9 -> 22-057-08 | J42: Difference
A44: =A39+1 -> 14 | B44: Gas Cost (line 1/Total Sales Dth, line 4) | F44: =ROUND((J13)/H21,5) -> 6.57313 | H44: ='Other Inputs'!F119 -> 5.43597 | J44: =F44-H44 -> 1.13716
A45: =A44+1 -> 15 | B45: 191 Account Amortization (Commodity Portion) | F45: =H60 -> 0.53231 | H45: ='Other Inputs'!F120 -> 0.5702 | J45: =F45-H45 -> -0.03789
A46: =A45+1 -> 16 | B46: RIN Credit 4/ | F46: =H72 -> -0.48096 | H46: ='Other Inputs'!F130 -> -0.33195 | J46: =F46-H46 -> -0.14901
A47: =A46+1 -> 17 | B47: Total Sales Unit Commodity Cost (Lines 14 + 15 + 16) | F47: =F44+F45+F46 -> 6.62448 | G47: =G44+G45+G46 -> 0 | H47: =H44+H45+H46 -> 5.67422 | I47: =I44+I45+I46 -> 0 | J47: =J44+J45+J46 -> 0.95026
A52: 1/ | B52: DEU Exhibit 1.1, page 2, line 12, column E
A54: 2/ | B54: Amortization from Docket No. 21-057-28
B55: Commodity amortization will be adjusted in the 2022 fall pass-through.
A56: 2/ | B56: 191 Account (August 2022) actual | D56: ='Other Inputs'!E137 -> 69039513
B57: Less: Supplier Non-Gas balance actual | D57: ='Other Inputs'!E138 -> 8051989
B58: 191 Account Commodity Portion | D58: =D56-D57 -> 60987524
B59: RIN Proceed 4/ | D59: =D72 -> -139370.1849
B60: 191 Account Commodity Amortization | D60: =(D58-D59) -> 61126894.18 | F60: =H21 -> 114834120 | H60: =ROUND(D60/F60,5) -> 0.53231
B61: See Application, paragraph 16.
A63: 3/ | B63: GS Dths | C63: ='RevRun Fcst'!T21 -> 111684152
B64: FS Dths | C64: ='RevRun Fcst'!T48 -> 2589192
B65: Total GS & FS Dths | D65: =C63+C64 -> 114273344
A67: 4/ | B67: Prior RIN Proceeds, Docket No. 21-057-28 | D67: ='SDR#5'!F9 -> -96190.32947
B68: Expected amortized Balance | D68: =-'SDR#5'!F21+(-'SDR#5'!F27) -> 27242.38454
B69: Amount remaining to be amortized | D69: =SUM(D67:D68) -> -68947.94493
B71: New RIN Proceeds | D71: =-'SDR#5'!F45 -> -70422.24
B72: Total RIN Proceeds | D72: =SUM(D69:D71) -> -139370.1849 | F72: =Calculations!$P$12 -> 289772 | H72: =ROUND(D72/F72,5) -> -0.48096

Sheet Ut 1.5 p2
G1: ='Control Panel'!$F$32 -> Dominion Energy Utah
G2: ='Control Panel'!$F$33 -> Docket No. 22-057-16
G3: DEU Exhibit 1.5
G4: Page 2 of 6
C8: TEST-YEAR SUPPLIER NON-GAS COST CHANGE
B10: SNG
C11: (A) | D11: (B) | E11: (C) | F11: (D)
D12: Dth | E12: Average Rate | F12: Total
B15: 1 | C15: Supplier Non-Gas (SNG) Costs 1/ | F15: ='Ut 1.1 p2'!H48 -> 88410892.47
B16: =B15+1 -> 2 | C16: 191 Account Balance for SNG Costs 2/ | F16: =E44 -> 3222746
B17: =1+B16 -> 3 | C17: SNG Total Costs Recovered for Test-Year 3/ | F17: =SUM(F15:F16) -> 91633638.47
B20: 4 | C20: Supplier Non-Gas Base Cost at Current Rates | F20: =F22-F21 -> 88278154.79
B21: 5 | C21: Amortization | F21: =E45 -> 3222746
B22: 6 | C22: SNG Total Costs Recovered at Current Rates 3/ | F22: ='Other Inputs'!E251-(D30*('Other Inputs'!G96-'Other Inputs'!F252)) -> 91500900.79
B25: =1+B22 -> 7 | C25: SNG Costs Adjustment to Current Rates (Line 3 - Line 6) | F25: =F17-F22 -> 132737.6797
C29: Adjustment for SNG contributions from:
B30: 8 | C30: IS SNG current rate | D30: ='RevRun Fcst'!T102+'RevRun Fcst'!T93 -> 271004 | E30: ='Other Inputs'!E48 -> 0.17652 | F30: =D30*E30 -> 47837.62608
B31: 9 | C31: IS SNG new rate | D31: ='RevRun Fcst'!T102+'RevRun Fcst'!T93 -> 271004 | E31: ='Other Inputs'!F48 -> 0.17652 | F31: =D31*E31 -> 47837.62608
B35: 10 | C35: Percent Change to Amortization | F35: =((F16-F21)/F21)*100 -> 0 | G35: %
C36: (ln 2-ln 5)/ln 5
B40: 1/ | C40: DEU Exhibit 1.1, page 2, line 16, column E.
B42: 2/ | C42: Actual March 2022 SNG Balance | E42: ='Other Inputs'!D141 -> -10777254
C43: Expected March 2022 SNG Balance | E43: ='Other Inputs'!E141 -> -14000000
E44: ='Other Inputs'!F141 -> 3222746
B45: 2/ | C45: Spring Pass Through SNG Amortization From Docket No. 22-057-08 | E45: ='Other Inputs'!F141 -> 3222746
C46: Amortization will be adjusted in the 2023 Spring Pass Through
B48: 3/ | C48: ="Output of Revrun.Exe computer program dated "&'RevRun Fcst'!D4 -> Output of Revrun.Exe computer program dated 09/08/22

Sheet Ut 1.5 p3
I1: ='Control Panel'!$F$32 -> Dominion Energy Utah
I2: ='Control Panel'!$F$33 -> Docket No. 22-057-16
I3: DEU Exhibit 1.5
I4: Page 3 of 6
B7: SUPPLIER NON-GAS RATE CALCULATION
B9: SNG | C9: (A) | D9: (B) | E9: (C) | F9: (D) | G9: (E) | H9: (F) | I9: (G)
C10: GS | D10: FS | E10: IS 1/ | F10: TSF | G10: TBF | H10: NGV | I10: Total
A11: 1 | B11: Allocated SNG Costs | C11: =+'Ut 1.4 p4'!C27 -> 85552147.97 | D11: =+'Ut 1.4 p4'!D27 -> 2136957.07 | E11: =+'Ut 1.4 p4'!E27 -> 0 | F11: =+'Ut 1.4 p4'!F27 -> 462317.6506 | G11: =+'Ut 1.4 p4'!G27 -> 62426.71396 | H11: =+'Ut 1.4 p4'!H27 -> 197043.0668 | I11: =SUM(C11:H11) -> 88410892.47
A12: =+A11+1 -> 2 | B12: IS SNG Revenue | C12: =-$E$12*'Ut 1.4 p4'!C30 -> -47040.81788 | D12: =-$E$12*'Ut 1.4 p4'!D30 -> -1175.005079 | E12: =$E$17*E23 -> 48612.69752 | F12: =-$E$12*'Ut 1.4 p4'!F30 -> -254.2051944 | G12: =-$E$12*'Ut 1.4 p4'!G30 -> -34.32530628 | H12: =-$E$12*'Ut 1.4 p4'!H30 -> -108.3440596 | I12: =SUM(C12:H12) -> 1.122657523e-12
A13: 3 | B13: SNG Costs to Recover | C13: =+C11+C12 -> 85505107.15 | D13: 2135782.065 | E13: 48612.69752 | F13: 462063.4454 | G13: 62392.38865 | H13: 196934.7227 | I13: =SUM(C13:H13) -> 88410892.47
A14: 4 | B14: Summer/Winter Differential | C14: ='Ut 1.5 p4'!C41 -> 0.52926 | D14: ='Ut 1.5 p5'!C42 -> 0.14895 | F14: 0 | G14: 0 | H14: 0
A15: 5 | B15: Summer Forecast Throughput 2022-23 | C15: =SUM('RevRun Fcst'!$M$21:$S$21) -> 31228294 | D15: =SUM('RevRun Fcst'!$M$48:$S$48) -> 1308506 | E15: =SUM('RevRun Fcst'!$M$102:$S$102) -> 113370 | F15: =SUM('RevRun Fcst'!$M$165:$S$165) -> 28317859 | G15: =SUM('RevRun Fcst'!$M$129:$S$129) -> 27701506 | H15: =SUM('RevRun Fcst'!$M$66:$S$66) -> 165561
A16: 6 | B16: Winter Forecast Throughput 2022-23 | C16: =SUM('RevRun Fcst'!$H$21:$L$21) -> 80455858 | D16: =SUM('RevRun Fcst'!$H$48:$L$48) -> 1280686 | E16: =SUM('RevRun Fcst'!$H$102:$L$102) -> 157634 | F16: =SUM('RevRun Fcst'!$H$165:$L$165) -> 26267167 | G16: =SUM('RevRun Fcst'!$H$129:$L$129) -> 18808625 | H16: =SUM('RevRun Fcst'!$H$66:$L$66) -> 124211
A17: 7 | B17: Total Forecast Throughput 2022-23 | C17: =SUM(C15:C16) -> 111684152 | D17: 2589192 | E17: 271004 | F17: 54585026 | G17: 46510131 | H17: 289772
A18: 8 | B18: Forecast Demand Dth | C18: 0 | D18: 0 | F18: =+'Other Inputs'!D316 -> 222022 | G18: =+'Other Inputs'!D317 -> 45000 | H18: 0
A20: =A18+1 -> 9 | B20: Summer Base Rate | C20: =ROUND(C21-C14,5) -> 0.38433 | D20: =ROUND(D21-D14,5) -> 0.75121 | F20: 0 | G20: 0 | H20: 0
A21: =A20+1 -> 10 | B21: Winter Base Rate | C21: =ROUND((C13+C14*C15)/C17,5) -> 0.91359 | D21: =ROUND((D13+D14*D15)/D17,5) -> 0.90016 | F21: 0 | G21: 0 | H21: 0
A23: =A21+1 -> 11 | B23: Year Round Base Rates | C23: 0 | D23: 0 | E23: =ROUND(C54,5) -> 0.17938 | F23: 0 | G23: 0 | H23: =ROUND(H13/H17,5) -> 0.67962
A25: =A23+1 -> 12 | B25: Annual Demand Rate | C25: 0 | D25: 0 | F25: =ROUND(F13/F18,5) -> 2.08116 | G25: =ROUND(G13/G18,5) -> 1.3865 | H25: 0
A26: =A25+1 -> 13 | B26: Monthly Demand Rate | C26: 0 | D26: 0 | F26: =ROUND(F25/12,5) -> 0.17343 | G26: =ROUND(G25/12,5) -> 0.11554 | H26: 0
A28: =A26+1 -> 14 | B28: Revenue Collected With Rate | C28: =C20*C15+C16*C21 -> 85505637.54 | D28: =D20*D15+D16*D21 -> 2135785.102 | E28: =+E17*E23 -> 48612.69752 | F28: =F25*F18 -> 462063.3055 | G28: =G25*G18 -> 62392.5 | H28: =H23*H17 -> 196934.8466 | I28: =SUM(C28:H28) -> 88411425.99
A30: =+A28+1 -> 15 | B30: Amortization of Balance | C30: =+'Ut 1.5 p2'!$F$16*'Ut 1.4 p4'!C30 -> 3118539.299 | D30: =+'Ut 1.5 p2'!$F$16*'Ut 1.4 p4'!D30 -> 77896.16934 | E30: =+'Ut 1.5 p2'!$F$16*'Ut 1.4 p4'!E30 -> 0 | F30: =+'Ut 1.5 p2'!$F$16*'Ut 1.4 p4'!F30 -> 16852.36194 | G30: =+'Ut 1.5 p2'!$F$16*'Ut 1.4 p4'!G30 -> 2275.573033 | H30: =+'Ut 1.5 p2'!$F$16*'Ut 1.4 p4'!H30 -> 7182.59637
A31: =+A30+1 -> 16 | B31: Summer/Winter Differential | C31: =+'Ut 1.5 p4'!C47 -> 0.0193 | D31: =+'Ut 1.5 p5'!C48 -> 0.00543
A33: =+A31+1 -> 17 | B33: Summer Amortization Rate | C33: ='Ut 1.5 p6'!D31 -> 0.01392 | D33: ='Ut 1.5 p6'!D39 -> 0.02741
A34: =+A33+1 -> 18 | B34: Winter Amortization Rate | C34: ='Ut 1.5 p6'!D35 -> 0.03321 | D34: ='Ut 1.5 p6'!D43 -> 0.03283
A35: =+A34+1 -> 19 | B35: Annual Amortization Rate | F35: ='Ut 1.5 p6'!D49 -> 0.07578 | G35: ='Ut 1.5 p6'!D54 -> 0.05049 | H35: ='Ut 1.5 p6'!D59 -> 0.02481
A37: =+A35+1 -> 20 | B37: Amortization Collected With Rate | C37: =+C15*C33+C16*C34 -> 3106636.897 | D37: =+D15*D33+D16*D34 -> 77911.07084 | E37: 0 | F37: =+F35*F18 -> 16824.82716 | G37: =+G35*G18 -> 2272.05 | H37: =+H35*H17 -> 7189.24332 | I37: =SUM(C37:H37) -> 3210834.088
A39: =+A37+1 -> 21 | B39: Summer Total Rate | C39: =+C20+C33 -> 0.39825 | D39: =+D20+D33 -> 0.77862
A40: =+A39+1 -> 22 | B40: Winter Total Rate | C40: =+C21+C34 -> 0.9468 | D40: =+D21+D34 -> 0.93299
A41: =+A40+1 -> 23 | B41: Annual Total Rate | E41: =+E23 -> 0.17938 | F41: =+F25+F35 -> 2.15694 | G41: =+G25+G35 -> 1.43699 | H41: =+H23+H35 -> 0.70443
A42: =+A41+1 -> 24 | B42: Monthly Total Rate | F42: =ROUND(F41/12,5) -> 0.17975 | G42: =ROUND(G41/12,5) -> 0.11975
A44: =+A42+1 -> 25 | B44: Summer Total Collected | C44: =+C15*C39 -> 12436668.09 | D44: =+D15*D39 -> 1018828.942
A45: =+A44+1 -> 26 | B45: Winter Total Collected | C45: =+C16*C40 -> 76175606.35 | D45: =+D16*D40 -> 1194867.231
A46: =+A45+1 -> 27 | B46: Annual Total Collected | E46: =+E41*E17 -> 48612.69752 | F46: =+F41*F18 -> 478888.1327 | G46: =+G41*G18 -> 64664.55 | H46: =+H41*H17 -> 204124.09
C47: =SUM(C44:C46) -> 88612274.44 | D47: 2213696.173 | E47: 48612.69752 | F47: 478888.1327 | G47: 64664.55 | H47: 204124.09 | I47: =SUM(C47:H47) -> 91622260.08
A51: 1/ | B51: ="Calculated by adding QPC T-2 and ACA rates, then adjusting for distr. loss of "&TEXT('Other Inputs'!E276,"0.000%") -> Calculated by adding QPC T-2 and ACA rates, then adjusting for distr. loss of 0.559%
B52: ="= ("&TEXT('Other Inputs'!$F$48,"$0.00000")&" + "&TEXT('Other Inputs'!$F$49,"$0.00000")&") / ( 1 - "&TEXT('Other Inputs'!$E$276,"0.00000")&" ) = "&TEXT(('Other Inputs'!F48+'Other Inputs'!F49)/(1-('Other Inputs'!$E$276)),("$0.00000")) -> = ($0.17652 + $0.00150) / ( 1 - 0.00559 ) = $0.17902
B53: ="IS Tariff rate has an adjustment for bad debt of "&TEXT('Other Inputs'!$E$287,"0.00%") -> IS Tariff rate has an adjustment for bad debt of 0.20%
B54: =" = "&TEXT((('Other Inputs'!$F$48+'Other Inputs'!$F$49)/(1-'Other Inputs'!$E$276)),"$0.00000")&" / ( 1 - "&TEXT('Other Inputs'!$E$287,"0.00000")&" ) = " -> = $0.17902 / ( 1 - 0.00200 ) = | C54: =+(('Other Inputs'!$F$48+'Other Inputs'!$F$49)/(1-'Other Inputs'!$E$276))/(1-('Other Inputs'!$E$287)) -> 0.1793794848
A56: 2/ | B56: Spring Pass Through SNG Amortization From Docket No. 20-057-07 (Lines 15-19)
B57: Amortization will be adjusted in the 2021 Spring Pass Through

Sheet Ut 1.5 p4
E1: ='Control Panel'!$F$32 -> Dominion Energy Utah
E2: ='Control Panel'!$F$33 -> Docket No. 22-057-16
E3: DEU Exhibit 1.5
E4: Page 4 of 6
A6: GENERAL SERVICE SUMMER / WINTER DIFFERENTIAL
A8: SNG | B8: (A) | C8: (B) | D8: (C) | E8: (D)
B9: Contract | C9: Allocated GS Costs | D9: Winter Allocation | E9: Summer Allocation
A10: 1 | B10: DEQPC T-1 Transportation: Yearly | C10: =+'Ut 1.4 p3'!H15 -> 56260188.85 | D10: =C10*D50 -> 40529132.24 | E10: =C10*$D$49 -> 15731056.61
A11: =A10+1 -> 2 | B11: DEQPC T-1 Transportation: November - March | C11: =+'Ut 1.4 p3'!H16 -> 2405952.691 | D11: =C11 -> 2405952.691
A12: =A11+1 -> 3 | B12: DEQPC No-Notice Transportation | C12: =+'Ut 1.4 p3'!H17 -> 1996643.369 | D12: =C12*D50 -> 1438356.763 | E12: =C12*$D$49 -> 558286.6057
A13: 4 | B13: Capacity Release Credits | C13: =+'Ut 1.4 p3'!H18 -> -1211924.254 | D13: =C13*$D$50 -> -873054.9853 | E13: =C13*$D$49 -> -338869.2687
A14: 5 | B14: DEOTP Transportation: Yearly | C14: =+'Ut 1.4 p3'!H19 -> 156471.5513 | D14: =C14*$D$50 -> 112720.137 | E14: =C14*$D$49 -> 43751.41431
A15: 6 | B15: Kern River Transportation: Yearly | C15: =+'Ut 1.4 p3'!H20 -> 1300916.177 | D15: =C15*$D$50 -> 937163.6468 | E15: =C15*$D$49 -> 363752.5299
A16: 7 | B16: Kern River Transportation: November - March | C16: =+'Ut 1.4 p3'!H21 -> 1861537.116 | D16: =C16 -> 1861537.116
A17: 8 | B17: Kern River Transportation: December - February | C17: =+'Ut 1.4 p3'!H22 -> 1399988.63 | D17: =C17 -> 1399988.63
A18: 9 | B18: Kern River Transportation: November & March | C18: =+'Ut 1.4 p3'!H23 -> 100013.7933 | D18: =C18 -> 100013.7933
A19: 10 | B19: ACA (FERC) | C19: =+'Ut 1.4 p3'!H24 -> 189790.3462 | D19: =C19*$D$50 -> 136722.5777 | E19: =C19*$D$49 -> 53067.76856
A20: 11 | B20: MWP Commodity | C20: =+'Ut 1.4 p3'!H25 -> 276722.7263 | D20: =C20*$D$50 -> 199347.5706 | E20: =C20*$D$49 -> 77375.15573
A21: 12 | B21: DEOTP Commodity | C21: =+'Ut 1.4 p3'!H26 -> 4907.647891 | D21: =C21*$D$50 -> 3535.407797 | E21: =C21*$D$49 -> 1372.240093
A22: 13 | B22: Kern River Commodity | C22: =+'Ut 1.4 p3'!H27 -> 87765.55866 | D22: =C22*$D$50 -> 63225.20428 | E22: =C22*$D$49 -> 24540.35438
A23: 14 | B23: Other Transportation Charges | C23: =+'Ut 1.4 p3'!H28 -> 2498799.565 | D23: =C23*$D$50 -> 1800103.769 | E23: =C23*$D$49 -> 698695.7957
A24: 15 | B24: DEQPC Peak Hour Service | C24: =+'Ut 1.4 p3'!H32 -> 1279961.564 | D24: =C24 -> 1279961.564
A25: 16 | B25: Kern River Peak Hour Service | C25: =+'Ut 1.4 p3'!H33 -> 1209810.012 | D25: =C25 -> 1209810.012
A26: 17 | B26: Aquifer Peaking Storage Demand | C26: =+'Ut 1.4 p3'!H37 -> 5999313.348 | D26: =C26*$D$50 -> 4321829.859 | E26: =C26*$D$49 -> 1677483.49
A27: 18 | B27: Spire Storage Demand | C27: =+'Ut 1.4 p3'!H38 -> 0 | D27: 0 | E27: 0
A28: 19 | B28: Clay Basin Storage Demand | C28: =+'Ut 1.4 p3'!H39 -> 3608015.024 | D28: 2599168.631 | E28: 1008846.393
A29: 20 | B29: Clay Basin Storage Capacity | C29: =+'Ut 1.4 p3'!H40 -> 3608228.922 | D29: 2599322.72 | E29: 1008906.202
A30: 21 | B30: Aquifer Peaking Injections Storage Commodity | C30: =+'Ut 1.4 p3'!H41 -> 67622.24183 | D30: 48714.21226 | E30: 18908.02957
A31: 22 | B31: Aquifer Peaking Withdrawals Storage Commodity | C31: =+'Ut 1.4 p3'!H42 -> 65809.79572 | D31: 47408.54888 | E31: 18401.24684
A32: 23 | B32: Spire Injections Storage Commodity | C32: =+'Ut 1.4 p3'!H43 -> 0 | D32: 0 | E32: 0
A33: 24 | B33: Spire Withdrawals Storage Commodity | C33: =+'Ut 1.4 p3'!H44 -> 0 | D33: 0 | E33: 0
A34: 25 | B34: Clay Basin Injections Storage Commodity | C34: =+'Ut 1.4 p3'!H45 -> 130056.9104 | D34: 93691.362 | E34: 36365.5484
A35: =A34+1 -> 26 | B35: Clay Basin Withdrawals Storage Commodity | C35: =+'Ut 1.4 p3'!H46 -> 166185.1914 | D35: 119717.7211 | E35: 46467.47028
A36: 27 | B36: LNG Electricity | C36: =+'Ut 1.4 p3'!H49 -> 2037208.358 | D36: =+(SUM(Expenses!F24:J24)*'Ut 1.4 p3'!D65) -> 1575427.035 | E36: =+SUM(Expenses!D24,Expenses!E24,Expenses!K24)*'Ut 1.4 p3'!D65 -> 399685.4906
A37: =+A36+1 -> 28 | B37: Utah SNG Costs | C37: =SUM(C10:C36) -> 85499985.13 | D37: =SUM(D10:D36) -> 64009796.22 | E37: 21428093.08
A39: =A37+1 -> 29 | B39: Winter SNG - Summer SNG | C39: =D37-E37 -> 42581703.14
A40: =A39+1 -> 30 | B40: Winter Dth | C40: =C50 -> 80455858
A41: =A40+1 -> 31 | B41: Seasonal Cost Differential | C41: =ROUND(C39/C40,5) -> 0.52926
A43: =+A41+1 -> 32 | B43: SNG Amortization | C43: =+'Ut 1.5 p3'!C30 -> 3118539.299 | D43: =+C43*D37/C37 -> 2334702.921 | E43: =+C43*E37/C37 -> 781571.4853
A45: =+A43+1 -> 33 | B45: Winter SNG - Summer SNG Amortization | C45: =+D43-E43 -> 1553131.436
A46: =+A45+1 -> 34 | B46: Winter Dth | C46: =+C50 -> 80455858
A47: =+A46+1 -> 35 | B47: Seasonal Cost Differential | C47: =ROUND(C45/C46,5) -> 0.0193
A49: =+A47+1 -> 36 | B49: 2022-23 Forecast GS Summer Usage | C49: =+'Ut 1.5 p3'!C15 -> 31228294 | D49: =C49/(C49+C50) -> 0.279612581
A50: =A49+1 -> 37 | B50: 2022-23 Forecast GS Winter Usage | C50: =+'Ut 1.5 p3'!C16 -> 80455858 | D50: =C50/(C50+C49) -> 0.720387419

Sheet Ut 1.5 p5
E1: ='Control Panel'!$F$32 -> Dominion Energy Utah
E2: ='Control Panel'!$F$33 -> Docket No. 22-057-16
E3: DEU Exhibit 1.5
E4: Page 5 of 6
A7: FIRM SALES SUMMER / WINTER DIFFERENTIAL
A9: SNG | B9: (A) | C9: (B) | D9: (C) | E9: (D)
B10: Contract | C10: Allocated FS Costs | D10: Winter Allocation | E10: Summer Allocation
A11: 1 | B11: DEQPC T-1 Transportation: Yearly | C11: =+'Ut 1.4 p3'!I15 -> 1423756.711 | D11: =C11*D52 -> 704229.4611 | E11: =C11*$D$51 -> 719527.2496
A12: =A11+1 -> 2 | B12: DEQPC T-1 Transportation: November - March | C12: =+'Ut 1.4 p3'!I16 -> 60886.59424 | D12: =C12 -> 60886.59424
A13: =A12+1 -> 3 | B13: DEQPC No-Notice Transportation | C13: =+'Ut 1.4 p3'!I17 -> 50528.3479 | D13: =C13*D52 -> 24992.71887 | E13: =C13*$D$51 -> 25535.62903
A14: 4 | B14: Capacity Release Credits | C14: =+'Ut 1.4 p3'!I18 -> -30669.73867 | D14: =C14*$D$52 -> -15170.1013 | E14: =C14*$D$51 -> -15499.63736
A15: 5 | B15: DEOTP Transportation: Yearly | C15: =+'Ut 1.4 p3'!I19 -> 3959.770234 | D15: =C15*$D$52 -> 1958.611915 | E15: =C15*$D$51 -> 2001.158319
A16: 6 | B16: Kern River Transportation: Yearly | C16: =+'Ut 1.4 p3'!I20 -> 32921.8258 | D16: =C16*$D$52 -> 16284.04591 | E16: =C16*$D$51 -> 16637.77989
A17: 7 | B17: Kern River Transportation: November - March | C17: =+'Ut 1.4 p3'!I21 -> 47109.26171 | D17: =C17 -> 47109.26171
A18: 8 | B18: Kern River Transportation: December - February | C18: =+'Ut 1.4 p3'!I22 -> 35429.01736 | D18: =C18 -> 35429.01736
A19: 9 | B19: Kern River Transportation: November & March | C19: =+'Ut 1.4 p3'!I23 -> 2531.01371 | D19: =C19 -> 2531.01371
A20: 10 | B20: ACA (FERC) | C20: =+'Ut 1.4 p3'!I24 -> 4802.957199 | D20: =C20*$D$52 -> 2375.675517 | E20: =C20*$D$51 -> 2427.281682
A21: 11 | B21: MWP Commodity | C21: =+'Ut 1.4 p3'!I25 -> 7002.924211 | D21: 3463.840069 | E21: 3539.084142
A22: 12 | B22: DEOTP Commodity | C22: =+'Ut 1.4 p3'!I26 -> 124.1961103 | D22: =C22*$D$52 -> 61.43083235 | E22: =C22*$D$51 -> 62.76527792
A23: 13 | B23: Kern River Commodity | C23: =+'Ut 1.4 p3'!I27 -> 2221.051967 | D23: 1098.593754 | E23: 1122.458213
A24: 14 | B24: Other Transportation Charges | C24: =+'Ut 1.4 p3'!I28 -> 63236.23723 | D24: 31278.39253 | E24: 31957.8447
A25: 15 | B25: DEQPC Peak Hour Service | C25: =+'Ut 1.4 p3'!I32 -> 18251.7263 | D25: =C25 -> 18251.7263
A26: 16 | B26: Kern River Peak Hour Service | C26: =+'Ut 1.4 p3'!I33 -> 17251.39399 | D26: =C26 -> 17251.39399
A27: 17 | B27: Aquifer Peaking Storage Demand | C27: =+'Ut 1.4 p3'!I37 -> 151822.5021 | D27: 75095.6101 | E27: 76726.89199
A28: 18 | B28: Spire Storage Demand | C28: =+'Ut 1.4 p3'!I38 -> 0 | D28: 0 | E28: 0
A29: 19 | B29: Clay Basin Storage Demand | C29: =+'Ut 1.4 p3'!I39 -> 91306.76074 | D29: 45162.8501 | E29: 46143.91064
A30: 20 | B30: Clay Basin Storage Capacity | C30: =+'Ut 1.4 p3'!I40 -> 91312.17378 | D30: 45165.52754 | E30: 46146.64624
A31: 21 | B31: Aquifer Peaking Injections Storage Commodity | C31: =+'Ut 1.4 p3'!I41 -> 1711.292169 | D31: 846.4524541 | E31: 864.8397147
A32: 22 | B32: Aquifer Peaking Withdrawals Storage Commodity | C32: =+'Ut 1.4 p3'!I42 -> 1665.425236 | D32: 823.7654 | E32: 841.6598358
A33: 23 | B33: Spire Injections Storage Commodity | C33: =+'Ut 1.4 p3'!I43 -> 0 | D33: 0 | E33: 0
A34: 24 | B34: Spire Withdrawals Storage Commodity | C34: =+'Ut 1.4 p3'!I44 -> 0 | D34: 0 | E34: 0
A35: 25 | B35: Clay Basin Injections Storage Commodity | C35: =+'Ut 1.4 p3'!I45 -> 3291.304255 | D35: 1627.970147 | E35: 1663.334108
A36: 26 | B36: Clay Basin Withdrawals Storage Commodity | C36: =+'Ut 1.4 p3'!I46 -> 4205.589889 | D36: 2080.201118 | E36: 2125.388771
A37: =+A36+1 -> 27 | B37: LNG Electricity | C37: =+'Ut 1.4 p3'!I49 -> 51554.91175 | D37: =+(SUM(Expenses!F24:J24)*'Ut 1.4 p3'!E65) -> 39868.77505 | E37: =+SUM(Expenses!D24,Expenses!E24,Expenses!K24)*'Ut 1.4 p3'!E65 -> 10114.69942
A38: =+A37+1 -> 28 | B38: Utah SNG Costs | C38: =SUM(C11:C37) -> 2136213.25 | D38: =SUM(D11:D37) -> 1162702.828 | E38: 971938.9842
A40: =A38+1 -> 29 | B40: Winter SNG - Summer SNG | C40: =D38-E38 -> 190763.8442
A41: =A40+1 -> 30 | B41: Winter Dth | C41: =C52 -> 1280686
A42: =A41+1 -> 31 | B42: Seasonal Cost Differential | C42: =ROUND(C40/C41,5) -> 0.14895
A44: =+A42+1 -> 32 | B44: SNG Amortization | C44: =+'Ut 1.5 p3'!D30 -> 77896.16934 | D44: =+C44*D38/C38 -> 42397.49773 | E44: =+C44*E38/C38 -> 35441.36977
A46: =+A44+1 -> 33 | B46: Winter SNG - Summer SNG Amortization | C46: =+D44-E44 -> 6956.127957
A47: =+A46+1 -> 34 | B47: Winter Dth | C47: =+C52 -> 1280686
A48: =+A47+1 -> 35 | B48: Seasonal Cost Differential | C48: =ROUND(C46/C47,5) -> 0.00543
A51: =+A48+1 -> 36 | B51: 2022-2023 Forecast FS Summer Usage | C51: =+'Ut 1.5 p3'!D15 -> 1308506 | D51: =C51/(C51+C52) -> 0.5053723324
A52: =+A51+1 -> 37 | B52: 2022-2023 Forecast FS Winter Usage | C52: =+'Ut 1.5 p3'!D16 -> 1280686 | D52: =C52/(C52+C51) -> 0.4946276676

Sheet Ut 1.5 p6
H1: ='Control Panel'!$F$32 -> Dominion Energy Utah
H2: ='Control Panel'!$F$33 -> Docket No. 22-057-16
H3: DEU Exhibit 1.5
H4: Page 6 of 6
C7: SUMMARY OF RATES
B9: COMMODITY | D9: (A) | E9: (B)
B10: Class | C10: Description | D10: Current | E10: Proposed
B11: GS, FS
A12: 1 | C12: Base Gas Cost | D12: =+'Other Inputs'!F119 -> 5.43597 | E12: =+'Ut 1.5 p1'!F30 -> 6.58934
A13: 2 | C13: 191 Amortization | D13: =+'Other Inputs'!F120 -> 0.5702 | E13: =+'Ut 1.5 p1'!F31 -> 0.53231
A14: 3 | C14: Commodity Rate | D14: =+D12+D13 -> 6.00617 | E14: =+E12+E13 -> 7.12165
B16: IS
A17: =+A14+1 -> 4 | C17: Base Gas Cost | D17: ='Other Inputs'!F129 -> 5.42485 | E17: =+'Ut 1.5 p1'!F37 -> 6.57313
A18: =+A17+1 -> 5 | C18: 191 Amortization | D18: =+'Other Inputs'!F120 -> 0.5702 | E18: =+'Ut 1.5 p1'!F38 -> 0.53231
A19: =+A18+1 -> 6 | C19: Commodity Rate | D19: =+D17+D18 -> 5.99505 | E19: =+E17+E18 -> 7.10544
B21: NGV
A22: =+A19+1 -> 7 | C22: Base Gas Cost | D22: ='Other Inputs'!F129 -> 5.42485 | E22: =+'Ut 1.5 p1'!F37 -> 6.57313
A23: =+A22+1 -> 8 | C23: 191 Amortization | D23: =+'Other Inputs'!F120 -> 0.5702 | E23: =+'Ut 1.5 p1'!F31 -> 0.53231
A24: =+A23+1 -> 9 | C24: RIN Credit | D24: =+'Other Inputs'!F130 -> -0.33195 | E24: ='Ut 1.5 p1'!H72 -> -0.48096
A25: 10 | C25: Commodity Rate | D25: =+D22+D23+D24 -> 5.6631 | E25: =+E22+E23+E24 -> 6.62448
B28: SNG
B29: Class | C29: Description | D29: Current | E29: Proposed
A30: =+A25+1 -> 11 | B30: GS | C30: Base SNG Summer | D30: =+'Other Inputs'!E89 -> 0.38263 | E30: =ROUND('Ut 1.5 p3'!C20,5) -> 0.38433
A31: =+A30+1 -> 12 | C31: SNG Amortization | D31: =+'Other Inputs'!F89 -> 0.01392 | E31: =ROUND('Ut 1.5 p3'!C33,5) -> 0.01392
A32: =+A31+1 -> 13 | C32: SNG Summer Rate | D32: =+D30+D31 -> 0.39655 | E32: =+E30+E31 -> 0.39825
A34: =+A32+1 -> 14 | C34: Base SNG Winter | D34: =+'Other Inputs'!E88 -> 0.91267 | E34: =ROUND('Ut 1.5 p3'!C21,5) -> 0.91359
A35: =+A34+1 -> 15 | C35: SNG Amortization | D35: =+'Other Inputs'!F88 -> 0.03321 | E35: =ROUND('Ut 1.5 p3'!C34,5) -> 0.03321
A36: =+A35+1 -> 16 | C36: SNG Winter Rate | D36: =+D34+D35 -> 0.94588 | E36: =+E34+E35 -> 0.9468
A38: =+A36+1 -> 17 | B38: FS | C38: Base SNG Summer | D38: =+'Other Inputs'!E92 -> 0.7531 | E38: =ROUND('Ut 1.5 p3'!D20,5) -> 0.75121
A39: =+A38+1 -> 18 | C39: SNG Amortization | D39: =+'Other Inputs'!F92 -> 0.02741 | E39: =ROUND('Ut 1.5 p3'!D33,5) -> 0.02741
A40: =+A39+1 -> 19 | C40: SNG Summer Rate | D40: =+D38+D39 -> 0.78051 | E40: =+E38+E39 -> 0.77862
A42: =+A40+1 -> 20 | C42: Base SNG Winter | D42: =+'Other Inputs'!E91 -> 0.9021 | E42: =ROUND('Ut 1.5 p3'!D21,5) -> 0.90016
A43: =+A42+1 -> 21 | C43: SNG Amortization | D43: =+'Other Inputs'!F91 -> 0.03283 | E43: =ROUND('Ut 1.5 p3'!D34,5) -> 0.03283
A44: =+A43+1 -> 22 | C44: SNG Winter Rate | D44: =+D42+D43 -> 0.93493 | E44: =+E42+E43 -> 0.93299
A46: =+A44+1 -> 23 | B46: IS | C46: SNG Rate | D46: =+'Other Inputs'!E96 -> 0.17905 | E46: =ROUND('Ut 1.5 p3'!E23,5) -> 0.17938
A48: =+A46+1 -> 24 | B48: TSF | C48: Base SNG Annual Demand | D48: =+'Other Inputs'!G320 -> 2.08257 | E48: =ROUND('Ut 1.5 p3'!F25,5) -> 2.08116
A49: =+A48+1 -> 25 | C49: SNG Amortization | D49: =+'Other Inputs'!G321 -> 0.07578 | E49: =ROUND('Ut 1.5 p3'!F35,5) -> 0.07578
A50: =+A49+1 -> 26 | C50: SNG Adder Annual | D50: =+D48+D49 -> 2.15835 | E50: =+E48+E49 -> 2.15694
A51: =+A50+1 -> 27 | C51: SNG Adder Monthly | D51: =+ROUND(D50/12,5) -> 0.17986 | E51: =+ROUND(E50/12,5) -> 0.17975
A53: =+A51+1 -> 28 | B53: TBF | C53: Base SNG Annual Demand | D53: ='Other Inputs'!G325 -> 1.38744 | E53: =ROUND('Ut 1.5 p3'!G25,5) -> 1.3865
A54: =+A53+1 -> 29 | C54: SNG Amortization | D54: ='Other Inputs'!G326 -> 0.05049 | E54: =ROUND('Ut 1.5 p3'!G35,5) -> 0.05049
A55: =+A54+1 -> 30 | C55: SNG Adder Annual | D55: =+D53+D54 -> 1.43793 | E55: =+E53+E54 -> 1.43699
A56: =+A55+1 -> 31 | C56: SNG Adder Monthly | D56: =+ROUND(D55/12,5) -> 0.11983 | E56: =+ROUND(E55/12,5) -> 0.11975
A58: =+A56+1 -> 32 | B58: NGV | C58: Base SNG | D58: =+'Other Inputs'!E94 -> 0.68177 | E58: =ROUND('Ut 1.5 p3'!H23,5) -> 0.67962
A59: =+A58+1 -> 33 | C59: SNG Amortization | D59: =+'Other Inputs'!F94 -> 0.02481 | E59: =ROUND('Ut 1.5 p3'!H35,5) -> 0.02481
A60: =+A59+1 -> 34 | C60: SNG Rate | D60: =+D58+D59 -> 0.70658 | E60: =+E58+E59 -> 0.70443

Sheet Ut 1.6 p1
L1: ='Control Panel'!$F$32 -> Dominion Energy Utah
L2: ='Control Panel'!$F$33 -> Docket No. 22-057-16
L3: DEU Exhibit 1.6
L4: Page 1 of 2
C7: EFFECT ON GS TYPICAL CUSTOMER
C8: 70 DTHS - ANNUAL CONSUMPTION
C11: (A) | D11: (B) | E11: (C) | F11: (D) | H11: (E) | J11: (F)
F12: Billed at Current | H12: Billed at
C13: Rate | E13: Usage | F13: Rates Effective | H13: Proposed Rates
C14: Schedule | D14: Month | E14: In Dth | F14: ='Other Inputs'!J100 -> 2022-10-01 | H14: ='Control Panel'!F5 -> 22-057-16 | J14: Change
B16: 1 | C16: GS | D16: Jan | E16: ='Monthly Inputs'!K126 -> 13 | F16: =ROUND((+E16*'Other Inputs'!$G$102)+'Other Inputs'!$G$104,2) -> 138.03 | H16: =ROUND((+E16*'Ut 1.6 Source'!$F$16)+'Ut 1.6 Source'!$C$18,2) -> 152.55 | J16: =H16-F16 -> 14.52
B17: =B16+1 -> 2 | D17: Feb | E17: ='Monthly Inputs'!K127 -> 10.9 | F17: =ROUND((+E17*'Other Inputs'!$G$102)+'Other Inputs'!$G$104,2) -> 116.83 | H17: =ROUND((+E17*'Ut 1.6 Source'!$F$16)+'Ut 1.6 Source'!$C$18,2) -> 128.99 | J17: 12.16
B18: =B17+1 -> 3 | D18: Mar | E18: ='Monthly Inputs'!K128 -> 8.8 | F18: =ROUND((+E18*'Other Inputs'!$G$102)+'Other Inputs'!$G$104,2) -> 95.62 | H18: =ROUND((+E18*'Ut 1.6 Source'!$F$16)+'Ut 1.6 Source'!$C$18,2) -> 105.44 | J18: 9.82
B19: 4 | D19: Apr | E19: ='Monthly Inputs'!K129 -> 7.3 | F19: =ROUND((+E19*'Other Inputs'!$G$100)+'Other Inputs'!$G$104,2) -> 70.94 | H19: =ROUND((+E19*'Ut 1.6 Source'!$C$16)+'Ut 1.6 Source'!$C$18,2) -> 79.09 | J19: 8.15
B20: 5 | D20: May | E20: ='Monthly Inputs'!K130 -> 3.8 | F20: =ROUND((+E20*'Other Inputs'!$G$100)+'Other Inputs'!$G$104,2) -> 40.16 | H20: =ROUND((+E20*'Ut 1.6 Source'!$C$16)+'Ut 1.6 Source'!$C$18,2) -> 44.41 | J20: 4.25
B21: 6 | D21: Jun | E21: ='Monthly Inputs'!K131 -> 2.7 | F21: =ROUND((+E21*'Other Inputs'!$G$100)+'Other Inputs'!$G$104,2) -> 30.49 | H21: =ROUND((+E21*'Ut 1.6 Source'!$C$16)+'Ut 1.6 Source'!$C$18,2) -> 33.51 | J21: 3.02
B22: 7 | D22: Jul | E22: ='Monthly Inputs'!K132 -> 1.8 | F22: =ROUND((+E22*'Other Inputs'!$G$100)+'Other Inputs'!$G$104,2) -> 22.58 | H22: =ROUND((+E22*'Ut 1.6 Source'!$C$16)+'Ut 1.6 Source'!$C$18,2) -> 24.59 | J22: 2.01
B23: 8 | D23: Aug | E23: ='Monthly Inputs'!K133 -> 1.6 | F23: =ROUND((+E23*'Other Inputs'!$G$100)+'Other Inputs'!$G$104,2) -> 20.82 | H23: =ROUND((+E23*'Ut 1.6 Source'!$C$16)+'Ut 1.6 Source'!$C$18,2) -> 22.61 | J23: 1.79
B24: 9 | D24: Sep | E24: ='Monthly Inputs'!K134 -> 1.8 | F24: =ROUND((+E24*'Other Inputs'!$G$100)+'Other Inputs'!$G$104,2) -> 22.58 | H24: =ROUND((+E24*'Ut 1.6 Source'!$C$16)+'Ut 1.6 Source'!$C$18,2) -> 24.59 | J24: 2.01
B25: 10 | D25: Oct | E25: ='Monthly Inputs'!K135 -> 2.7 | F25: =ROUND((+E25*'Other Inputs'!$G$100)+'Other Inputs'!$G$104,2) -> 30.49 | H25: =ROUND((+E25*'Ut 1.6 Source'!$C$16)+'Ut 1.6 Source'!$C$18,2) -> 33.51 | J25: 3.02
B26: 11 | D26: Nov | E26: ='Monthly Inputs'!K136 -> 5.5 | F26: =ROUND((+E26*'Other Inputs'!$G$102)+'Other Inputs'!$G$104,2) -> 62.29 | H26: =ROUND((+E26*'Ut 1.6 Source'!$F$16)+'Ut 1.6 Source'!$C$18,2) -> 68.43 | J26: 6.14
B27: 12 | D27: Dec | E27: ='Monthly Inputs'!K137 -> 10.1 | F27: =ROUND((+E27*'Other Inputs'!$G$102)+'Other Inputs'!$G$104,2) -> 108.75 | H27: =ROUND((+E27*'Ut 1.6 Source'!$F$16)+'Ut 1.6 Source'!$C$18,2) -> 120.02 | J27: 11.27
B30: =B27+1 -> 13 | D30: Total | E30: =SUM(E16:E27) -> 70 | F30: =SUM(F16:F27) -> 759.58 | H30: =SUM(H16:H27) -> 837.74 | J30: =H30-F30 -> 78.16
B32: =B30+1 -> 14 | H32: Percent Change: | J32: =ROUND(J30/F30,4)*100 -> 10.29 | K32: %

Sheet Ut 1.6 p2
L1: ='Control Panel'!$F$32 -> Dominion Energy Utah
L2: ='Control Panel'!$F$33 -> Docket No. 22-057-16
L3: DEU Exhibit 1.6
L4: Page 2 of 2
C7: EFFECT ON GS TYPICAL CUSTOMER
C8: 80 DTHS - ANNUAL CONSUMPTION
C11: (A) | D11: (B) | E11: (C) | F11: (D) | H11: (E) | J11: (F)
F12: Billed at Current | H12: Billed at
C13: Rate | E13: Usage | F13: Rates Effective | H13: Proposed Rates
C14: Schedule | D14: Month | E14: In Dth | F14: ='Other Inputs'!J100 -> 2022-10-01 | H14: ='Control Panel'!F5 -> 22-057-16 | J14: Change
B16: 1 | C16: GS | D16: Jan | E16: ='Monthly Inputs'!G126 -> 14.9 | F16: =ROUND((+E16*'Other Inputs'!$G$102)+'Other Inputs'!$G$104,2) -> 157.22 | H16: =ROUND((+E16*'Ut 1.6 Source'!$F$16)+'Ut 1.6 Source'!$C$18,2) -> 173.86 | J16: =H16-F16 -> 16.64
B17: =B16+1 -> 2 | D17: Feb | E17: ='Monthly Inputs'!G127 -> 12.5 | F17: =ROUND((+E17*'Other Inputs'!$G$102)+'Other Inputs'!$G$104,2) -> 132.98 | H17: =ROUND((+E17*'Ut 1.6 Source'!$F$16)+'Ut 1.6 Source'!$C$18,2) -> 146.94 | J17: 13.96
B18: =B17+1 -> 3 | D18: Mar | E18: ='Monthly Inputs'!G128 -> 10.1 | F18: =ROUND((+E18*'Other Inputs'!$G$102)+'Other Inputs'!$G$104,2) -> 108.75 | H18: =ROUND((+E18*'Ut 1.6 Source'!$F$16)+'Ut 1.6 Source'!$C$18,2) -> 120.02 | J18: 11.27
B19: 4 | D19: Apr | E19: ='Monthly Inputs'!G129 -> 8.3 | F19: =ROUND((+E19*'Other Inputs'!$G$100)+'Other Inputs'!$G$104,2) -> 79.73 | H19: =ROUND((+E19*'Ut 1.6 Source'!$C$16)+'Ut 1.6 Source'!$C$18,2) -> 89 | J19: 9.27
B20: 5 | D20: May | E20: ='Monthly Inputs'!G130 -> 4.4 | F20: =ROUND((+E20*'Other Inputs'!$G$100)+'Other Inputs'!$G$104,2) -> 45.44 | H20: =ROUND((+E20*'Ut 1.6 Source'!$C$16)+'Ut 1.6 Source'!$C$18,2) -> 50.35 | J20: 4.91
B21: 6 | D21: Jun | E21: ='Monthly Inputs'!G131 -> 3.1 | F21: =ROUND((+E21*'Other Inputs'!$G$100)+'Other Inputs'!$G$104,2) -> 34.01 | H21: =ROUND((+E21*'Ut 1.6 Source'!$C$16)+'Ut 1.6 Source'!$C$18,2) -> 37.47 | J21: 3.46
B22: 7 | D22: Jul | E22: ='Monthly Inputs'!G132 -> 2 | F22: =ROUND((+E22*'Other Inputs'!$G$100)+'Other Inputs'!$G$104,2) -> 24.34 | H22: =ROUND((+E22*'Ut 1.6 Source'!$C$16)+'Ut 1.6 Source'!$C$18,2) -> 26.57 | J22: 2.23
B23: 8 | D23: Aug | E23: ='Monthly Inputs'!G133 -> 1.8 | F23: =ROUND((+E23*'Other Inputs'!$G$100)+'Other Inputs'!$G$104,2) -> 22.58 | H23: =ROUND((+E23*'Ut 1.6 Source'!$C$16)+'Ut 1.6 Source'!$C$18,2) -> 24.59 | J23: 2.01
B24: 9 | D24: Sep | E24: ='Monthly Inputs'!G134 -> 2 | F24: =ROUND((+E24*'Other Inputs'!$G$100)+'Other Inputs'!$G$104,2) -> 24.34 | H24: =ROUND((+E24*'Ut 1.6 Source'!$C$16)+'Ut 1.6 Source'!$C$18,2) -> 26.57 | J24: 2.23
B25: 10 | D25: Oct | E25: ='Monthly Inputs'!G135 -> 3.1 | F25: =ROUND((+E25*'Other Inputs'!$G$100)+'Other Inputs'!$G$104,2) -> 34.01 | H25: =ROUND((+E25*'Ut 1.6 Source'!$C$16)+'Ut 1.6 Source'!$C$18,2) -> 37.47 | J25: 3.46
B26: 11 | D26: Nov | E26: ='Monthly Inputs'!G136 -> 6.3 | F26: =ROUND((+E26*'Other Inputs'!$G$102)+'Other Inputs'!$G$104,2) -> 70.37 | H26: =ROUND((+E26*'Ut 1.6 Source'!$F$16)+'Ut 1.6 Source'!$C$18,2) -> 77.41 | J26: 7.04
B27: 12 | D27: Dec | E27: ='Monthly Inputs'!G137 -> 11.5 | F27: =ROUND((+E27*'Other Inputs'!$G$102)+'Other Inputs'!$G$104,2) -> 122.89 | H27: =ROUND((+E27*'Ut 1.6 Source'!$F$16)+'Ut 1.6 Source'!$C$18,2) -> 135.72 | J27: 12.83
B30: =B27+1 -> 13 | D30: Total | E30: =SUM(E16:E27) -> 80 | F30: =SUM(F16:F27) -> 856.66 | H30: =SUM(H16:H27) -> 945.97 | J30: =H30-F30 -> 89.31
B32: =B30+1 -> 14 | H32: Percent Change: | J32: =ROUND(J30/F30,4)*100 -> 10.43 | K32: %

Sheet Ut 1.7 Tot (hidden)
L1: ='Control Panel'!$F$32 -> Dominion Energy Utah
L2: Docket Nos. 08-057-15, 08-057-16 & 08-057-17
L3: Hearing Exhibit 2
A5: NOT USED
C7: EFFECT ON GS-1 TYPICAL CUSTOMER
B8: OF PROPOSED COMMODITY AND SNG RATES AND CET AND DSM AMORTIZATIONS
C9: 80 DTHS - ANNUAL CONSUMPTION
C12: (A) | D12: (B) | E12: (C) | F12: (D) | H12: (E) | J12: (F)
F13: Billed at Current | H13: Billed at
C14: Rate | E14: Usage | F14: Rates Effective | H14: Proposed
C15: Schedule | D15: Month | E15: In Dth | F15: ='Other Inputs'!J100 -> 2022-10-01 | H15: Rates | J15: Change
B17: 1 | C17: GS | D17: Jan | E17: ='Monthly Inputs'!G126 -> 14.9 | F17: =ROUND((+E17*'Other Inputs'!$G$102)+'Other Inputs'!$G$104,2) -> 157.22 | H17: ='CET & DSM'!D107 ->  | J17: =H17-F17 -> 
B18: =B17+1 -> 2 | D18: Feb | E18: ='Monthly Inputs'!G127 -> 12.5 | F18: =ROUND((+E18*'Other Inputs'!$G$102)+'Other Inputs'!$G$104,2) -> 132.98 | H18: ='CET & DSM'!D108 -> 
B19: 3 | D19: Mar | E19: ='Monthly Inputs'!G128 -> 10.1 | F19: =ROUND((+E19*'Other Inputs'!$G$102)+'Other Inputs'!$G$104,2) -> 108.75 | H19: ='CET & DSM'!D109 -> 
B20: 4 | D20: Apr | E20: ='Monthly Inputs'!G129 -> 8.3 | F20: =ROUND((+E20*'Other Inputs'!$G$100)+'Other Inputs'!$G$104,2) -> 79.73 | H20: ='CET & DSM'!D110 -> 
B21: 5 | D21: May | E21: ='Monthly Inputs'!G130 -> 4.4 | F21: =ROUND((+E21*'Other Inputs'!$G$100)+'Other Inputs'!$G$104,2) -> 45.44 | H21: ='CET & DSM'!D111 -> 
B22: 6 | D22: Jun | E22: ='Monthly Inputs'!G131 -> 3.1 | F22: =ROUND((+E22*'Other Inputs'!$G$100)+'Other Inputs'!$G$104,2) -> 34.01 | H22: ='CET & DSM'!D112 -> 
B23: 7 | D23: Jul | E23: ='Monthly Inputs'!G132 -> 2 | F23: =ROUND((+E23*'Other Inputs'!$G$100)+'Other Inputs'!$G$104,2) -> 24.34 | H23: ='CET & DSM'!D113 -> 
B24: 8 | D24: Aug | E24: ='Monthly Inputs'!G133 -> 1.8 | F24: =ROUND((+E24*'Other Inputs'!$G$100)+'Other Inputs'!$G$104,2) -> 22.58 | H24: ='CET & DSM'!D114 -> 
B25: 9 | D25: Sep | E25: ='Monthly Inputs'!G134 -> 2 | F25: =ROUND((+E25*'Other Inputs'!$G$100)+'Other Inputs'!$G$104,2) -> 24.34 | H25: ='CET & DSM'!D115 -> 
B26: 10 | D26: Oct | E26: ='Monthly Inputs'!G135 -> 3.1 | F26: =ROUND((+E26*'Other Inputs'!$G$100)+'Other Inputs'!$G$104,2) -> 34.01 | H26: ='CET & DSM'!D116 -> 
B27: 11 | D27: Nov | E27: ='Monthly Inputs'!G136 -> 6.3 | F27: =ROUND((+E27*'Other Inputs'!$G$102)+'Other Inputs'!$G$104,2) -> 70.37 | H27: ='CET & DSM'!D117 -> 
B28: 12 | D28: Dec | E28: ='Monthly Inputs'!G137 -> 11.5 | F28: =ROUND((+E28*'Other Inputs'!$G$102)+'Other Inputs'!$G$104,2) -> 122.89 | H28: ='CET & DSM'!D118 -> 
B31: =B28+1 -> 13 | D31: Total | E31: =SUM(E17:E28) -> 80 | F31: =SUM(F17:F28) -> 856.66 | H31: =SUM(H17:H28) ->  | J31: =H31-F31 -> 
H33: Percent Change: | J33: =ROUND(J31/F31,4)*100 ->  | K33: %

Sheet Ut 1.7 p1
F1: ='Control Panel'!F32 -> Dominion Energy Utah
F2: ='Control Panel'!F33 -> Docket No. 22-057-16
F3: DEU Exhibit 1.7
F4: Page 1 of 17
A15: DOMINION ENERGY UTAH
A16: 333 South State Street
A17: P.O. Box 45433
A18: Salt Lake City, Utah 84145-0433
A29: LEGISLATIVE/PROPOSED RATE SCHEDULES
A31: P.S.C. Utah No. 500
A32: Affecting GS, FS, NGV, IS, TBF, and TSF Rate Schedules
A33: and Classes of Service In
A34: Dominion Energy
A35: Utah Service Area
A37: Tariff Section 2.02, 2.03, 2.04, 4.02, 5,02, and 5.04
A39: Date Issued: September 30, 2022
A40: To Become Effective November 1, 2022

Sheet LEG - PR
A2: LEGISLATIVE TARIFF
A3: SHEETS
A6: PROPOSED TARIFF
A7: SHEETS

Sheet Ut 1.6 Source
A1: SUMMARY OF PROPOSED RATES
G2: Current Rates Effective | H2: 2022-10-01
A3: UTAH RATE CLASSES | C3: Rates per Dth Used Each Month
C4: All Season Rates or Summer Rates: Apr. 1 - Oct. 31 | F4: Winter Rates: Nov. 1 - Mar. 31
A5: UT GS | C5: First 45 Dth | D5: All Over 45 Dth | F5: First 45 Dth | G5: All Over 45 Dth
B6: Distribution Non-Gas Cost | C6: 1.94617 | D6: 0.74377 | F6: 2.64801 | G6: 1.44561
B7: CET Amortization | C7: 0.02274 | D7: 0.00888 | F7: 0.03083 | G7: 0.01697
B8: DSM Amortization | C8: 0.27767 | D8: 0.27767 | F8: 0.27767 | G8: 0.27767
B9: Energy Assistance | C9: 0.01308 | D9: 0.01308 | F9: 0.01308 | G9: 0.01308
B10: Infrastructure Rate Adjustment | C10: 0.10978 | D10: 0.04195 | F10: 0.14936 | G10: 0.08154
B11: Rural Expansion Rate Adjustment | C11: 0.01691 | D11: 0.00646 | F11: 0.02301 | G11: 0.01256
B12: STEP Surcharge | C12: 0.00346 | D12: 0.00132 | F12: 0.00471 | G12: 0.00257
B13: Supplier Non-Gas Cost | C13: =+'Ut 1.5 p6'!E32 -> 0.39825 | D13: =C13 -> 0.39825 | F13: =+'Ut 1.5 p6'!E36 -> 0.9468 | G13: =F13 -> 0.9468
B14: Commodity Cost | C14: =('Ut 1.5 p1'!$F$32) -> 7.12165 | D14: =C14 -> 7.12165 | F14: =D14 -> 7.12165 | G14: =F14 -> 7.12165
B16: Total Rate | C16: =SUM(C6:C15) -> 9.90971 | D16: =SUM(D6:D15) -> 8.61303 | F16: =SUM(F6:F15) -> 11.21512 | G16: =SUM(G6:G15) -> 9.91845
B18: BSF Category 1 | C18: 6.75
B19: BSF Category 2 | C19: 18.25
B20: BSF Category 3 | C20: 63.5
B21: BSF Category 4 | C21: 420.25
C22: =2.3704-0.00728 -> 2.36312
A24: UT FS | C24: First 200 Dth | D24: Next 1,800 Dth | E24: All Over 2,000 Dth | F24: First 200 Dth | G24: Next 1,800 Dth | H24: All Over 2,000 Dth
B25: Distribution Non-Gas Cost | C25: 1.03811 | D25: 0.54067 | E25: 0.01703 | F25: 1.56992 | G25: 1.07247 | H25: 0.54883
B26: Energy Assistance | C26: 0.01084 | D26: 0.01084 | E26: 0.01084 | F26: 0.01084 | G26: 0.01084 | H26: 0.01084
B27: Infrastructure Rate Adjustment | C27: 0.0502 | D27: 0.02615 | E27: 0.00082 | F27: 0.07592 | G27: 0.05186 | H27: 0.02654
B28: Rural Expansion Rate Adjustment | C28: 0.00814 | D28: 0.00424 | E28: 0.00013 | F28: 0.01231 | G28: 0.00841 | H28: 0.0043
B29: STEP Surcharge | C29: 0.00162 | D29: 0.00085 | E29: 3e-05 | F29: 0.00246 | G29: 0.00168 | H29: 0.00086
B30: Supplier Non-Gas Cost | C30: =+'Ut 1.5 p6'!E40 -> 0.77862 | D30: =C30 -> 0.77862 | E30: =D30 -> 0.77862 | F30: =+'Ut 1.5 p6'!E44 -> 0.93299 | G30: =F30 -> 0.93299 | H30: =G30 -> 0.93299
B31: Commodity Cost | C31: =('Ut 1.5 p1'!$F$32) -> 7.12165 | D31: =C31 -> 7.12165 | E31: =D31 -> 7.12165 | F31: =E31 -> 7.12165 | G31: =F31 -> 7.12165 | H31: =G31 -> 7.12165
B33: Total Rate | C33: =SUM(C25:C32) -> 9.00918 | D33: =SUM(D25:D32) -> 8.48302 | E33: =SUM(E25:E32) -> 7.92912 | F33: 9.72609 | G33: 9.1999 | H33: 8.64601
B35: Minimum Monthly DNG Charge: | C35: 182 | F35: 275
B37: BSF Category 1 | C37: =C18 -> 6.75
B38: BSF Category 2 | C38: =C19 -> 18.25
B39: BSF Category 3 | C39: =C20 -> 63.5
B40: BSF Category 4 | C40: =C21 -> 420.25
A43: UT Future Rate Class
C44: First 10,000 Dth | D44: All Over 10,000 Dth
B45: Distribution Non-Gas Cost
B46: Supplier Non-Gas Cost
B47: Commodity Cost
B49: Total Rate | C49: =SUM(C45:C48) -> 0 | D49: =SUM(D45:D48) -> 0
B51: Minimum Yearly Distribution Non-Gas Charge | D51: =ROUND(((10000*C45))*12,-2) -> 0
B54: BSF Category 1 | C54: =C18 -> 6.75
B55: BSF Category 2 | C55: =C19 -> 18.25
B56: BSF Category 3 | C56: =C20 -> 63.5
B57: BSF Category 4 | C57: =C21 -> 420.25
A61: UT NGV
B62: Distribution Non-Gas Cost | C62: 8.11914
B63: Energy Assistance | C63: 0.02113
B64: Infrastructure Rate Adjustment | C64: 0.3846
B65: Rural Expansion Rate Adjustment | C65: 0.06758
B66: STEP Surcharge | C66: 0.01374
B67: Supplier Non-Gas Cost | C67: =+'Ut 1.5 p6'!E60 -> 0.70443
B68: Commodity Cost | C68: ='Ut 1.5 p6'!E25 -> 6.62448
B70: Total Rate | C70: =SUM(C62:C69) -> 15.9351 | D70: =C70/8+0.35 -> 2.3418875
A73: UT IS | C73: First 2,000 Dth | D73: Next 18,000 Dth | E73: All Over 20,000
B74: Distribution Non-Gas Cost | C74: 0.91912 | D74: 0.13879 | E74: 0.08169
B75: Energy Assistance | C75: 0.00939 | D75: 0.00939 | E75: 0.00939
B76: Infrastructure Rate Adjustment | C76: 0.0277 | D76: 0.00418 | E76: 0.00246
B77: Rural Expansion Rate Adjustment | C77: 0.00589 | D77: 0.00089 | E77: 0.00052
B78: STEP Surcharge | C78: 0.0012 | D78: 0.00018 | E78: 0.00011
B79: Supplier Non-Gas Cost | C79: =+'Ut 1.5 p6'!E46 -> 0.17938 | D79: =C79 -> 0.17938 | E79: =D79 -> 0.17938
B80: Commodity Cost | C80: =+'Ut 1.5 p6'!E19 -> 7.10544 | D80: =+'Ut 1.5 p6'!E19 -> 7.10544 | E80: =+'Ut 1.5 p6'!E19 -> 7.10544
B82: Total Rate | C82: =SUM(C74:C80) -> 8.24812 | D82: =SUM(D74:D80) -> 7.43825 | E82: =SUM(E74:E80) -> 7.37899
B84: BSF Category 1 | C84: =C18 -> 6.75
B85: BSF Category 2 | C85: =C19 -> 18.25
B86: BSF Category 3 | C86: =C20 -> 63.5
B87: BSF Category 4 | C87: =C21 -> 420.25

Sheet Ut 1.11 (hidden)
F1: ='Control Panel'!F36 -> 0
F2: ='Control Panel'!F33 -> Docket No. 22-057-16
F3: Exhibit 1.11
F4: Page 1 of 7
A17: DOMINION ENERGY UTAH
A18: 333 South State Street
A19: P.O. Box 45433
A20: Salt Lake City, Utah 84145-0433
A31: LEGISLATIVE/PROPOSED RATE SCHEDULES
A32: P.S.C. Utah Tariff

Sheet Ut 1.8 p1
F1: ='Control Panel'!F32 -> Dominion Energy Utah
F2: ='Control Panel'!F33 -> Docket No. 22-057-16
F3: DEU Exhibit 1.8
F4: Page 1 of 17
A15: DOMINION ENERGY UTAH
A16: 333 South State Street
A17: P.O. Box 45433
A18: Salt Lake City, Utah 84145-0433
A29: LEGISLATIVE/PROPOSED COMBINED RATE SCHEDULES
A31: P.S.C. Utah No. 500
A32: Affecting GS, FS, NGV, IS, TBF, and TSF Rate Schedules
A33: and Classes of Service In
A34: Dominion Energy
A35: Utah Service Area
A37: Tariff Section 2.02, 2.03, 2.04, 4.02, 5,02, and 5.04
A39: Date Issued: September 30, 2022
A40: To Become Effective November 1, 2022

Sheet Ut Storage
A1: Storage Injection / Withdrawal adjustment
C3: (A) | D3: (B) | E3: (C) | F3: (D) | G3: (E) | H3: (F) | I3: (G) | K3: (H) | L3: (I) | M3: (J)
G4: Injections | I4: (J) / (C)
E5: Storage | G5: ------------------------------------------------------------- | I5: Storage | M5: Storage
C6: Injection Dth | D6: Withdrawal Dth | E6: Inventory Dth | F6: % that is | G6: Co. Prod. | H6: Purchased | I6: Inventory | M6: Inventory
A7: Line | B7: Month | C7: Per IRPs | D7: Per IRPs | E7: Balance | F7: Co. Prod. (1) | G7: $/Dth (2) | H7: $/Dth (3) | I7: Average $/Dth | K7: Injection (4) | L7: Withdrawal (5) | M7: Balance
B8: =+Expenses!P3 -> 2022-08-31 | E8: =-1*'Other Inputs'!D256 -> 6538004 | I8: =M8/E8 -> 3.975663334 | M8: ='Other Inputs'!E256 -> 25992902.78
B9: ='Monthly Inputs'!E3 -> Sep22 | C9: ='Monthly Inputs'!E29 -> 1995132 | D9: =-'Monthly Inputs'!E37 -> 0 | E9: =E8+C9+D9 -> 8533136 | F9: =F21 -> 0.8321531641 | G9: ='Other Inputs'!F116 -> 4.54359 | H9: ='Monthly Inputs'!E86 -> 7.68 | I9: =M9/E9 -> 4.231536317 | K9: =(+F9*C9*G9)+((1-F9)*C9*H9) -> 10115372.1 | L9: =D9*I8 -> 0 | M9: =M8+L9+K9 -> 36108274.88
B10: ='Monthly Inputs'!F3 -> Oct22 | C10: ='Monthly Inputs'!F29 -> 2037654 | D10: =-'Monthly Inputs'!F37 -> 0 | E10: =E9+C10+D10 -> 10570790 | F10: =F22 -> 0.4694277003 | G10: =G9 -> 4.54359 | H10: ='Monthly Inputs'!F86 -> 7.56 | I10: 4.600190596 | K10: =(+F10*C10*G10)+((1-F10)*C10*H10) -> 12519373.87 | L10: =D10*I9 -> 0 | M10: =M9+L10+K10 -> 48627648.75
A11: 1. | B11: ='Monthly Inputs'!G3 -> Nov22 | C11: ='Monthly Inputs'!G29 -> 642326 | D11: =-'Monthly Inputs'!G37 -> 0 | E11: =E10+C11+D11 -> 11213116 | F11: =Calculations!D187 -> 0.4024891501 | G11: ='Ut 1.2 p3'!$G$50 -> 4.63000064 | H11: =Calculations!D210 -> 8.47075 | I11: 4.733357407 | K11: 4448036.929 | L11: =D11*I10 -> 0 | M11: =M10+L11+K11 -> 53075685.68
A12: 2. | B12: ='Monthly Inputs'!H3 -> Dec22 | C12: ='Monthly Inputs'!H29 -> 99166 | D12: =-'Monthly Inputs'!H37 -> -3410050 | E12: =E11+C12+D12 -> 7902232 | F12: =Calculations!E187 -> 0.3289022007 | G12: ='Ut 1.2 p3'!$G$50 -> 4.63000064 | H12: =Calculations!E210 -> 9.66699 | I12: 4.774480294 | K12: 794350.7103 | L12: =D12*I11 -> -16140985.43 | M12: =M11+L12+K12 -> 37729050.96
A13: 3. | B13: ='Monthly Inputs'!I3 -> Jan23 | C13: ='Monthly Inputs'!I29 -> 0 | D13: =-'Monthly Inputs'!I37 -> -4415094 | E13: =E12+C13+D13 -> 3487138 | F13: =Calculations!F187 -> 0.3038832796 | G13: ='Ut 1.2 p3'!$G$50 -> 4.63000064 | H13: =Calculations!F210 -> 10.13299 | I13: 4.774480294 | K13: 0 | L13: =D13*I12 -> -21079779.3 | M13: 16649271.66
A14: 4. | B14: ='Monthly Inputs'!J3 -> Feb23 | C14: ='Monthly Inputs'!J29 -> 361110 | D14: =-'Monthly Inputs'!J37 -> -3766170 | E14: 82078 | F14: =Calculations!G187 -> 0.3130785054 | G14: ='Ut 1.2 p3'!$G$50 -> 4.63000064 | H14: =Calculations!G210 -> 9.09764 | I14: =M14/E14 -> 17.64082393 | K14: 2780156.332 | L14: =D14*I13 -> -17981504.45 | M14: 1447923.547
A15: 5. | B15: ='Monthly Inputs'!K3 -> Mar23 | C15: ='Monthly Inputs'!K29 -> 1122640 | D15: =-'Monthly Inputs'!K37 -> -112125 | E15: 1092593 | F15: =Calculations!H187 -> 0.3275734113 | G15: ='Ut 1.2 p3'!$G$50 -> 4.63000064 | H15: =Calculations!H210 -> 6.75749 | I15: 5.742117034 | K15: 6803850.713 | L15: -1977977.383 | M15: 6273796.877
A16: 6. | B16: ='Monthly Inputs'!L3 -> Apr23 | C16: ='Monthly Inputs'!L29 -> 136477 | D16: =-'Monthly Inputs'!L37 -> 0 | E16: =E15+C16+D16 -> 1229070 | F16: =Calculations!I187 -> 0.4790126647 | G16: ='Ut 1.2 p3'!$G$50 -> 4.63000064 | H16: =Calculations!I210 -> 4.86116 | I16: =M16/E16 -> 5.631999438 | K16: 648324.6725 | L16: 0 | M16: 6922121.549
A17: 7. | B17: ='Monthly Inputs'!M3 -> May23 | C17: ='Monthly Inputs'!M29 -> 2418001 | D17: =-'Monthly Inputs'!M37 -> 0 | E17: 3647071 | F17: =Calculations!J187 -> 0.5686687147 | G17: ='Ut 1.2 p3'!$G$50 -> 4.63000064 | H17: =Calculations!J210 -> 4.36007 | I17: =M17/E17 -> 4.890483626 | K17: 10913819.46 | L17: 0 | M17: 17835941.01
A18: 8. | B18: ='Monthly Inputs'!N3 -> Jun23 | C18: ='Monthly Inputs'!N29 -> 1980000 | D18: =-'Monthly Inputs'!N37 -> 0 | E18: 5627071 | F18: =Calculations!K187 -> 0.8313882082 | G18: ='Ut 1.2 p3'!$G$50 -> 4.63000064 | H18: =Calculations!K210 -> 4.43 | I18: 4.786961421 | K18: 9100630.785 | L18: =D18*I17 -> 0 | M18: 26936571.79
A19: 9. | B19: ='Monthly Inputs'!O3 -> Jul23 | C19: ='Monthly Inputs'!O29 -> 2045999 | D19: =-'Monthly Inputs'!O37 -> 0 | E19: 7673070 | F19: =Calculations!L187 -> 0.938066753 | G19: ='Ut 1.2 p3'!$G$50 -> 4.63000064 | H19: =Calculations!L210 -> 4.68 | I19: 4.745934047 | K19: 9479312.367 | L19: 0 | M19: =M18+L19+K19 -> 36415884.16
A20: 10. | B20: ='Monthly Inputs'!P3 -> Aug23 | C20: ='Monthly Inputs'!P29 -> 2051859 | D20: =-'Monthly Inputs'!P37 -> 0 | E20: 9724929 | F20: =Calculations!M187 -> 0.9660926531 | G20: ='Ut 1.2 p3'!$G$50 -> 4.63000064 | H20: =Calculations!M210 -> 4.71 | I20: 4.722045626 | K20: 9505674.287 | L20: 0 | M20: =M19+L20+K20 -> 45921558.45
A21: 11. | B21: ='Monthly Inputs'!Q3 -> Sep23 | C21: ='Monthly Inputs'!Q29 -> 2115170 | D21: =-'Monthly Inputs'!Q37 -> 0 | E21: 11840099 | F21: =Calculations!N187 -> 0.8321531641 | G21: ='Ut 1.2 p3'!$G$50 -> 4.63000064 | H21: =Calculations!N210 -> 4.39 | I21: 4.698405881 | K21: 9708032.325 | L21: 0 | M21: =M20+L21+K21 -> 55629590.77
A22: 12. | B22: ='Monthly Inputs'!R3 -> Oct23 | C22: ='Monthly Inputs'!R29 -> 2034654 | D22: =-'Monthly Inputs'!R37 -> 0 | E22: 13874753 | F22: =Calculations!O187 -> 0.4694277003 | G22: ='Ut 1.2 p3'!$G$50 -> 4.63000064 | H22: =Calculations!O210 -> 4.30124 | I22: 4.662795278 | K22: 9065542.003 | L22: 0 | M22: =M21+L22+K22 -> 64695132.77
M25: Inj./With. Adj.
A26: 14. | B26: Total | C26: =SUM(C11:C22) -> 15007402 | D26: =SUM(D11:D22) -> -11703439 | K26: =SUM(K11:K22) -> 73247730.58 | L26: =SUM(L11:L22) -> -57180246.56 | M26: =L26+K26 -> 16067484.03
A27: 15. | B27: Average $ /Dth | K27: =K26/C26 -> 4.88077354 | L27: =L26/D26 -> 4.88576448
A31: ___________________________________________________________________

Sheet LNG Storage
A1: Storage Injection / Withdrawal LNG adjustment
C3: (A) | D3: (B) | E3: (C) | F3: (D) | G3: (E) | H3: (F) | I3: (G) | K3: (H) | L3: (I) | M3: (J)
G4: Injections | I4: (J) / (C)
E5: Storage | G5: ------------------------------------------------------------- | I5: Storage | M5: Storage
C6: Injection Dth | D6: Withdrawal Dth | E6: Inventory Dth | F6: % that is | G6: Co. Prod. | H6: Purchased | I6: Inventory | M6: Inventory
A7: Line | B7: Month | C7: Per IRPs | D7: Per IRPs | E7: Balance | F7: Co. Prod. (1) | G7: $/Dth (2) | H7: $/Dth (3) | I7: Average $/Dth | K7: Injection (4) | L7: Withdrawal (5) | M7: Balance
B8: =+Expenses!P3 -> 2022-08-31 | E8: 0 | I8: =IFERROR(M8/E8,0) -> 0 | M8: 0
B9: ='Monthly Inputs'!E3 -> Sep22 | C9: =+'Monthly Inputs'!E40 -> 90000 | D9: =-'Monthly Inputs'!E41 -> 0 | E9: =E8+C9+D9 -> 90000 | F9: =F21 -> 0.8321531641 | G9: ='Other Inputs'!F116 -> 4.54359 | H9: ='Monthly Inputs'!E86 -> 7.68 | I9: =IFERROR(M9/E9,0) -> 5.070026495 | K9: =(+F9*C9*G9)+((1-F9)*C9*H9) -> 456302.3845 | L9: =D9*I8 -> 0 | M9: =M8+L9+K9 -> 456302.3845
B10: ='Monthly Inputs'!F3 -> Oct22 | C10: =+'Monthly Inputs'!F40 -> 279000 | D10: =-'Monthly Inputs'!F41 -> 0 | E10: =E9+C10+D10 -> 369000 | F10: =F22 -> 0.4694277003 | G10: =G9 -> 4.54359 | H10: ='Monthly Inputs'!F86 -> 7.56 | I10: =IFERROR(M10/E10,0) -> 5.882065518 | K10: =(+F10*C10*G10)+((1-F10)*C10*H10) -> 1714179.792 | L10: =D10*I9 -> 0 | M10: =M9+L10+K10 -> 2170482.176
A11: 1. | B11: ='Monthly Inputs'!G3 -> Nov22 | C11: =+'Monthly Inputs'!G40 -> 270000 | D11: =-'Monthly Inputs'!G41 -> 0 | E11: =E10+C11+D11 -> 639000 | F11: =Calculations!D187 -> 0.4024891501 | G11: ='Ut 1.2 p3'!$G$50 -> 4.63000064 | H11: =Calculations!D210 -> 8.47075 | I11: 6.322695604 | K11: 1869720.315 | L11: =D11*I10 -> 0 | M11: =M10+L11+K11 -> 4040202.491
A12: 2. | B12: ='Monthly Inputs'!H3 -> Dec22 | C12: =+'Monthly Inputs'!H40 -> 279000 | D12: =-'Monthly Inputs'!H41 -> 0 | E12: =E11+C12+D12 -> 918000 | F12: =Calculations!E187 -> 0.3289022007 | G12: ='Ut 1.2 p3'!$G$50 -> 4.63000064 | H12: =Calculations!E210 -> 9.66699 | I12: 6.835598965 | K12: 2234877.359 | L12: =D12*I11 -> 0 | M12: =M11+L12+K12 -> 6275079.85
A13: 3. | B13: ='Monthly Inputs'!I3 -> Jan23 | C13: =+'Monthly Inputs'!I40 -> 279000 | D13: =-'Monthly Inputs'!I41 -> 0 | E13: =E12+C13+D13 -> 1197000 | F13: =Calculations!F187 -> 0.3038832796 | G13: ='Ut 1.2 p3'!$G$50 -> 4.63000064 | H13: =Calculations!F210 -> 10.13299 | I13: 7.214387401 | K13: =(+F13*C13*G13)+((1-F13)*C13*H13) -> 2360541.869 | L13: =D13*I12 -> 0 | M13: =M12+L13+K13 -> 8635621.719
A14: 4. | B14: ='Monthly Inputs'!J3 -> Feb23 | C14: =+'Monthly Inputs'!J40 -> 36000 | D14: =-'Monthly Inputs'!J41 -> 0 | E14: 1233000 | F14: =Calculations!G187 -> 0.3130785054 | G14: ='Ut 1.2 p3'!$G$50 -> 4.63000064 | H14: =Calculations!G210 -> 9.09764 | I14: 7.228534284 | K14: 277161.0533 | L14: =D14*I13 -> 0 | M14: 8912782.773
A15: 5. | B15: ='Monthly Inputs'!K3 -> Mar23 | C15: =+'Monthly Inputs'!K40 -> 0 | D15: =-'Monthly Inputs'!K41 -> -184950 | E15: 1048050 | F15: =Calculations!H187 -> 0.3275734113 | G15: ='Ut 1.2 p3'!$G$50 -> 4.63000064 | H15: =Calculations!H210 -> 6.75749 | I15: 7.228534284 | K15: 0 | L15: -1336917.416 | M15: 7575865.357
A16: 6. | B16: ='Monthly Inputs'!L3 -> Apr23 | C16: =+'Monthly Inputs'!L40 -> 0 | D16: =-'Monthly Inputs'!L41 -> 0 | E16: =E15+C16+D16 -> 1048050 | F16: =Calculations!I187 -> 0.4790126647 | G16: ='Ut 1.2 p3'!$G$50 -> 4.63000064 | H16: =Calculations!I210 -> 4.86116 | I16: 7.228534284 | K16: 0 | L16: 0 | M16: 7575865.357
A17: 7. | B17: ='Monthly Inputs'!M3 -> May23 | C17: =+'Monthly Inputs'!M40 -> 0 | D17: =-'Monthly Inputs'!M41 -> 0 | E17: 1048050 | F17: =Calculations!J187 -> 0.5686687147 | G17: ='Ut 1.2 p3'!$G$50 -> 4.63000064 | H17: =Calculations!J210 -> 4.36007 | I17: 7.228534284 | K17: 0 | L17: =D17*I16 -> 0 | M17: 7575865.357
A18: 8. | B18: ='Monthly Inputs'!N3 -> Jun23 | C18: =+'Monthly Inputs'!N40 -> 0 | D18: =-'Monthly Inputs'!N41 -> 0 | E18: 1048050 | F18: =Calculations!K187 -> 0.8313882082 | G18: ='Ut 1.2 p3'!$G$50 -> 4.63000064 | H18: =Calculations!K210 -> 4.43 | I18: 7.228534284 | K18: 0 | L18: =D18*I17 -> 0 | M18: 7575865.357
A19: 9. | B19: ='Monthly Inputs'!O3 -> Jul23 | C19: =+'Monthly Inputs'!O40 -> 0 | D19: =-'Monthly Inputs'!O41 -> 0 | E19: 1048050 | F19: =Calculations!L187 -> 0.938066753 | G19: ='Ut 1.2 p3'!$G$50 -> 4.63000064 | H19: =Calculations!L210 -> 4.68 | I19: 7.228534284 | K19: 0 | L19: 0 | M19: =M18+L19+K19 -> 7575865.357
A20: 10. | B20: ='Monthly Inputs'!P3 -> Aug23 | C20: =+'Monthly Inputs'!P40 -> 184950 | D20: =-'Monthly Inputs'!P41 -> 0 | E20: 1233000 | F20: =Calculations!M187 -> 0.9660926531 | G20: ='Ut 1.2 p3'!$G$50 -> 4.63000064 | H20: =Calculations!M210 -> 4.71 | I20: 6.839161123 | K20: 856820.3075 | L20: 0 | M20: =M19+L20+K20 -> 8432685.664
A21: 11. | B21: ='Monthly Inputs'!Q3 -> Sep23 | C21: =+'Monthly Inputs'!Q40 -> 0 | D21: =-'Monthly Inputs'!Q41 -> 0 | E21: 1233000 | F21: =Calculations!N187 -> 0.8321531641 | G21: ='Ut 1.2 p3'!$G$50 -> 4.63000064 | H21: =Calculations!N210 -> 4.39 | I21: 6.839161123 | K21: 0 | L21: 0 | M21: =M20+L21+K21 -> 8432685.664
A22: 12. | B22: ='Monthly Inputs'!R3 -> Oct23 | C22: =+'Monthly Inputs'!R40 -> 0 | D22: =-'Monthly Inputs'!R41 -> 0 | E22: 1233000 | F22: =Calculations!O187 -> 0.4694277003 | G22: ='Ut 1.2 p3'!$G$50 -> 4.63000064 | H22: =Calculations!O210 -> 4.30124 | I22: 6.839161123 | K22: 0 | L22: 0 | M22: =M21+L22+K22 -> 8432685.664
M25: Inj./With. Adj.
A26: 14. | B26: Total | C26: =SUM(C11:C22) -> 1048950 | D26: =SUM(D11:D22) -> -184950 | K26: =SUM(K11:K22) -> 7599120.904 | L26: =SUM(L11:L22) -> -1336917.416 | M26: =L26+K26 -> 6262203.488
A27: 15. | B27: Average $ /Dth | K27: =K26/C26 -> 7.244502506 | L27: =IFERROR(L26/D26,0) -> 7.228534284
A31: ___________________________________________________________________

Sheet Ex 1.1 Data
A1: MLPX Gathered | B1: 8823036 | C1: Adjusted test year-> | D1: -0.01226104223 | E1: 8714856.383 | H1: MLPX Gathered | I1: 7506496 | J1: Adjusted test year-> | K1: 0.1505785577 | L1: 8636813.341
A2: Birch Creek | B2: 1455044 | C2: Adjusted test year-> | D2: -0.01226104223 | E2: 1437203.644 | H2: Birch Creek | I2: 0
A3: Other | B3: 0 | H3: Other | I3: 476796
A4: Wexpro | B4: 13377982 | H4: Wexpro | I4: 5109249
A5: MLPX-Acquired | B5: 18088934 | H5: MLPX-Acquired | I5: 0
C7: WEXPRO I | J7: WEXPRO II
A8: Input Operator Service Fee > | C8: =+'Monthly Inputs'!S117 -> 180114962.4 | H8: Input Operator Service Fee > | J8: =+'Monthly Inputs'!S119 -> 54305068.81
A11: \/ | C11: 2022-08-31 | J11: 2022-08-31
A12: \/ | B12: Company | C12: Average Index | D12: Church Buttes | H12: \/ | I12: Company | J12: Average Index | K12: Church Buttes
A13: \/ | B13: Production | C13: Spot Prices | D13: & Canyon Cr | H13: \/ | I13: Production | J13: Spot Prices | K13: & Canyon Cr
A14: January | B14: 3637668.792 | C14: 9.96 | D14: =C14+0.1 -> 10.06 | E14: =B14*D14 -> 36594948.05 | H14: January | I14: 1604873.31 | J14: 9.96 | K14: =J14+0.1 -> 10.06 | L14: =I14*K14 -> 16145025.49
A15: February | B15: 3208435.457 | C15: 8.96 | D15: 9.06 | E15: 29068425.24 | H15: February | I15: 1405522.77 | J15: 8.96 | K15: 9.06 | L15: 12734036.3
A16: March | B16: 3483614.068 | C16: 6.75 | D16: 6.85 | E16: 23862756.37 | H16: March | I16: 1482584.896 | J16: 6.75 | K16: 6.85 | L16: 10155706.54
A17: April | B17: 3312333.997 | C17: 4.86 | D17: 4.96 | E17: 16429176.62 | H17: April | I17: 1396381.179 | J17: 4.86 | K17: 4.96 | L17: 6926050.646
A18: May | B18: 3364720.318 | C18: 4.36 | D18: 4.46 | E18: 15006652.62 | H18: May | I18: 1395650.069 | J18: 4.36 | K18: 4.46 | L18: 6224599.308
A19: June | B19: 3203188.194 | C19: 4.43 | D19: 4.53 | E19: 14510442.52 | H19: June | I19: 1318926.861 | J19: 4.43 | K19: 4.53 | L19: 5974738.682
A20: July | B20: 3348338.543 | C20: 4.68 | D20: 4.78 | E20: 16005058.24 | H20: July | I20: 1323770.523 | J20: 4.68 | K20: 4.78 | L20: 6327623.101
A21: August | B21: 3489884.148 | C21: 4.71 | D21: 4.81 | E21: 16786342.75 | H21: August | I21: 1294059.026 | J21: 4.71 | K21: 4.81 | L21: =I21*K21 -> 6224423.913
A22: September | B22: 3315189.947 | C22: 4.39 | D22: 4.49 | E22: 14885202.86 | H22: September | I22: 1250191.988 | J22: 4.39 | K22: 4.49 | L22: =I22*K22 -> 5613362.026
A23: October | B23: 3357249.339 | C23: 4.3 | D23: 4.4 | E23: 14771897.09 | H23: October | I23: 1260935.002 | J23: 4.3 | K23: 4.4 | L23: =I23*K23 -> 5548114.01
A24: November | B24: 3769367.893 | C24: 8.36 | D24: 8.46 | E24: 31888852.37 | H24: November | I24: 1782012.617 | J24: 8.36 | K24: =J24+0.1 -> 8.46 | L24: =I24*K24 -> 15075826.74
A25: December | B25: 3743168.145 | C25: 9.56 | D25: 9.66 | E25: 36159004.28 | H25: December | I25: 1696284.865 | J25: 9.56 | K25: =J25+0.1 -> 9.66 | L25: =I25*K25 -> 16386111.8
B27: =SUM(B14:B25) -> 41233158.84 | C27: CANYON CREEK | D27: =E27/B27 -> 6.450360983 | E27: =SUM(E14:E25) -> 265968759 | I27: =SUM(I14:I25) -> 17211193.11 | J27: CANYON CREEK | K27: =L27/I27 -> 6.584994884 | L27: =SUM(L14:L25) -> 113335618.6
C28: CHURCH BUTTES | J28: CHURCH BUTTES
C29: All Others -> | D29: =D27-0.2 -> 6.250360983 | J29: All Others -> | K29: =K27-0.2 -> 6.384994884

Sheet Expenses
P1: Historical
P2: 12 Months Ending
A3: FERC Acct | B3: Description | D3: 2021-09-30 | E3: 2021-10-31 | F3: 2021-11-03 | G3: 2021-12-31 | H3: 2022-01-31 | I3: 2022-02-28 | J3: 2022-03-31 | K3: 2022-04-30 | L3: 2022-05-31 | M3: 2022-06-30 | N3: 2022-07-31 | O3: 2022-08-31 | P3: =+O3 -> 2022-08-31
A5: OTHER UTILITY OPERATING EXPENSES
A7: Depreciation, Amortization, & Other Taxes
A8: 403 | B8: Depreciation Expense | C8: Production | O8: 763236 | P8: =O8 -> 763236
A10: 404 | B10: Amortization and Depletion | C10: Production | D10: 0 | E10: 0 | F10: 0 | G10: 0 | H10: 0 | I10: 0 | J10: 0 | K10: 0 | L10: 0 | M10: 0 | N10: 0 | O10: 0 | P10: 0
A13: 483 | B13: Sales for Resale | D13: 97129.99 | E13: 97138.4 | F13: 106128.66 | G13: 544755.05 | H13: 116873.49 | I13: 98906.89 | J13: 106860.96 | K13: 52524.95 | L13: 141242.98 | M13: 721039.87 | N13: 151205 | O13: 285419.14 | P13: =SUM(D13:O13) -> 2519225.38
A14: 490 | B14: Incidental Plant Prod Sales | D14: 902433.39 | E14: 2189382.93 | F14: 1288337.66 | G14: 155.94 | H14: 814587.34 | I14: 1062620.16 | J14: 1019900.86 | K14: 972357.06 | L14: 2794975.53 | M14: 1033024.4 | N14: 1190418.8 | O14: 1063673.75 | P14: 14331867.82
A15: 492 | B15: Incidental Gasoline_Oil Sales | D15: 158052.51 | E15: 152048.32 | F15: 192977.82 | G15: 175220.78 | H15: 187201.33 | I15: 224977.55 | J15: 253213.06 | K15: 235424.09 | L15: 290819.35 | M15: 310169.89 | N15: 268774.89 | O15: 359147.18 | P15: 2808026.77
A16: 4951 | B16: Overriding Royalty Revenue from Celsius | D16: 147551.81 | E16: 1014606.72 | F16: 791533.65 | G16: 798933.79 | H16: 853244.84 | I16: 1377641.49 | J16: 961928.39 | K16: 1061501.46 | L16: 2213730.6 | M16: 226621.98 | N16: 1472583.64 | O16: 1042921.87 | P16: 11962800.24
A17: 4952 | B17: Oil Revenue Received from Wexpro | D17: 16848 | E17: 115027 | F17: 63363 | G17: 15550 | H17: 158907 | I17: 210181 | J17: 461376 | K17: 319049 | L17: 364115 | M17: 485473 | N17: 438166 | O17: 216827 | P17: 2864882
A18: 758001 | B18: Gas Well Royalties - Other | D18: 0 | E18: 0 | F18: 0 | G18: 0 | H18: 0 | I18: 0 | J18: 0 | K18: 0 | L18: 0 | M18: 0 | N18: 0 | O18: 0 | P18: 0
A21: Other Operating Revenues
A22: 491 | B22: Revenue fr Natural Gas Processed by Others | D22: 0 | E22: 0 | F22: 0 | G22: 0 | H22: 0 | I22: 0 | J22: 0 | K22: 0 | L22: 0 | M22: 0 | N22: 0 | O22: 0 | P22: 0
B24: * LNG Electric Costs | C24: =1937485*1.1 -> 2131233.5 | D24: 26534.37 | E24: 356731.45 | F24: 397190.36 | G24: 397190.36 | H24: 397190.36 | I24: 397190.36 | J24: 26534.37 | K24: 26534.37 | L24: 26534.37 | M24: 26534.37 | N24: 2097.62 | O24: 8500.91 | P24: =SUM(D24:O24) -> 2088763.27
C28: * | D28: Estimated monthly balance. When history established, balance updated for actuals.

Sheet Rate Base
Q1: Historical
Q2: 13-Month Avg
I3: 2021-01-31 | J3: 2021-02-28 | K3: 2021-11-30 | L3: 2021-12-31 | M3: 2022-01-31 | N3: 2022-02-28 | O3: 2022-03-31 | P3: 2022-04-30 | Q3: Period Ended
A4: FERC Acct | B4: Description | D4: 2021-08-31 | E4: 2021-09-30 | F4: 2021-10-31 | G4: 2021-11-30 | H4: 2021-12-31 | I4: 2021-01-31 | J4: 2021-02-28 | K4: 2021-03-31 | L4: 2021-04-30 | M4: 2022-05-31 | N4: 2022-06-30 | O4: 2022-07-31 | P4: 2022-08-31 | Q4: =+P4 -> 2022-08-31
A5: 101 | B5: Gas Plant in Service | C5: Production | D5: 79968136 | E5: 79968136 | F5: 79968136 | G5: 79968136 | H5: 79968136 | I5: 79968136 | J5: 79968136 | K5: 79968136 | L5: 79968136 | M5: 79968136 | N5: 79968136 | O5: 79968136 | P5: 79968136 | Q5: =((D5/2)+SUM(E5:O5)+(P5/2))/12 -> 79968136
A7: 108 | B7: Accum Prov for Depreciation of Gas Plant in Service | C7: Production | D7: -71641946 | E7: -71711214 | F7: -71780483 | G7: -71849768 | H7: -71919083 | I7: -71988400 | J7: -71988400 | K7: -72112568 | L7: -72112568 | M7: -72165240 | N7: -72219000 | O7: -72277347 | P7: -72335916 | Q7: =((D7/2)+SUM(E7:O7)+(P7/2))/12 -> -72009416.83
A9: 111 | B9: Accum Prov for Amortization of Gas Plant in Service | C9: Production | D9: -6150277 | E9: -6150277 | F9: -6150277 | G9: -6150277 | H9: -6150277 | I9: -6150277 | J9: -6150277 | K9: -6150277 | L9: -6150277 | M9: -6150277 | N9: -6150277 | O9: -6150277 | P9: -6150277 | Q9: =((D9/2)+SUM(E9:O9)+(P9/2))/12 -> -6150277
A11: 1641 | B11: Gas Stored Underground | C11: Production | D11: 35307557.59 | E11: 37462513.81 | F11: 49638760.36 | G11: 48688525.37 | H11: 44932895.7 | I11: 32520297.1 | J11: 24327140.39 | K11: 13377221.65 | L11: 4611532.51 | M11: 4273987.86 | N11: 9042867.91 | O11: 16864248.25 | P11: 25992902.78 | Q11: =((D11/2)+SUM(E11:O11)+(P11/2))/12 -> 26365851.76
A12: 1641 | B12: LNG Stored* | C12: Production | D12: =+'LNG Storage'!$M$8 -> 0 | E12: =+'LNG Storage'!$M$9 -> 456302.3845 | F12: =+'LNG Storage'!$M$10 -> 2170482.176 | G12: =+'LNG Storage'!$M$11 -> 4040202.491 | H12: =+'LNG Storage'!$M$12 -> 6275079.85 | I12: =+'LNG Storage'!$M$13 -> 8635621.719 | J12: =+'LNG Storage'!$M$14 -> 8912782.773 | K12: =+'LNG Storage'!$M$15 -> 7575865.357 | L12: =+'LNG Storage'!$M$16 -> 7575865.357 | M12: =+'LNG Storage'!$M$17 -> 7575865.357 | N12: =+'LNG Storage'!$M$18 -> 7575865.357 | O12: =+'LNG Storage'!$M$19 -> 7575865.357 | P12: =+'LNG Storage'!$M$20 -> 8432685.664 | Q12: =((D12/2)+SUM(E12:O12)+(P12/2))/12 -> 6048845.084
A14: 255 | B14: Deferred Investment Tax Credits | C14: Production | D14: 0 | E14: 0 | F14: 0 | G14: 0 | H14: 0 | I14: 0 | J14: 0 | K14: 0 | L14: 0 | M14: 0 | N14: 0 | O14: 0 | P14: 0 | Q14: =((D14/2)+SUM(E14:O14)+(P14/2))/12 -> 0
A16: 282000 | B16: Accum Deferred Income Taxes - Federal | C16: Production | D16: -24954142 | E16: -24655106 | F16: -25179711 | G16: -32181231 | H16: -32697505 | I16: -33930378 | J16: -33930378 | K16: -35244000 | L16: -35244000 | M16: -34557247 | N16: -35092242 | O16: -35715252 | P16: -36065261 | Q16: =((D16/2)+SUM(E16:O16)+(P16/2))/12 -> -32411395.96
A18: 282100 | B18: Accum Deferred Income Taxes - State | C18: Production | D18: -700755 | E18: -700755 | F18: -700755 | G18: -700755 | H18: -700755 | I18: -700755 | J18: -700755 | K18: -700755 | L18: -700755 | M18: -700755 | N18: -700755 | O18: -700755 | P18: -700755 | Q18: =((D18/2)+SUM(E18:O18)+(P18/2))/12 -> -700755
A20: RATE BASE (W/O Working Cap. Cash) | C20: Production | D20: =+D5+D7+D9+D11+D14+D16+D18+D12 -> 11828573.59 | E20: 14669600.19 | F20: 27966152.54 | G20: 21814832.86 | H20: 19708491.55 | I20: 8354244.819 | J20: 438249.1626 | K20: -13286376.99 | L20: -22052066.13 | M20: -21755529.78 | N20: -17575404.73 | O20: -10435381.39 | P20: -858484.5558 | Q20: =((D20/2)+SUM(E20:O20)+(P20/2))/12 -> 1110988.05
A22: 1641 | B22: Gas Stored Underground (DTH) | C22: Total (DTH) | D22: -9532438 | E22: -10062789 | F22: -13372878 | G22: -13214272 | H22: -11422790 | I22: -8131966 | J22: -6056782 | K22: -3332283 | L22: -1184924 | M22: -1067151 | N22: -2484771 | O22: -4802709 | P22: -6538004 | Q22: =((D22/2)+SUM(E22:O22)+(P22/2))/12 -> -6930711.333
